Workbook

Sheet Control
A1: Sheets | B1: Text File Names | C1: Description | E1: Notes: 50 sheets maximum
A2: Cat23SP_Conc | B2: Stockpiles\Concentrations\Cat23SP_Conc_Output.txt | C2: Project concentrations for the Category 2/3 stockpile seepage | E2: Referenced text files must be in same root folder as this spreadsheet
A3: Cat4SP_Conc | B3: Stockpiles\Concentrations\Cat4SP_Conc_Output.txt | C3: Project concentrations for the Category 4 stockpile seepage
A4: OSP_Conc | B4: Stockpiles\Concentrations\OSP_Conc_Output.txt | C4: Project concentrations for the Ore Surge Pile seepage
A5: OSLA_Conc | B5: Stockpiles\Concentrations\OSLA_Conc_Output.txt | C5: Project concentrations for the OSLA Runoff
A6: RTH_Conc | B6: Other\Concentrations\RTH_Conc_Output.txt | C6: Project concentrations for the RTH runoff
A7: EP_sump_Conc | B7: Pits\Concentrations\EP_sump_Concs_output.txt | C7: Project concentrations for the East Pit Sump
A8: CPS_Pond_Conc | B8: Other\Concentrations\CPS_Pond_Conc_output.txt | C8: Project concentrations for the CPS Pond | F8: Run Time Min: | G8: =MIN(Cat23SP_Conc!B5,Cat4SP_Conc!B5,OSP_Conc!B5,OSLA_Conc!B5,RTH_Conc!B5,HR_Conc!B5,CPS_Pond_Conc!B5,EP_Sump_Conc!B5) -> 2014-12-15T22:56:18 | I8: FEIS Outputs
A9: HR_Conc | B9: Other\Concentrations\HR_Conc_Output.txt | C9: Project concentrations for the Haul Road runoff | F9: Run Time Max: | G9: =MAX(Cat23SP_Conc!B5,Cat4SP_Conc!B5,OSP_Conc!B5,OSLA_Conc!B5,RTH_Conc!B5,HR_Conc!B5,CPS_Pond_Conc!B5,EP_Sump_Conc!B5) -> 2014-12-15T22:56:18
A11: Cat23SP_Conc_SDEIS | B11: SDEIS\Stockpiles\Concentrations\Cat23SP_Conc_Output.txt | C11: SDEIS Project concentrations for the Category 2/3 stockpile seepage | F11: Run Time Min: | G11: =MIN(Cat23SP_Conc_SDEIS!B5,Cat4SP_Conc_SDEIS!B5,OSP_Conc_SDEIS!B5,OSLA_Conc_SDEIS!B5,RTH_Conc_SDEIS!B5,HR_Conc_SDEIS!B5,CPS_Pond_Conc_SDEIS!B5,EP_Sump_Conc_SDEIS!B5) -> 2013-01-28T18:20:45 | I11: SDEIS Outputs
A12: Cat4SP_Conc_SDEIS | B12: SDEIS\Stockpiles\Concentrations\Cat4SP_Conc_Output.txt | C12: SDEIS Project concentrations for the Category 4 stockpile seepage | F12: Run Time Max: | G12: =MAX(Cat23SP_Conc_SDEIS!B5,Cat4SP_Conc_SDEIS!B5,OSP_Conc_SDEIS!B5,OSLA_Conc_SDEIS!B5,RTH_Conc_SDEIS!B5,HR_Conc_SDEIS!B5,CPS_Pond_Conc_SDEIS!B5,EP_Sump_Conc_SDEIS!B5) -> 2013-01-28T18:20:45
A13: OSP_Conc_SDEIS | B13: SDEIS\Stockpiles\Concentrations\OSP_Conc_Output.txt | C13: SDEIS Project concentrations for the Ore Surge Pile seepage
A14: OSLA_Conc_SDEIS | B14: SDEIS\Stockpiles\Concentrations\OSLA_Conc_Output.txt | C14: SDEIS Project concentrations for the OSLA Runoff
A15: RTH_Conc_SDEIS | B15: SDEIS\Other\Concentrations\RTH_Conc_Output.txt | C15: SDEIS Project concentrations for the RTH runoff
A16: EP_sump_Conc_SDEIS | B16: SDEIS\Pits\Concentrations\EP_sump_Concs_output.txt | C16: SDEIS Project concentrations for the East Pit Sump
A17: CPS_Pond_Conc_SDEIS | B17: SDEIS\Other\Concentrations\CPS_Pond_Conc_output.txt | C17: SDEIS Project concentrations for the CPS Pond
A18: HR_Conc_SDEIS | B18: SDEIS\Other\Concentrations\HR_Conc_Output.txt | C18: SDEIS Project concentrations for the Haul Road runoff

Sheet PlotControl
A2: Model Name: | B2: Mine Site Version 6.0
A4: Plot: | B4: Annual Max | C4: =B2 & " Model vs. SDEIS (v5.0) " & IF(B4="Annual Max", "Annual Maximum", B4) & " of Concentration Statistics " & B6 & " in the " & B8 -> Mine Site Version 6.0 Model vs. SDEIS (v5.0) Annual Maximum of Concentration Statistics SO4 in the East Pit Sump Dewatering | V4: Directory to save PDFs to: | W4: C:\Users\jem4\Desktop\temp
C5: =B2 & " Model vs. SDEIS (v5.0) Monthly Concentration and Flow Statistics " & B6 & " in the " & B8 -> Mine Site Version 6.0 Model vs. SDEIS (v5.0) Monthly Concentration and Flow Statistics SO4 in the East Pit Sump Dewatering | V5: Starting figure caption | W5: Figure H-08-27.2
A6: Constituent to Plot (dropdown): | B6: SO4 | C6: =MATCH(B6,$A$25:$A$51,0) -> 24
V7: Note: This loops through the plot, constituent, and location drop down menus.
A8: Location to Plot (dropdown): | B8: East Pit Sump Dewatering | C8: =MATCH(B8,$A$15:$A$22,0) -> 7
A10: Initial Time for Monthly Plot (yr): | B10: 0
B11: =B10+20 -> 20
A14: Locations | C14: Number
A15: Category 2/3 Stockpile Drainage | C15: 1
A16: Category 4 Stockpile Drainage | C16: 2
A17: Ore Surge Pile Drainage | C17: 3
A18: OSLA Runoff | C18: 4
A19: Rail Transfer Hopper Runoff | C19: 5
A20: Haul Road Runoff | C20: 6
A21: East Pit Sump Dewatering | C21: 8
A22: CPS Pond | C22: DO NOT SAVE FIGURE PDFs for CPS POND
A24: Constituent | B24: Partridge Standard (ug/L) | C24: Colby Standard (ug/L) | D24: Hardness Based "A" | E24: Hardness Based "B" | I24: Annual Project Results | L24: Annual SDEIS Project Results | Q24: Monthly Project Results | T24: Monthly SDEIS Project Results
A25: Ag | B25: 1 | C25: 1 | H25: Time | I25: P10 | J25: P50 | K25: P90 | L25: P10 | M25: P50 | N25: P90 | P25: Time | Q25: P10 | R25: P50 | S25: P90 | T25: P10 | U25: P50 | V25: P90
A26: Al | B26: 125 | C26: 125 | H26: 0 | I26: 0 | J26: 0 | K26: 0 | L26: 0 | M26: 0 | N26: 0 | P26: =B10 -> 0 | Q26: =VLOOKUP($P26,Conc_All!$AA$5:$AY$305,3*($C$8-1)+2) -> 0 | R26: =VLOOKUP($P26,Conc_All!$AA$5:$AY$305,3*($C$8-1)+3) -> 0 | S26: =VLOOKUP($P26,Conc_All!$AA$5:$AY$305,3*($C$8-1)+4) -> 0 | T26: =VLOOKUP($P26,Conc_All_SDEIS!$AA$5:$AY$305,3*($C$8-1)+2) -> 0 | U26: =VLOOKUP($P26,Conc_All_SDEIS!$AA$5:$AY$305,3*($C$8-1)+3) -> 0 | V26: =VLOOKUP($P26,Conc_All_SDEIS!$AA$5:$AY$305,3*($C$8-1)+4) -> 0
A27: Alkalinity | H27: 1 | I27: =VLOOKUP($H27,Conc_All!$A$5:$Y$204,3*($C$8-1)+2) -> 2069800 | J27: =VLOOKUP($H27,Conc_All!$A$5:$Y$204,3*($C$8-1)+3) -> 2622900 | K27: =VLOOKUP($H27,Conc_All!$A$5:$Y$204,3*($C$8-1)+4) -> 3803700 | L27: =VLOOKUP($H27,Conc_All_SDEIS!$A$5:$Y$204,3*($C$8-1)+2) -> 2069800 | M27: =VLOOKUP($H27,Conc_All_SDEIS!$A$5:$Y$204,3*($C$8-1)+3) -> 2622900 | N27: =VLOOKUP($H27,Conc_All_SDEIS!$A$5:$Y$204,3*($C$8-1)+4) -> 3803700 | P27: =P26+1/12 -> 0.08333333333 | Q27: =VLOOKUP($P27,Conc_All!$AA$5:$AY$305,3*($C$8-1)+2) -> 2069800 | R27: =VLOOKUP($P27,Conc_All!$AA$5:$AY$305,3*($C$8-1)+3) -> 2622900 | S27: =VLOOKUP($P27,Conc_All!$AA$5:$AY$305,3*($C$8-1)+4) -> 3803700 | T27: =VLOOKUP($P27,Conc_All_SDEIS!$AA$5:$AY$305,3*($C$8-1)+2) -> 2069800 | U27: =VLOOKUP($P27,Conc_All_SDEIS!$AA$5:$AY$305,3*($C$8-1)+3) -> 2622900 | V27: =VLOOKUP($P27,Conc_All_SDEIS!$AA$5:$AY$305,3*($C$8-1)+4) -> 3803700
A28: As | B28: 53 | C28: 2 | H28: 2 | I28: =VLOOKUP($H28,Conc_All!$A$5:$Y$204,3*($C$8-1)+2) -> 148350 | J28: =VLOOKUP($H28,Conc_All!$A$5:$Y$204,3*($C$8-1)+3) -> 244760 | K28: =VLOOKUP($H28,Conc_All!$A$5:$Y$204,3*($C$8-1)+4) -> 414250 | L28: =VLOOKUP($H28,Conc_All_SDEIS!$A$5:$Y$204,3*($C$8-1)+2) -> 358720 | M28: =VLOOKUP($H28,Conc_All_SDEIS!$A$5:$Y$204,3*($C$8-1)+3) -> 608470 | N28: =VLOOKUP($H28,Conc_All_SDEIS!$A$5:$Y$204,3*($C$8-1)+4) -> 1057000 | P28: =P27+1/12 -> 0.1666666667 | Q28: =VLOOKUP($P28,Conc_All!$AA$5:$AY$305,3*($C$8-1)+2) -> 876750 | R28: =VLOOKUP($P28,Conc_All!$AA$5:$AY$305,3*($C$8-1)+3) -> 1743000 | S28: =VLOOKUP($P28,Conc_All!$AA$5:$AY$305,3*($C$8-1)+4) -> 2697800 | T28: =VLOOKUP($P28,Conc_All_SDEIS!$AA$5:$AY$305,3*($C$8-1)+2) -> 2006000 | U28: =VLOOKUP($P28,Conc_All_SDEIS!$AA$5:$AY$305,3*($C$8-1)+3) -> 2561200 | V28: =VLOOKUP($P28,Conc_All_SDEIS!$AA$5:$AY$305,3*($C$8-1)+4) -> 3754000
A29: B | B29: 500 | C29: 500 | H29: 3 | I29: =VLOOKUP($H29,Conc_All!$A$5:$Y$204,3*($C$8-1)+2) -> 141360 | J29: =VLOOKUP($H29,Conc_All!$A$5:$Y$204,3*($C$8-1)+3) -> 237950 | K29: =VLOOKUP($H29,Conc_All!$A$5:$Y$204,3*($C$8-1)+4) -> 394820 | L29: =VLOOKUP($H29,Conc_All_SDEIS!$A$5:$Y$204,3*($C$8-1)+2) -> 326480 | M29: =VLOOKUP($H29,Conc_All_SDEIS!$A$5:$Y$204,3*($C$8-1)+3) -> 571590 | N29: =VLOOKUP($H29,Conc_All_SDEIS!$A$5:$Y$204,3*($C$8-1)+4) -> 995240 | P29: 0.25 | Q29: =VLOOKUP($P29,Conc_All!$AA$5:$AY$305,3*($C$8-1)+2) -> 438880 | R29: =VLOOKUP($P29,Conc_All!$AA$5:$AY$305,3*($C$8-1)+3) -> 937760 | S29: =VLOOKUP($P29,Conc_All!$AA$5:$AY$305,3*($C$8-1)+4) -> 1808500 | T29: =VLOOKUP($P29,Conc_All_SDEIS!$AA$5:$AY$305,3*($C$8-1)+2) -> 1257800 | U29: =VLOOKUP($P29,Conc_All_SDEIS!$AA$5:$AY$305,3*($C$8-1)+3) -> 2287100 | V29: =VLOOKUP($P29,Conc_All_SDEIS!$AA$5:$AY$305,3*($C$8-1)+4) -> 3361200
A30: Ba | C30: 2000 | H30: 4 | I30: =VLOOKUP($H30,Conc_All!$A$5:$Y$204,3*($C$8-1)+2) -> 121650 | J30: =VLOOKUP($H30,Conc_All!$A$5:$Y$204,3*($C$8-1)+3) -> 211180 | K30: =VLOOKUP($H30,Conc_All!$A$5:$Y$204,3*($C$8-1)+4) -> 346100 | L30: =VLOOKUP($H30,Conc_All_SDEIS!$A$5:$Y$204,3*($C$8-1)+2) -> 284960 | M30: =VLOOKUP($H30,Conc_All_SDEIS!$A$5:$Y$204,3*($C$8-1)+3) -> 510290 | N30: =VLOOKUP($H30,Conc_All_SDEIS!$A$5:$Y$204,3*($C$8-1)+4) -> 855630 | P30: 0.3333333333 | Q30: =VLOOKUP($P30,Conc_All!$AA$5:$AY$305,3*($C$8-1)+2) -> 72349 | R30: =VLOOKUP($P30,Conc_All!$AA$5:$AY$305,3*($C$8-1)+3) -> 146980 | S30: =VLOOKUP($P30,Conc_All!$AA$5:$AY$305,3*($C$8-1)+4) -> 269020 | T30: =VLOOKUP($P30,Conc_All_SDEIS!$AA$5:$AY$305,3*($C$8-1)+2) -> 88218 | U30: =VLOOKUP($P30,Conc_All_SDEIS!$AA$5:$AY$305,3*($C$8-1)+3) -> 181890 | V30: =VLOOKUP($P30,Conc_All_SDEIS!$AA$5:$AY$305,3*($C$8-1)+4) -> 334700
A31: Be | C31: 4 | H31: 5 | I31: =VLOOKUP($H31,Conc_All!$A$5:$Y$204,3*($C$8-1)+2) -> 108320 | J31: =VLOOKUP($H31,Conc_All!$A$5:$Y$204,3*($C$8-1)+3) -> 185090 | K31: =VLOOKUP($H31,Conc_All!$A$5:$Y$204,3*($C$8-1)+4) -> 300600 | L31: =VLOOKUP($H31,Conc_All_SDEIS!$A$5:$Y$204,3*($C$8-1)+2) -> 245290 | M31: =VLOOKUP($H31,Conc_All_SDEIS!$A$5:$Y$204,3*($C$8-1)+3) -> 458950 | N31: =VLOOKUP($H31,Conc_All_SDEIS!$A$5:$Y$204,3*($C$8-1)+4) -> 766140 | P31: 0.4166666667 | Q31: =VLOOKUP($P31,Conc_All!$AA$5:$AY$305,3*($C$8-1)+2) -> 82402 | R31: =VLOOKUP($P31,Conc_All!$AA$5:$AY$305,3*($C$8-1)+3) -> 162810 | S31: =VLOOKUP($P31,Conc_All!$AA$5:$AY$305,3*($C$8-1)+4) -> 294140 | T31: =VLOOKUP($P31,Conc_All_SDEIS!$AA$5:$AY$305,3*($C$8-1)+2) -> 98347 | U31: =VLOOKUP($P31,Conc_All_SDEIS!$AA$5:$AY$305,3*($C$8-1)+3) -> 204220 | V31: =VLOOKUP($P31,Conc_All_SDEIS!$AA$5:$AY$305,3*($C$8-1)+4) -> 379450
A32: Ca | H32: 6 | I32: =VLOOKUP($H32,Conc_All!$A$5:$Y$204,3*($C$8-1)+2) -> 85242 | J32: =VLOOKUP($H32,Conc_All!$A$5:$Y$204,3*($C$8-1)+3) -> 132200 | K32: =VLOOKUP($H32,Conc_All!$A$5:$Y$204,3*($C$8-1)+4) -> 206430 | L32: =VLOOKUP($H32,Conc_All_SDEIS!$A$5:$Y$204,3*($C$8-1)+2) -> 197270 | M32: =VLOOKUP($H32,Conc_All_SDEIS!$A$5:$Y$204,3*($C$8-1)+3) -> 336270 | N32: =VLOOKUP($H32,Conc_All_SDEIS!$A$5:$Y$204,3*($C$8-1)+4) -> 555350 | P32: 0.5 | Q32: =VLOOKUP($P32,Conc_All!$AA$5:$AY$305,3*($C$8-1)+2) -> 71574 | R32: =VLOOKUP($P32,Conc_All!$AA$5:$AY$305,3*($C$8-1)+3) -> 140660 | S32: =VLOOKUP($P32,Conc_All!$AA$5:$AY$305,3*($C$8-1)+4) -> 243390 | T32: =VLOOKUP($P32,Conc_All_SDEIS!$AA$5:$AY$305,3*($C$8-1)+2) -> 85567 | U32: =VLOOKUP($P32,Conc_All_SDEIS!$AA$5:$AY$305,3*($C$8-1)+3) -> 175490 | V32: =VLOOKUP($P32,Conc_All_SDEIS!$AA$5:$AY$305,3*($C$8-1)+4) -> 313340
A33: Cd | C33: 5 | D33: 0.7852 | E33: -2.715 | H33: 7 | I33: =VLOOKUP($H33,Conc_All!$A$5:$Y$204,3*($C$8-1)+2) -> 85605 | J33: =VLOOKUP($H33,Conc_All!$A$5:$Y$204,3*($C$8-1)+3) -> 138710 | K33: =VLOOKUP($H33,Conc_All!$A$5:$Y$204,3*($C$8-1)+4) -> 210270 | L33: =VLOOKUP($H33,Conc_All_SDEIS!$A$5:$Y$204,3*($C$8-1)+2) -> 194060 | M33: =VLOOKUP($H33,Conc_All_SDEIS!$A$5:$Y$204,3*($C$8-1)+3) -> 340710 | N33: =VLOOKUP($H33,Conc_All_SDEIS!$A$5:$Y$204,3*($C$8-1)+4) -> 548540 | P33: 0.5833333333 | Q33: =VLOOKUP($P33,Conc_All!$AA$5:$AY$305,3*($C$8-1)+2) -> 71945 | R33: =VLOOKUP($P33,Conc_All!$AA$5:$AY$305,3*($C$8-1)+3) -> 139740 | S33: =VLOOKUP($P33,Conc_All!$AA$5:$AY$305,3*($C$8-1)+4) -> 238660 | T33: =VLOOKUP($P33,Conc_All_SDEIS!$AA$5:$AY$305,3*($C$8-1)+2) -> 87453 | U33: =VLOOKUP($P33,Conc_All_SDEIS!$AA$5:$AY$305,3*($C$8-1)+3) -> 178990 | V33: =VLOOKUP($P33,Conc_All_SDEIS!$AA$5:$AY$305,3*($C$8-1)+4) -> 309880
A34: Cl | B34: 230000 | C34: 230000 | H34: 8 | I34: =VLOOKUP($H34,Conc_All!$A$5:$Y$204,3*($C$8-1)+2) -> 83544 | J34: =VLOOKUP($H34,Conc_All!$A$5:$Y$204,3*($C$8-1)+3) -> 132980 | K34: =VLOOKUP($H34,Conc_All!$A$5:$Y$204,3*($C$8-1)+4) -> 202340 | L34: =VLOOKUP($H34,Conc_All_SDEIS!$A$5:$Y$204,3*($C$8-1)+2) -> 179410 | M34: =VLOOKUP($H34,Conc_All_SDEIS!$A$5:$Y$204,3*($C$8-1)+3) -> 307730 | N34: =VLOOKUP($H34,Conc_All_SDEIS!$A$5:$Y$204,3*($C$8-1)+4) -> 510930 | P34: 0.6666666667 | Q34: =VLOOKUP($P34,Conc_All!$AA$5:$AY$305,3*($C$8-1)+2) -> 73205 | R34: =VLOOKUP($P34,Conc_All!$AA$5:$AY$305,3*($C$8-1)+3) -> 141080 | S34: =VLOOKUP($P34,Conc_All!$AA$5:$AY$305,3*($C$8-1)+4) -> 239930 | T34: =VLOOKUP($P34,Conc_All_SDEIS!$AA$5:$AY$305,3*($C$8-1)+2) -> 90629 | U34: =VLOOKUP($P34,Conc_All_SDEIS!$AA$5:$AY$305,3*($C$8-1)+3) -> 184540 | V34: =VLOOKUP($P34,Conc_All_SDEIS!$AA$5:$AY$305,3*($C$8-1)+4) -> 320610
A35: Co | B35: 5 | C35: 2.8 | H35: 9 | I35: =VLOOKUP($H35,Conc_All!$A$5:$Y$204,3*($C$8-1)+2) -> 76164 | J35: =VLOOKUP($H35,Conc_All!$A$5:$Y$204,3*($C$8-1)+3) -> 120250 | K35: =VLOOKUP($H35,Conc_All!$A$5:$Y$204,3*($C$8-1)+4) -> 184340 | L35: =VLOOKUP($H35,Conc_All_SDEIS!$A$5:$Y$204,3*($C$8-1)+2) -> 150570 | M35: =VLOOKUP($H35,Conc_All_SDEIS!$A$5:$Y$204,3*($C$8-1)+3) -> 270630 | N35: =VLOOKUP($H35,Conc_All_SDEIS!$A$5:$Y$204,3*($C$8-1)+4) -> 458190 | P35: 0.75 | Q35: =VLOOKUP($P35,Conc_All!$AA$5:$AY$305,3*($C$8-1)+2) -> 75480 | R35: =VLOOKUP($P35,Conc_All!$AA$5:$AY$305,3*($C$8-1)+3) -> 143650 | S35: =VLOOKUP($P35,Conc_All!$AA$5:$AY$305,3*($C$8-1)+4) -> 239030 | T35: =VLOOKUP($P35,Conc_All_SDEIS!$AA$5:$AY$305,3*($C$8-1)+2) -> 95856 | U35: =VLOOKUP($P35,Conc_All_SDEIS!$AA$5:$AY$305,3*($C$8-1)+3) -> 194410 | V35: =VLOOKUP($P35,Conc_All_SDEIS!$AA$5:$AY$305,3*($C$8-1)+4) -> 329690
A36: Cr | B36: 11 | C36: 11 | H36: 10 | I36: =VLOOKUP($H36,Conc_All!$A$5:$Y$204,3*($C$8-1)+2) -> 67292 | J36: =VLOOKUP($H36,Conc_All!$A$5:$Y$204,3*($C$8-1)+3) -> 104960 | K36: =VLOOKUP($H36,Conc_All!$A$5:$Y$204,3*($C$8-1)+4) -> 150680 | L36: =VLOOKUP($H36,Conc_All_SDEIS!$A$5:$Y$204,3*($C$8-1)+2) -> 126300 | M36: =VLOOKUP($H36,Conc_All_SDEIS!$A$5:$Y$204,3*($C$8-1)+3) -> 216980 | N36: =VLOOKUP($H36,Conc_All_SDEIS!$A$5:$Y$204,3*($C$8-1)+4) -> 340780 | P36: 0.8333333333 | Q36: =VLOOKUP($P36,Conc_All!$AA$5:$AY$305,3*($C$8-1)+2) -> 89751 | R36: =VLOOKUP($P36,Conc_All!$AA$5:$AY$305,3*($C$8-1)+3) -> 166440 | S36: =VLOOKUP($P36,Conc_All!$AA$5:$AY$305,3*($C$8-1)+4) -> 266390 | T36: =VLOOKUP($P36,Conc_All_SDEIS!$AA$5:$AY$305,3*($C$8-1)+2) -> 124950 | U36: =VLOOKUP($P36,Conc_All_SDEIS!$AA$5:$AY$305,3*($C$8-1)+3) -> 247250 | V36: =VLOOKUP($P36,Conc_All_SDEIS!$AA$5:$AY$305,3*($C$8-1)+4) -> 404930
A37: Cu | D37: 0.8545 | E37: -1.702 | H37: 11 | I37: =VLOOKUP($H37,Conc_All!$A$5:$Y$204,3*($C$8-1)+2) -> 117270 | J37: =VLOOKUP($H37,Conc_All!$A$5:$Y$204,3*($C$8-1)+3) -> 242130 | K37: =VLOOKUP($H37,Conc_All!$A$5:$Y$204,3*($C$8-1)+4) -> 461810 | L37: =VLOOKUP($H37,Conc_All_SDEIS!$A$5:$Y$204,3*($C$8-1)+2) -> 2071400 | M37: =VLOOKUP($H37,Conc_All_SDEIS!$A$5:$Y$204,3*($C$8-1)+3) -> 2630300 | N37: =VLOOKUP($H37,Conc_All_SDEIS!$A$5:$Y$204,3*($C$8-1)+4) -> 3827100 | P37: 0.9166666667 | Q37: =VLOOKUP($P37,Conc_All!$AA$5:$AY$305,3*($C$8-1)+2) -> 143890 | R37: =VLOOKUP($P37,Conc_All!$AA$5:$AY$305,3*($C$8-1)+3) -> 255720 | S37: =VLOOKUP($P37,Conc_All!$AA$5:$AY$305,3*($C$8-1)+4) -> 417170 | T37: =VLOOKUP($P37,Conc_All_SDEIS!$AA$5:$AY$305,3*($C$8-1)+2) -> 350750 | U37: =VLOOKUP($P37,Conc_All_SDEIS!$AA$5:$AY$305,3*($C$8-1)+3) -> 651360 | V37: =VLOOKUP($P37,Conc_All_SDEIS!$AA$5:$AY$305,3*($C$8-1)+4) -> 1074900
A38: F | C38: 4000 | H38: 12 | I38: =VLOOKUP($H38,Conc_All!$A$5:$Y$204,3*($C$8-1)+2) -> 144670 | J38: =VLOOKUP($H38,Conc_All!$A$5:$Y$204,3*($C$8-1)+3) -> 309940 | K38: =VLOOKUP($H38,Conc_All!$A$5:$Y$204,3*($C$8-1)+4) -> 595060 | L38: =VLOOKUP($H38,Conc_All_SDEIS!$A$5:$Y$204,3*($C$8-1)+2) -> 68332 | M38: =VLOOKUP($H38,Conc_All_SDEIS!$A$5:$Y$204,3*($C$8-1)+3) -> 173120 | N38: =VLOOKUP($H38,Conc_All_SDEIS!$A$5:$Y$204,3*($C$8-1)+4) -> 343770 | P38: 1 | Q38: =VLOOKUP($P38,Conc_All!$AA$5:$AY$305,3*($C$8-1)+2) -> 118260 | R38: =VLOOKUP($P38,Conc_All!$AA$5:$AY$305,3*($C$8-1)+3) -> 212080 | S38: =VLOOKUP($P38,Conc_All!$AA$5:$AY$305,3*($C$8-1)+4) -> 355460 | T38: =VLOOKUP($P38,Conc_All_SDEIS!$AA$5:$AY$305,3*($C$8-1)+2) -> 288680 | U38: =VLOOKUP($P38,Conc_All_SDEIS!$AA$5:$AY$305,3*($C$8-1)+3) -> 541140 | V38: =VLOOKUP($P38,Conc_All_SDEIS!$AA$5:$AY$305,3*($C$8-1)+4) -> 927660
A39: Fe | C39: 300 | H39: 13 | I39: =VLOOKUP($H39,Conc_All!$A$5:$Y$204,3*($C$8-1)+2) -> 201540 | J39: =VLOOKUP($H39,Conc_All!$A$5:$Y$204,3*($C$8-1)+3) -> 458070 | K39: =VLOOKUP($H39,Conc_All!$A$5:$Y$204,3*($C$8-1)+4) -> 880510 | L39: =VLOOKUP($H39,Conc_All_SDEIS!$A$5:$Y$204,3*($C$8-1)+2) -> 80527 | M39: =VLOOKUP($H39,Conc_All_SDEIS!$A$5:$Y$204,3*($C$8-1)+3) -> 190030 | N39: =VLOOKUP($H39,Conc_All_SDEIS!$A$5:$Y$204,3*($C$8-1)+4) -> 381200 | P39: 1.083333333 | Q39: =VLOOKUP($P39,Conc_All!$AA$5:$AY$305,3*($C$8-1)+2) -> 112430 | R39: =VLOOKUP($P39,Conc_All!$AA$5:$AY$305,3*($C$8-1)+3) -> 188140 | S39: =VLOOKUP($P39,Conc_All!$AA$5:$AY$305,3*($C$8-1)+4) -> 326760 | T39: =VLOOKUP($P39,Conc_All_SDEIS!$AA$5:$AY$305,3*($C$8-1)+2) -> 266930 | U39: =VLOOKUP($P39,Conc_All_SDEIS!$AA$5:$AY$305,3*($C$8-1)+3) -> 476590 | V39: =VLOOKUP($P39,Conc_All_SDEIS!$AA$5:$AY$305,3*($C$8-1)+4) -> 857840
A40: K | H40: 14 | I40: =VLOOKUP($H40,Conc_All!$A$5:$Y$204,3*($C$8-1)+2) -> 251080 | J40: =VLOOKUP($H40,Conc_All!$A$5:$Y$204,3*($C$8-1)+3) -> 497330 | K40: =VLOOKUP($H40,Conc_All!$A$5:$Y$204,3*($C$8-1)+4) -> 770280 | L40: =VLOOKUP($H40,Conc_All_SDEIS!$A$5:$Y$204,3*($C$8-1)+2) -> 81954 | M40: =VLOOKUP($H40,Conc_All_SDEIS!$A$5:$Y$204,3*($C$8-1)+3) -> 191700 | N40: =VLOOKUP($H40,Conc_All_SDEIS!$A$5:$Y$204,3*($C$8-1)+4) -> 384620 | P40: 1.166666667 | Q40: =VLOOKUP($P40,Conc_All!$AA$5:$AY$305,3*($C$8-1)+2) -> 108760 | R40: =VLOOKUP($P40,Conc_All!$AA$5:$AY$305,3*($C$8-1)+3) -> 182840 | S40: =VLOOKUP($P40,Conc_All!$AA$5:$AY$305,3*($C$8-1)+4) -> 322270 | T40: =VLOOKUP($P40,Conc_All_SDEIS!$AA$5:$AY$305,3*($C$8-1)+2) -> 258100 | U40: =VLOOKUP($P40,Conc_All_SDEIS!$AA$5:$AY$305,3*($C$8-1)+3) -> 460610 | V40: =VLOOKUP($P40,Conc_All_SDEIS!$AA$5:$AY$305,3*($C$8-1)+4) -> 840520
A41: Mg | H41: 15 | I41: =VLOOKUP($H41,Conc_All!$A$5:$Y$204,3*($C$8-1)+2) -> 229160 | J41: =VLOOKUP($H41,Conc_All!$A$5:$Y$204,3*($C$8-1)+3) -> 421590 | K41: =VLOOKUP($H41,Conc_All!$A$5:$Y$204,3*($C$8-1)+4) -> 639190 | L41: =VLOOKUP($H41,Conc_All_SDEIS!$A$5:$Y$204,3*($C$8-1)+2) -> 80395 | M41: =VLOOKUP($H41,Conc_All_SDEIS!$A$5:$Y$204,3*($C$8-1)+3) -> 196370 | N41: =VLOOKUP($H41,Conc_All_SDEIS!$A$5:$Y$204,3*($C$8-1)+4) -> 397690 | P41: 1.25 | Q41: =VLOOKUP($P41,Conc_All!$AA$5:$AY$305,3*($C$8-1)+2) -> 118280 | R41: =VLOOKUP($P41,Conc_All!$AA$5:$AY$305,3*($C$8-1)+3) -> 197050 | S41: =VLOOKUP($P41,Conc_All!$AA$5:$AY$305,3*($C$8-1)+4) -> 339040 | T41: =VLOOKUP($P41,Conc_All_SDEIS!$AA$5:$AY$305,3*($C$8-1)+2) -> 283010 | U41: =VLOOKUP($P41,Conc_All_SDEIS!$AA$5:$AY$305,3*($C$8-1)+3) -> 499150 | V41: =VLOOKUP($P41,Conc_All_SDEIS!$AA$5:$AY$305,3*($C$8-1)+4) -> 891720
A42: Mn | C42: 50 | H42: 16 | I42: =VLOOKUP($H42,Conc_All!$A$5:$Y$204,3*($C$8-1)+2) -> 184480 | J42: =VLOOKUP($H42,Conc_All!$A$5:$Y$204,3*($C$8-1)+3) -> 326790 | K42: =VLOOKUP($H42,Conc_All!$A$5:$Y$204,3*($C$8-1)+4) -> 496990 | L42: =VLOOKUP($H42,Conc_All_SDEIS!$A$5:$Y$204,3*($C$8-1)+2) -> 78612 | M42: =VLOOKUP($H42,Conc_All_SDEIS!$A$5:$Y$204,3*($C$8-1)+3) -> 183380 | N42: =VLOOKUP($H42,Conc_All_SDEIS!$A$5:$Y$204,3*($C$8-1)+4) -> 372890 | P42: 1.333333333 | Q42: =VLOOKUP($P42,Conc_All!$AA$5:$AY$305,3*($C$8-1)+2) -> 63896 | R42: =VLOOKUP($P42,Conc_All!$AA$5:$AY$305,3*($C$8-1)+3) -> 98682 | S42: =VLOOKUP($P42,Conc_All!$AA$5:$AY$305,3*($C$8-1)+4) -> 149740 | T42: =VLOOKUP($P42,Conc_All_SDEIS!$AA$5:$AY$305,3*($C$8-1)+2) -> 78653 | U42: =VLOOKUP($P42,Conc_All_SDEIS!$AA$5:$AY$305,3*($C$8-1)+3) -> 126280 | V42: =VLOOKUP($P42,Conc_All_SDEIS!$AA$5:$AY$305,3*($C$8-1)+4) -> 193170
A43: Na | H43: 17 | I43: =VLOOKUP($H43,Conc_All!$A$5:$Y$204,3*($C$8-1)+2) -> 15556 | J43: =VLOOKUP($H43,Conc_All!$A$5:$Y$204,3*($C$8-1)+3) -> 47310 | K43: =VLOOKUP($H43,Conc_All!$A$5:$Y$204,3*($C$8-1)+4) -> 123290 | L43: =VLOOKUP($H43,Conc_All_SDEIS!$A$5:$Y$204,3*($C$8-1)+2) -> 2.5548e-09 | M43: =VLOOKUP($H43,Conc_All_SDEIS!$A$5:$Y$204,3*($C$8-1)+3) -> 5.9764e-09 | N43: =VLOOKUP($H43,Conc_All_SDEIS!$A$5:$Y$204,3*($C$8-1)+4) -> 1.2022e-08 | P43: 1.416666667 | Q43: =VLOOKUP($P43,Conc_All!$AA$5:$AY$305,3*($C$8-1)+2) -> 102090 | R43: =VLOOKUP($P43,Conc_All!$AA$5:$AY$305,3*($C$8-1)+3) -> 181170 | S43: =VLOOKUP($P43,Conc_All!$AA$5:$AY$305,3*($C$8-1)+4) -> 272360 | T43: =VLOOKUP($P43,Conc_All_SDEIS!$AA$5:$AY$305,3*($C$8-1)+2) -> 144630 | U43: =VLOOKUP($P43,Conc_All_SDEIS!$AA$5:$AY$305,3*($C$8-1)+3) -> 270960 | V43: =VLOOKUP($P43,Conc_All_SDEIS!$AA$5:$AY$305,3*($C$8-1)+4) -> 403360
A44: Ni | D44: 0.846 | E44: 0.0584 | H44: 18 | I44: =VLOOKUP($H44,Conc_All!$A$5:$Y$204,3*($C$8-1)+2) -> 11161 | J44: =VLOOKUP($H44,Conc_All!$A$5:$Y$204,3*($C$8-1)+3) -> 32555 | K44: =VLOOKUP($H44,Conc_All!$A$5:$Y$204,3*($C$8-1)+4) -> 80318 | L44: =VLOOKUP($H44,Conc_All_SDEIS!$A$5:$Y$204,3*($C$8-1)+2) -> 2.6698e-18 | M44: =VLOOKUP($H44,Conc_All_SDEIS!$A$5:$Y$204,3*($C$8-1)+3) -> 6.2032e-18 | N44: =VLOOKUP($H44,Conc_All_SDEIS!$A$5:$Y$204,3*($C$8-1)+4) -> 1.2549e-17 | P44: 1.5 | Q44: =VLOOKUP($P44,Conc_All!$AA$5:$AY$305,3*($C$8-1)+2) -> 86115 | R44: =VLOOKUP($P44,Conc_All!$AA$5:$AY$305,3*($C$8-1)+3) -> 177790 | S44: =VLOOKUP($P44,Conc_All!$AA$5:$AY$305,3*($C$8-1)+4) -> 260650 | T44: =VLOOKUP($P44,Conc_All_SDEIS!$AA$5:$AY$305,3*($C$8-1)+2) -> 114220 | U44: =VLOOKUP($P44,Conc_All_SDEIS!$AA$5:$AY$305,3*($C$8-1)+3) -> 253150 | V44: =VLOOKUP($P44,Conc_All_SDEIS!$AA$5:$AY$305,3*($C$8-1)+4) -> 375000
A45: Pb | D45: 1.273 | E45: -4.705 | H45: 19 | I45: =VLOOKUP($H45,Conc_All!$A$5:$Y$204,3*($C$8-1)+2) -> 6751.2 | J45: =VLOOKUP($H45,Conc_All!$A$5:$Y$204,3*($C$8-1)+3) -> 17383 | K45: =VLOOKUP($H45,Conc_All!$A$5:$Y$204,3*($C$8-1)+4) -> 43931 | L45: =VLOOKUP($H45,Conc_All_SDEIS!$A$5:$Y$204,3*($C$8-1)+2) -> 2.6698e-18 | M45: =VLOOKUP($H45,Conc_All_SDEIS!$A$5:$Y$204,3*($C$8-1)+3) -> 6.2032e-18 | N45: =VLOOKUP($H45,Conc_All_SDEIS!$A$5:$Y$204,3*($C$8-1)+4) -> 1.2549e-17 | P45: 1.583333333 | Q45: =VLOOKUP($P45,Conc_All!$AA$5:$AY$305,3*($C$8-1)+2) -> 80491 | R45: =VLOOKUP($P45,Conc_All!$AA$5:$AY$305,3*($C$8-1)+3) -> 168560 | S45: =VLOOKUP($P45,Conc_All!$AA$5:$AY$305,3*($C$8-1)+4) -> 252140 | T45: =VLOOKUP($P45,Conc_All_SDEIS!$AA$5:$AY$305,3*($C$8-1)+2) -> 107130 | U45: =VLOOKUP($P45,Conc_All_SDEIS!$AA$5:$AY$305,3*($C$8-1)+3) -> 234320 | V45: =VLOOKUP($P45,Conc_All_SDEIS!$AA$5:$AY$305,3*($C$8-1)+4) -> 361590
A46: Sb | B46: 31 | C46: 5.5 | H46: 20 | I46: =VLOOKUP($H46,Conc_All!$A$5:$Y$204,3*($C$8-1)+2) -> 2773.3 | J46: =VLOOKUP($H46,Conc_All!$A$5:$Y$204,3*($C$8-1)+3) -> 7256.4 | K46: =VLOOKUP($H46,Conc_All!$A$5:$Y$204,3*($C$8-1)+4) -> 16724 | L46: =VLOOKUP($H46,Conc_All_SDEIS!$A$5:$Y$204,3*($C$8-1)+2) -> 2.6698e-18 | M46: =VLOOKUP($H46,Conc_All_SDEIS!$A$5:$Y$204,3*($C$8-1)+3) -> 6.2032e-18 | N46: =VLOOKUP($H46,Conc_All_SDEIS!$A$5:$Y$204,3*($C$8-1)+4) -> 1.2549e-17 | P46: 1.666666667 | Q46: =VLOOKUP($P46,Conc_All!$AA$5:$AY$305,3*($C$8-1)+2) -> 79004 | R46: =VLOOKUP($P46,Conc_All!$AA$5:$AY$305,3*($C$8-1)+3) -> 162820 | S46: =VLOOKUP($P46,Conc_All!$AA$5:$AY$305,3*($C$8-1)+4) -> 245430 | T46: =VLOOKUP($P46,Conc_All_SDEIS!$AA$5:$AY$305,3*($C$8-1)+2) -> 104860 | U46: =VLOOKUP($P46,Conc_All_SDEIS!$AA$5:$AY$305,3*($C$8-1)+3) -> 228740 | V46: =VLOOKUP($P46,Conc_All_SDEIS!$AA$5:$AY$305,3*($C$8-1)+4) -> 356780
A47: Se | B47: 5 | C47: 5 | H47: 21 | I47: =VLOOKUP($H47,Conc_All!$A$5:$Y$204,3*($C$8-1)+2) -> 658.49 | J47: =VLOOKUP($H47,Conc_All!$A$5:$Y$204,3*($C$8-1)+3) -> 1573.8 | K47: =VLOOKUP($H47,Conc_All!$A$5:$Y$204,3*($C$8-1)+4) -> 2784.4 | L47: =VLOOKUP($H47,Conc_All_SDEIS!$A$5:$Y$204,3*($C$8-1)+2) -> 2.6698e-18 | M47: =VLOOKUP($H47,Conc_All_SDEIS!$A$5:$Y$204,3*($C$8-1)+3) -> 6.2032e-18 | N47: =VLOOKUP($H47,Conc_All_SDEIS!$A$5:$Y$204,3*($C$8-1)+4) -> 1.2549e-17 | P47: 1.75 | Q47: =VLOOKUP($P47,Conc_All!$AA$5:$AY$305,3*($C$8-1)+2) -> 80409 | R47: =VLOOKUP($P47,Conc_All!$AA$5:$AY$305,3*($C$8-1)+3) -> 160960 | S47: =VLOOKUP($P47,Conc_All!$AA$5:$AY$305,3*($C$8-1)+4) -> 247000 | T47: =VLOOKUP($P47,Conc_All_SDEIS!$AA$5:$AY$305,3*($C$8-1)+2) -> 107060 | U47: =VLOOKUP($P47,Conc_All_SDEIS!$AA$5:$AY$305,3*($C$8-1)+3) -> 228270 | V47: =VLOOKUP($P47,Conc_All_SDEIS!$AA$5:$AY$305,3*($C$8-1)+4) -> 352270
A48: SO4 | C48: 250000 | H48: 22 | I48: =VLOOKUP($H48,Conc_All!$A$5:$Y$204,3*($C$8-1)+2) -> 3.1311 | J48: =VLOOKUP($H48,Conc_All!$A$5:$Y$204,3*($C$8-1)+3) -> 9.2971 | K48: =VLOOKUP($H48,Conc_All!$A$5:$Y$204,3*($C$8-1)+4) -> 25.562 | L48: =VLOOKUP($H48,Conc_All_SDEIS!$A$5:$Y$204,3*($C$8-1)+2) -> 2.6698e-18 | M48: =VLOOKUP($H48,Conc_All_SDEIS!$A$5:$Y$204,3*($C$8-1)+3) -> 6.2032e-18 | N48: =VLOOKUP($H48,Conc_All_SDEIS!$A$5:$Y$204,3*($C$8-1)+4) -> 1.2549e-17 | P48: 1.833333333 | Q48: =VLOOKUP($P48,Conc_All!$AA$5:$AY$305,3*($C$8-1)+2) -> 94311 | R48: =VLOOKUP($P48,Conc_All!$AA$5:$AY$305,3*($C$8-1)+3) -> 169370 | S48: =VLOOKUP($P48,Conc_All!$AA$5:$AY$305,3*($C$8-1)+4) -> 257890 | T48: =VLOOKUP($P48,Conc_All_SDEIS!$AA$5:$AY$305,3*($C$8-1)+2) -> 130750 | U48: =VLOOKUP($P48,Conc_All_SDEIS!$AA$5:$AY$305,3*($C$8-1)+3) -> 255520 | V48: =VLOOKUP($P48,Conc_All_SDEIS!$AA$5:$AY$305,3*($C$8-1)+4) -> 396850
A49: Tl | B49: 0.56 | C49: 0.28 | H49: 23 | I49: =VLOOKUP($H49,Conc_All!$A$5:$Y$204,3*($C$8-1)+2) -> 3.3599e-18 | J49: =VLOOKUP($H49,Conc_All!$A$5:$Y$204,3*($C$8-1)+3) -> 9.9764e-18 | K49: =VLOOKUP($H49,Conc_All!$A$5:$Y$204,3*($C$8-1)+4) -> 2.743e-17 | L49: =VLOOKUP($H49,Conc_All_SDEIS!$A$5:$Y$204,3*($C$8-1)+2) -> 2.6698e-18 | M49: =VLOOKUP($H49,Conc_All_SDEIS!$A$5:$Y$204,3*($C$8-1)+3) -> 6.2032e-18 | N49: =VLOOKUP($H49,Conc_All_SDEIS!$A$5:$Y$204,3*($C$8-1)+4) -> 1.2549e-17 | P49: 1.916666667 | Q49: =VLOOKUP($P49,Conc_All!$AA$5:$AY$305,3*($C$8-1)+2) -> 148350 | R49: =VLOOKUP($P49,Conc_All!$AA$5:$AY$305,3*($C$8-1)+3) -> 244760 | S49: =VLOOKUP($P49,Conc_All!$AA$5:$AY$305,3*($C$8-1)+4) -> 414250 | T49: =VLOOKUP($P49,Conc_All_SDEIS!$AA$5:$AY$305,3*($C$8-1)+2) -> 358720 | U49: =VLOOKUP($P49,Conc_All_SDEIS!$AA$5:$AY$305,3*($C$8-1)+3) -> 608470 | V49: =VLOOKUP($P49,Conc_All_SDEIS!$AA$5:$AY$305,3*($C$8-1)+4) -> 1057000
A50: V | H50: 24 | I50: =VLOOKUP($H50,Conc_All!$A$5:$Y$204,3*($C$8-1)+2) -> 2.4572e-18 | J50: =VLOOKUP($H50,Conc_All!$A$5:$Y$204,3*($C$8-1)+3) -> 8.3389e-18 | K50: =VLOOKUP($H50,Conc_All!$A$5:$Y$204,3*($C$8-1)+4) -> 2.1799e-17 | L50: =VLOOKUP($H50,Conc_All_SDEIS!$A$5:$Y$204,3*($C$8-1)+2) -> 2.6698e-18 | M50: =VLOOKUP($H50,Conc_All_SDEIS!$A$5:$Y$204,3*($C$8-1)+3) -> 6.2032e-18 | N50: =VLOOKUP($H50,Conc_All_SDEIS!$A$5:$Y$204,3*($C$8-1)+4) -> 1.2549e-17 | P50: 2 | Q50: =VLOOKUP($P50,Conc_All!$AA$5:$AY$305,3*($C$8-1)+2) -> 129270 | R50: =VLOOKUP($P50,Conc_All!$AA$5:$AY$305,3*($C$8-1)+3) -> 224070 | S50: =VLOOKUP($P50,Conc_All!$AA$5:$AY$305,3*($C$8-1)+4) -> 387190 | T50: =VLOOKUP($P50,Conc_All_SDEIS!$AA$5:$AY$305,3*($C$8-1)+2) -> 307450 | U50: =VLOOKUP($P50,Conc_All_SDEIS!$AA$5:$AY$305,3*($C$8-1)+3) -> 563510 | V50: =VLOOKUP($P50,Conc_All_SDEIS!$AA$5:$AY$305,3*($C$8-1)+4) -> 995240
A51: Zn | D51: 0.8473 | E51: 0.884 | H51: 25 | I51: =VLOOKUP($H51,Conc_All!$A$5:$Y$204,3*($C$8-1)+2) -> 2.4572e-18 | J51: =VLOOKUP($H51,Conc_All!$A$5:$Y$204,3*($C$8-1)+3) -> 8.3389e-18 | K51: =VLOOKUP($H51,Conc_All!$A$5:$Y$204,3*($C$8-1)+4) -> 2.1799e-17 | L51: =VLOOKUP($H51,Conc_All_SDEIS!$A$5:$Y$204,3*($C$8-1)+2) -> 2.6698e-18 | M51: =VLOOKUP($H51,Conc_All_SDEIS!$A$5:$Y$204,3*($C$8-1)+3) -> 6.2032e-18 | N51: =VLOOKUP($H51,Conc_All_SDEIS!$A$5:$Y$204,3*($C$8-1)+4) -> 1.2549e-17 | P51: 2.083333333 | Q51: =VLOOKUP($P51,Conc_All!$AA$5:$AY$305,3*($C$8-1)+2) -> 124900 | R51: =VLOOKUP($P51,Conc_All!$AA$5:$AY$305,3*($C$8-1)+3) -> 219100 | S51: =VLOOKUP($P51,Conc_All!$AA$5:$AY$305,3*($C$8-1)+4) -> 377120 | T51: =VLOOKUP($P51,Conc_All_SDEIS!$AA$5:$AY$305,3*($C$8-1)+2) -> 294140 | U51: =VLOOKUP($P51,Conc_All_SDEIS!$AA$5:$AY$305,3*($C$8-1)+3) -> 546230 | V51: =VLOOKUP($P51,Conc_All_SDEIS!$AA$5:$AY$305,3*($C$8-1)+4) -> 967450
H52: 26 | I52: =VLOOKUP($H52,Conc_All!$A$5:$Y$204,3*($C$8-1)+2) -> 2.4572e-18 | J52: =VLOOKUP($H52,Conc_All!$A$5:$Y$204,3*($C$8-1)+3) -> 8.3389e-18 | K52: =VLOOKUP($H52,Conc_All!$A$5:$Y$204,3*($C$8-1)+4) -> 2.1799e-17 | L52: =VLOOKUP($H52,Conc_All_SDEIS!$A$5:$Y$204,3*($C$8-1)+2) -> 2.6698e-18 | M52: =VLOOKUP($H52,Conc_All_SDEIS!$A$5:$Y$204,3*($C$8-1)+3) -> 6.2032e-18 | N52: =VLOOKUP($H52,Conc_All_SDEIS!$A$5:$Y$204,3*($C$8-1)+4) -> 1.2549e-17 | P52: 2.166666667 | Q52: =VLOOKUP($P52,Conc_All!$AA$5:$AY$305,3*($C$8-1)+2) -> 118800 | R52: =VLOOKUP($P52,Conc_All!$AA$5:$AY$305,3*($C$8-1)+3) -> 211190 | S52: =VLOOKUP($P52,Conc_All!$AA$5:$AY$305,3*($C$8-1)+4) -> 364450 | T52: =VLOOKUP($P52,Conc_All_SDEIS!$AA$5:$AY$305,3*($C$8-1)+2) -> 277920 | U52: =VLOOKUP($P52,Conc_All_SDEIS!$AA$5:$AY$305,3*($C$8-1)+3) -> 524540 | V52: =VLOOKUP($P52,Conc_All_SDEIS!$AA$5:$AY$305,3*($C$8-1)+4) -> 934520
H53: 27 | I53: =VLOOKUP($H53,Conc_All!$A$5:$Y$204,3*($C$8-1)+2) -> 2.4572e-18 | J53: =VLOOKUP($H53,Conc_All!$A$5:$Y$204,3*($C$8-1)+3) -> 8.3389e-18 | K53: =VLOOKUP($H53,Conc_All!$A$5:$Y$204,3*($C$8-1)+4) -> 2.1799e-17 | L53: =VLOOKUP($H53,Conc_All_SDEIS!$A$5:$Y$204,3*($C$8-1)+2) -> 2.6698e-18 | M53: =VLOOKUP($H53,Conc_All_SDEIS!$A$5:$Y$204,3*($C$8-1)+3) -> 6.2032e-18 | N53: =VLOOKUP($H53,Conc_All_SDEIS!$A$5:$Y$204,3*($C$8-1)+4) -> 1.2549e-17 | P53: 2.25 | Q53: =VLOOKUP($P53,Conc_All!$AA$5:$AY$305,3*($C$8-1)+2) -> 127590 | R53: =VLOOKUP($P53,Conc_All!$AA$5:$AY$305,3*($C$8-1)+3) -> 221860 | S53: =VLOOKUP($P53,Conc_All!$AA$5:$AY$305,3*($C$8-1)+4) -> 379700 | T53: =VLOOKUP($P53,Conc_All_SDEIS!$AA$5:$AY$305,3*($C$8-1)+2) -> 302950 | U53: =VLOOKUP($P53,Conc_All_SDEIS!$AA$5:$AY$305,3*($C$8-1)+3) -> 553260 | V53: =VLOOKUP($P53,Conc_All_SDEIS!$AA$5:$AY$305,3*($C$8-1)+4) -> 978980
H54: 28 | I54: =VLOOKUP($H54,Conc_All!$A$5:$Y$204,3*($C$8-1)+2) -> 2.4572e-18 | J54: =VLOOKUP($H54,Conc_All!$A$5:$Y$204,3*($C$8-1)+3) -> 8.3389e-18 | K54: =VLOOKUP($H54,Conc_All!$A$5:$Y$204,3*($C$8-1)+4) -> 2.1799e-17 | L54: =VLOOKUP($H54,Conc_All_SDEIS!$A$5:$Y$204,3*($C$8-1)+2) -> 2.6698e-18 | M54: =VLOOKUP($H54,Conc_All_SDEIS!$A$5:$Y$204,3*($C$8-1)+3) -> 6.2032e-18 | N54: =VLOOKUP($H54,Conc_All_SDEIS!$A$5:$Y$204,3*($C$8-1)+4) -> 1.2549e-17 | P54: 2.333333333 | Q54: =VLOOKUP($P54,Conc_All!$AA$5:$AY$305,3*($C$8-1)+2) -> 65468 | R54: =VLOOKUP($P54,Conc_All!$AA$5:$AY$305,3*($C$8-1)+3) -> 104360 | S54: =VLOOKUP($P54,Conc_All!$AA$5:$AY$305,3*($C$8-1)+4) -> 153450 | T54: =VLOOKUP($P54,Conc_All_SDEIS!$AA$5:$AY$305,3*($C$8-1)+2) -> 80594 | U54: =VLOOKUP($P54,Conc_All_SDEIS!$AA$5:$AY$305,3*($C$8-1)+3) -> 130540 | V54: =VLOOKUP($P54,Conc_All_SDEIS!$AA$5:$AY$305,3*($C$8-1)+4) -> 199240
A55: Plot | H55: 29 | I55: =VLOOKUP($H55,Conc_All!$A$5:$Y$204,3*($C$8-1)+2) -> 2.4572e-18 | J55: =VLOOKUP($H55,Conc_All!$A$5:$Y$204,3*($C$8-1)+3) -> 8.3389e-18 | K55: =VLOOKUP($H55,Conc_All!$A$5:$Y$204,3*($C$8-1)+4) -> 2.1799e-17 | L55: =VLOOKUP($H55,Conc_All_SDEIS!$A$5:$Y$204,3*($C$8-1)+2) -> 2.6698e-18 | M55: =VLOOKUP($H55,Conc_All_SDEIS!$A$5:$Y$204,3*($C$8-1)+3) -> 6.2032e-18 | N55: =VLOOKUP($H55,Conc_All_SDEIS!$A$5:$Y$204,3*($C$8-1)+4) -> 1.2549e-17 | P55: 2.416666667 | Q55: =VLOOKUP($P55,Conc_All!$AA$5:$AY$305,3*($C$8-1)+2) -> 104300 | R55: =VLOOKUP($P55,Conc_All!$AA$5:$AY$305,3*($C$8-1)+3) -> 192160 | S55: =VLOOKUP($P55,Conc_All!$AA$5:$AY$305,3*($C$8-1)+4) -> 282470 | T55: =VLOOKUP($P55,Conc_All_SDEIS!$AA$5:$AY$305,3*($C$8-1)+2) -> 146100 | U55: =VLOOKUP($P55,Conc_All_SDEIS!$AA$5:$AY$305,3*($C$8-1)+3) -> 278170 | V55: =VLOOKUP($P55,Conc_All_SDEIS!$AA$5:$AY$305,3*($C$8-1)+4) -> 415070
A56: Annual Max | H56: 30 | I56: =VLOOKUP($H56,Conc_All!$A$5:$Y$204,3*($C$8-1)+2) -> 2.4572e-18 | J56: =VLOOKUP($H56,Conc_All!$A$5:$Y$204,3*($C$8-1)+3) -> 8.3389e-18 | K56: =VLOOKUP($H56,Conc_All!$A$5:$Y$204,3*($C$8-1)+4) -> 2.1799e-17 | L56: =VLOOKUP($H56,Conc_All_SDEIS!$A$5:$Y$204,3*($C$8-1)+2) -> 2.6698e-18 | M56: =VLOOKUP($H56,Conc_All_SDEIS!$A$5:$Y$204,3*($C$8-1)+3) -> 6.2032e-18 | N56: =VLOOKUP($H56,Conc_All_SDEIS!$A$5:$Y$204,3*($C$8-1)+4) -> 1.2549e-17 | P56: 2.5 | Q56: =VLOOKUP($P56,Conc_All!$AA$5:$AY$305,3*($C$8-1)+2) -> 84876 | R56: =VLOOKUP($P56,Conc_All!$AA$5:$AY$305,3*($C$8-1)+3) -> 184620 | S56: =VLOOKUP($P56,Conc_All!$AA$5:$AY$305,3*($C$8-1)+4) -> 273380 | T56: =VLOOKUP($P56,Conc_All_SDEIS!$AA$5:$AY$305,3*($C$8-1)+2) -> 111680 | U56: =VLOOKUP($P56,Conc_All_SDEIS!$AA$5:$AY$305,3*($C$8-1)+3) -> 261350 | V56: =VLOOKUP($P56,Conc_All_SDEIS!$AA$5:$AY$305,3*($C$8-1)+4) -> 387810
A57: Annual Average | H57: 31 | I57: =VLOOKUP($H57,Conc_All!$A$5:$Y$204,3*($C$8-1)+2) -> 2.4572e-18 | J57: =VLOOKUP($H57,Conc_All!$A$5:$Y$204,3*($C$8-1)+3) -> 8.3389e-18 | K57: =VLOOKUP($H57,Conc_All!$A$5:$Y$204,3*($C$8-1)+4) -> 2.1799e-17 | L57: =VLOOKUP($H57,Conc_All_SDEIS!$A$5:$Y$204,3*($C$8-1)+2) -> 2.6698e-18 | M57: =VLOOKUP($H57,Conc_All_SDEIS!$A$5:$Y$204,3*($C$8-1)+3) -> 6.2032e-18 | N57: =VLOOKUP($H57,Conc_All_SDEIS!$A$5:$Y$204,3*($C$8-1)+4) -> 1.2549e-17 | P57: 2.583333333 | Q57: =VLOOKUP($P57,Conc_All!$AA$5:$AY$305,3*($C$8-1)+2) -> 82504 | R57: =VLOOKUP($P57,Conc_All!$AA$5:$AY$305,3*($C$8-1)+3) -> 174970 | S57: =VLOOKUP($P57,Conc_All!$AA$5:$AY$305,3*($C$8-1)+4) -> 263550 | T57: =VLOOKUP($P57,Conc_All_SDEIS!$AA$5:$AY$305,3*($C$8-1)+2) -> 104930 | U57: =VLOOKUP($P57,Conc_All_SDEIS!$AA$5:$AY$305,3*($C$8-1)+3) -> 244320 | V57: =VLOOKUP($P57,Conc_All_SDEIS!$AA$5:$AY$305,3*($C$8-1)+4) -> 374130
H58: 32 | I58: =VLOOKUP($H58,Conc_All!$A$5:$Y$204,3*($C$8-1)+2) -> 2.4572e-18 | J58: =VLOOKUP($H58,Conc_All!$A$5:$Y$204,3*($C$8-1)+3) -> 8.3389e-18 | K58: =VLOOKUP($H58,Conc_All!$A$5:$Y$204,3*($C$8-1)+4) -> 2.1799e-17 | L58: =VLOOKUP($H58,Conc_All_SDEIS!$A$5:$Y$204,3*($C$8-1)+2) -> 2.6698e-18 | M58: =VLOOKUP($H58,Conc_All_SDEIS!$A$5:$Y$204,3*($C$8-1)+3) -> 6.2032e-18 | N58: =VLOOKUP($H58,Conc_All_SDEIS!$A$5:$Y$204,3*($C$8-1)+4) -> 1.2549e-17 | P58: 2.666666667 | Q58: =VLOOKUP($P58,Conc_All!$AA$5:$AY$305,3*($C$8-1)+2) -> 82499 | R58: =VLOOKUP($P58,Conc_All!$AA$5:$AY$305,3*($C$8-1)+3) -> 165560 | S58: =VLOOKUP($P58,Conc_All!$AA$5:$AY$305,3*($C$8-1)+4) -> 256390 | T58: =VLOOKUP($P58,Conc_All_SDEIS!$AA$5:$AY$305,3*($C$8-1)+2) -> 103830 | U58: =VLOOKUP($P58,Conc_All_SDEIS!$AA$5:$AY$305,3*($C$8-1)+3) -> 230380 | V58: =VLOOKUP($P58,Conc_All_SDEIS!$AA$5:$AY$305,3*($C$8-1)+4) -> 365350
H59: 33 | I59: =VLOOKUP($H59,Conc_All!$A$5:$Y$204,3*($C$8-1)+2) -> 2.4572e-18 | J59: =VLOOKUP($H59,Conc_All!$A$5:$Y$204,3*($C$8-1)+3) -> 8.3389e-18 | K59: =VLOOKUP($H59,Conc_All!$A$5:$Y$204,3*($C$8-1)+4) -> 2.1799e-17 | L59: =VLOOKUP($H59,Conc_All_SDEIS!$A$5:$Y$204,3*($C$8-1)+2) -> 2.6698e-18 | M59: =VLOOKUP($H59,Conc_All_SDEIS!$A$5:$Y$204,3*($C$8-1)+3) -> 6.2032e-18 | N59: =VLOOKUP($H59,Conc_All_SDEIS!$A$5:$Y$204,3*($C$8-1)+4) -> 1.2549e-17 | P59: 2.75 | Q59: =VLOOKUP($P59,Conc_All!$AA$5:$AY$305,3*($C$8-1)+2) -> 83454 | R59: =VLOOKUP($P59,Conc_All!$AA$5:$AY$305,3*($C$8-1)+3) -> 161170 | S59: =VLOOKUP($P59,Conc_All!$AA$5:$AY$305,3*($C$8-1)+4) -> 252710 | T59: =VLOOKUP($P59,Conc_All_SDEIS!$AA$5:$AY$305,3*($C$8-1)+2) -> 105740 | U59: =VLOOKUP($P59,Conc_All_SDEIS!$AA$5:$AY$305,3*($C$8-1)+3) -> 225580 | V59: =VLOOKUP($P59,Conc_All_SDEIS!$AA$5:$AY$305,3*($C$8-1)+4) -> 365260
H60: 34 | I60: =VLOOKUP($H60,Conc_All!$A$5:$Y$204,3*($C$8-1)+2) -> 2.4572e-18 | J60: =VLOOKUP($H60,Conc_All!$A$5:$Y$204,3*($C$8-1)+3) -> 8.3389e-18 | K60: =VLOOKUP($H60,Conc_All!$A$5:$Y$204,3*($C$8-1)+4) -> 2.1799e-17 | L60: =VLOOKUP($H60,Conc_All_SDEIS!$A$5:$Y$204,3*($C$8-1)+2) -> 2.6698e-18 | M60: =VLOOKUP($H60,Conc_All_SDEIS!$A$5:$Y$204,3*($C$8-1)+3) -> 6.2032e-18 | N60: =VLOOKUP($H60,Conc_All_SDEIS!$A$5:$Y$204,3*($C$8-1)+4) -> 1.2549e-17 | P60: 2.833333333 | Q60: =VLOOKUP($P60,Conc_All!$AA$5:$AY$305,3*($C$8-1)+2) -> 96033 | R60: =VLOOKUP($P60,Conc_All!$AA$5:$AY$305,3*($C$8-1)+3) -> 168280 | S60: =VLOOKUP($P60,Conc_All!$AA$5:$AY$305,3*($C$8-1)+4) -> 262750 | T60: =VLOOKUP($P60,Conc_All_SDEIS!$AA$5:$AY$305,3*($C$8-1)+2) -> 132380 | U60: =VLOOKUP($P60,Conc_All_SDEIS!$AA$5:$AY$305,3*($C$8-1)+3) -> 253620 | V60: =VLOOKUP($P60,Conc_All_SDEIS!$AA$5:$AY$305,3*($C$8-1)+4) -> 399390
H61: 35 | I61: =VLOOKUP($H61,Conc_All!$A$5:$Y$204,3*($C$8-1)+2) -> 2.4572e-18 | J61: =VLOOKUP($H61,Conc_All!$A$5:$Y$204,3*($C$8-1)+3) -> 8.3389e-18 | K61: =VLOOKUP($H61,Conc_All!$A$5:$Y$204,3*($C$8-1)+4) -> 2.1799e-17 | L61: =VLOOKUP($H61,Conc_All_SDEIS!$A$5:$Y$204,3*($C$8-1)+2) -> 2.6698e-18 | M61: =VLOOKUP($H61,Conc_All_SDEIS!$A$5:$Y$204,3*($C$8-1)+3) -> 6.2032e-18 | N61: =VLOOKUP($H61,Conc_All_SDEIS!$A$5:$Y$204,3*($C$8-1)+4) -> 1.2549e-17 | P61: 2.916666667 | Q61: =VLOOKUP($P61,Conc_All!$AA$5:$AY$305,3*($C$8-1)+2) -> 141360 | R61: =VLOOKUP($P61,Conc_All!$AA$5:$AY$305,3*($C$8-1)+3) -> 237950 | S61: =VLOOKUP($P61,Conc_All!$AA$5:$AY$305,3*($C$8-1)+4) -> 394820 | T61: =VLOOKUP($P61,Conc_All_SDEIS!$AA$5:$AY$305,3*($C$8-1)+2) -> 326480 | U61: =VLOOKUP($P61,Conc_All_SDEIS!$AA$5:$AY$305,3*($C$8-1)+3) -> 571590 | V61: =VLOOKUP($P61,Conc_All_SDEIS!$AA$5:$AY$305,3*($C$8-1)+4) -> 975810
H62: 36 | I62: =VLOOKUP($H62,Conc_All!$A$5:$Y$204,3*($C$8-1)+2) -> 2.4572e-18 | J62: =VLOOKUP($H62,Conc_All!$A$5:$Y$204,3*($C$8-1)+3) -> 8.3389e-18 | K62: =VLOOKUP($H62,Conc_All!$A$5:$Y$204,3*($C$8-1)+4) -> 2.1799e-17 | L62: =VLOOKUP($H62,Conc_All_SDEIS!$A$5:$Y$204,3*($C$8-1)+2) -> 2.6698e-18 | M62: =VLOOKUP($H62,Conc_All_SDEIS!$A$5:$Y$204,3*($C$8-1)+3) -> 6.2032e-18 | N62: =VLOOKUP($H62,Conc_All_SDEIS!$A$5:$Y$204,3*($C$8-1)+4) -> 1.2549e-17 | P62: 3 | Q62: =VLOOKUP($P62,Conc_All!$AA$5:$AY$305,3*($C$8-1)+2) -> 121060 | R62: =VLOOKUP($P62,Conc_All!$AA$5:$AY$305,3*($C$8-1)+3) -> 211180 | S62: =VLOOKUP($P62,Conc_All!$AA$5:$AY$305,3*($C$8-1)+4) -> 346100 | T62: =VLOOKUP($P62,Conc_All_SDEIS!$AA$5:$AY$305,3*($C$8-1)+2) -> 271350 | U62: =VLOOKUP($P62,Conc_All_SDEIS!$AA$5:$AY$305,3*($C$8-1)+3) -> 508720 | V62: =VLOOKUP($P62,Conc_All_SDEIS!$AA$5:$AY$305,3*($C$8-1)+4) -> 855630
H63: 37 | I63: =VLOOKUP($H63,Conc_All!$A$5:$Y$204,3*($C$8-1)+2) -> 2.4572e-18 | J63: =VLOOKUP($H63,Conc_All!$A$5:$Y$204,3*($C$8-1)+3) -> 8.3389e-18 | K63: =VLOOKUP($H63,Conc_All!$A$5:$Y$204,3*($C$8-1)+4) -> 2.1799e-17 | L63: =VLOOKUP($H63,Conc_All_SDEIS!$A$5:$Y$204,3*($C$8-1)+2) -> 2.6698e-18 | M63: =VLOOKUP($H63,Conc_All_SDEIS!$A$5:$Y$204,3*($C$8-1)+3) -> 6.2032e-18 | N63: =VLOOKUP($H63,Conc_All_SDEIS!$A$5:$Y$204,3*($C$8-1)+4) -> 1.2549e-17 | P63: 3.083333333 | Q63: =VLOOKUP($P63,Conc_All!$AA$5:$AY$305,3*($C$8-1)+2) -> 117970 | R63: =VLOOKUP($P63,Conc_All!$AA$5:$AY$305,3*($C$8-1)+3) -> 200980 | S63: =VLOOKUP($P63,Conc_All!$AA$5:$AY$305,3*($C$8-1)+4) -> 337360 | T63: =VLOOKUP($P63,Conc_All_SDEIS!$AA$5:$AY$305,3*($C$8-1)+2) -> 260730 | U63: =VLOOKUP($P63,Conc_All_SDEIS!$AA$5:$AY$305,3*($C$8-1)+3) -> 480320 | V63: =VLOOKUP($P63,Conc_All_SDEIS!$AA$5:$AY$305,3*($C$8-1)+4) -> 838120
H64: 38 | I64: =VLOOKUP($H64,Conc_All!$A$5:$Y$204,3*($C$8-1)+2) -> 2.4572e-18 | J64: =VLOOKUP($H64,Conc_All!$A$5:$Y$204,3*($C$8-1)+3) -> 8.3389e-18 | K64: =VLOOKUP($H64,Conc_All!$A$5:$Y$204,3*($C$8-1)+4) -> 2.1799e-17 | L64: =VLOOKUP($H64,Conc_All_SDEIS!$A$5:$Y$204,3*($C$8-1)+2) -> 2.6698e-18 | M64: =VLOOKUP($H64,Conc_All_SDEIS!$A$5:$Y$204,3*($C$8-1)+3) -> 6.2032e-18 | N64: =VLOOKUP($H64,Conc_All_SDEIS!$A$5:$Y$204,3*($C$8-1)+4) -> 1.2549e-17 | P64: 3.166666667 | Q64: =VLOOKUP($P64,Conc_All!$AA$5:$AY$305,3*($C$8-1)+2) -> 111740 | R64: =VLOOKUP($P64,Conc_All!$AA$5:$AY$305,3*($C$8-1)+3) -> 191900 | S64: =VLOOKUP($P64,Conc_All!$AA$5:$AY$305,3*($C$8-1)+4) -> 324020 | T64: =VLOOKUP($P64,Conc_All_SDEIS!$AA$5:$AY$305,3*($C$8-1)+2) -> 244250 | U64: =VLOOKUP($P64,Conc_All_SDEIS!$AA$5:$AY$305,3*($C$8-1)+3) -> 460460 | V64: =VLOOKUP($P64,Conc_All_SDEIS!$AA$5:$AY$305,3*($C$8-1)+4) -> 804030
H65: 39 | I65: =VLOOKUP($H65,Conc_All!$A$5:$Y$204,3*($C$8-1)+2) -> 2.4572e-18 | J65: =VLOOKUP($H65,Conc_All!$A$5:$Y$204,3*($C$8-1)+3) -> 8.3389e-18 | K65: =VLOOKUP($H65,Conc_All!$A$5:$Y$204,3*($C$8-1)+4) -> 2.1799e-17 | L65: =VLOOKUP($H65,Conc_All_SDEIS!$A$5:$Y$204,3*($C$8-1)+2) -> 2.6698e-18 | M65: =VLOOKUP($H65,Conc_All_SDEIS!$A$5:$Y$204,3*($C$8-1)+3) -> 6.2032e-18 | N65: =VLOOKUP($H65,Conc_All_SDEIS!$A$5:$Y$204,3*($C$8-1)+4) -> 1.2549e-17 | P65: 3.25 | Q65: =VLOOKUP($P65,Conc_All!$AA$5:$AY$305,3*($C$8-1)+2) -> 118530 | R65: =VLOOKUP($P65,Conc_All!$AA$5:$AY$305,3*($C$8-1)+3) -> 201700 | S65: =VLOOKUP($P65,Conc_All!$AA$5:$AY$305,3*($C$8-1)+4) -> 334790 | T65: =VLOOKUP($P65,Conc_All_SDEIS!$AA$5:$AY$305,3*($C$8-1)+2) -> 266210 | U65: =VLOOKUP($P65,Conc_All_SDEIS!$AA$5:$AY$305,3*($C$8-1)+3) -> 487500 | V65: =VLOOKUP($P65,Conc_All_SDEIS!$AA$5:$AY$305,3*($C$8-1)+4) -> 844530
H66: 40 | I66: =VLOOKUP($H66,Conc_All!$A$5:$Y$204,3*($C$8-1)+2) -> 2.4572e-18 | J66: =VLOOKUP($H66,Conc_All!$A$5:$Y$204,3*($C$8-1)+3) -> 8.3389e-18 | K66: =VLOOKUP($H66,Conc_All!$A$5:$Y$204,3*($C$8-1)+4) -> 2.1799e-17 | L66: =VLOOKUP($H66,Conc_All_SDEIS!$A$5:$Y$204,3*($C$8-1)+2) -> 2.6698e-18 | M66: =VLOOKUP($H66,Conc_All_SDEIS!$A$5:$Y$204,3*($C$8-1)+3) -> 6.2032e-18 | N66: =VLOOKUP($H66,Conc_All_SDEIS!$A$5:$Y$204,3*($C$8-1)+4) -> 1.2549e-17 | P66: 3.333333333 | Q66: =VLOOKUP($P66,Conc_All!$AA$5:$AY$305,3*($C$8-1)+2) -> 65725 | R66: =VLOOKUP($P66,Conc_All!$AA$5:$AY$305,3*($C$8-1)+3) -> 101820 | S66: =VLOOKUP($P66,Conc_All!$AA$5:$AY$305,3*($C$8-1)+4) -> 150290 | T66: =VLOOKUP($P66,Conc_All_SDEIS!$AA$5:$AY$305,3*($C$8-1)+2) -> 79497 | U66: =VLOOKUP($P66,Conc_All_SDEIS!$AA$5:$AY$305,3*($C$8-1)+3) -> 127820 | V66: =VLOOKUP($P66,Conc_All_SDEIS!$AA$5:$AY$305,3*($C$8-1)+4) -> 195170
H67: 41 | I67: =VLOOKUP($H67,Conc_All!$A$5:$Y$204,3*($C$8-1)+2) -> 2.4572e-18 | J67: =VLOOKUP($H67,Conc_All!$A$5:$Y$204,3*($C$8-1)+3) -> 8.3389e-18 | K67: =VLOOKUP($H67,Conc_All!$A$5:$Y$204,3*($C$8-1)+4) -> 2.1799e-17 | L67: =VLOOKUP($H67,Conc_All_SDEIS!$A$5:$Y$204,3*($C$8-1)+2) -> 2.6698e-18 | M67: =VLOOKUP($H67,Conc_All_SDEIS!$A$5:$Y$204,3*($C$8-1)+3) -> 6.2032e-18 | N67: =VLOOKUP($H67,Conc_All_SDEIS!$A$5:$Y$204,3*($C$8-1)+4) -> 1.2549e-17 | P67: 3.416666667 | Q67: =VLOOKUP($P67,Conc_All!$AA$5:$AY$305,3*($C$8-1)+2) -> 100840 | R67: =VLOOKUP($P67,Conc_All!$AA$5:$AY$305,3*($C$8-1)+3) -> 182030 | S67: =VLOOKUP($P67,Conc_All!$AA$5:$AY$305,3*($C$8-1)+4) -> 265400 | T67: =VLOOKUP($P67,Conc_All_SDEIS!$AA$5:$AY$305,3*($C$8-1)+2) -> 144440 | U67: =VLOOKUP($P67,Conc_All_SDEIS!$AA$5:$AY$305,3*($C$8-1)+3) -> 269080 | V67: =VLOOKUP($P67,Conc_All_SDEIS!$AA$5:$AY$305,3*($C$8-1)+4) -> 391010
H68: 42 | I68: =VLOOKUP($H68,Conc_All!$A$5:$Y$204,3*($C$8-1)+2) -> 2.4572e-18 | J68: =VLOOKUP($H68,Conc_All!$A$5:$Y$204,3*($C$8-1)+3) -> 8.3389e-18 | K68: =VLOOKUP($H68,Conc_All!$A$5:$Y$204,3*($C$8-1)+4) -> 2.1799e-17 | L68: =VLOOKUP($H68,Conc_All_SDEIS!$A$5:$Y$204,3*($C$8-1)+2) -> 2.6698e-18 | M68: =VLOOKUP($H68,Conc_All_SDEIS!$A$5:$Y$204,3*($C$8-1)+3) -> 6.2032e-18 | N68: =VLOOKUP($H68,Conc_All_SDEIS!$A$5:$Y$204,3*($C$8-1)+4) -> 1.2549e-17 | P68: 3.5 | Q68: =VLOOKUP($P68,Conc_All!$AA$5:$AY$305,3*($C$8-1)+2) -> 84019 | R68: =VLOOKUP($P68,Conc_All!$AA$5:$AY$305,3*($C$8-1)+3) -> 172590 | S68: =VLOOKUP($P68,Conc_All!$AA$5:$AY$305,3*($C$8-1)+4) -> 258410 | T68: =VLOOKUP($P68,Conc_All_SDEIS!$AA$5:$AY$305,3*($C$8-1)+2) -> 113120 | U68: =VLOOKUP($P68,Conc_All_SDEIS!$AA$5:$AY$305,3*($C$8-1)+3) -> 247710 | V68: =VLOOKUP($P68,Conc_All_SDEIS!$AA$5:$AY$305,3*($C$8-1)+4) -> 371960
H69: 43 | I69: =VLOOKUP($H69,Conc_All!$A$5:$Y$204,3*($C$8-1)+2) -> 2.4572e-18 | J69: =VLOOKUP($H69,Conc_All!$A$5:$Y$204,3*($C$8-1)+3) -> 8.3389e-18 | K69: =VLOOKUP($H69,Conc_All!$A$5:$Y$204,3*($C$8-1)+4) -> 2.1799e-17 | L69: =VLOOKUP($H69,Conc_All_SDEIS!$A$5:$Y$204,3*($C$8-1)+2) -> 2.6698e-18 | M69: =VLOOKUP($H69,Conc_All_SDEIS!$A$5:$Y$204,3*($C$8-1)+3) -> 6.2032e-18 | N69: =VLOOKUP($H69,Conc_All_SDEIS!$A$5:$Y$204,3*($C$8-1)+4) -> 1.2549e-17 | P69: 3.583333333 | Q69: =VLOOKUP($P69,Conc_All!$AA$5:$AY$305,3*($C$8-1)+2) -> 80926 | R69: =VLOOKUP($P69,Conc_All!$AA$5:$AY$305,3*($C$8-1)+3) -> 163260 | S69: =VLOOKUP($P69,Conc_All!$AA$5:$AY$305,3*($C$8-1)+4) -> 239130 | T69: =VLOOKUP($P69,Conc_All_SDEIS!$AA$5:$AY$305,3*($C$8-1)+2) -> 105000 | U69: =VLOOKUP($P69,Conc_All_SDEIS!$AA$5:$AY$305,3*($C$8-1)+3) -> 235470 | V69: =VLOOKUP($P69,Conc_All_SDEIS!$AA$5:$AY$305,3*($C$8-1)+4) -> 351140
H70: 44 | I70: =VLOOKUP($H70,Conc_All!$A$5:$Y$204,3*($C$8-1)+2) -> 2.4572e-18 | J70: =VLOOKUP($H70,Conc_All!$A$5:$Y$204,3*($C$8-1)+3) -> 8.3389e-18 | K70: =VLOOKUP($H70,Conc_All!$A$5:$Y$204,3*($C$8-1)+4) -> 2.1799e-17 | L70: =VLOOKUP($H70,Conc_All_SDEIS!$A$5:$Y$204,3*($C$8-1)+2) -> 2.6698e-18 | M70: =VLOOKUP($H70,Conc_All_SDEIS!$A$5:$Y$204,3*($C$8-1)+3) -> 6.2032e-18 | N70: =VLOOKUP($H70,Conc_All_SDEIS!$A$5:$Y$204,3*($C$8-1)+4) -> 1.2549e-17 | P70: 3.666666667 | Q70: =VLOOKUP($P70,Conc_All!$AA$5:$AY$305,3*($C$8-1)+2) -> 80248 | R70: =VLOOKUP($P70,Conc_All!$AA$5:$AY$305,3*($C$8-1)+3) -> 155910 | S70: =VLOOKUP($P70,Conc_All!$AA$5:$AY$305,3*($C$8-1)+4) -> 231730 | T70: =VLOOKUP($P70,Conc_All_SDEIS!$AA$5:$AY$305,3*($C$8-1)+2) -> 104240 | U70: =VLOOKUP($P70,Conc_All_SDEIS!$AA$5:$AY$305,3*($C$8-1)+3) -> 227590 | V70: =VLOOKUP($P70,Conc_All_SDEIS!$AA$5:$AY$305,3*($C$8-1)+4) -> 342210
H71: 45 | I71: =VLOOKUP($H71,Conc_All!$A$5:$Y$204,3*($C$8-1)+2) -> 2.4572e-18 | J71: =VLOOKUP($H71,Conc_All!$A$5:$Y$204,3*($C$8-1)+3) -> 8.3389e-18 | K71: =VLOOKUP($H71,Conc_All!$A$5:$Y$204,3*($C$8-1)+4) -> 2.1799e-17 | L71: =VLOOKUP($H71,Conc_All_SDEIS!$A$5:$Y$204,3*($C$8-1)+2) -> 2.6698e-18 | M71: =VLOOKUP($H71,Conc_All_SDEIS!$A$5:$Y$204,3*($C$8-1)+3) -> 6.2032e-18 | N71: =VLOOKUP($H71,Conc_All_SDEIS!$A$5:$Y$204,3*($C$8-1)+4) -> 1.2549e-17 | P71: 3.75 | Q71: =VLOOKUP($P71,Conc_All!$AA$5:$AY$305,3*($C$8-1)+2) -> 80506 | R71: =VLOOKUP($P71,Conc_All!$AA$5:$AY$305,3*($C$8-1)+3) -> 152040 | S71: =VLOOKUP($P71,Conc_All!$AA$5:$AY$305,3*($C$8-1)+4) -> 229600 | T71: =VLOOKUP($P71,Conc_All_SDEIS!$AA$5:$AY$305,3*($C$8-1)+2) -> 105980 | U71: =VLOOKUP($P71,Conc_All_SDEIS!$AA$5:$AY$305,3*($C$8-1)+3) -> 222910 | V71: =VLOOKUP($P71,Conc_All_SDEIS!$AA$5:$AY$305,3*($C$8-1)+4) -> 341280
H72: 46 | I72: =VLOOKUP($H72,Conc_All!$A$5:$Y$204,3*($C$8-1)+2) -> 2.4572e-18 | J72: =VLOOKUP($H72,Conc_All!$A$5:$Y$204,3*($C$8-1)+3) -> 8.3389e-18 | K72: =VLOOKUP($H72,Conc_All!$A$5:$Y$204,3*($C$8-1)+4) -> 2.1799e-17 | L72: =VLOOKUP($H72,Conc_All_SDEIS!$A$5:$Y$204,3*($C$8-1)+2) -> 2.6698e-18 | M72: =VLOOKUP($H72,Conc_All_SDEIS!$A$5:$Y$204,3*($C$8-1)+3) -> 6.2032e-18 | N72: =VLOOKUP($H72,Conc_All_SDEIS!$A$5:$Y$204,3*($C$8-1)+4) -> 1.2549e-17 | P72: 3.833333333 | Q72: =VLOOKUP($P72,Conc_All!$AA$5:$AY$305,3*($C$8-1)+2) -> 90837 | R72: =VLOOKUP($P72,Conc_All!$AA$5:$AY$305,3*($C$8-1)+3) -> 156910 | S72: =VLOOKUP($P72,Conc_All!$AA$5:$AY$305,3*($C$8-1)+4) -> 239720 | T72: =VLOOKUP($P72,Conc_All_SDEIS!$AA$5:$AY$305,3*($C$8-1)+2) -> 129180 | U72: =VLOOKUP($P72,Conc_All_SDEIS!$AA$5:$AY$305,3*($C$8-1)+3) -> 243970 | V72: =VLOOKUP($P72,Conc_All_SDEIS!$AA$5:$AY$305,3*($C$8-1)+4) -> 376560
H73: 47 | I73: =VLOOKUP($H73,Conc_All!$A$5:$Y$204,3*($C$8-1)+2) -> 2.4572e-18 | J73: =VLOOKUP($H73,Conc_All!$A$5:$Y$204,3*($C$8-1)+3) -> 8.3389e-18 | K73: =VLOOKUP($H73,Conc_All!$A$5:$Y$204,3*($C$8-1)+4) -> 2.1799e-17 | L73: =VLOOKUP($H73,Conc_All_SDEIS!$A$5:$Y$204,3*($C$8-1)+2) -> 2.6698e-18 | M73: =VLOOKUP($H73,Conc_All_SDEIS!$A$5:$Y$204,3*($C$8-1)+3) -> 6.2032e-18 | N73: =VLOOKUP($H73,Conc_All_SDEIS!$A$5:$Y$204,3*($C$8-1)+4) -> 1.2549e-17 | P73: 3.916666667 | Q73: =VLOOKUP($P73,Conc_All!$AA$5:$AY$305,3*($C$8-1)+2) -> 121650 | R73: =VLOOKUP($P73,Conc_All!$AA$5:$AY$305,3*($C$8-1)+3) -> 208170 | S73: =VLOOKUP($P73,Conc_All!$AA$5:$AY$305,3*($C$8-1)+4) -> 334010 | T73: =VLOOKUP($P73,Conc_All_SDEIS!$AA$5:$AY$305,3*($C$8-1)+2) -> 284960 | U73: =VLOOKUP($P73,Conc_All_SDEIS!$AA$5:$AY$305,3*($C$8-1)+3) -> 510290 | V73: =VLOOKUP($P73,Conc_All_SDEIS!$AA$5:$AY$305,3*($C$8-1)+4) -> 852920
H74: 48 | I74: =VLOOKUP($H74,Conc_All!$A$5:$Y$204,3*($C$8-1)+2) -> 2.4572e-18 | J74: =VLOOKUP($H74,Conc_All!$A$5:$Y$204,3*($C$8-1)+3) -> 8.3389e-18 | K74: =VLOOKUP($H74,Conc_All!$A$5:$Y$204,3*($C$8-1)+4) -> 2.1799e-17 | L74: =VLOOKUP($H74,Conc_All_SDEIS!$A$5:$Y$204,3*($C$8-1)+2) -> 2.6698e-18 | M74: =VLOOKUP($H74,Conc_All_SDEIS!$A$5:$Y$204,3*($C$8-1)+3) -> 6.2032e-18 | N74: =VLOOKUP($H74,Conc_All_SDEIS!$A$5:$Y$204,3*($C$8-1)+4) -> 1.2549e-17 | P74: 4 | Q74: =VLOOKUP($P74,Conc_All!$AA$5:$AY$305,3*($C$8-1)+2) -> 108320 | R74: =VLOOKUP($P74,Conc_All!$AA$5:$AY$305,3*($C$8-1)+3) -> 185090 | S74: =VLOOKUP($P74,Conc_All!$AA$5:$AY$305,3*($C$8-1)+4) -> 300600 | T74: =VLOOKUP($P74,Conc_All_SDEIS!$AA$5:$AY$305,3*($C$8-1)+2) -> 245290 | U74: =VLOOKUP($P74,Conc_All_SDEIS!$AA$5:$AY$305,3*($C$8-1)+3) -> 458950 | V74: =VLOOKUP($P74,Conc_All_SDEIS!$AA$5:$AY$305,3*($C$8-1)+4) -> 766140
H75: 49 | I75: =VLOOKUP($H75,Conc_All!$A$5:$Y$204,3*($C$8-1)+2) -> 2.4572e-18 | J75: =VLOOKUP($H75,Conc_All!$A$5:$Y$204,3*($C$8-1)+3) -> 8.3389e-18 | K75: =VLOOKUP($H75,Conc_All!$A$5:$Y$204,3*($C$8-1)+4) -> 2.1799e-17 | L75: =VLOOKUP($H75,Conc_All_SDEIS!$A$5:$Y$204,3*($C$8-1)+2) -> 2.6698e-18 | M75: =VLOOKUP($H75,Conc_All_SDEIS!$A$5:$Y$204,3*($C$8-1)+3) -> 6.2032e-18 | N75: =VLOOKUP($H75,Conc_All_SDEIS!$A$5:$Y$204,3*($C$8-1)+4) -> 1.2549e-17 | P75: 4.083333333 | Q75: =VLOOKUP($P75,Conc_All!$AA$5:$AY$305,3*($C$8-1)+2) -> 103420 | R75: =VLOOKUP($P75,Conc_All!$AA$5:$AY$305,3*($C$8-1)+3) -> 178180 | S75: =VLOOKUP($P75,Conc_All!$AA$5:$AY$305,3*($C$8-1)+4) -> 291700 | T75: =VLOOKUP($P75,Conc_All_SDEIS!$AA$5:$AY$305,3*($C$8-1)+2) -> 235240 | U75: =VLOOKUP($P75,Conc_All_SDEIS!$AA$5:$AY$305,3*($C$8-1)+3) -> 438820 | V75: =VLOOKUP($P75,Conc_All_SDEIS!$AA$5:$AY$305,3*($C$8-1)+4) -> 743070
H76: 50 | I76: =VLOOKUP($H76,Conc_All!$A$5:$Y$204,3*($C$8-1)+2) -> 2.4572e-18 | J76: =VLOOKUP($H76,Conc_All!$A$5:$Y$204,3*($C$8-1)+3) -> 8.3389e-18 | K76: =VLOOKUP($H76,Conc_All!$A$5:$Y$204,3*($C$8-1)+4) -> 2.1799e-17 | L76: =VLOOKUP($H76,Conc_All_SDEIS!$A$5:$Y$204,3*($C$8-1)+2) -> 2.6698e-18 | M76: =VLOOKUP($H76,Conc_All_SDEIS!$A$5:$Y$204,3*($C$8-1)+3) -> 6.2032e-18 | N76: =VLOOKUP($H76,Conc_All_SDEIS!$A$5:$Y$204,3*($C$8-1)+4) -> 1.2549e-17 | P76: 4.166666667 | Q76: =VLOOKUP($P76,Conc_All!$AA$5:$AY$305,3*($C$8-1)+2) -> 95554 | R76: =VLOOKUP($P76,Conc_All!$AA$5:$AY$305,3*($C$8-1)+3) -> 162670 | S76: =VLOOKUP($P76,Conc_All!$AA$5:$AY$305,3*($C$8-1)+4) -> 268870 | T76: =VLOOKUP($P76,Conc_All_SDEIS!$AA$5:$AY$305,3*($C$8-1)+2) -> 216930 | U76: =VLOOKUP($P76,Conc_All_SDEIS!$AA$5:$AY$305,3*($C$8-1)+3) -> 403690 | V76: =VLOOKUP($P76,Conc_All_SDEIS!$AA$5:$AY$305,3*($C$8-1)+4) -> 694450
H77: 51 | I77: =VLOOKUP($H77,Conc_All!$A$5:$Y$204,3*($C$8-1)+2) -> 2.4572e-18 | J77: =VLOOKUP($H77,Conc_All!$A$5:$Y$204,3*($C$8-1)+3) -> 8.3389e-18 | K77: =VLOOKUP($H77,Conc_All!$A$5:$Y$204,3*($C$8-1)+4) -> 2.1799e-17 | L77: =VLOOKUP($H77,Conc_All_SDEIS!$A$5:$Y$204,3*($C$8-1)+2) -> 2.6698e-18 | M77: =VLOOKUP($H77,Conc_All_SDEIS!$A$5:$Y$204,3*($C$8-1)+3) -> 6.2032e-18 | N77: =VLOOKUP($H77,Conc_All_SDEIS!$A$5:$Y$204,3*($C$8-1)+4) -> 1.2549e-17 | P77: 4.25 | Q77: =VLOOKUP($P77,Conc_All!$AA$5:$AY$305,3*($C$8-1)+2) -> 97803 | R77: =VLOOKUP($P77,Conc_All!$AA$5:$AY$305,3*($C$8-1)+3) -> 165560 | S77: =VLOOKUP($P77,Conc_All!$AA$5:$AY$305,3*($C$8-1)+4) -> 265810 | T77: =VLOOKUP($P77,Conc_All_SDEIS!$AA$5:$AY$305,3*($C$8-1)+2) -> 222590 | U77: =VLOOKUP($P77,Conc_All_SDEIS!$AA$5:$AY$305,3*($C$8-1)+3) -> 413940 | V77: =VLOOKUP($P77,Conc_All_SDEIS!$AA$5:$AY$305,3*($C$8-1)+4) -> 691310
H78: 52 | I78: =VLOOKUP($H78,Conc_All!$A$5:$Y$204,3*($C$8-1)+2) -> 2.4572e-18 | J78: =VLOOKUP($H78,Conc_All!$A$5:$Y$204,3*($C$8-1)+3) -> 8.3389e-18 | K78: =VLOOKUP($H78,Conc_All!$A$5:$Y$204,3*($C$8-1)+4) -> 2.1799e-17 | L78: =VLOOKUP($H78,Conc_All_SDEIS!$A$5:$Y$204,3*($C$8-1)+2) -> 2.6698e-18 | M78: =VLOOKUP($H78,Conc_All_SDEIS!$A$5:$Y$204,3*($C$8-1)+3) -> 6.2032e-18 | N78: =VLOOKUP($H78,Conc_All_SDEIS!$A$5:$Y$204,3*($C$8-1)+4) -> 1.2549e-17 | P78: 4.333333333 | Q78: =VLOOKUP($P78,Conc_All!$AA$5:$AY$305,3*($C$8-1)+2) -> 61078 | R78: =VLOOKUP($P78,Conc_All!$AA$5:$AY$305,3*($C$8-1)+3) -> 92625 | S78: =VLOOKUP($P78,Conc_All!$AA$5:$AY$305,3*($C$8-1)+4) -> 135660 | T78: =VLOOKUP($P78,Conc_All_SDEIS!$AA$5:$AY$305,3*($C$8-1)+2) -> 74837 | U78: =VLOOKUP($P78,Conc_All_SDEIS!$AA$5:$AY$305,3*($C$8-1)+3) -> 120120 | V78: =VLOOKUP($P78,Conc_All_SDEIS!$AA$5:$AY$305,3*($C$8-1)+4) -> 183300
H79: 53 | I79: =VLOOKUP($H79,Conc_All!$A$5:$Y$204,3*($C$8-1)+2) -> 2.4572e-18 | J79: =VLOOKUP($H79,Conc_All!$A$5:$Y$204,3*($C$8-1)+3) -> 8.3389e-18 | K79: =VLOOKUP($H79,Conc_All!$A$5:$Y$204,3*($C$8-1)+4) -> 2.1799e-17 | L79: =VLOOKUP($H79,Conc_All_SDEIS!$A$5:$Y$204,3*($C$8-1)+2) -> 2.6698e-18 | M79: =VLOOKUP($H79,Conc_All_SDEIS!$A$5:$Y$204,3*($C$8-1)+3) -> 6.2032e-18 | N79: =VLOOKUP($H79,Conc_All_SDEIS!$A$5:$Y$204,3*($C$8-1)+4) -> 1.2549e-17 | P79: 4.416666667 | Q79: =VLOOKUP($P79,Conc_All!$AA$5:$AY$305,3*($C$8-1)+2) -> 87540 | R79: =VLOOKUP($P79,Conc_All!$AA$5:$AY$305,3*($C$8-1)+3) -> 153170 | S79: =VLOOKUP($P79,Conc_All!$AA$5:$AY$305,3*($C$8-1)+4) -> 226260 | T79: =VLOOKUP($P79,Conc_All_SDEIS!$AA$5:$AY$305,3*($C$8-1)+2) -> 129580 | U79: =VLOOKUP($P79,Conc_All_SDEIS!$AA$5:$AY$305,3*($C$8-1)+3) -> 243750 | V79: =VLOOKUP($P79,Conc_All_SDEIS!$AA$5:$AY$305,3*($C$8-1)+4) -> 357950
H80: 54 | I80: =VLOOKUP($H80,Conc_All!$A$5:$Y$204,3*($C$8-1)+2) -> 2.4572e-18 | J80: =VLOOKUP($H80,Conc_All!$A$5:$Y$204,3*($C$8-1)+3) -> 8.3389e-18 | K80: =VLOOKUP($H80,Conc_All!$A$5:$Y$204,3*($C$8-1)+4) -> 2.1799e-17 | L80: =VLOOKUP($H80,Conc_All_SDEIS!$A$5:$Y$204,3*($C$8-1)+2) -> 2.6698e-18 | M80: =VLOOKUP($H80,Conc_All_SDEIS!$A$5:$Y$204,3*($C$8-1)+3) -> 6.2032e-18 | N80: =VLOOKUP($H80,Conc_All_SDEIS!$A$5:$Y$204,3*($C$8-1)+4) -> 1.2549e-17 | P80: 4.5 | Q80: =VLOOKUP($P80,Conc_All!$AA$5:$AY$305,3*($C$8-1)+2) -> 73496 | R80: =VLOOKUP($P80,Conc_All!$AA$5:$AY$305,3*($C$8-1)+3) -> 144980 | S80: =VLOOKUP($P80,Conc_All!$AA$5:$AY$305,3*($C$8-1)+4) -> 214370 | T80: =VLOOKUP($P80,Conc_All_SDEIS!$AA$5:$AY$305,3*($C$8-1)+2) -> 103470 | U80: =VLOOKUP($P80,Conc_All_SDEIS!$AA$5:$AY$305,3*($C$8-1)+3) -> 223520 | V80: =VLOOKUP($P80,Conc_All_SDEIS!$AA$5:$AY$305,3*($C$8-1)+4) -> 336460
H81: 55 | I81: =VLOOKUP($H81,Conc_All!$A$5:$Y$204,3*($C$8-1)+2) -> 2.4572e-18 | J81: =VLOOKUP($H81,Conc_All!$A$5:$Y$204,3*($C$8-1)+3) -> 8.3389e-18 | K81: =VLOOKUP($H81,Conc_All!$A$5:$Y$204,3*($C$8-1)+4) -> 2.1799e-17 | L81: =VLOOKUP($H81,Conc_All_SDEIS!$A$5:$Y$204,3*($C$8-1)+2) -> 2.6698e-18 | M81: =VLOOKUP($H81,Conc_All_SDEIS!$A$5:$Y$204,3*($C$8-1)+3) -> 6.2032e-18 | N81: =VLOOKUP($H81,Conc_All_SDEIS!$A$5:$Y$204,3*($C$8-1)+4) -> 1.2549e-17 | P81: 4.583333333 | Q81: =VLOOKUP($P81,Conc_All!$AA$5:$AY$305,3*($C$8-1)+2) -> 70331 | R81: =VLOOKUP($P81,Conc_All!$AA$5:$AY$305,3*($C$8-1)+3) -> 133020 | S81: =VLOOKUP($P81,Conc_All!$AA$5:$AY$305,3*($C$8-1)+4) -> 197540 | T81: =VLOOKUP($P81,Conc_All_SDEIS!$AA$5:$AY$305,3*($C$8-1)+2) -> 96597 | U81: =VLOOKUP($P81,Conc_All_SDEIS!$AA$5:$AY$305,3*($C$8-1)+3) -> 210260 | V81: =VLOOKUP($P81,Conc_All_SDEIS!$AA$5:$AY$305,3*($C$8-1)+4) -> 323230
H82: 56 | I82: =VLOOKUP($H82,Conc_All!$A$5:$Y$204,3*($C$8-1)+2) -> 2.4572e-18 | J82: =VLOOKUP($H82,Conc_All!$A$5:$Y$204,3*($C$8-1)+3) -> 8.3389e-18 | K82: =VLOOKUP($H82,Conc_All!$A$5:$Y$204,3*($C$8-1)+4) -> 2.1799e-17 | L82: =VLOOKUP($H82,Conc_All_SDEIS!$A$5:$Y$204,3*($C$8-1)+2) -> 2.6698e-18 | M82: =VLOOKUP($H82,Conc_All_SDEIS!$A$5:$Y$204,3*($C$8-1)+3) -> 6.2032e-18 | N82: =VLOOKUP($H82,Conc_All_SDEIS!$A$5:$Y$204,3*($C$8-1)+4) -> 1.2549e-17 | P82: 4.666666667 | Q82: =VLOOKUP($P82,Conc_All!$AA$5:$AY$305,3*($C$8-1)+2) -> 68406 | R82: =VLOOKUP($P82,Conc_All!$AA$5:$AY$305,3*($C$8-1)+3) -> 124830 | S82: =VLOOKUP($P82,Conc_All!$AA$5:$AY$305,3*($C$8-1)+4) -> 187580 | T82: =VLOOKUP($P82,Conc_All_SDEIS!$AA$5:$AY$305,3*($C$8-1)+2) -> 95474 | U82: =VLOOKUP($P82,Conc_All_SDEIS!$AA$5:$AY$305,3*($C$8-1)+3) -> 199900 | V82: =VLOOKUP($P82,Conc_All_SDEIS!$AA$5:$AY$305,3*($C$8-1)+4) -> 305230
H83: 57 | I83: =VLOOKUP($H83,Conc_All!$A$5:$Y$204,3*($C$8-1)+2) -> 2.4572e-18 | J83: =VLOOKUP($H83,Conc_All!$A$5:$Y$204,3*($C$8-1)+3) -> 8.3389e-18 | K83: =VLOOKUP($H83,Conc_All!$A$5:$Y$204,3*($C$8-1)+4) -> 2.1799e-17 | L83: =VLOOKUP($H83,Conc_All_SDEIS!$A$5:$Y$204,3*($C$8-1)+2) -> 2.6698e-18 | M83: =VLOOKUP($H83,Conc_All_SDEIS!$A$5:$Y$204,3*($C$8-1)+3) -> 6.2032e-18 | N83: =VLOOKUP($H83,Conc_All_SDEIS!$A$5:$Y$204,3*($C$8-1)+4) -> 1.2549e-17 | P83: 4.75 | Q83: =VLOOKUP($P83,Conc_All!$AA$5:$AY$305,3*($C$8-1)+2) -> 67930 | R83: =VLOOKUP($P83,Conc_All!$AA$5:$AY$305,3*($C$8-1)+3) -> 119610 | S83: =VLOOKUP($P83,Conc_All!$AA$5:$AY$305,3*($C$8-1)+4) -> 182630 | T83: =VLOOKUP($P83,Conc_All_SDEIS!$AA$5:$AY$305,3*($C$8-1)+2) -> 95511 | U83: =VLOOKUP($P83,Conc_All_SDEIS!$AA$5:$AY$305,3*($C$8-1)+3) -> 193940 | V83: =VLOOKUP($P83,Conc_All_SDEIS!$AA$5:$AY$305,3*($C$8-1)+4) -> 296250
H84: 58 | I84: =VLOOKUP($H84,Conc_All!$A$5:$Y$204,3*($C$8-1)+2) -> 2.4572e-18 | J84: =VLOOKUP($H84,Conc_All!$A$5:$Y$204,3*($C$8-1)+3) -> 8.3389e-18 | K84: =VLOOKUP($H84,Conc_All!$A$5:$Y$204,3*($C$8-1)+4) -> 2.1799e-17 | L84: =VLOOKUP($H84,Conc_All_SDEIS!$A$5:$Y$204,3*($C$8-1)+2) -> 2.6698e-18 | M84: =VLOOKUP($H84,Conc_All_SDEIS!$A$5:$Y$204,3*($C$8-1)+3) -> 6.2032e-18 | N84: =VLOOKUP($H84,Conc_All_SDEIS!$A$5:$Y$204,3*($C$8-1)+4) -> 1.2549e-17 | P84: 4.833333333 | Q84: =VLOOKUP($P84,Conc_All!$AA$5:$AY$305,3*($C$8-1)+2) -> 72280 | R84: =VLOOKUP($P84,Conc_All!$AA$5:$AY$305,3*($C$8-1)+3) -> 118460 | S84: =VLOOKUP($P84,Conc_All!$AA$5:$AY$305,3*($C$8-1)+4) -> 179080 | T84: =VLOOKUP($P84,Conc_All_SDEIS!$AA$5:$AY$305,3*($C$8-1)+2) -> 113210 | U84: =VLOOKUP($P84,Conc_All_SDEIS!$AA$5:$AY$305,3*($C$8-1)+3) -> 204200 | V84: =VLOOKUP($P84,Conc_All_SDEIS!$AA$5:$AY$305,3*($C$8-1)+4) -> 313680
H85: 59 | I85: =VLOOKUP($H85,Conc_All!$A$5:$Y$204,3*($C$8-1)+2) -> 2.4572e-18 | J85: =VLOOKUP($H85,Conc_All!$A$5:$Y$204,3*($C$8-1)+3) -> 8.3389e-18 | K85: =VLOOKUP($H85,Conc_All!$A$5:$Y$204,3*($C$8-1)+4) -> 2.1799e-17 | L85: =VLOOKUP($H85,Conc_All_SDEIS!$A$5:$Y$204,3*($C$8-1)+2) -> 2.6698e-18 | M85: =VLOOKUP($H85,Conc_All_SDEIS!$A$5:$Y$204,3*($C$8-1)+3) -> 6.2032e-18 | N85: =VLOOKUP($H85,Conc_All_SDEIS!$A$5:$Y$204,3*($C$8-1)+4) -> 1.2549e-17 | P85: 4.916666667 | Q85: =VLOOKUP($P85,Conc_All!$AA$5:$AY$305,3*($C$8-1)+2) -> 84078 | R85: =VLOOKUP($P85,Conc_All!$AA$5:$AY$305,3*($C$8-1)+3) -> 136440 | S85: =VLOOKUP($P85,Conc_All!$AA$5:$AY$305,3*($C$8-1)+4) -> 210340 | T85: =VLOOKUP($P85,Conc_All_SDEIS!$AA$5:$AY$305,3*($C$8-1)+2) -> 192120 | U85: =VLOOKUP($P85,Conc_All_SDEIS!$AA$5:$AY$305,3*($C$8-1)+3) -> 343480 | V85: =VLOOKUP($P85,Conc_All_SDEIS!$AA$5:$AY$305,3*($C$8-1)+4) -> 552830
H86: 60 | I86: =VLOOKUP($H86,Conc_All!$A$5:$Y$204,3*($C$8-1)+2) -> 2.4572e-18 | J86: =VLOOKUP($H86,Conc_All!$A$5:$Y$204,3*($C$8-1)+3) -> 8.3389e-18 | K86: =VLOOKUP($H86,Conc_All!$A$5:$Y$204,3*($C$8-1)+4) -> 2.1799e-17 | L86: =VLOOKUP($H86,Conc_All_SDEIS!$A$5:$Y$204,3*($C$8-1)+2) -> 2.6698e-18 | M86: =VLOOKUP($H86,Conc_All_SDEIS!$A$5:$Y$204,3*($C$8-1)+3) -> 6.2032e-18 | N86: =VLOOKUP($H86,Conc_All_SDEIS!$A$5:$Y$204,3*($C$8-1)+4) -> 1.2549e-17 | P86: 5 | Q86: =VLOOKUP($P86,Conc_All!$AA$5:$AY$305,3*($C$8-1)+2) -> 75064 | R86: =VLOOKUP($P86,Conc_All!$AA$5:$AY$305,3*($C$8-1)+3) -> 118010 | S86: =VLOOKUP($P86,Conc_All!$AA$5:$AY$305,3*($C$8-1)+4) -> 186010 | T86: =VLOOKUP($P86,Conc_All_SDEIS!$AA$5:$AY$305,3*($C$8-1)+2) -> 164470 | U86: =VLOOKUP($P86,Conc_All_SDEIS!$AA$5:$AY$305,3*($C$8-1)+3) -> 292400 | V86: =VLOOKUP($P86,Conc_All_SDEIS!$AA$5:$AY$305,3*($C$8-1)+4) -> 495020
H87: 61 | I87: =VLOOKUP($H87,Conc_All!$A$5:$Y$204,3*($C$8-1)+2) -> 2.4572e-18 | J87: =VLOOKUP($H87,Conc_All!$A$5:$Y$204,3*($C$8-1)+3) -> 8.3389e-18 | K87: =VLOOKUP($H87,Conc_All!$A$5:$Y$204,3*($C$8-1)+4) -> 2.1799e-17 | L87: =VLOOKUP($H87,Conc_All_SDEIS!$A$5:$Y$204,3*($C$8-1)+2) -> 2.6698e-18 | M87: =VLOOKUP($H87,Conc_All_SDEIS!$A$5:$Y$204,3*($C$8-1)+3) -> 6.2032e-18 | N87: =VLOOKUP($H87,Conc_All_SDEIS!$A$5:$Y$204,3*($C$8-1)+4) -> 1.2549e-17 | P87: 5.083333333 | Q87: =VLOOKUP($P87,Conc_All!$AA$5:$AY$305,3*($C$8-1)+2) -> 70939 | R87: =VLOOKUP($P87,Conc_All!$AA$5:$AY$305,3*($C$8-1)+3) -> 112250 | S87: =VLOOKUP($P87,Conc_All!$AA$5:$AY$305,3*($C$8-1)+4) -> 175050 | T87: =VLOOKUP($P87,Conc_All_SDEIS!$AA$5:$AY$305,3*($C$8-1)+2) -> 158350 | U87: =VLOOKUP($P87,Conc_All_SDEIS!$AA$5:$AY$305,3*($C$8-1)+3) -> 276650 | V87: =VLOOKUP($P87,Conc_All_SDEIS!$AA$5:$AY$305,3*($C$8-1)+4) -> 469390
H88: 62 | I88: =VLOOKUP($H88,Conc_All!$A$5:$Y$204,3*($C$8-1)+2) -> 2.4572e-18 | J88: =VLOOKUP($H88,Conc_All!$A$5:$Y$204,3*($C$8-1)+3) -> 8.3389e-18 | K88: =VLOOKUP($H88,Conc_All!$A$5:$Y$204,3*($C$8-1)+4) -> 2.1799e-17 | L88: =VLOOKUP($H88,Conc_All_SDEIS!$A$5:$Y$204,3*($C$8-1)+2) -> 2.6698e-18 | M88: =VLOOKUP($H88,Conc_All_SDEIS!$A$5:$Y$204,3*($C$8-1)+3) -> 6.2032e-18 | N88: =VLOOKUP($H88,Conc_All_SDEIS!$A$5:$Y$204,3*($C$8-1)+4) -> 1.2549e-17 | P88: 5.166666667 | Q88: =VLOOKUP($P88,Conc_All!$AA$5:$AY$305,3*($C$8-1)+2) -> 69433 | R88: =VLOOKUP($P88,Conc_All!$AA$5:$AY$305,3*($C$8-1)+3) -> 109010 | S88: =VLOOKUP($P88,Conc_All!$AA$5:$AY$305,3*($C$8-1)+4) -> 174000 | T88: =VLOOKUP($P88,Conc_All_SDEIS!$AA$5:$AY$305,3*($C$8-1)+2) -> 150670 | U88: =VLOOKUP($P88,Conc_All_SDEIS!$AA$5:$AY$305,3*($C$8-1)+3) -> 268140 | V88: =VLOOKUP($P88,Conc_All_SDEIS!$AA$5:$AY$305,3*($C$8-1)+4) -> 463270
H89: 63 | I89: =VLOOKUP($H89,Conc_All!$A$5:$Y$204,3*($C$8-1)+2) -> 2.4572e-18 | J89: =VLOOKUP($H89,Conc_All!$A$5:$Y$204,3*($C$8-1)+3) -> 8.3389e-18 | K89: =VLOOKUP($H89,Conc_All!$A$5:$Y$204,3*($C$8-1)+4) -> 2.1799e-17 | L89: =VLOOKUP($H89,Conc_All_SDEIS!$A$5:$Y$204,3*($C$8-1)+2) -> 2.6698e-18 | M89: =VLOOKUP($H89,Conc_All_SDEIS!$A$5:$Y$204,3*($C$8-1)+3) -> 6.2032e-18 | N89: =VLOOKUP($H89,Conc_All_SDEIS!$A$5:$Y$204,3*($C$8-1)+4) -> 1.2549e-17 | P89: 5.25 | Q89: =VLOOKUP($P89,Conc_All!$AA$5:$AY$305,3*($C$8-1)+2) -> 73973 | R89: =VLOOKUP($P89,Conc_All!$AA$5:$AY$305,3*($C$8-1)+3) -> 116220 | S89: =VLOOKUP($P89,Conc_All!$AA$5:$AY$305,3*($C$8-1)+4) -> 179310 | T89: =VLOOKUP($P89,Conc_All_SDEIS!$AA$5:$AY$305,3*($C$8-1)+2) -> 164010 | U89: =VLOOKUP($P89,Conc_All_SDEIS!$AA$5:$AY$305,3*($C$8-1)+3) -> 287600 | V89: =VLOOKUP($P89,Conc_All_SDEIS!$AA$5:$AY$305,3*($C$8-1)+4) -> 482510
H90: 64 | I90: =VLOOKUP($H90,Conc_All!$A$5:$Y$204,3*($C$8-1)+2) -> 2.4572e-18 | J90: =VLOOKUP($H90,Conc_All!$A$5:$Y$204,3*($C$8-1)+3) -> 8.3389e-18 | K90: =VLOOKUP($H90,Conc_All!$A$5:$Y$204,3*($C$8-1)+4) -> 2.1799e-17 | L90: =VLOOKUP($H90,Conc_All_SDEIS!$A$5:$Y$204,3*($C$8-1)+2) -> 2.6698e-18 | M90: =VLOOKUP($H90,Conc_All_SDEIS!$A$5:$Y$204,3*($C$8-1)+3) -> 6.2032e-18 | N90: =VLOOKUP($H90,Conc_All_SDEIS!$A$5:$Y$204,3*($C$8-1)+4) -> 1.2549e-17 | P90: 5.333333333 | Q90: =VLOOKUP($P90,Conc_All!$AA$5:$AY$305,3*($C$8-1)+2) -> 55914 | R90: =VLOOKUP($P90,Conc_All!$AA$5:$AY$305,3*($C$8-1)+3) -> 81917 | S90: =VLOOKUP($P90,Conc_All!$AA$5:$AY$305,3*($C$8-1)+4) -> 115570 | T90: =VLOOKUP($P90,Conc_All_SDEIS!$AA$5:$AY$305,3*($C$8-1)+2) -> 71035 | U90: =VLOOKUP($P90,Conc_All_SDEIS!$AA$5:$AY$305,3*($C$8-1)+3) -> 112480 | V90: =VLOOKUP($P90,Conc_All_SDEIS!$AA$5:$AY$305,3*($C$8-1)+4) -> 169870
H91: 65 | I91: =VLOOKUP($H91,Conc_All!$A$5:$Y$204,3*($C$8-1)+2) -> 2.4572e-18 | J91: =VLOOKUP($H91,Conc_All!$A$5:$Y$204,3*($C$8-1)+3) -> 8.3389e-18 | K91: =VLOOKUP($H91,Conc_All!$A$5:$Y$204,3*($C$8-1)+4) -> 2.1799e-17 | L91: =VLOOKUP($H91,Conc_All_SDEIS!$A$5:$Y$204,3*($C$8-1)+2) -> 2.6698e-18 | M91: =VLOOKUP($H91,Conc_All_SDEIS!$A$5:$Y$204,3*($C$8-1)+3) -> 6.2032e-18 | N91: =VLOOKUP($H91,Conc_All_SDEIS!$A$5:$Y$204,3*($C$8-1)+4) -> 1.2549e-17 | P91: 5.416666667 | Q91: =VLOOKUP($P91,Conc_All!$AA$5:$AY$305,3*($C$8-1)+2) -> 75264 | R91: =VLOOKUP($P91,Conc_All!$AA$5:$AY$305,3*($C$8-1)+3) -> 126920 | S91: =VLOOKUP($P91,Conc_All!$AA$5:$AY$305,3*($C$8-1)+4) -> 185630 | T91: =VLOOKUP($P91,Conc_All_SDEIS!$AA$5:$AY$305,3*($C$8-1)+2) -> 119630 | U91: =VLOOKUP($P91,Conc_All_SDEIS!$AA$5:$AY$305,3*($C$8-1)+3) -> 217080 | V91: =VLOOKUP($P91,Conc_All_SDEIS!$AA$5:$AY$305,3*($C$8-1)+4) -> 323170
H92: 66 | I92: =VLOOKUP($H92,Conc_All!$A$5:$Y$204,3*($C$8-1)+2) -> 2.4572e-18 | J92: =VLOOKUP($H92,Conc_All!$A$5:$Y$204,3*($C$8-1)+3) -> 8.3389e-18 | K92: =VLOOKUP($H92,Conc_All!$A$5:$Y$204,3*($C$8-1)+4) -> 2.1799e-17 | L92: =VLOOKUP($H92,Conc_All_SDEIS!$A$5:$Y$204,3*($C$8-1)+2) -> 2.6698e-18 | M92: =VLOOKUP($H92,Conc_All_SDEIS!$A$5:$Y$204,3*($C$8-1)+3) -> 6.2032e-18 | N92: =VLOOKUP($H92,Conc_All_SDEIS!$A$5:$Y$204,3*($C$8-1)+4) -> 1.2549e-17 | P92: =P91+1/12 -> 5.5 | Q92: =VLOOKUP($P92,Conc_All!$AA$5:$AY$305,3*($C$8-1)+2) -> 66592 | R92: =VLOOKUP($P92,Conc_All!$AA$5:$AY$305,3*($C$8-1)+3) -> 123140 | S92: =VLOOKUP($P92,Conc_All!$AA$5:$AY$305,3*($C$8-1)+4) -> 184550 | T92: =VLOOKUP($P92,Conc_All_SDEIS!$AA$5:$AY$305,3*($C$8-1)+2) -> 97316 | U92: =VLOOKUP($P92,Conc_All_SDEIS!$AA$5:$AY$305,3*($C$8-1)+3) -> 208370 | V92: =VLOOKUP($P92,Conc_All_SDEIS!$AA$5:$AY$305,3*($C$8-1)+4) -> 308810
H93: 67 | I93: =VLOOKUP($H93,Conc_All!$A$5:$Y$204,3*($C$8-1)+2) -> 2.4572e-18 | J93: =VLOOKUP($H93,Conc_All!$A$5:$Y$204,3*($C$8-1)+3) -> 8.3389e-18 | K93: =VLOOKUP($H93,Conc_All!$A$5:$Y$204,3*($C$8-1)+4) -> 2.1799e-17 | L93: =VLOOKUP($H93,Conc_All_SDEIS!$A$5:$Y$204,3*($C$8-1)+2) -> 2.6698e-18 | M93: =VLOOKUP($H93,Conc_All_SDEIS!$A$5:$Y$204,3*($C$8-1)+3) -> 6.2032e-18 | N93: =VLOOKUP($H93,Conc_All_SDEIS!$A$5:$Y$204,3*($C$8-1)+4) -> 1.2549e-17 | P93: 5.583333333 | Q93: =VLOOKUP($P93,Conc_All!$AA$5:$AY$305,3*($C$8-1)+2) -> 64405 | R93: =VLOOKUP($P93,Conc_All!$AA$5:$AY$305,3*($C$8-1)+3) -> 117880 | S93: =VLOOKUP($P93,Conc_All!$AA$5:$AY$305,3*($C$8-1)+4) -> 174740 | T93: =VLOOKUP($P93,Conc_All_SDEIS!$AA$5:$AY$305,3*($C$8-1)+2) -> 90034 | U93: =VLOOKUP($P93,Conc_All_SDEIS!$AA$5:$AY$305,3*($C$8-1)+3) -> 194630 | V93: =VLOOKUP($P93,Conc_All_SDEIS!$AA$5:$AY$305,3*($C$8-1)+4) -> 300210
H94: 68 | I94: =VLOOKUP($H94,Conc_All!$A$5:$Y$204,3*($C$8-1)+2) -> 2.4572e-18 | J94: =VLOOKUP($H94,Conc_All!$A$5:$Y$204,3*($C$8-1)+3) -> 8.3389e-18 | K94: =VLOOKUP($H94,Conc_All!$A$5:$Y$204,3*($C$8-1)+4) -> 2.1799e-17 | L94: =VLOOKUP($H94,Conc_All_SDEIS!$A$5:$Y$204,3*($C$8-1)+2) -> 2.6698e-18 | M94: =VLOOKUP($H94,Conc_All_SDEIS!$A$5:$Y$204,3*($C$8-1)+3) -> 6.2032e-18 | N94: =VLOOKUP($H94,Conc_All_SDEIS!$A$5:$Y$204,3*($C$8-1)+4) -> 1.2549e-17 | P94: 5.666666667 | Q94: =VLOOKUP($P94,Conc_All!$AA$5:$AY$305,3*($C$8-1)+2) -> 64057 | R94: =VLOOKUP($P94,Conc_All!$AA$5:$AY$305,3*($C$8-1)+3) -> 115770 | S94: =VLOOKUP($P94,Conc_All!$AA$5:$AY$305,3*($C$8-1)+4) -> 171860 | T94: =VLOOKUP($P94,Conc_All_SDEIS!$AA$5:$AY$305,3*($C$8-1)+2) -> 89781 | U94: =VLOOKUP($P94,Conc_All_SDEIS!$AA$5:$AY$305,3*($C$8-1)+3) -> 187500 | V94: =VLOOKUP($P94,Conc_All_SDEIS!$AA$5:$AY$305,3*($C$8-1)+4) -> 295310
H95: 69 | I95: =VLOOKUP($H95,Conc_All!$A$5:$Y$204,3*($C$8-1)+2) -> 2.4572e-18 | J95: =VLOOKUP($H95,Conc_All!$A$5:$Y$204,3*($C$8-1)+3) -> 8.3389e-18 | K95: =VLOOKUP($H95,Conc_All!$A$5:$Y$204,3*($C$8-1)+4) -> 2.1799e-17 | L95: =VLOOKUP($H95,Conc_All_SDEIS!$A$5:$Y$204,3*($C$8-1)+2) -> 2.6698e-18 | M95: =VLOOKUP($H95,Conc_All_SDEIS!$A$5:$Y$204,3*($C$8-1)+3) -> 6.2032e-18 | N95: =VLOOKUP($H95,Conc_All_SDEIS!$A$5:$Y$204,3*($C$8-1)+4) -> 1.2549e-17 | P95: 5.75 | Q95: =VLOOKUP($P95,Conc_All!$AA$5:$AY$305,3*($C$8-1)+2) -> 64828 | R95: =VLOOKUP($P95,Conc_All!$AA$5:$AY$305,3*($C$8-1)+3) -> 114630 | S95: =VLOOKUP($P95,Conc_All!$AA$5:$AY$305,3*($C$8-1)+4) -> 170500 | T95: =VLOOKUP($P95,Conc_All_SDEIS!$AA$5:$AY$305,3*($C$8-1)+2) -> 91393 | U95: =VLOOKUP($P95,Conc_All_SDEIS!$AA$5:$AY$305,3*($C$8-1)+3) -> 186720 | V95: =VLOOKUP($P95,Conc_All_SDEIS!$AA$5:$AY$305,3*($C$8-1)+4) -> 292710
H96: 70 | I96: =VLOOKUP($H96,Conc_All!$A$5:$Y$204,3*($C$8-1)+2) -> 2.4572e-18 | J96: =VLOOKUP($H96,Conc_All!$A$5:$Y$204,3*($C$8-1)+3) -> 8.3389e-18 | K96: =VLOOKUP($H96,Conc_All!$A$5:$Y$204,3*($C$8-1)+4) -> 2.1799e-17 | L96: =VLOOKUP($H96,Conc_All_SDEIS!$A$5:$Y$204,3*($C$8-1)+2) -> 2.6698e-18 | M96: =VLOOKUP($H96,Conc_All_SDEIS!$A$5:$Y$204,3*($C$8-1)+3) -> 6.2032e-18 | N96: =VLOOKUP($H96,Conc_All_SDEIS!$A$5:$Y$204,3*($C$8-1)+4) -> 1.2549e-17 | P96: 5.833333333 | Q96: =VLOOKUP($P96,Conc_All!$AA$5:$AY$305,3*($C$8-1)+2) -> 70103 | R96: =VLOOKUP($P96,Conc_All!$AA$5:$AY$305,3*($C$8-1)+3) -> 113940 | S96: =VLOOKUP($P96,Conc_All!$AA$5:$AY$305,3*($C$8-1)+4) -> 170150 | T96: =VLOOKUP($P96,Conc_All_SDEIS!$AA$5:$AY$305,3*($C$8-1)+2) -> 108870 | U96: =VLOOKUP($P96,Conc_All_SDEIS!$AA$5:$AY$305,3*($C$8-1)+3) -> 202640 | V96: =VLOOKUP($P96,Conc_All_SDEIS!$AA$5:$AY$305,3*($C$8-1)+4) -> 317170
H97: 71 | I97: =VLOOKUP($H97,Conc_All!$A$5:$Y$204,3*($C$8-1)+2) -> 2.4572e-18 | J97: =VLOOKUP($H97,Conc_All!$A$5:$Y$204,3*($C$8-1)+3) -> 8.3389e-18 | K97: =VLOOKUP($H97,Conc_All!$A$5:$Y$204,3*($C$8-1)+4) -> 2.1799e-17 | L97: =VLOOKUP($H97,Conc_All_SDEIS!$A$5:$Y$204,3*($C$8-1)+2) -> 2.6698e-18 | M97: =VLOOKUP($H97,Conc_All_SDEIS!$A$5:$Y$204,3*($C$8-1)+3) -> 6.2032e-18 | N97: =VLOOKUP($H97,Conc_All_SDEIS!$A$5:$Y$204,3*($C$8-1)+4) -> 1.2549e-17 | P97: 5.916666667 | Q97: =VLOOKUP($P97,Conc_All!$AA$5:$AY$305,3*($C$8-1)+2) -> 85242 | R97: =VLOOKUP($P97,Conc_All!$AA$5:$AY$305,3*($C$8-1)+3) -> 132200 | S97: =VLOOKUP($P97,Conc_All!$AA$5:$AY$305,3*($C$8-1)+4) -> 206430 | T97: =VLOOKUP($P97,Conc_All_SDEIS!$AA$5:$AY$305,3*($C$8-1)+2) -> 197270 | U97: =VLOOKUP($P97,Conc_All_SDEIS!$AA$5:$AY$305,3*($C$8-1)+3) -> 336270 | V97: =VLOOKUP($P97,Conc_All_SDEIS!$AA$5:$AY$305,3*($C$8-1)+4) -> 555350
H98: 72 | I98: =VLOOKUP($H98,Conc_All!$A$5:$Y$204,3*($C$8-1)+2) -> 2.4572e-18 | J98: =VLOOKUP($H98,Conc_All!$A$5:$Y$204,3*($C$8-1)+3) -> 8.3389e-18 | K98: =VLOOKUP($H98,Conc_All!$A$5:$Y$204,3*($C$8-1)+4) -> 2.1799e-17 | L98: =VLOOKUP($H98,Conc_All_SDEIS!$A$5:$Y$204,3*($C$8-1)+2) -> 2.6698e-18 | M98: =VLOOKUP($H98,Conc_All_SDEIS!$A$5:$Y$204,3*($C$8-1)+3) -> 6.2032e-18 | N98: =VLOOKUP($H98,Conc_All_SDEIS!$A$5:$Y$204,3*($C$8-1)+4) -> 1.2549e-17 | P98: 6 | Q98: =VLOOKUP($P98,Conc_All!$AA$5:$AY$305,3*($C$8-1)+2) -> 76152 | R98: =VLOOKUP($P98,Conc_All!$AA$5:$AY$305,3*($C$8-1)+3) -> 118750 | S98: =VLOOKUP($P98,Conc_All!$AA$5:$AY$305,3*($C$8-1)+4) -> 185710 | T98: =VLOOKUP($P98,Conc_All_SDEIS!$AA$5:$AY$305,3*($C$8-1)+2) -> 168000 | U98: =VLOOKUP($P98,Conc_All_SDEIS!$AA$5:$AY$305,3*($C$8-1)+3) -> 293110 | V98: =VLOOKUP($P98,Conc_All_SDEIS!$AA$5:$AY$305,3*($C$8-1)+4) -> 502710
H99: 73 | I99: =VLOOKUP($H99,Conc_All!$A$5:$Y$204,3*($C$8-1)+2) -> 2.4572e-18 | J99: =VLOOKUP($H99,Conc_All!$A$5:$Y$204,3*($C$8-1)+3) -> 8.3389e-18 | K99: =VLOOKUP($H99,Conc_All!$A$5:$Y$204,3*($C$8-1)+4) -> 2.1799e-17 | L99: =VLOOKUP($H99,Conc_All_SDEIS!$A$5:$Y$204,3*($C$8-1)+2) -> 2.6698e-18 | M99: =VLOOKUP($H99,Conc_All_SDEIS!$A$5:$Y$204,3*($C$8-1)+3) -> 6.2032e-18 | N99: =VLOOKUP($H99,Conc_All_SDEIS!$A$5:$Y$204,3*($C$8-1)+4) -> 1.2549e-17 | P99: 6.083333333 | Q99: =VLOOKUP($P99,Conc_All!$AA$5:$AY$305,3*($C$8-1)+2) -> 73826 | R99: =VLOOKUP($P99,Conc_All!$AA$5:$AY$305,3*($C$8-1)+3) -> 115910 | S99: =VLOOKUP($P99,Conc_All!$AA$5:$AY$305,3*($C$8-1)+4) -> 184280 | T99: =VLOOKUP($P99,Conc_All_SDEIS!$AA$5:$AY$305,3*($C$8-1)+2) -> 160190 | U99: =VLOOKUP($P99,Conc_All_SDEIS!$AA$5:$AY$305,3*($C$8-1)+3) -> 288720 | V99: =VLOOKUP($P99,Conc_All_SDEIS!$AA$5:$AY$305,3*($C$8-1)+4) -> 485930
H100: 74 | I100: =VLOOKUP($H100,Conc_All!$A$5:$Y$204,3*($C$8-1)+2) -> 2.4572e-18 | J100: =VLOOKUP($H100,Conc_All!$A$5:$Y$204,3*($C$8-1)+3) -> 8.3389e-18 | K100: =VLOOKUP($H100,Conc_All!$A$5:$Y$204,3*($C$8-1)+4) -> 2.1799e-17 | L100: =VLOOKUP($H100,Conc_All_SDEIS!$A$5:$Y$204,3*($C$8-1)+2) -> 2.6698e-18 | M100: =VLOOKUP($H100,Conc_All_SDEIS!$A$5:$Y$204,3*($C$8-1)+3) -> 6.2032e-18 | N100: =VLOOKUP($H100,Conc_All_SDEIS!$A$5:$Y$204,3*($C$8-1)+4) -> 1.2549e-17 | P100: 6.166666667 | Q100: =VLOOKUP($P100,Conc_All!$AA$5:$AY$305,3*($C$8-1)+2) -> 71546 | R100: =VLOOKUP($P100,Conc_All!$AA$5:$AY$305,3*($C$8-1)+3) -> 112870 | S100: =VLOOKUP($P100,Conc_All!$AA$5:$AY$305,3*($C$8-1)+4) -> 180000 | T100: =VLOOKUP($P100,Conc_All_SDEIS!$AA$5:$AY$305,3*($C$8-1)+2) -> 153960 | U100: =VLOOKUP($P100,Conc_All_SDEIS!$AA$5:$AY$305,3*($C$8-1)+3) -> 279250 | V100: =VLOOKUP($P100,Conc_All_SDEIS!$AA$5:$AY$305,3*($C$8-1)+4) -> 477280
H101: 75 | I101: =VLOOKUP($H101,Conc_All!$A$5:$Y$204,3*($C$8-1)+2) -> 2.4572e-18 | J101: =VLOOKUP($H101,Conc_All!$A$5:$Y$204,3*($C$8-1)+3) -> 8.3389e-18 | K101: =VLOOKUP($H101,Conc_All!$A$5:$Y$204,3*($C$8-1)+4) -> 2.1799e-17 | L101: =VLOOKUP($H101,Conc_All_SDEIS!$A$5:$Y$204,3*($C$8-1)+2) -> 2.6698e-18 | M101: =VLOOKUP($H101,Conc_All_SDEIS!$A$5:$Y$204,3*($C$8-1)+3) -> 6.2032e-18 | N101: =VLOOKUP($H101,Conc_All_SDEIS!$A$5:$Y$204,3*($C$8-1)+4) -> 1.2549e-17 | P101: 6.25 | Q101: =VLOOKUP($P101,Conc_All!$AA$5:$AY$305,3*($C$8-1)+2) -> 75681 | R101: =VLOOKUP($P101,Conc_All!$AA$5:$AY$305,3*($C$8-1)+3) -> 120350 | S101: =VLOOKUP($P101,Conc_All!$AA$5:$AY$305,3*($C$8-1)+4) -> 189040 | T101: =VLOOKUP($P101,Conc_All_SDEIS!$AA$5:$AY$305,3*($C$8-1)+2) -> 165460 | U101: =VLOOKUP($P101,Conc_All_SDEIS!$AA$5:$AY$305,3*($C$8-1)+3) -> 298710 | V101: =VLOOKUP($P101,Conc_All_SDEIS!$AA$5:$AY$305,3*($C$8-1)+4) -> 496050
H102: 76 | I102: =VLOOKUP($H102,Conc_All!$A$5:$Y$204,3*($C$8-1)+2) -> 2.4572e-18 | J102: =VLOOKUP($H102,Conc_All!$A$5:$Y$204,3*($C$8-1)+3) -> 8.3389e-18 | K102: =VLOOKUP($H102,Conc_All!$A$5:$Y$204,3*($C$8-1)+4) -> 2.1799e-17 | L102: =VLOOKUP($H102,Conc_All_SDEIS!$A$5:$Y$204,3*($C$8-1)+2) -> 2.6698e-18 | M102: =VLOOKUP($H102,Conc_All_SDEIS!$A$5:$Y$204,3*($C$8-1)+3) -> 6.2032e-18 | N102: =VLOOKUP($H102,Conc_All_SDEIS!$A$5:$Y$204,3*($C$8-1)+4) -> 1.2549e-17 | P102: 6.333333333 | Q102: =VLOOKUP($P102,Conc_All!$AA$5:$AY$305,3*($C$8-1)+2) -> 57927 | R102: =VLOOKUP($P102,Conc_All!$AA$5:$AY$305,3*($C$8-1)+3) -> 84399 | S102: =VLOOKUP($P102,Conc_All!$AA$5:$AY$305,3*($C$8-1)+4) -> 123150 | T102: =VLOOKUP($P102,Conc_All_SDEIS!$AA$5:$AY$305,3*($C$8-1)+2) -> 71344 | U102: =VLOOKUP($P102,Conc_All_SDEIS!$AA$5:$AY$305,3*($C$8-1)+3) -> 113720 | V102: =VLOOKUP($P102,Conc_All_SDEIS!$AA$5:$AY$305,3*($C$8-1)+4) -> 168600
H103: 77 | I103: =VLOOKUP($H103,Conc_All!$A$5:$Y$204,3*($C$8-1)+2) -> 2.4572e-18 | J103: =VLOOKUP($H103,Conc_All!$A$5:$Y$204,3*($C$8-1)+3) -> 8.3389e-18 | K103: =VLOOKUP($H103,Conc_All!$A$5:$Y$204,3*($C$8-1)+4) -> 2.1799e-17 | L103: =VLOOKUP($H103,Conc_All_SDEIS!$A$5:$Y$204,3*($C$8-1)+2) -> 2.6698e-18 | M103: =VLOOKUP($H103,Conc_All_SDEIS!$A$5:$Y$204,3*($C$8-1)+3) -> 6.2032e-18 | N103: =VLOOKUP($H103,Conc_All_SDEIS!$A$5:$Y$204,3*($C$8-1)+4) -> 1.2549e-17 | P103: 6.416666667 | Q103: =VLOOKUP($P103,Conc_All!$AA$5:$AY$305,3*($C$8-1)+2) -> 80734 | R103: =VLOOKUP($P103,Conc_All!$AA$5:$AY$305,3*($C$8-1)+3) -> 132710 | S103: =VLOOKUP($P103,Conc_All!$AA$5:$AY$305,3*($C$8-1)+4) -> 191340 | T103: =VLOOKUP($P103,Conc_All_SDEIS!$AA$5:$AY$305,3*($C$8-1)+2) -> 121820 | U103: =VLOOKUP($P103,Conc_All_SDEIS!$AA$5:$AY$305,3*($C$8-1)+3) -> 224130 | V103: =VLOOKUP($P103,Conc_All_SDEIS!$AA$5:$AY$305,3*($C$8-1)+4) -> 321570
H104: 78 | I104: =VLOOKUP($H104,Conc_All!$A$5:$Y$204,3*($C$8-1)+2) -> 2.4572e-18 | J104: =VLOOKUP($H104,Conc_All!$A$5:$Y$204,3*($C$8-1)+3) -> 8.3389e-18 | K104: =VLOOKUP($H104,Conc_All!$A$5:$Y$204,3*($C$8-1)+4) -> 2.1799e-17 | L104: =VLOOKUP($H104,Conc_All_SDEIS!$A$5:$Y$204,3*($C$8-1)+2) -> 2.6698e-18 | M104: =VLOOKUP($H104,Conc_All_SDEIS!$A$5:$Y$204,3*($C$8-1)+3) -> 6.2032e-18 | N104: =VLOOKUP($H104,Conc_All_SDEIS!$A$5:$Y$204,3*($C$8-1)+4) -> 1.2549e-17 | P104: 6.5 | Q104: =VLOOKUP($P104,Conc_All!$AA$5:$AY$305,3*($C$8-1)+2) -> 68594 | R104: =VLOOKUP($P104,Conc_All!$AA$5:$AY$305,3*($C$8-1)+3) -> 129880 | S104: =VLOOKUP($P104,Conc_All!$AA$5:$AY$305,3*($C$8-1)+4) -> 190670 | T104: =VLOOKUP($P104,Conc_All_SDEIS!$AA$5:$AY$305,3*($C$8-1)+2) -> 96389 | U104: =VLOOKUP($P104,Conc_All_SDEIS!$AA$5:$AY$305,3*($C$8-1)+3) -> 211730 | V104: =VLOOKUP($P104,Conc_All_SDEIS!$AA$5:$AY$305,3*($C$8-1)+4) -> 314020
H105: 79 | I105: =VLOOKUP($H105,Conc_All!$A$5:$Y$204,3*($C$8-1)+2) -> 2.4572e-18 | J105: =VLOOKUP($H105,Conc_All!$A$5:$Y$204,3*($C$8-1)+3) -> 8.3389e-18 | K105: =VLOOKUP($H105,Conc_All!$A$5:$Y$204,3*($C$8-1)+4) -> 2.1799e-17 | L105: =VLOOKUP($H105,Conc_All_SDEIS!$A$5:$Y$204,3*($C$8-1)+2) -> 2.6698e-18 | M105: =VLOOKUP($H105,Conc_All_SDEIS!$A$5:$Y$204,3*($C$8-1)+3) -> 6.2032e-18 | N105: =VLOOKUP($H105,Conc_All_SDEIS!$A$5:$Y$204,3*($C$8-1)+4) -> 1.2549e-17 | P105: 6.583333333 | Q105: =VLOOKUP($P105,Conc_All!$AA$5:$AY$305,3*($C$8-1)+2) -> 67188 | R105: =VLOOKUP($P105,Conc_All!$AA$5:$AY$305,3*($C$8-1)+3) -> 123820 | S105: =VLOOKUP($P105,Conc_All!$AA$5:$AY$305,3*($C$8-1)+4) -> 182030 | T105: =VLOOKUP($P105,Conc_All_SDEIS!$AA$5:$AY$305,3*($C$8-1)+2) -> 93163 | U105: =VLOOKUP($P105,Conc_All_SDEIS!$AA$5:$AY$305,3*($C$8-1)+3) -> 199920 | V105: =VLOOKUP($P105,Conc_All_SDEIS!$AA$5:$AY$305,3*($C$8-1)+4) -> 300280
H106: 80 | I106: =VLOOKUP($H106,Conc_All!$A$5:$Y$204,3*($C$8-1)+2) -> 2.4572e-18 | J106: =VLOOKUP($H106,Conc_All!$A$5:$Y$204,3*($C$8-1)+3) -> 8.3389e-18 | K106: =VLOOKUP($H106,Conc_All!$A$5:$Y$204,3*($C$8-1)+4) -> 2.1799e-17 | L106: =VLOOKUP($H106,Conc_All_SDEIS!$A$5:$Y$204,3*($C$8-1)+2) -> 2.6698e-18 | M106: =VLOOKUP($H106,Conc_All_SDEIS!$A$5:$Y$204,3*($C$8-1)+3) -> 6.2032e-18 | N106: =VLOOKUP($H106,Conc_All_SDEIS!$A$5:$Y$204,3*($C$8-1)+4) -> 1.2549e-17 | P106: 6.666666667 | Q106: =VLOOKUP($P106,Conc_All!$AA$5:$AY$305,3*($C$8-1)+2) -> 66493 | R106: =VLOOKUP($P106,Conc_All!$AA$5:$AY$305,3*($C$8-1)+3) -> 118260 | S106: =VLOOKUP($P106,Conc_All!$AA$5:$AY$305,3*($C$8-1)+4) -> 179180 | T106: =VLOOKUP($P106,Conc_All_SDEIS!$AA$5:$AY$305,3*($C$8-1)+2) -> 93478 | U106: =VLOOKUP($P106,Conc_All_SDEIS!$AA$5:$AY$305,3*($C$8-1)+3) -> 190550 | V106: =VLOOKUP($P106,Conc_All_SDEIS!$AA$5:$AY$305,3*($C$8-1)+4) -> 300440
H107: 81 | I107: =VLOOKUP($H107,Conc_All!$A$5:$Y$204,3*($C$8-1)+2) -> 2.4572e-18 | J107: =VLOOKUP($H107,Conc_All!$A$5:$Y$204,3*($C$8-1)+3) -> 8.3389e-18 | K107: =VLOOKUP($H107,Conc_All!$A$5:$Y$204,3*($C$8-1)+4) -> 2.1799e-17 | L107: =VLOOKUP($H107,Conc_All_SDEIS!$A$5:$Y$204,3*($C$8-1)+2) -> 2.6698e-18 | M107: =VLOOKUP($H107,Conc_All_SDEIS!$A$5:$Y$204,3*($C$8-1)+3) -> 6.2032e-18 | N107: =VLOOKUP($H107,Conc_All_SDEIS!$A$5:$Y$204,3*($C$8-1)+4) -> 1.2549e-17 | P107: 6.75 | Q107: =VLOOKUP($P107,Conc_All!$AA$5:$AY$305,3*($C$8-1)+2) -> 67101 | R107: =VLOOKUP($P107,Conc_All!$AA$5:$AY$305,3*($C$8-1)+3) -> 117680 | S107: =VLOOKUP($P107,Conc_All!$AA$5:$AY$305,3*($C$8-1)+4) -> 178000 | T107: =VLOOKUP($P107,Conc_All_SDEIS!$AA$5:$AY$305,3*($C$8-1)+2) -> 94808 | U107: =VLOOKUP($P107,Conc_All_SDEIS!$AA$5:$AY$305,3*($C$8-1)+3) -> 188630 | V107: =VLOOKUP($P107,Conc_All_SDEIS!$AA$5:$AY$305,3*($C$8-1)+4) -> 295900
H108: 82 | I108: =VLOOKUP($H108,Conc_All!$A$5:$Y$204,3*($C$8-1)+2) -> 2.4572e-18 | J108: =VLOOKUP($H108,Conc_All!$A$5:$Y$204,3*($C$8-1)+3) -> 8.3389e-18 | K108: =VLOOKUP($H108,Conc_All!$A$5:$Y$204,3*($C$8-1)+4) -> 2.1799e-17 | L108: =VLOOKUP($H108,Conc_All_SDEIS!$A$5:$Y$204,3*($C$8-1)+2) -> 2.6698e-18 | M108: =VLOOKUP($H108,Conc_All_SDEIS!$A$5:$Y$204,3*($C$8-1)+3) -> 6.2032e-18 | N108: =VLOOKUP($H108,Conc_All_SDEIS!$A$5:$Y$204,3*($C$8-1)+4) -> 1.2549e-17 | P108: 6.833333333 | Q108: =VLOOKUP($P108,Conc_All!$AA$5:$AY$305,3*($C$8-1)+2) -> 72925 | R108: =VLOOKUP($P108,Conc_All!$AA$5:$AY$305,3*($C$8-1)+3) -> 120620 | S108: =VLOOKUP($P108,Conc_All!$AA$5:$AY$305,3*($C$8-1)+4) -> 173370 | T108: =VLOOKUP($P108,Conc_All_SDEIS!$AA$5:$AY$305,3*($C$8-1)+2) -> 113100 | U108: =VLOOKUP($P108,Conc_All_SDEIS!$AA$5:$AY$305,3*($C$8-1)+3) -> 206810 | V108: =VLOOKUP($P108,Conc_All_SDEIS!$AA$5:$AY$305,3*($C$8-1)+4) -> 310640
H109: 83 | I109: =VLOOKUP($H109,Conc_All!$A$5:$Y$204,3*($C$8-1)+2) -> 2.4572e-18 | J109: =VLOOKUP($H109,Conc_All!$A$5:$Y$204,3*($C$8-1)+3) -> 8.3389e-18 | K109: =VLOOKUP($H109,Conc_All!$A$5:$Y$204,3*($C$8-1)+4) -> 2.1799e-17 | L109: =VLOOKUP($H109,Conc_All_SDEIS!$A$5:$Y$204,3*($C$8-1)+2) -> 2.6698e-18 | M109: =VLOOKUP($H109,Conc_All_SDEIS!$A$5:$Y$204,3*($C$8-1)+3) -> 6.2032e-18 | N109: =VLOOKUP($H109,Conc_All_SDEIS!$A$5:$Y$204,3*($C$8-1)+4) -> 1.2549e-17 | P109: 6.916666667 | Q109: =VLOOKUP($P109,Conc_All!$AA$5:$AY$305,3*($C$8-1)+2) -> 85605 | R109: =VLOOKUP($P109,Conc_All!$AA$5:$AY$305,3*($C$8-1)+3) -> 138710 | S109: =VLOOKUP($P109,Conc_All!$AA$5:$AY$305,3*($C$8-1)+4) -> 210270 | T109: =VLOOKUP($P109,Conc_All_SDEIS!$AA$5:$AY$305,3*($C$8-1)+2) -> 194060 | U109: =VLOOKUP($P109,Conc_All_SDEIS!$AA$5:$AY$305,3*($C$8-1)+3) -> 340710 | V109: =VLOOKUP($P109,Conc_All_SDEIS!$AA$5:$AY$305,3*($C$8-1)+4) -> 548540
H110: 84 | I110: =VLOOKUP($H110,Conc_All!$A$5:$Y$204,3*($C$8-1)+2) -> 2.4572e-18 | J110: =VLOOKUP($H110,Conc_All!$A$5:$Y$204,3*($C$8-1)+3) -> 8.3389e-18 | K110: =VLOOKUP($H110,Conc_All!$A$5:$Y$204,3*($C$8-1)+4) -> 2.1799e-17 | L110: =VLOOKUP($H110,Conc_All_SDEIS!$A$5:$Y$204,3*($C$8-1)+2) -> 2.6698e-18 | M110: =VLOOKUP($H110,Conc_All_SDEIS!$A$5:$Y$204,3*($C$8-1)+3) -> 6.2032e-18 | N110: =VLOOKUP($H110,Conc_All_SDEIS!$A$5:$Y$204,3*($C$8-1)+4) -> 1.2549e-17 | P110: 7 | Q110: =VLOOKUP($P110,Conc_All!$AA$5:$AY$305,3*($C$8-1)+2) -> 78729 | R110: =VLOOKUP($P110,Conc_All!$AA$5:$AY$305,3*($C$8-1)+3) -> 125870 | S110: =VLOOKUP($P110,Conc_All!$AA$5:$AY$305,3*($C$8-1)+4) -> 194970 | T110: =VLOOKUP($P110,Conc_All_SDEIS!$AA$5:$AY$305,3*($C$8-1)+2) -> 170160 | U110: =VLOOKUP($P110,Conc_All_SDEIS!$AA$5:$AY$305,3*($C$8-1)+3) -> 304190 | V110: =VLOOKUP($P110,Conc_All_SDEIS!$AA$5:$AY$305,3*($C$8-1)+4) -> 510930
H111: 85 | I111: =VLOOKUP($H111,Conc_All!$A$5:$Y$204,3*($C$8-1)+2) -> 2.4572e-18 | J111: =VLOOKUP($H111,Conc_All!$A$5:$Y$204,3*($C$8-1)+3) -> 8.3389e-18 | K111: =VLOOKUP($H111,Conc_All!$A$5:$Y$204,3*($C$8-1)+4) -> 2.1799e-17 | L111: =VLOOKUP($H111,Conc_All_SDEIS!$A$5:$Y$204,3*($C$8-1)+2) -> 2.6698e-18 | M111: =VLOOKUP($H111,Conc_All_SDEIS!$A$5:$Y$204,3*($C$8-1)+3) -> 6.2032e-18 | N111: =VLOOKUP($H111,Conc_All_SDEIS!$A$5:$Y$204,3*($C$8-1)+4) -> 1.2549e-17 | P111: 7.083333333 | Q111: =VLOOKUP($P111,Conc_All!$AA$5:$AY$305,3*($C$8-1)+2) -> 76123 | R111: =VLOOKUP($P111,Conc_All!$AA$5:$AY$305,3*($C$8-1)+3) -> 120870 | S111: =VLOOKUP($P111,Conc_All!$AA$5:$AY$305,3*($C$8-1)+4) -> 190770 | T111: =VLOOKUP($P111,Conc_All_SDEIS!$AA$5:$AY$305,3*($C$8-1)+2) -> 165070 | U111: =VLOOKUP($P111,Conc_All_SDEIS!$AA$5:$AY$305,3*($C$8-1)+3) -> 292210 | V111: =VLOOKUP($P111,Conc_All_SDEIS!$AA$5:$AY$305,3*($C$8-1)+4) -> 494730
H112: 86 | I112: =VLOOKUP($H112,Conc_All!$A$5:$Y$204,3*($C$8-1)+2) -> 2.4572e-18 | J112: =VLOOKUP($H112,Conc_All!$A$5:$Y$204,3*($C$8-1)+3) -> 8.3389e-18 | K112: =VLOOKUP($H112,Conc_All!$A$5:$Y$204,3*($C$8-1)+4) -> 2.1799e-17 | L112: =VLOOKUP($H112,Conc_All_SDEIS!$A$5:$Y$204,3*($C$8-1)+2) -> 2.6698e-18 | M112: =VLOOKUP($H112,Conc_All_SDEIS!$A$5:$Y$204,3*($C$8-1)+3) -> 6.2032e-18 | N112: =VLOOKUP($H112,Conc_All_SDEIS!$A$5:$Y$204,3*($C$8-1)+4) -> 1.2549e-17 | P112: 7.166666667 | Q112: =VLOOKUP($P112,Conc_All!$AA$5:$AY$305,3*($C$8-1)+2) -> 73084 | R112: =VLOOKUP($P112,Conc_All!$AA$5:$AY$305,3*($C$8-1)+3) -> 116830 | S112: =VLOOKUP($P112,Conc_All!$AA$5:$AY$305,3*($C$8-1)+4) -> 185550 | T112: =VLOOKUP($P112,Conc_All_SDEIS!$AA$5:$AY$305,3*($C$8-1)+2) -> 156470 | U112: =VLOOKUP($P112,Conc_All_SDEIS!$AA$5:$AY$305,3*($C$8-1)+3) -> 278450 | V112: =VLOOKUP($P112,Conc_All_SDEIS!$AA$5:$AY$305,3*($C$8-1)+4) -> 477660
H113: 87 | I113: =VLOOKUP($H113,Conc_All!$A$5:$Y$204,3*($C$8-1)+2) -> 2.4572e-18 | J113: =VLOOKUP($H113,Conc_All!$A$5:$Y$204,3*($C$8-1)+3) -> 8.3389e-18 | K113: =VLOOKUP($H113,Conc_All!$A$5:$Y$204,3*($C$8-1)+4) -> 2.1799e-17 | L113: =VLOOKUP($H113,Conc_All_SDEIS!$A$5:$Y$204,3*($C$8-1)+2) -> 2.6698e-18 | M113: =VLOOKUP($H113,Conc_All_SDEIS!$A$5:$Y$204,3*($C$8-1)+3) -> 6.2032e-18 | N113: =VLOOKUP($H113,Conc_All_SDEIS!$A$5:$Y$204,3*($C$8-1)+4) -> 1.2549e-17 | P113: 7.25 | Q113: =VLOOKUP($P113,Conc_All!$AA$5:$AY$305,3*($C$8-1)+2) -> 77508 | R113: =VLOOKUP($P113,Conc_All!$AA$5:$AY$305,3*($C$8-1)+3) -> 122900 | S113: =VLOOKUP($P113,Conc_All!$AA$5:$AY$305,3*($C$8-1)+4) -> 192140 | T113: =VLOOKUP($P113,Conc_All_SDEIS!$AA$5:$AY$305,3*($C$8-1)+2) -> 166200 | U113: =VLOOKUP($P113,Conc_All_SDEIS!$AA$5:$AY$305,3*($C$8-1)+3) -> 293300 | V113: =VLOOKUP($P113,Conc_All_SDEIS!$AA$5:$AY$305,3*($C$8-1)+4) -> 494700
H114: 88 | I114: =VLOOKUP($H114,Conc_All!$A$5:$Y$204,3*($C$8-1)+2) -> 2.4572e-18 | J114: =VLOOKUP($H114,Conc_All!$A$5:$Y$204,3*($C$8-1)+3) -> 8.3389e-18 | K114: =VLOOKUP($H114,Conc_All!$A$5:$Y$204,3*($C$8-1)+4) -> 2.1799e-17 | L114: =VLOOKUP($H114,Conc_All_SDEIS!$A$5:$Y$204,3*($C$8-1)+2) -> 2.6698e-18 | M114: =VLOOKUP($H114,Conc_All_SDEIS!$A$5:$Y$204,3*($C$8-1)+3) -> 6.2032e-18 | N114: =VLOOKUP($H114,Conc_All_SDEIS!$A$5:$Y$204,3*($C$8-1)+4) -> 1.2549e-17 | P114: 7.333333333 | Q114: =VLOOKUP($P114,Conc_All!$AA$5:$AY$305,3*($C$8-1)+2) -> 58424 | R114: =VLOOKUP($P114,Conc_All!$AA$5:$AY$305,3*($C$8-1)+3) -> 85349 | S114: =VLOOKUP($P114,Conc_All!$AA$5:$AY$305,3*($C$8-1)+4) -> 122570 | T114: =VLOOKUP($P114,Conc_All_SDEIS!$AA$5:$AY$305,3*($C$8-1)+2) -> 72535 | U114: =VLOOKUP($P114,Conc_All_SDEIS!$AA$5:$AY$305,3*($C$8-1)+3) -> 113550 | V114: =VLOOKUP($P114,Conc_All_SDEIS!$AA$5:$AY$305,3*($C$8-1)+4) -> 166580
H115: 89 | I115: =VLOOKUP($H115,Conc_All!$A$5:$Y$204,3*($C$8-1)+2) -> 2.4572e-18 | J115: =VLOOKUP($H115,Conc_All!$A$5:$Y$204,3*($C$8-1)+3) -> 8.3389e-18 | K115: =VLOOKUP($H115,Conc_All!$A$5:$Y$204,3*($C$8-1)+4) -> 2.1799e-17 | L115: =VLOOKUP($H115,Conc_All_SDEIS!$A$5:$Y$204,3*($C$8-1)+2) -> 2.6698e-18 | M115: =VLOOKUP($H115,Conc_All_SDEIS!$A$5:$Y$204,3*($C$8-1)+3) -> 6.2032e-18 | N115: =VLOOKUP($H115,Conc_All_SDEIS!$A$5:$Y$204,3*($C$8-1)+4) -> 1.2549e-17 | P115: 7.416666667 | Q115: =VLOOKUP($P115,Conc_All!$AA$5:$AY$305,3*($C$8-1)+2) -> 82907 | R115: =VLOOKUP($P115,Conc_All!$AA$5:$AY$305,3*($C$8-1)+3) -> 132980 | S115: =VLOOKUP($P115,Conc_All!$AA$5:$AY$305,3*($C$8-1)+4) -> 190570 | T115: =VLOOKUP($P115,Conc_All_SDEIS!$AA$5:$AY$305,3*($C$8-1)+2) -> 121850 | U115: =VLOOKUP($P115,Conc_All_SDEIS!$AA$5:$AY$305,3*($C$8-1)+3) -> 218990 | V115: =VLOOKUP($P115,Conc_All_SDEIS!$AA$5:$AY$305,3*($C$8-1)+4) -> 320950
H116: 90 | I116: =VLOOKUP($H116,Conc_All!$A$5:$Y$204,3*($C$8-1)+2) -> 2.4572e-18 | J116: =VLOOKUP($H116,Conc_All!$A$5:$Y$204,3*($C$8-1)+3) -> 8.3389e-18 | K116: =VLOOKUP($H116,Conc_All!$A$5:$Y$204,3*($C$8-1)+4) -> 2.1799e-17 | L116: =VLOOKUP($H116,Conc_All_SDEIS!$A$5:$Y$204,3*($C$8-1)+2) -> 2.6698e-18 | M116: =VLOOKUP($H116,Conc_All_SDEIS!$A$5:$Y$204,3*($C$8-1)+3) -> 6.2032e-18 | N116: =VLOOKUP($H116,Conc_All_SDEIS!$A$5:$Y$204,3*($C$8-1)+4) -> 1.2549e-17 | P116: 7.5 | Q116: =VLOOKUP($P116,Conc_All!$AA$5:$AY$305,3*($C$8-1)+2) -> 70261 | R116: =VLOOKUP($P116,Conc_All!$AA$5:$AY$305,3*($C$8-1)+3) -> 131090 | S116: =VLOOKUP($P116,Conc_All!$AA$5:$AY$305,3*($C$8-1)+4) -> 188950 | T116: =VLOOKUP($P116,Conc_All_SDEIS!$AA$5:$AY$305,3*($C$8-1)+2) -> 96292 | U116: =VLOOKUP($P116,Conc_All_SDEIS!$AA$5:$AY$305,3*($C$8-1)+3) -> 209790 | V116: =VLOOKUP($P116,Conc_All_SDEIS!$AA$5:$AY$305,3*($C$8-1)+4) -> 305530
H117: 91 | I117: =VLOOKUP($H117,Conc_All!$A$5:$Y$204,3*($C$8-1)+2) -> 2.4572e-18 | J117: =VLOOKUP($H117,Conc_All!$A$5:$Y$204,3*($C$8-1)+3) -> 8.3389e-18 | K117: =VLOOKUP($H117,Conc_All!$A$5:$Y$204,3*($C$8-1)+4) -> 2.1799e-17 | L117: =VLOOKUP($H117,Conc_All_SDEIS!$A$5:$Y$204,3*($C$8-1)+2) -> 2.6698e-18 | M117: =VLOOKUP($H117,Conc_All_SDEIS!$A$5:$Y$204,3*($C$8-1)+3) -> 6.2032e-18 | N117: =VLOOKUP($H117,Conc_All_SDEIS!$A$5:$Y$204,3*($C$8-1)+4) -> 1.2549e-17 | P117: 7.583333333 | Q117: =VLOOKUP($P117,Conc_All!$AA$5:$AY$305,3*($C$8-1)+2) -> 68540 | R117: =VLOOKUP($P117,Conc_All!$AA$5:$AY$305,3*($C$8-1)+3) -> 122380 | S117: =VLOOKUP($P117,Conc_All!$AA$5:$AY$305,3*($C$8-1)+4) -> 176260 | T117: =VLOOKUP($P117,Conc_All_SDEIS!$AA$5:$AY$305,3*($C$8-1)+2) -> 91973 | U117: =VLOOKUP($P117,Conc_All_SDEIS!$AA$5:$AY$305,3*($C$8-1)+3) -> 194260 | V117: =VLOOKUP($P117,Conc_All_SDEIS!$AA$5:$AY$305,3*($C$8-1)+4) -> 290190
H118: 92 | I118: =VLOOKUP($H118,Conc_All!$A$5:$Y$204,3*($C$8-1)+2) -> 2.4572e-18 | J118: =VLOOKUP($H118,Conc_All!$A$5:$Y$204,3*($C$8-1)+3) -> 8.3389e-18 | K118: =VLOOKUP($H118,Conc_All!$A$5:$Y$204,3*($C$8-1)+4) -> 2.1799e-17 | L118: =VLOOKUP($H118,Conc_All_SDEIS!$A$5:$Y$204,3*($C$8-1)+2) -> 2.6698e-18 | M118: =VLOOKUP($H118,Conc_All_SDEIS!$A$5:$Y$204,3*($C$8-1)+3) -> 6.2032e-18 | N118: =VLOOKUP($H118,Conc_All_SDEIS!$A$5:$Y$204,3*($C$8-1)+4) -> 1.2549e-17 | P118: 7.666666667 | Q118: =VLOOKUP($P118,Conc_All!$AA$5:$AY$305,3*($C$8-1)+2) -> 68156 | R118: =VLOOKUP($P118,Conc_All!$AA$5:$AY$305,3*($C$8-1)+3) -> 117040 | S118: =VLOOKUP($P118,Conc_All!$AA$5:$AY$305,3*($C$8-1)+4) -> 174900 | T118: =VLOOKUP($P118,Conc_All_SDEIS!$AA$5:$AY$305,3*($C$8-1)+2) -> 91817 | U118: =VLOOKUP($P118,Conc_All_SDEIS!$AA$5:$AY$305,3*($C$8-1)+3) -> 185070 | V118: =VLOOKUP($P118,Conc_All_SDEIS!$AA$5:$AY$305,3*($C$8-1)+4) -> 282840
H119: 93 | I119: =VLOOKUP($H119,Conc_All!$A$5:$Y$204,3*($C$8-1)+2) -> 2.4572e-18 | J119: =VLOOKUP($H119,Conc_All!$A$5:$Y$204,3*($C$8-1)+3) -> 8.3389e-18 | K119: =VLOOKUP($H119,Conc_All!$A$5:$Y$204,3*($C$8-1)+4) -> 2.1799e-17 | L119: =VLOOKUP($H119,Conc_All_SDEIS!$A$5:$Y$204,3*($C$8-1)+2) -> 2.6698e-18 | M119: =VLOOKUP($H119,Conc_All_SDEIS!$A$5:$Y$204,3*($C$8-1)+3) -> 6.2032e-18 | N119: =VLOOKUP($H119,Conc_All_SDEIS!$A$5:$Y$204,3*($C$8-1)+4) -> 1.2549e-17 | P119: 7.75 | Q119: =VLOOKUP($P119,Conc_All!$AA$5:$AY$305,3*($C$8-1)+2) -> 68163 | R119: =VLOOKUP($P119,Conc_All!$AA$5:$AY$305,3*($C$8-1)+3) -> 115350 | S119: =VLOOKUP($P119,Conc_All!$AA$5:$AY$305,3*($C$8-1)+4) -> 171360 | T119: =VLOOKUP($P119,Conc_All_SDEIS!$AA$5:$AY$305,3*($C$8-1)+2) -> 92739 | U119: =VLOOKUP($P119,Conc_All_SDEIS!$AA$5:$AY$305,3*($C$8-1)+3) -> 183260 | V119: =VLOOKUP($P119,Conc_All_SDEIS!$AA$5:$AY$305,3*($C$8-1)+4) -> 282210
H120: 94 | I120: =VLOOKUP($H120,Conc_All!$A$5:$Y$204,3*($C$8-1)+2) -> 2.4572e-18 | J120: =VLOOKUP($H120,Conc_All!$A$5:$Y$204,3*($C$8-1)+3) -> 8.3389e-18 | K120: =VLOOKUP($H120,Conc_All!$A$5:$Y$204,3*($C$8-1)+4) -> 2.1799e-17 | L120: =VLOOKUP($H120,Conc_All_SDEIS!$A$5:$Y$204,3*($C$8-1)+2) -> 2.6698e-18 | M120: =VLOOKUP($H120,Conc_All_SDEIS!$A$5:$Y$204,3*($C$8-1)+3) -> 6.2032e-18 | N120: =VLOOKUP($H120,Conc_All_SDEIS!$A$5:$Y$204,3*($C$8-1)+4) -> 1.2549e-17 | P120: 7.833333333 | Q120: =VLOOKUP($P120,Conc_All!$AA$5:$AY$305,3*($C$8-1)+2) -> 73029 | R120: =VLOOKUP($P120,Conc_All!$AA$5:$AY$305,3*($C$8-1)+3) -> 116420 | S120: =VLOOKUP($P120,Conc_All!$AA$5:$AY$305,3*($C$8-1)+4) -> 172130 | T120: =VLOOKUP($P120,Conc_All_SDEIS!$AA$5:$AY$305,3*($C$8-1)+2) -> 109520 | U120: =VLOOKUP($P120,Conc_All_SDEIS!$AA$5:$AY$305,3*($C$8-1)+3) -> 193530 | V120: =VLOOKUP($P120,Conc_All_SDEIS!$AA$5:$AY$305,3*($C$8-1)+4) -> 291450
H121: 95 | I121: =VLOOKUP($H121,Conc_All!$A$5:$Y$204,3*($C$8-1)+2) -> 2.4572e-18 | J121: =VLOOKUP($H121,Conc_All!$A$5:$Y$204,3*($C$8-1)+3) -> 8.3389e-18 | K121: =VLOOKUP($H121,Conc_All!$A$5:$Y$204,3*($C$8-1)+4) -> 2.1799e-17 | L121: =VLOOKUP($H121,Conc_All_SDEIS!$A$5:$Y$204,3*($C$8-1)+2) -> 2.6698e-18 | M121: =VLOOKUP($H121,Conc_All_SDEIS!$A$5:$Y$204,3*($C$8-1)+3) -> 6.2032e-18 | N121: =VLOOKUP($H121,Conc_All_SDEIS!$A$5:$Y$204,3*($C$8-1)+4) -> 1.2549e-17 | P121: 7.916666667 | Q121: =VLOOKUP($P121,Conc_All!$AA$5:$AY$305,3*($C$8-1)+2) -> 83544 | R121: =VLOOKUP($P121,Conc_All!$AA$5:$AY$305,3*($C$8-1)+3) -> 131230 | S121: =VLOOKUP($P121,Conc_All!$AA$5:$AY$305,3*($C$8-1)+4) -> 202340 | T121: =VLOOKUP($P121,Conc_All_SDEIS!$AA$5:$AY$305,3*($C$8-1)+2) -> 179410 | U121: =VLOOKUP($P121,Conc_All_SDEIS!$AA$5:$AY$305,3*($C$8-1)+3) -> 307730 | V121: =VLOOKUP($P121,Conc_All_SDEIS!$AA$5:$AY$305,3*($C$8-1)+4) -> 490490
H122: 96 | I122: =VLOOKUP($H122,Conc_All!$A$5:$Y$204,3*($C$8-1)+2) -> 2.4572e-18 | J122: =VLOOKUP($H122,Conc_All!$A$5:$Y$204,3*($C$8-1)+3) -> 8.3389e-18 | K122: =VLOOKUP($H122,Conc_All!$A$5:$Y$204,3*($C$8-1)+4) -> 2.1799e-17 | L122: =VLOOKUP($H122,Conc_All_SDEIS!$A$5:$Y$204,3*($C$8-1)+2) -> 2.6698e-18 | M122: =VLOOKUP($H122,Conc_All_SDEIS!$A$5:$Y$204,3*($C$8-1)+3) -> 6.2032e-18 | N122: =VLOOKUP($H122,Conc_All_SDEIS!$A$5:$Y$204,3*($C$8-1)+4) -> 1.2549e-17 | P122: 8 | Q122: =VLOOKUP($P122,Conc_All!$AA$5:$AY$305,3*($C$8-1)+2) -> 76164 | R122: =VLOOKUP($P122,Conc_All!$AA$5:$AY$305,3*($C$8-1)+3) -> 119200 | S122: =VLOOKUP($P122,Conc_All!$AA$5:$AY$305,3*($C$8-1)+4) -> 184340 | T122: =VLOOKUP($P122,Conc_All_SDEIS!$AA$5:$AY$305,3*($C$8-1)+2) -> 150570 | U122: =VLOOKUP($P122,Conc_All_SDEIS!$AA$5:$AY$305,3*($C$8-1)+3) -> 270630 | V122: =VLOOKUP($P122,Conc_All_SDEIS!$AA$5:$AY$305,3*($C$8-1)+4) -> 458190
H123: 97 | I123: =VLOOKUP($H123,Conc_All!$A$5:$Y$204,3*($C$8-1)+2) -> 2.4572e-18 | J123: =VLOOKUP($H123,Conc_All!$A$5:$Y$204,3*($C$8-1)+3) -> 8.3389e-18 | K123: =VLOOKUP($H123,Conc_All!$A$5:$Y$204,3*($C$8-1)+4) -> 2.1799e-17 | L123: =VLOOKUP($H123,Conc_All_SDEIS!$A$5:$Y$204,3*($C$8-1)+2) -> 2.6698e-18 | M123: =VLOOKUP($H123,Conc_All_SDEIS!$A$5:$Y$204,3*($C$8-1)+3) -> 6.2032e-18 | N123: =VLOOKUP($H123,Conc_All_SDEIS!$A$5:$Y$204,3*($C$8-1)+4) -> 1.2549e-17 | P123: 8.083333333 | Q123: =VLOOKUP($P123,Conc_All!$AA$5:$AY$305,3*($C$8-1)+2) -> 72528 | R123: =VLOOKUP($P123,Conc_All!$AA$5:$AY$305,3*($C$8-1)+3) -> 114380 | S123: =VLOOKUP($P123,Conc_All!$AA$5:$AY$305,3*($C$8-1)+4) -> 178620 | T123: =VLOOKUP($P123,Conc_All_SDEIS!$AA$5:$AY$305,3*($C$8-1)+2) -> 143100 | U123: =VLOOKUP($P123,Conc_All_SDEIS!$AA$5:$AY$305,3*($C$8-1)+3) -> 255590 | V123: =VLOOKUP($P123,Conc_All_SDEIS!$AA$5:$AY$305,3*($C$8-1)+4) -> 447190
H124: 98 | I124: =VLOOKUP($H124,Conc_All!$A$5:$Y$204,3*($C$8-1)+2) -> 2.4572e-18 | J124: =VLOOKUP($H124,Conc_All!$A$5:$Y$204,3*($C$8-1)+3) -> 8.3389e-18 | K124: =VLOOKUP($H124,Conc_All!$A$5:$Y$204,3*($C$8-1)+4) -> 2.1799e-17 | L124: =VLOOKUP($H124,Conc_All_SDEIS!$A$5:$Y$204,3*($C$8-1)+2) -> 2.6698e-18 | M124: =VLOOKUP($H124,Conc_All_SDEIS!$A$5:$Y$204,3*($C$8-1)+3) -> 6.2032e-18 | N124: =VLOOKUP($H124,Conc_All_SDEIS!$A$5:$Y$204,3*($C$8-1)+4) -> 1.2549e-17 | P124: 8.166666667 | Q124: =VLOOKUP($P124,Conc_All!$AA$5:$AY$305,3*($C$8-1)+2) -> 67756 | R124: =VLOOKUP($P124,Conc_All!$AA$5:$AY$305,3*($C$8-1)+3) -> 107530 | S124: =VLOOKUP($P124,Conc_All!$AA$5:$AY$305,3*($C$8-1)+4) -> 167970 | T124: =VLOOKUP($P124,Conc_All_SDEIS!$AA$5:$AY$305,3*($C$8-1)+2) -> 133980 | U124: =VLOOKUP($P124,Conc_All_SDEIS!$AA$5:$AY$305,3*($C$8-1)+3) -> 238610 | V124: =VLOOKUP($P124,Conc_All_SDEIS!$AA$5:$AY$305,3*($C$8-1)+4) -> 421960
H125: 99 | I125: =VLOOKUP($H125,Conc_All!$A$5:$Y$204,3*($C$8-1)+2) -> 2.4572e-18 | J125: =VLOOKUP($H125,Conc_All!$A$5:$Y$204,3*($C$8-1)+3) -> 8.3389e-18 | K125: =VLOOKUP($H125,Conc_All!$A$5:$Y$204,3*($C$8-1)+4) -> 2.1799e-17 | L125: =VLOOKUP($H125,Conc_All_SDEIS!$A$5:$Y$204,3*($C$8-1)+2) -> 2.6698e-18 | M125: =VLOOKUP($H125,Conc_All_SDEIS!$A$5:$Y$204,3*($C$8-1)+3) -> 6.2032e-18 | N125: =VLOOKUP($H125,Conc_All_SDEIS!$A$5:$Y$204,3*($C$8-1)+4) -> 1.2549e-17 | P125: 8.25 | Q125: =VLOOKUP($P125,Conc_All!$AA$5:$AY$305,3*($C$8-1)+2) -> 71156 | R125: =VLOOKUP($P125,Conc_All!$AA$5:$AY$305,3*($C$8-1)+3) -> 111520 | S125: =VLOOKUP($P125,Conc_All!$AA$5:$AY$305,3*($C$8-1)+4) -> 170270 | T125: =VLOOKUP($P125,Conc_All_SDEIS!$AA$5:$AY$305,3*($C$8-1)+2) -> 139160 | U125: =VLOOKUP($P125,Conc_All_SDEIS!$AA$5:$AY$305,3*($C$8-1)+3) -> 247770 | V125: =VLOOKUP($P125,Conc_All_SDEIS!$AA$5:$AY$305,3*($C$8-1)+4) -> 428980
H126: 100 | I126: =VLOOKUP($H126,Conc_All!$A$5:$Y$204,3*($C$8-1)+2) -> 2.4572e-18 | J126: =VLOOKUP($H126,Conc_All!$A$5:$Y$204,3*($C$8-1)+3) -> 8.3389e-18 | K126: =VLOOKUP($H126,Conc_All!$A$5:$Y$204,3*($C$8-1)+4) -> 2.1799e-17 | L126: =VLOOKUP($H126,Conc_All_SDEIS!$A$5:$Y$204,3*($C$8-1)+2) -> 2.6698e-18 | M126: =VLOOKUP($H126,Conc_All_SDEIS!$A$5:$Y$204,3*($C$8-1)+3) -> 6.2032e-18 | N126: =VLOOKUP($H126,Conc_All_SDEIS!$A$5:$Y$204,3*($C$8-1)+4) -> 1.2549e-17 | P126: 8.333333333 | Q126: =VLOOKUP($P126,Conc_All!$AA$5:$AY$305,3*($C$8-1)+2) -> 55544 | R126: =VLOOKUP($P126,Conc_All!$AA$5:$AY$305,3*($C$8-1)+3) -> 82387 | S126: =VLOOKUP($P126,Conc_All!$AA$5:$AY$305,3*($C$8-1)+4) -> 116920 | T126: =VLOOKUP($P126,Conc_All_SDEIS!$AA$5:$AY$305,3*($C$8-1)+2) -> 68114 | U126: =VLOOKUP($P126,Conc_All_SDEIS!$AA$5:$AY$305,3*($C$8-1)+3) -> 108180 | V126: =VLOOKUP($P126,Conc_All_SDEIS!$AA$5:$AY$305,3*($C$8-1)+4) -> 159850
H127: 101 | I127: =VLOOKUP($H127,Conc_All!$A$5:$Y$204,3*($C$8-1)+2) -> 2.4572e-18 | J127: =VLOOKUP($H127,Conc_All!$A$5:$Y$204,3*($C$8-1)+3) -> 8.3389e-18 | K127: =VLOOKUP($H127,Conc_All!$A$5:$Y$204,3*($C$8-1)+4) -> 2.1799e-17 | L127: =VLOOKUP($H127,Conc_All_SDEIS!$A$5:$Y$204,3*($C$8-1)+2) -> 2.6698e-18 | M127: =VLOOKUP($H127,Conc_All_SDEIS!$A$5:$Y$204,3*($C$8-1)+3) -> 6.2032e-18 | N127: =VLOOKUP($H127,Conc_All_SDEIS!$A$5:$Y$204,3*($C$8-1)+4) -> 1.2549e-17 | P127: 8.416666667 | Q127: =VLOOKUP($P127,Conc_All!$AA$5:$AY$305,3*($C$8-1)+2) -> 71629 | R127: =VLOOKUP($P127,Conc_All!$AA$5:$AY$305,3*($C$8-1)+3) -> 120250 | S127: =VLOOKUP($P127,Conc_All!$AA$5:$AY$305,3*($C$8-1)+4) -> 173120 | T127: =VLOOKUP($P127,Conc_All_SDEIS!$AA$5:$AY$305,3*($C$8-1)+2) -> 111230 | U127: =VLOOKUP($P127,Conc_All_SDEIS!$AA$5:$AY$305,3*($C$8-1)+3) -> 199700 | V127: =VLOOKUP($P127,Conc_All_SDEIS!$AA$5:$AY$305,3*($C$8-1)+4) -> 289890
H128: 102 | I128: =VLOOKUP($H128,Conc_All!$A$5:$Y$204,3*($C$8-1)+2) -> 2.4572e-18 | J128: =VLOOKUP($H128,Conc_All!$A$5:$Y$204,3*($C$8-1)+3) -> 8.3389e-18 | K128: =VLOOKUP($H128,Conc_All!$A$5:$Y$204,3*($C$8-1)+4) -> 2.1799e-17 | L128: =VLOOKUP($H128,Conc_All_SDEIS!$A$5:$Y$204,3*($C$8-1)+2) -> 2.6698e-18 | M128: =VLOOKUP($H128,Conc_All_SDEIS!$A$5:$Y$204,3*($C$8-1)+3) -> 6.2032e-18 | N128: =VLOOKUP($H128,Conc_All_SDEIS!$A$5:$Y$204,3*($C$8-1)+4) -> 1.2549e-17 | P128: 8.5 | Q128: =VLOOKUP($P128,Conc_All!$AA$5:$AY$305,3*($C$8-1)+2) -> 63690 | R128: =VLOOKUP($P128,Conc_All!$AA$5:$AY$305,3*($C$8-1)+3) -> 116290 | S128: =VLOOKUP($P128,Conc_All!$AA$5:$AY$305,3*($C$8-1)+4) -> 169440 | T128: =VLOOKUP($P128,Conc_All_SDEIS!$AA$5:$AY$305,3*($C$8-1)+2) -> 87026 | U128: =VLOOKUP($P128,Conc_All_SDEIS!$AA$5:$AY$305,3*($C$8-1)+3) -> 187080 | V128: =VLOOKUP($P128,Conc_All_SDEIS!$AA$5:$AY$305,3*($C$8-1)+4) -> 275220
H129: 103 | I129: =VLOOKUP($H129,Conc_All!$A$5:$Y$204,3*($C$8-1)+2) -> 2.4572e-18 | J129: =VLOOKUP($H129,Conc_All!$A$5:$Y$204,3*($C$8-1)+3) -> 8.3389e-18 | K129: =VLOOKUP($H129,Conc_All!$A$5:$Y$204,3*($C$8-1)+4) -> 2.1799e-17 | L129: =VLOOKUP($H129,Conc_All_SDEIS!$A$5:$Y$204,3*($C$8-1)+2) -> 2.6698e-18 | M129: =VLOOKUP($H129,Conc_All_SDEIS!$A$5:$Y$204,3*($C$8-1)+3) -> 6.2032e-18 | N129: =VLOOKUP($H129,Conc_All_SDEIS!$A$5:$Y$204,3*($C$8-1)+4) -> 1.2549e-17 | P129: 8.583333333 | Q129: =VLOOKUP($P129,Conc_All!$AA$5:$AY$305,3*($C$8-1)+2) -> 59924 | R129: =VLOOKUP($P129,Conc_All!$AA$5:$AY$305,3*($C$8-1)+3) -> 108760 | S129: =VLOOKUP($P129,Conc_All!$AA$5:$AY$305,3*($C$8-1)+4) -> 156690 | T129: =VLOOKUP($P129,Conc_All_SDEIS!$AA$5:$AY$305,3*($C$8-1)+2) -> 83358 | U129: =VLOOKUP($P129,Conc_All_SDEIS!$AA$5:$AY$305,3*($C$8-1)+3) -> 176250 | V129: =VLOOKUP($P129,Conc_All_SDEIS!$AA$5:$AY$305,3*($C$8-1)+4) -> 263550
H130: 104 | I130: =VLOOKUP($H130,Conc_All!$A$5:$Y$204,3*($C$8-1)+2) -> 2.4572e-18 | J130: =VLOOKUP($H130,Conc_All!$A$5:$Y$204,3*($C$8-1)+3) -> 8.3389e-18 | K130: =VLOOKUP($H130,Conc_All!$A$5:$Y$204,3*($C$8-1)+4) -> 2.1799e-17 | L130: =VLOOKUP($H130,Conc_All_SDEIS!$A$5:$Y$204,3*($C$8-1)+2) -> 2.6698e-18 | M130: =VLOOKUP($H130,Conc_All_SDEIS!$A$5:$Y$204,3*($C$8-1)+3) -> 6.2032e-18 | N130: =VLOOKUP($H130,Conc_All_SDEIS!$A$5:$Y$204,3*($C$8-1)+4) -> 1.2549e-17 | P130: 8.666666667 | Q130: =VLOOKUP($P130,Conc_All!$AA$5:$AY$305,3*($C$8-1)+2) -> 59379 | R130: =VLOOKUP($P130,Conc_All!$AA$5:$AY$305,3*($C$8-1)+3) -> 101690 | S130: =VLOOKUP($P130,Conc_All!$AA$5:$AY$305,3*($C$8-1)+4) -> 152060 | T130: =VLOOKUP($P130,Conc_All_SDEIS!$AA$5:$AY$305,3*($C$8-1)+2) -> 81800 | U130: =VLOOKUP($P130,Conc_All_SDEIS!$AA$5:$AY$305,3*($C$8-1)+3) -> 166990 | V130: =VLOOKUP($P130,Conc_All_SDEIS!$AA$5:$AY$305,3*($C$8-1)+4) -> 255990
H131: 105 | I131: =VLOOKUP($H131,Conc_All!$A$5:$Y$204,3*($C$8-1)+2) -> 2.4572e-18 | J131: =VLOOKUP($H131,Conc_All!$A$5:$Y$204,3*($C$8-1)+3) -> 8.3389e-18 | K131: =VLOOKUP($H131,Conc_All!$A$5:$Y$204,3*($C$8-1)+4) -> 2.1799e-17 | L131: =VLOOKUP($H131,Conc_All_SDEIS!$A$5:$Y$204,3*($C$8-1)+2) -> 2.6698e-18 | M131: =VLOOKUP($H131,Conc_All_SDEIS!$A$5:$Y$204,3*($C$8-1)+3) -> 6.2032e-18 | N131: =VLOOKUP($H131,Conc_All_SDEIS!$A$5:$Y$204,3*($C$8-1)+4) -> 1.2549e-17 | P131: 8.75 | Q131: =VLOOKUP($P131,Conc_All!$AA$5:$AY$305,3*($C$8-1)+2) -> 59252 | R131: =VLOOKUP($P131,Conc_All!$AA$5:$AY$305,3*($C$8-1)+3) -> 98879 | S131: =VLOOKUP($P131,Conc_All!$AA$5:$AY$305,3*($C$8-1)+4) -> 148310 | T131: =VLOOKUP($P131,Conc_All_SDEIS!$AA$5:$AY$305,3*($C$8-1)+2) -> 82348 | U131: =VLOOKUP($P131,Conc_All_SDEIS!$AA$5:$AY$305,3*($C$8-1)+3) -> 161460 | V131: =VLOOKUP($P131,Conc_All_SDEIS!$AA$5:$AY$305,3*($C$8-1)+4) -> 251570
H132: 106 | I132: =VLOOKUP($H132,Conc_All!$A$5:$Y$204,3*($C$8-1)+2) -> 2.4572e-18 | J132: =VLOOKUP($H132,Conc_All!$A$5:$Y$204,3*($C$8-1)+3) -> 8.3389e-18 | K132: =VLOOKUP($H132,Conc_All!$A$5:$Y$204,3*($C$8-1)+4) -> 2.1799e-17 | L132: =VLOOKUP($H132,Conc_All_SDEIS!$A$5:$Y$204,3*($C$8-1)+2) -> 2.6698e-18 | M132: =VLOOKUP($H132,Conc_All_SDEIS!$A$5:$Y$204,3*($C$8-1)+3) -> 6.2032e-18 | N132: =VLOOKUP($H132,Conc_All_SDEIS!$A$5:$Y$204,3*($C$8-1)+4) -> 1.2549e-17 | P132: 8.833333333 | Q132: =VLOOKUP($P132,Conc_All!$AA$5:$AY$305,3*($C$8-1)+2) -> 61984 | R132: =VLOOKUP($P132,Conc_All!$AA$5:$AY$305,3*($C$8-1)+3) -> 96872 | S132: =VLOOKUP($P132,Conc_All!$AA$5:$AY$305,3*($C$8-1)+4) -> 141090 | T132: =VLOOKUP($P132,Conc_All_SDEIS!$AA$5:$AY$305,3*($C$8-1)+2) -> 92918 | U132: =VLOOKUP($P132,Conc_All_SDEIS!$AA$5:$AY$305,3*($C$8-1)+3) -> 168420 | V132: =VLOOKUP($P132,Conc_All_SDEIS!$AA$5:$AY$305,3*($C$8-1)+4) -> 261130
H133: 107 | I133: =VLOOKUP($H133,Conc_All!$A$5:$Y$204,3*($C$8-1)+2) -> 2.4572e-18 | J133: =VLOOKUP($H133,Conc_All!$A$5:$Y$204,3*($C$8-1)+3) -> 8.3389e-18 | K133: =VLOOKUP($H133,Conc_All!$A$5:$Y$204,3*($C$8-1)+4) -> 2.1799e-17 | L133: =VLOOKUP($H133,Conc_All_SDEIS!$A$5:$Y$204,3*($C$8-1)+2) -> 2.6698e-18 | M133: =VLOOKUP($H133,Conc_All_SDEIS!$A$5:$Y$204,3*($C$8-1)+3) -> 6.2032e-18 | N133: =VLOOKUP($H133,Conc_All_SDEIS!$A$5:$Y$204,3*($C$8-1)+4) -> 1.2549e-17 | P133: 8.916666667 | Q133: =VLOOKUP($P133,Conc_All!$AA$5:$AY$305,3*($C$8-1)+2) -> 67833 | R133: =VLOOKUP($P133,Conc_All!$AA$5:$AY$305,3*($C$8-1)+3) -> 102070 | S133: =VLOOKUP($P133,Conc_All!$AA$5:$AY$305,3*($C$8-1)+4) -> 150870 | T133: =VLOOKUP($P133,Conc_All_SDEIS!$AA$5:$AY$305,3*($C$8-1)+2) -> 133660 | U133: =VLOOKUP($P133,Conc_All_SDEIS!$AA$5:$AY$305,3*($C$8-1)+3) -> 231520 | V133: =VLOOKUP($P133,Conc_All_SDEIS!$AA$5:$AY$305,3*($C$8-1)+4) -> 372820
H134: 108 | I134: =VLOOKUP($H134,Conc_All!$A$5:$Y$204,3*($C$8-1)+2) -> 2.4572e-18 | J134: =VLOOKUP($H134,Conc_All!$A$5:$Y$204,3*($C$8-1)+3) -> 8.3389e-18 | K134: =VLOOKUP($H134,Conc_All!$A$5:$Y$204,3*($C$8-1)+4) -> 2.1799e-17 | L134: =VLOOKUP($H134,Conc_All_SDEIS!$A$5:$Y$204,3*($C$8-1)+2) -> 2.6698e-18 | M134: =VLOOKUP($H134,Conc_All_SDEIS!$A$5:$Y$204,3*($C$8-1)+3) -> 6.2032e-18 | N134: =VLOOKUP($H134,Conc_All_SDEIS!$A$5:$Y$204,3*($C$8-1)+4) -> 1.2549e-17 | P134: 9 | Q134: =VLOOKUP($P134,Conc_All!$AA$5:$AY$305,3*($C$8-1)+2) -> 61270 | R134: =VLOOKUP($P134,Conc_All!$AA$5:$AY$305,3*($C$8-1)+3) -> 90681 | S134: =VLOOKUP($P134,Conc_All!$AA$5:$AY$305,3*($C$8-1)+4) -> 135500 | T134: =VLOOKUP($P134,Conc_All_SDEIS!$AA$5:$AY$305,3*($C$8-1)+2) -> 117790 | U134: =VLOOKUP($P134,Conc_All_SDEIS!$AA$5:$AY$305,3*($C$8-1)+3) -> 200410 | V134: =VLOOKUP($P134,Conc_All_SDEIS!$AA$5:$AY$305,3*($C$8-1)+4) -> 330870
H135: 109 | I135: =VLOOKUP($H135,Conc_All!$A$5:$Y$204,3*($C$8-1)+2) -> 2.4572e-18 | J135: =VLOOKUP($H135,Conc_All!$A$5:$Y$204,3*($C$8-1)+3) -> 8.3389e-18 | K135: =VLOOKUP($H135,Conc_All!$A$5:$Y$204,3*($C$8-1)+4) -> 2.1799e-17 | L135: =VLOOKUP($H135,Conc_All_SDEIS!$A$5:$Y$204,3*($C$8-1)+2) -> 2.6698e-18 | M135: =VLOOKUP($H135,Conc_All_SDEIS!$A$5:$Y$204,3*($C$8-1)+3) -> 6.2032e-18 | N135: =VLOOKUP($H135,Conc_All_SDEIS!$A$5:$Y$204,3*($C$8-1)+4) -> 1.2549e-17 | P135: 9.083333333 | Q135: =VLOOKUP($P135,Conc_All!$AA$5:$AY$305,3*($C$8-1)+2) -> 58420 | R135: =VLOOKUP($P135,Conc_All!$AA$5:$AY$305,3*($C$8-1)+3) -> 86807 | S135: =VLOOKUP($P135,Conc_All!$AA$5:$AY$305,3*($C$8-1)+4) -> 127900 | T135: =VLOOKUP($P135,Conc_All_SDEIS!$AA$5:$AY$305,3*($C$8-1)+2) -> 108960 | U135: =VLOOKUP($P135,Conc_All_SDEIS!$AA$5:$AY$305,3*($C$8-1)+3) -> 191360 | V135: =VLOOKUP($P135,Conc_All_SDEIS!$AA$5:$AY$305,3*($C$8-1)+4) -> 311610
H136: 110 | I136: =VLOOKUP($H136,Conc_All!$A$5:$Y$204,3*($C$8-1)+2) -> 2.4572e-18 | J136: =VLOOKUP($H136,Conc_All!$A$5:$Y$204,3*($C$8-1)+3) -> 8.3389e-18 | K136: =VLOOKUP($H136,Conc_All!$A$5:$Y$204,3*($C$8-1)+4) -> 2.1799e-17 | L136: =VLOOKUP($H136,Conc_All_SDEIS!$A$5:$Y$204,3*($C$8-1)+2) -> 2.6698e-18 | M136: =VLOOKUP($H136,Conc_All_SDEIS!$A$5:$Y$204,3*($C$8-1)+3) -> 6.2032e-18 | N136: =VLOOKUP($H136,Conc_All_SDEIS!$A$5:$Y$204,3*($C$8-1)+4) -> 1.2549e-17 | P136: 9.166666667 | Q136: =VLOOKUP($P136,Conc_All!$AA$5:$AY$305,3*($C$8-1)+2) -> 56682 | R136: =VLOOKUP($P136,Conc_All!$AA$5:$AY$305,3*($C$8-1)+3) -> 84244 | S136: =VLOOKUP($P136,Conc_All!$AA$5:$AY$305,3*($C$8-1)+4) -> 124790 | T136: =VLOOKUP($P136,Conc_All_SDEIS!$AA$5:$AY$305,3*($C$8-1)+2) -> 104490 | U136: =VLOOKUP($P136,Conc_All_SDEIS!$AA$5:$AY$305,3*($C$8-1)+3) -> 183950 | V136: =VLOOKUP($P136,Conc_All_SDEIS!$AA$5:$AY$305,3*($C$8-1)+4) -> 302060
H137: 111 | I137: =VLOOKUP($H137,Conc_All!$A$5:$Y$204,3*($C$8-1)+2) -> 2.4572e-18 | J137: =VLOOKUP($H137,Conc_All!$A$5:$Y$204,3*($C$8-1)+3) -> 8.3389e-18 | K137: =VLOOKUP($H137,Conc_All!$A$5:$Y$204,3*($C$8-1)+4) -> 2.1799e-17 | L137: =VLOOKUP($H137,Conc_All_SDEIS!$A$5:$Y$204,3*($C$8-1)+2) -> 2.6698e-18 | M137: =VLOOKUP($H137,Conc_All_SDEIS!$A$5:$Y$204,3*($C$8-1)+3) -> 6.2032e-18 | N137: =VLOOKUP($H137,Conc_All_SDEIS!$A$5:$Y$204,3*($C$8-1)+4) -> 1.2549e-17 | P137: 9.25 | Q137: =VLOOKUP($P137,Conc_All!$AA$5:$AY$305,3*($C$8-1)+2) -> 60233 | R137: =VLOOKUP($P137,Conc_All!$AA$5:$AY$305,3*($C$8-1)+3) -> 89028 | S137: =VLOOKUP($P137,Conc_All!$AA$5:$AY$305,3*($C$8-1)+4) -> 130270 | T137: =VLOOKUP($P137,Conc_All_SDEIS!$AA$5:$AY$305,3*($C$8-1)+2) -> 112250 | U137: =VLOOKUP($P137,Conc_All_SDEIS!$AA$5:$AY$305,3*($C$8-1)+3) -> 194880 | V137: =VLOOKUP($P137,Conc_All_SDEIS!$AA$5:$AY$305,3*($C$8-1)+4) -> 315490
H138: 112 | I138: =VLOOKUP($H138,Conc_All!$A$5:$Y$204,3*($C$8-1)+2) -> 2.4572e-18 | J138: =VLOOKUP($H138,Conc_All!$A$5:$Y$204,3*($C$8-1)+3) -> 8.3389e-18 | K138: =VLOOKUP($H138,Conc_All!$A$5:$Y$204,3*($C$8-1)+4) -> 2.1799e-17 | L138: =VLOOKUP($H138,Conc_All_SDEIS!$A$5:$Y$204,3*($C$8-1)+2) -> 2.6698e-18 | M138: =VLOOKUP($H138,Conc_All_SDEIS!$A$5:$Y$204,3*($C$8-1)+3) -> 6.2032e-18 | N138: =VLOOKUP($H138,Conc_All_SDEIS!$A$5:$Y$204,3*($C$8-1)+4) -> 1.2549e-17 | P138: 9.333333333 | Q138: =VLOOKUP($P138,Conc_All!$AA$5:$AY$305,3*($C$8-1)+2) -> 51961 | R138: =VLOOKUP($P138,Conc_All!$AA$5:$AY$305,3*($C$8-1)+3) -> 72455 | S138: =VLOOKUP($P138,Conc_All!$AA$5:$AY$305,3*($C$8-1)+4) -> 103950 | T138: =VLOOKUP($P138,Conc_All_SDEIS!$AA$5:$AY$305,3*($C$8-1)+2) -> 65334 | U138: =VLOOKUP($P138,Conc_All_SDEIS!$AA$5:$AY$305,3*($C$8-1)+3) -> 99437 | V138: =VLOOKUP($P138,Conc_All_SDEIS!$AA$5:$AY$305,3*($C$8-1)+4) -> 145010
H139: 113 | I139: =VLOOKUP($H139,Conc_All!$A$5:$Y$204,3*($C$8-1)+2) -> 2.4572e-18 | J139: =VLOOKUP($H139,Conc_All!$A$5:$Y$204,3*($C$8-1)+3) -> 8.3389e-18 | K139: =VLOOKUP($H139,Conc_All!$A$5:$Y$204,3*($C$8-1)+4) -> 2.1799e-17 | L139: =VLOOKUP($H139,Conc_All_SDEIS!$A$5:$Y$204,3*($C$8-1)+2) -> 2.6698e-18 | M139: =VLOOKUP($H139,Conc_All_SDEIS!$A$5:$Y$204,3*($C$8-1)+3) -> 6.2032e-18 | N139: =VLOOKUP($H139,Conc_All_SDEIS!$A$5:$Y$204,3*($C$8-1)+4) -> 1.2549e-17 | P139: 9.416666667 | Q139: =VLOOKUP($P139,Conc_All!$AA$5:$AY$305,3*($C$8-1)+2) -> 67292 | R139: =VLOOKUP($P139,Conc_All!$AA$5:$AY$305,3*($C$8-1)+3) -> 104960 | S139: =VLOOKUP($P139,Conc_All!$AA$5:$AY$305,3*($C$8-1)+4) -> 150680 | T139: =VLOOKUP($P139,Conc_All_SDEIS!$AA$5:$AY$305,3*($C$8-1)+2) -> 99541 | U139: =VLOOKUP($P139,Conc_All_SDEIS!$AA$5:$AY$305,3*($C$8-1)+3) -> 175960 | V139: =VLOOKUP($P139,Conc_All_SDEIS!$AA$5:$AY$305,3*($C$8-1)+4) -> 259370
H140: 114 | I140: =VLOOKUP($H140,Conc_All!$A$5:$Y$204,3*($C$8-1)+2) -> 2.4572e-18 | J140: =VLOOKUP($H140,Conc_All!$A$5:$Y$204,3*($C$8-1)+3) -> 8.3389e-18 | K140: =VLOOKUP($H140,Conc_All!$A$5:$Y$204,3*($C$8-1)+4) -> 2.1799e-17 | L140: =VLOOKUP($H140,Conc_All_SDEIS!$A$5:$Y$204,3*($C$8-1)+2) -> 2.6698e-18 | M140: =VLOOKUP($H140,Conc_All_SDEIS!$A$5:$Y$204,3*($C$8-1)+3) -> 6.2032e-18 | N140: =VLOOKUP($H140,Conc_All_SDEIS!$A$5:$Y$204,3*($C$8-1)+4) -> 1.2549e-17 | P140: 9.5 | Q140: =VLOOKUP($P140,Conc_All!$AA$5:$AY$305,3*($C$8-1)+2) -> 60050 | R140: =VLOOKUP($P140,Conc_All!$AA$5:$AY$305,3*($C$8-1)+3) -> 103480 | S140: =VLOOKUP($P140,Conc_All!$AA$5:$AY$305,3*($C$8-1)+4) -> 150050 | T140: =VLOOKUP($P140,Conc_All_SDEIS!$AA$5:$AY$305,3*($C$8-1)+2) -> 84163 | U140: =VLOOKUP($P140,Conc_All_SDEIS!$AA$5:$AY$305,3*($C$8-1)+3) -> 172250 | V140: =VLOOKUP($P140,Conc_All_SDEIS!$AA$5:$AY$305,3*($C$8-1)+4) -> 248830
H141: 115 | I141: =VLOOKUP($H141,Conc_All!$A$5:$Y$204,3*($C$8-1)+2) -> 2.4572e-18 | J141: =VLOOKUP($H141,Conc_All!$A$5:$Y$204,3*($C$8-1)+3) -> 8.3389e-18 | K141: =VLOOKUP($H141,Conc_All!$A$5:$Y$204,3*($C$8-1)+4) -> 2.1799e-17 | L141: =VLOOKUP($H141,Conc_All_SDEIS!$A$5:$Y$204,3*($C$8-1)+2) -> 2.6698e-18 | M141: =VLOOKUP($H141,Conc_All_SDEIS!$A$5:$Y$204,3*($C$8-1)+3) -> 6.2032e-18 | N141: =VLOOKUP($H141,Conc_All_SDEIS!$A$5:$Y$204,3*($C$8-1)+4) -> 1.2549e-17 | P141: 9.583333333 | Q141: =VLOOKUP($P141,Conc_All!$AA$5:$AY$305,3*($C$8-1)+2) -> 58722 | R141: =VLOOKUP($P141,Conc_All!$AA$5:$AY$305,3*($C$8-1)+3) -> 97437 | S141: =VLOOKUP($P141,Conc_All!$AA$5:$AY$305,3*($C$8-1)+4) -> 144620 | T141: =VLOOKUP($P141,Conc_All_SDEIS!$AA$5:$AY$305,3*($C$8-1)+2) -> 81076 | U141: =VLOOKUP($P141,Conc_All_SDEIS!$AA$5:$AY$305,3*($C$8-1)+3) -> 159840 | V141: =VLOOKUP($P141,Conc_All_SDEIS!$AA$5:$AY$305,3*($C$8-1)+4) -> 245490
H142: 116 | I142: =VLOOKUP($H142,Conc_All!$A$5:$Y$204,3*($C$8-1)+2) -> 2.4572e-18 | J142: =VLOOKUP($H142,Conc_All!$A$5:$Y$204,3*($C$8-1)+3) -> 8.3389e-18 | K142: =VLOOKUP($H142,Conc_All!$A$5:$Y$204,3*($C$8-1)+4) -> 2.1799e-17 | L142: =VLOOKUP($H142,Conc_All_SDEIS!$A$5:$Y$204,3*($C$8-1)+2) -> 2.6698e-18 | M142: =VLOOKUP($H142,Conc_All_SDEIS!$A$5:$Y$204,3*($C$8-1)+3) -> 6.2032e-18 | N142: =VLOOKUP($H142,Conc_All_SDEIS!$A$5:$Y$204,3*($C$8-1)+4) -> 1.2549e-17 | P142: 9.666666667 | Q142: =VLOOKUP($P142,Conc_All!$AA$5:$AY$305,3*($C$8-1)+2) -> 57772 | R142: =VLOOKUP($P142,Conc_All!$AA$5:$AY$305,3*($C$8-1)+3) -> 94027 | S142: =VLOOKUP($P142,Conc_All!$AA$5:$AY$305,3*($C$8-1)+4) -> 138780 | T142: =VLOOKUP($P142,Conc_All_SDEIS!$AA$5:$AY$305,3*($C$8-1)+2) -> 80474 | U142: =VLOOKUP($P142,Conc_All_SDEIS!$AA$5:$AY$305,3*($C$8-1)+3) -> 154710 | V142: =VLOOKUP($P142,Conc_All_SDEIS!$AA$5:$AY$305,3*($C$8-1)+4) -> 241230
H143: 117 | I143: =VLOOKUP($H143,Conc_All!$A$5:$Y$204,3*($C$8-1)+2) -> 2.4572e-18 | J143: =VLOOKUP($H143,Conc_All!$A$5:$Y$204,3*($C$8-1)+3) -> 8.3389e-18 | K143: =VLOOKUP($H143,Conc_All!$A$5:$Y$204,3*($C$8-1)+4) -> 2.1799e-17 | L143: =VLOOKUP($H143,Conc_All_SDEIS!$A$5:$Y$204,3*($C$8-1)+2) -> 2.6698e-18 | M143: =VLOOKUP($H143,Conc_All_SDEIS!$A$5:$Y$204,3*($C$8-1)+3) -> 6.2032e-18 | N143: =VLOOKUP($H143,Conc_All_SDEIS!$A$5:$Y$204,3*($C$8-1)+4) -> 1.2549e-17 | P143: 9.75 | Q143: =VLOOKUP($P143,Conc_All!$AA$5:$AY$305,3*($C$8-1)+2) -> 58153 | R143: =VLOOKUP($P143,Conc_All!$AA$5:$AY$305,3*($C$8-1)+3) -> 92708 | S143: =VLOOKUP($P143,Conc_All!$AA$5:$AY$305,3*($C$8-1)+4) -> 135320 | T143: =VLOOKUP($P143,Conc_All_SDEIS!$AA$5:$AY$305,3*($C$8-1)+2) -> 81448 | U143: =VLOOKUP($P143,Conc_All_SDEIS!$AA$5:$AY$305,3*($C$8-1)+3) -> 153960 | V143: =VLOOKUP($P143,Conc_All_SDEIS!$AA$5:$AY$305,3*($C$8-1)+4) -> 235040
H144: 118 | I144: =VLOOKUP($H144,Conc_All!$A$5:$Y$204,3*($C$8-1)+2) -> 2.4572e-18 | J144: =VLOOKUP($H144,Conc_All!$A$5:$Y$204,3*($C$8-1)+3) -> 8.3389e-18 | K144: =VLOOKUP($H144,Conc_All!$A$5:$Y$204,3*($C$8-1)+4) -> 2.1799e-17 | L144: =VLOOKUP($H144,Conc_All_SDEIS!$A$5:$Y$204,3*($C$8-1)+2) -> 2.6698e-18 | M144: =VLOOKUP($H144,Conc_All_SDEIS!$A$5:$Y$204,3*($C$8-1)+3) -> 6.2032e-18 | N144: =VLOOKUP($H144,Conc_All_SDEIS!$A$5:$Y$204,3*($C$8-1)+4) -> 1.2549e-17 | P144: 9.833333333 | Q144: =VLOOKUP($P144,Conc_All!$AA$5:$AY$305,3*($C$8-1)+2) -> 60437 | R144: =VLOOKUP($P144,Conc_All!$AA$5:$AY$305,3*($C$8-1)+3) -> 91785 | S144: =VLOOKUP($P144,Conc_All!$AA$5:$AY$305,3*($C$8-1)+4) -> 133010 | T144: =VLOOKUP($P144,Conc_All_SDEIS!$AA$5:$AY$305,3*($C$8-1)+2) -> 92166 | U144: =VLOOKUP($P144,Conc_All_SDEIS!$AA$5:$AY$305,3*($C$8-1)+3) -> 159060 | V144: =VLOOKUP($P144,Conc_All_SDEIS!$AA$5:$AY$305,3*($C$8-1)+4) -> 240760
H145: 119 | I145: =VLOOKUP($H145,Conc_All!$A$5:$Y$204,3*($C$8-1)+2) -> 2.4572e-18 | J145: =VLOOKUP($H145,Conc_All!$A$5:$Y$204,3*($C$8-1)+3) -> 8.3389e-18 | K145: =VLOOKUP($H145,Conc_All!$A$5:$Y$204,3*($C$8-1)+4) -> 2.1799e-17 | L145: =VLOOKUP($H145,Conc_All_SDEIS!$A$5:$Y$204,3*($C$8-1)+2) -> 2.6698e-18 | M145: =VLOOKUP($H145,Conc_All_SDEIS!$A$5:$Y$204,3*($C$8-1)+3) -> 6.2032e-18 | N145: =VLOOKUP($H145,Conc_All_SDEIS!$A$5:$Y$204,3*($C$8-1)+4) -> 1.2549e-17 | P145: 9.916666667 | Q145: =VLOOKUP($P145,Conc_All!$AA$5:$AY$305,3*($C$8-1)+2) -> 64917 | R145: =VLOOKUP($P145,Conc_All!$AA$5:$AY$305,3*($C$8-1)+3) -> 97134 | S145: =VLOOKUP($P145,Conc_All!$AA$5:$AY$305,3*($C$8-1)+4) -> 141680 | T145: =VLOOKUP($P145,Conc_All_SDEIS!$AA$5:$AY$305,3*($C$8-1)+2) -> 126300 | U145: =VLOOKUP($P145,Conc_All_SDEIS!$AA$5:$AY$305,3*($C$8-1)+3) -> 216980 | V145: =VLOOKUP($P145,Conc_All_SDEIS!$AA$5:$AY$305,3*($C$8-1)+4) -> 340780
H146: 120 | I146: =VLOOKUP($H146,Conc_All!$A$5:$Y$204,3*($C$8-1)+2) -> 2.4572e-18 | J146: =VLOOKUP($H146,Conc_All!$A$5:$Y$204,3*($C$8-1)+3) -> 8.3389e-18 | K146: =VLOOKUP($H146,Conc_All!$A$5:$Y$204,3*($C$8-1)+4) -> 2.1799e-17 | L146: =VLOOKUP($H146,Conc_All_SDEIS!$A$5:$Y$204,3*($C$8-1)+2) -> 2.6698e-18 | M146: =VLOOKUP($H146,Conc_All_SDEIS!$A$5:$Y$204,3*($C$8-1)+3) -> 6.2032e-18 | N146: =VLOOKUP($H146,Conc_All_SDEIS!$A$5:$Y$204,3*($C$8-1)+4) -> 1.2549e-17 | P146: 10 | Q146: =VLOOKUP($P146,Conc_All!$AA$5:$AY$305,3*($C$8-1)+2) -> 60812 | R146: =VLOOKUP($P146,Conc_All!$AA$5:$AY$305,3*($C$8-1)+3) -> 88027 | S146: =VLOOKUP($P146,Conc_All!$AA$5:$AY$305,3*($C$8-1)+4) -> 130900 | T146: =VLOOKUP($P146,Conc_All_SDEIS!$AA$5:$AY$305,3*($C$8-1)+2) -> 110360 | U146: =VLOOKUP($P146,Conc_All_SDEIS!$AA$5:$AY$305,3*($C$8-1)+3) -> 189840 | V146: =VLOOKUP($P146,Conc_All_SDEIS!$AA$5:$AY$305,3*($C$8-1)+4) -> 313040
H147: 121 | I147: =VLOOKUP($H147,Conc_All!$A$5:$Y$204,3*($C$8-1)+2) -> 2.4572e-18 | J147: =VLOOKUP($H147,Conc_All!$A$5:$Y$204,3*($C$8-1)+3) -> 8.3389e-18 | K147: =VLOOKUP($H147,Conc_All!$A$5:$Y$204,3*($C$8-1)+4) -> 2.1799e-17 | L147: =VLOOKUP($H147,Conc_All_SDEIS!$A$5:$Y$204,3*($C$8-1)+2) -> 2.6698e-18 | M147: =VLOOKUP($H147,Conc_All_SDEIS!$A$5:$Y$204,3*($C$8-1)+3) -> 6.2032e-18 | N147: =VLOOKUP($H147,Conc_All_SDEIS!$A$5:$Y$204,3*($C$8-1)+4) -> 1.2549e-17 | P147: 10.08333333 | Q147: =VLOOKUP($P147,Conc_All!$AA$5:$AY$305,3*($C$8-1)+2) -> 58630 | R147: =VLOOKUP($P147,Conc_All!$AA$5:$AY$305,3*($C$8-1)+3) -> 84690 | S147: =VLOOKUP($P147,Conc_All!$AA$5:$AY$305,3*($C$8-1)+4) -> 128790 | T147: =VLOOKUP($P147,Conc_All_SDEIS!$AA$5:$AY$305,3*($C$8-1)+2) -> 104780 | U147: =VLOOKUP($P147,Conc_All_SDEIS!$AA$5:$AY$305,3*($C$8-1)+3) -> 182980 | V147: =VLOOKUP($P147,Conc_All_SDEIS!$AA$5:$AY$305,3*($C$8-1)+4) -> 304550
H148: 122 | I148: =VLOOKUP($H148,Conc_All!$A$5:$Y$204,3*($C$8-1)+2) -> 2.4572e-18 | J148: =VLOOKUP($H148,Conc_All!$A$5:$Y$204,3*($C$8-1)+3) -> 8.3389e-18 | K148: =VLOOKUP($H148,Conc_All!$A$5:$Y$204,3*($C$8-1)+4) -> 2.1799e-17 | L148: =VLOOKUP($H148,Conc_All_SDEIS!$A$5:$Y$204,3*($C$8-1)+2) -> 2.6698e-18 | M148: =VLOOKUP($H148,Conc_All_SDEIS!$A$5:$Y$204,3*($C$8-1)+3) -> 6.2032e-18 | N148: =VLOOKUP($H148,Conc_All_SDEIS!$A$5:$Y$204,3*($C$8-1)+4) -> 1.2549e-17 | P148: 10.16666667 | Q148: =VLOOKUP($P148,Conc_All!$AA$5:$AY$305,3*($C$8-1)+2) -> 55625 | R148: =VLOOKUP($P148,Conc_All!$AA$5:$AY$305,3*($C$8-1)+3) -> 80210 | S148: =VLOOKUP($P148,Conc_All!$AA$5:$AY$305,3*($C$8-1)+4) -> 123170 | T148: =VLOOKUP($P148,Conc_All_SDEIS!$AA$5:$AY$305,3*($C$8-1)+2) -> 98127 | U148: =VLOOKUP($P148,Conc_All_SDEIS!$AA$5:$AY$305,3*($C$8-1)+3) -> 171780 | V148: =VLOOKUP($P148,Conc_All_SDEIS!$AA$5:$AY$305,3*($C$8-1)+4) -> 289400
H149: 123 | I149: =VLOOKUP($H149,Conc_All!$A$5:$Y$204,3*($C$8-1)+2) -> 2.4572e-18 | J149: =VLOOKUP($H149,Conc_All!$A$5:$Y$204,3*($C$8-1)+3) -> 8.3389e-18 | K149: =VLOOKUP($H149,Conc_All!$A$5:$Y$204,3*($C$8-1)+4) -> 2.1799e-17 | L149: =VLOOKUP($H149,Conc_All_SDEIS!$A$5:$Y$204,3*($C$8-1)+2) -> 2.6698e-18 | M149: =VLOOKUP($H149,Conc_All_SDEIS!$A$5:$Y$204,3*($C$8-1)+3) -> 6.2032e-18 | N149: =VLOOKUP($H149,Conc_All_SDEIS!$A$5:$Y$204,3*($C$8-1)+4) -> 1.2549e-17 | P149: 10.25 | Q149: =VLOOKUP($P149,Conc_All!$AA$5:$AY$305,3*($C$8-1)+2) -> 57703 | R149: =VLOOKUP($P149,Conc_All!$AA$5:$AY$305,3*($C$8-1)+3) -> 83228 | S149: =VLOOKUP($P149,Conc_All!$AA$5:$AY$305,3*($C$8-1)+4) -> 125200 | T149: =VLOOKUP($P149,Conc_All_SDEIS!$AA$5:$AY$305,3*($C$8-1)+2) -> 102500 | U149: =VLOOKUP($P149,Conc_All_SDEIS!$AA$5:$AY$305,3*($C$8-1)+3) -> 178100 | V149: =VLOOKUP($P149,Conc_All_SDEIS!$AA$5:$AY$305,3*($C$8-1)+4) -> 295220
H150: 124 | I150: =VLOOKUP($H150,Conc_All!$A$5:$Y$204,3*($C$8-1)+2) -> 2.4572e-18 | J150: =VLOOKUP($H150,Conc_All!$A$5:$Y$204,3*($C$8-1)+3) -> 8.3389e-18 | K150: =VLOOKUP($H150,Conc_All!$A$5:$Y$204,3*($C$8-1)+4) -> 2.1799e-17 | L150: =VLOOKUP($H150,Conc_All_SDEIS!$A$5:$Y$204,3*($C$8-1)+2) -> 2.6698e-18 | M150: =VLOOKUP($H150,Conc_All_SDEIS!$A$5:$Y$204,3*($C$8-1)+3) -> 6.2032e-18 | N150: =VLOOKUP($H150,Conc_All_SDEIS!$A$5:$Y$204,3*($C$8-1)+4) -> 1.2549e-17 | P150: 10.33333333 | Q150: =VLOOKUP($P150,Conc_All!$AA$5:$AY$305,3*($C$8-1)+2) -> 47676 | R150: =VLOOKUP($P150,Conc_All!$AA$5:$AY$305,3*($C$8-1)+3) -> 69035 | S150: =VLOOKUP($P150,Conc_All!$AA$5:$AY$305,3*($C$8-1)+4) -> 95688 | T150: =VLOOKUP($P150,Conc_All_SDEIS!$AA$5:$AY$305,3*($C$8-1)+2) -> 56769 | U150: =VLOOKUP($P150,Conc_All_SDEIS!$AA$5:$AY$305,3*($C$8-1)+3) -> 92700 | V150: =VLOOKUP($P150,Conc_All_SDEIS!$AA$5:$AY$305,3*($C$8-1)+4) -> 142920
H151: 125 | I151: =VLOOKUP($H151,Conc_All!$A$5:$Y$204,3*($C$8-1)+2) -> 2.4572e-18 | J151: =VLOOKUP($H151,Conc_All!$A$5:$Y$204,3*($C$8-1)+3) -> 8.3389e-18 | K151: =VLOOKUP($H151,Conc_All!$A$5:$Y$204,3*($C$8-1)+4) -> 2.1799e-17 | L151: =VLOOKUP($H151,Conc_All_SDEIS!$A$5:$Y$204,3*($C$8-1)+2) -> 2.6698e-18 | M151: =VLOOKUP($H151,Conc_All_SDEIS!$A$5:$Y$204,3*($C$8-1)+3) -> 6.2032e-18 | N151: =VLOOKUP($H151,Conc_All_SDEIS!$A$5:$Y$204,3*($C$8-1)+4) -> 1.2549e-17 | P151: 10.41666667 | Q151: =VLOOKUP($P151,Conc_All!$AA$5:$AY$305,3*($C$8-1)+2) -> 49588 | R151: =VLOOKUP($P151,Conc_All!$AA$5:$AY$305,3*($C$8-1)+3) -> 86169 | S151: =VLOOKUP($P151,Conc_All!$AA$5:$AY$305,3*($C$8-1)+4) -> 126390 | T151: =VLOOKUP($P151,Conc_All_SDEIS!$AA$5:$AY$305,3*($C$8-1)+2) -> 62341 | U151: =VLOOKUP($P151,Conc_All_SDEIS!$AA$5:$AY$305,3*($C$8-1)+3) -> 136910 | V151: =VLOOKUP($P151,Conc_All_SDEIS!$AA$5:$AY$305,3*($C$8-1)+4) -> 221860
H152: 126 | I152: =VLOOKUP($H152,Conc_All!$A$5:$Y$204,3*($C$8-1)+2) -> 2.4572e-18 | J152: =VLOOKUP($H152,Conc_All!$A$5:$Y$204,3*($C$8-1)+3) -> 8.3389e-18 | K152: =VLOOKUP($H152,Conc_All!$A$5:$Y$204,3*($C$8-1)+4) -> 2.1799e-17 | L152: =VLOOKUP($H152,Conc_All_SDEIS!$A$5:$Y$204,3*($C$8-1)+2) -> 2.6698e-18 | M152: =VLOOKUP($H152,Conc_All_SDEIS!$A$5:$Y$204,3*($C$8-1)+3) -> 6.2032e-18 | N152: =VLOOKUP($H152,Conc_All_SDEIS!$A$5:$Y$204,3*($C$8-1)+4) -> 1.2549e-17 | P152: 10.5 | Q152: =VLOOKUP($P152,Conc_All!$AA$5:$AY$305,3*($C$8-1)+2) -> 26849 | R152: =VLOOKUP($P152,Conc_All!$AA$5:$AY$305,3*($C$8-1)+3) -> 44200 | S152: =VLOOKUP($P152,Conc_All!$AA$5:$AY$305,3*($C$8-1)+4) -> 72382 | T152: =VLOOKUP($P152,Conc_All_SDEIS!$AA$5:$AY$305,3*($C$8-1)+2) -> 44618 | U152: =VLOOKUP($P152,Conc_All_SDEIS!$AA$5:$AY$305,3*($C$8-1)+3) -> 95362 | V152: =VLOOKUP($P152,Conc_All_SDEIS!$AA$5:$AY$305,3*($C$8-1)+4) -> 199540
H153: 127 | I153: =VLOOKUP($H153,Conc_All!$A$5:$Y$204,3*($C$8-1)+2) -> 2.4572e-18 | J153: =VLOOKUP($H153,Conc_All!$A$5:$Y$204,3*($C$8-1)+3) -> 8.3389e-18 | K153: =VLOOKUP($H153,Conc_All!$A$5:$Y$204,3*($C$8-1)+4) -> 2.1799e-17 | L153: =VLOOKUP($H153,Conc_All_SDEIS!$A$5:$Y$204,3*($C$8-1)+2) -> 2.6698e-18 | M153: =VLOOKUP($H153,Conc_All_SDEIS!$A$5:$Y$204,3*($C$8-1)+3) -> 6.2032e-18 | N153: =VLOOKUP($H153,Conc_All_SDEIS!$A$5:$Y$204,3*($C$8-1)+4) -> 1.2549e-17 | P153: 10.58333333 | Q153: =VLOOKUP($P153,Conc_All!$AA$5:$AY$305,3*($C$8-1)+2) -> 56256 | R153: =VLOOKUP($P153,Conc_All!$AA$5:$AY$305,3*($C$8-1)+3) -> 82937 | S153: =VLOOKUP($P153,Conc_All!$AA$5:$AY$305,3*($C$8-1)+4) -> 128070 | T153: =VLOOKUP($P153,Conc_All_SDEIS!$AA$5:$AY$305,3*($C$8-1)+2) -> 2068700 | U153: =VLOOKUP($P153,Conc_All_SDEIS!$AA$5:$AY$305,3*($C$8-1)+3) -> 2625400 | V153: =VLOOKUP($P153,Conc_All_SDEIS!$AA$5:$AY$305,3*($C$8-1)+4) -> 3824300
H154: 128 | I154: =VLOOKUP($H154,Conc_All!$A$5:$Y$204,3*($C$8-1)+2) -> 2.4572e-18 | J154: =VLOOKUP($H154,Conc_All!$A$5:$Y$204,3*($C$8-1)+3) -> 8.3389e-18 | K154: =VLOOKUP($H154,Conc_All!$A$5:$Y$204,3*($C$8-1)+4) -> 2.1799e-17 | L154: =VLOOKUP($H154,Conc_All_SDEIS!$A$5:$Y$204,3*($C$8-1)+2) -> 2.6698e-18 | M154: =VLOOKUP($H154,Conc_All_SDEIS!$A$5:$Y$204,3*($C$8-1)+3) -> 6.2032e-18 | N154: =VLOOKUP($H154,Conc_All_SDEIS!$A$5:$Y$204,3*($C$8-1)+4) -> 1.2549e-17 | P154: 10.66666667 | Q154: =VLOOKUP($P154,Conc_All!$AA$5:$AY$305,3*($C$8-1)+2) -> 71368 | R154: =VLOOKUP($P154,Conc_All!$AA$5:$AY$305,3*($C$8-1)+3) -> 104670 | S154: =VLOOKUP($P154,Conc_All!$AA$5:$AY$305,3*($C$8-1)+4) -> 148230 | T154: =VLOOKUP($P154,Conc_All_SDEIS!$AA$5:$AY$305,3*($C$8-1)+2) -> 2071400 | U154: =VLOOKUP($P154,Conc_All_SDEIS!$AA$5:$AY$305,3*($C$8-1)+3) -> 2630300 | V154: =VLOOKUP($P154,Conc_All_SDEIS!$AA$5:$AY$305,3*($C$8-1)+4) -> 3827100
H155: 129 | I155: =VLOOKUP($H155,Conc_All!$A$5:$Y$204,3*($C$8-1)+2) -> 2.4572e-18 | J155: =VLOOKUP($H155,Conc_All!$A$5:$Y$204,3*($C$8-1)+3) -> 8.3389e-18 | K155: =VLOOKUP($H155,Conc_All!$A$5:$Y$204,3*($C$8-1)+4) -> 2.1799e-17 | L155: =VLOOKUP($H155,Conc_All_SDEIS!$A$5:$Y$204,3*($C$8-1)+2) -> 2.6698e-18 | M155: =VLOOKUP($H155,Conc_All_SDEIS!$A$5:$Y$204,3*($C$8-1)+3) -> 6.2032e-18 | N155: =VLOOKUP($H155,Conc_All_SDEIS!$A$5:$Y$204,3*($C$8-1)+4) -> 1.2549e-17 | P155: 10.75 | Q155: =VLOOKUP($P155,Conc_All!$AA$5:$AY$305,3*($C$8-1)+2) -> 71688 | R155: =VLOOKUP($P155,Conc_All!$AA$5:$AY$305,3*($C$8-1)+3) -> 104330 | S155: =VLOOKUP($P155,Conc_All!$AA$5:$AY$305,3*($C$8-1)+4) -> 145230 | T155: =VLOOKUP($P155,Conc_All_SDEIS!$AA$5:$AY$305,3*($C$8-1)+2) -> 2071400 | U155: =VLOOKUP($P155,Conc_All_SDEIS!$AA$5:$AY$305,3*($C$8-1)+3) -> 2630300 | V155: =VLOOKUP($P155,Conc_All_SDEIS!$AA$5:$AY$305,3*($C$8-1)+4) -> 3827100
H156: 130 | I156: =VLOOKUP($H156,Conc_All!$A$5:$Y$204,3*($C$8-1)+2) -> 2.4572e-18 | J156: =VLOOKUP($H156,Conc_All!$A$5:$Y$204,3*($C$8-1)+3) -> 8.3389e-18 | K156: =VLOOKUP($H156,Conc_All!$A$5:$Y$204,3*($C$8-1)+4) -> 2.1799e-17 | L156: =VLOOKUP($H156,Conc_All_SDEIS!$A$5:$Y$204,3*($C$8-1)+2) -> 2.6698e-18 | M156: =VLOOKUP($H156,Conc_All_SDEIS!$A$5:$Y$204,3*($C$8-1)+3) -> 6.2032e-18 | N156: =VLOOKUP($H156,Conc_All_SDEIS!$A$5:$Y$204,3*($C$8-1)+4) -> 1.2549e-17 | P156: =P155+1/12 -> 10.83333333 | Q156: =VLOOKUP($P156,Conc_All!$AA$5:$AY$305,3*($C$8-1)+2) -> 71732 | R156: =VLOOKUP($P156,Conc_All!$AA$5:$AY$305,3*($C$8-1)+3) -> 144690 | S156: =VLOOKUP($P156,Conc_All!$AA$5:$AY$305,3*($C$8-1)+4) -> 300190 | T156: =VLOOKUP($P156,Conc_All_SDEIS!$AA$5:$AY$305,3*($C$8-1)+2) -> 113380 | U156: =VLOOKUP($P156,Conc_All_SDEIS!$AA$5:$AY$305,3*($C$8-1)+3) -> 162950 | V156: =VLOOKUP($P156,Conc_All_SDEIS!$AA$5:$AY$305,3*($C$8-1)+4) -> 236130
H157: 131 | I157: =VLOOKUP($H157,Conc_All!$A$5:$Y$204,3*($C$8-1)+2) -> 2.4572e-18 | J157: =VLOOKUP($H157,Conc_All!$A$5:$Y$204,3*($C$8-1)+3) -> 8.3389e-18 | K157: =VLOOKUP($H157,Conc_All!$A$5:$Y$204,3*($C$8-1)+4) -> 2.1799e-17 | L157: =VLOOKUP($H157,Conc_All_SDEIS!$A$5:$Y$204,3*($C$8-1)+2) -> 2.6698e-18 | M157: =VLOOKUP($H157,Conc_All_SDEIS!$A$5:$Y$204,3*($C$8-1)+3) -> 6.2032e-18 | N157: =VLOOKUP($H157,Conc_All_SDEIS!$A$5:$Y$204,3*($C$8-1)+4) -> 1.2549e-17 | P157: 10.91666667 | Q157: =VLOOKUP($P157,Conc_All!$AA$5:$AY$305,3*($C$8-1)+2) -> 117270 | R157: =VLOOKUP($P157,Conc_All!$AA$5:$AY$305,3*($C$8-1)+3) -> 242130 | S157: =VLOOKUP($P157,Conc_All!$AA$5:$AY$305,3*($C$8-1)+4) -> 461810 | T157: =VLOOKUP($P157,Conc_All_SDEIS!$AA$5:$AY$305,3*($C$8-1)+2) -> 57681 | U157: =VLOOKUP($P157,Conc_All_SDEIS!$AA$5:$AY$305,3*($C$8-1)+3) -> 123270 | V157: =VLOOKUP($P157,Conc_All_SDEIS!$AA$5:$AY$305,3*($C$8-1)+4) -> 234370
H158: 132 | I158: =VLOOKUP($H158,Conc_All!$A$5:$Y$204,3*($C$8-1)+2) -> 2.4572e-18 | J158: =VLOOKUP($H158,Conc_All!$A$5:$Y$204,3*($C$8-1)+3) -> 8.3389e-18 | K158: =VLOOKUP($H158,Conc_All!$A$5:$Y$204,3*($C$8-1)+4) -> 2.1799e-17 | L158: =VLOOKUP($H158,Conc_All_SDEIS!$A$5:$Y$204,3*($C$8-1)+2) -> 2.6698e-18 | M158: =VLOOKUP($H158,Conc_All_SDEIS!$A$5:$Y$204,3*($C$8-1)+3) -> 6.2032e-18 | N158: =VLOOKUP($H158,Conc_All_SDEIS!$A$5:$Y$204,3*($C$8-1)+4) -> 1.2549e-17 | P158: 11 | Q158: =VLOOKUP($P158,Conc_All!$AA$5:$AY$305,3*($C$8-1)+2) -> 139480 | R158: =VLOOKUP($P158,Conc_All!$AA$5:$AY$305,3*($C$8-1)+3) -> 254170 | S158: =VLOOKUP($P158,Conc_All!$AA$5:$AY$305,3*($C$8-1)+4) -> 377660 | T158: =VLOOKUP($P158,Conc_All_SDEIS!$AA$5:$AY$305,3*($C$8-1)+2) -> 49938 | U158: =VLOOKUP($P158,Conc_All_SDEIS!$AA$5:$AY$305,3*($C$8-1)+3) -> 111060 | V158: =VLOOKUP($P158,Conc_All_SDEIS!$AA$5:$AY$305,3*($C$8-1)+4) -> 216480
H159: 133 | I159: =VLOOKUP($H159,Conc_All!$A$5:$Y$204,3*($C$8-1)+2) -> 2.4572e-18 | J159: =VLOOKUP($H159,Conc_All!$A$5:$Y$204,3*($C$8-1)+3) -> 8.3389e-18 | K159: =VLOOKUP($H159,Conc_All!$A$5:$Y$204,3*($C$8-1)+4) -> 2.1799e-17 | L159: =VLOOKUP($H159,Conc_All_SDEIS!$A$5:$Y$204,3*($C$8-1)+2) -> 2.6698e-18 | M159: =VLOOKUP($H159,Conc_All_SDEIS!$A$5:$Y$204,3*($C$8-1)+3) -> 6.2032e-18 | N159: =VLOOKUP($H159,Conc_All_SDEIS!$A$5:$Y$204,3*($C$8-1)+4) -> 1.2549e-17 | P159: 11.08333333 | Q159: =VLOOKUP($P159,Conc_All!$AA$5:$AY$305,3*($C$8-1)+2) -> 135700 | R159: =VLOOKUP($P159,Conc_All!$AA$5:$AY$305,3*($C$8-1)+3) -> 254430 | S159: =VLOOKUP($P159,Conc_All!$AA$5:$AY$305,3*($C$8-1)+4) -> 389870 | T159: =VLOOKUP($P159,Conc_All_SDEIS!$AA$5:$AY$305,3*($C$8-1)+2) -> 49037 | U159: =VLOOKUP($P159,Conc_All_SDEIS!$AA$5:$AY$305,3*($C$8-1)+3) -> 112480 | V159: =VLOOKUP($P159,Conc_All_SDEIS!$AA$5:$AY$305,3*($C$8-1)+4) -> 215720
H160: 134 | I160: =VLOOKUP($H160,Conc_All!$A$5:$Y$204,3*($C$8-1)+2) -> 2.4572e-18 | J160: =VLOOKUP($H160,Conc_All!$A$5:$Y$204,3*($C$8-1)+3) -> 8.3389e-18 | K160: =VLOOKUP($H160,Conc_All!$A$5:$Y$204,3*($C$8-1)+4) -> 2.1799e-17 | L160: =VLOOKUP($H160,Conc_All_SDEIS!$A$5:$Y$204,3*($C$8-1)+2) -> 2.6698e-18 | M160: =VLOOKUP($H160,Conc_All_SDEIS!$A$5:$Y$204,3*($C$8-1)+3) -> 6.2032e-18 | N160: =VLOOKUP($H160,Conc_All_SDEIS!$A$5:$Y$204,3*($C$8-1)+4) -> 1.2549e-17 | P160: 11.16666667 | Q160: =VLOOKUP($P160,Conc_All!$AA$5:$AY$305,3*($C$8-1)+2) -> 125070 | R160: =VLOOKUP($P160,Conc_All!$AA$5:$AY$305,3*($C$8-1)+3) -> 234140 | S160: =VLOOKUP($P160,Conc_All!$AA$5:$AY$305,3*($C$8-1)+4) -> 357720 | T160: =VLOOKUP($P160,Conc_All_SDEIS!$AA$5:$AY$305,3*($C$8-1)+2) -> 48535 | U160: =VLOOKUP($P160,Conc_All_SDEIS!$AA$5:$AY$305,3*($C$8-1)+3) -> 110980 | V160: =VLOOKUP($P160,Conc_All_SDEIS!$AA$5:$AY$305,3*($C$8-1)+4) -> 212990
H161: 135 | I161: =VLOOKUP($H161,Conc_All!$A$5:$Y$204,3*($C$8-1)+2) -> 2.4572e-18 | J161: =VLOOKUP($H161,Conc_All!$A$5:$Y$204,3*($C$8-1)+3) -> 8.3389e-18 | K161: =VLOOKUP($H161,Conc_All!$A$5:$Y$204,3*($C$8-1)+4) -> 2.1799e-17 | L161: =VLOOKUP($H161,Conc_All_SDEIS!$A$5:$Y$204,3*($C$8-1)+2) -> 2.6698e-18 | M161: =VLOOKUP($H161,Conc_All_SDEIS!$A$5:$Y$204,3*($C$8-1)+3) -> 6.2032e-18 | N161: =VLOOKUP($H161,Conc_All_SDEIS!$A$5:$Y$204,3*($C$8-1)+4) -> 1.2549e-17 | P161: 11.25 | Q161: =VLOOKUP($P161,Conc_All!$AA$5:$AY$305,3*($C$8-1)+2) -> 144670 | R161: =VLOOKUP($P161,Conc_All!$AA$5:$AY$305,3*($C$8-1)+3) -> 279310 | S161: =VLOOKUP($P161,Conc_All!$AA$5:$AY$305,3*($C$8-1)+4) -> 430340 | T161: =VLOOKUP($P161,Conc_All_SDEIS!$AA$5:$AY$305,3*($C$8-1)+2) -> 51601 | U161: =VLOOKUP($P161,Conc_All_SDEIS!$AA$5:$AY$305,3*($C$8-1)+3) -> 120510 | V161: =VLOOKUP($P161,Conc_All_SDEIS!$AA$5:$AY$305,3*($C$8-1)+4) -> 233910
H162: 136 | I162: =VLOOKUP($H162,Conc_All!$A$5:$Y$204,3*($C$8-1)+2) -> 2.4572e-18 | J162: =VLOOKUP($H162,Conc_All!$A$5:$Y$204,3*($C$8-1)+3) -> 8.3389e-18 | K162: =VLOOKUP($H162,Conc_All!$A$5:$Y$204,3*($C$8-1)+4) -> 2.1799e-17 | L162: =VLOOKUP($H162,Conc_All_SDEIS!$A$5:$Y$204,3*($C$8-1)+2) -> 2.6698e-18 | M162: =VLOOKUP($H162,Conc_All_SDEIS!$A$5:$Y$204,3*($C$8-1)+3) -> 6.2032e-18 | N162: =VLOOKUP($H162,Conc_All_SDEIS!$A$5:$Y$204,3*($C$8-1)+4) -> 1.2549e-17 | P162: 11.33333333 | Q162: =VLOOKUP($P162,Conc_All!$AA$5:$AY$305,3*($C$8-1)+2) -> 35618 | R162: =VLOOKUP($P162,Conc_All!$AA$5:$AY$305,3*($C$8-1)+3) -> 86025 | S162: =VLOOKUP($P162,Conc_All!$AA$5:$AY$305,3*($C$8-1)+4) -> 148350 | T162: =VLOOKUP($P162,Conc_All_SDEIS!$AA$5:$AY$305,3*($C$8-1)+2) -> 12228 | U162: =VLOOKUP($P162,Conc_All_SDEIS!$AA$5:$AY$305,3*($C$8-1)+3) -> 25012 | V162: =VLOOKUP($P162,Conc_All_SDEIS!$AA$5:$AY$305,3*($C$8-1)+4) -> 47983
H163: 137 | I163: =VLOOKUP($H163,Conc_All!$A$5:$Y$204,3*($C$8-1)+2) -> 2.4572e-18 | J163: =VLOOKUP($H163,Conc_All!$A$5:$Y$204,3*($C$8-1)+3) -> 8.3389e-18 | K163: =VLOOKUP($H163,Conc_All!$A$5:$Y$204,3*($C$8-1)+4) -> 2.1799e-17 | L163: =VLOOKUP($H163,Conc_All_SDEIS!$A$5:$Y$204,3*($C$8-1)+2) -> 2.6698e-18 | M163: =VLOOKUP($H163,Conc_All_SDEIS!$A$5:$Y$204,3*($C$8-1)+3) -> 6.2032e-18 | N163: =VLOOKUP($H163,Conc_All_SDEIS!$A$5:$Y$204,3*($C$8-1)+4) -> 1.2549e-17 | P163: 11.41666667 | Q163: =VLOOKUP($P163,Conc_All!$AA$5:$AY$305,3*($C$8-1)+2) -> 55533 | R163: =VLOOKUP($P163,Conc_All!$AA$5:$AY$305,3*($C$8-1)+3) -> 126220 | S163: =VLOOKUP($P163,Conc_All!$AA$5:$AY$305,3*($C$8-1)+4) -> 333620 | T163: =VLOOKUP($P163,Conc_All_SDEIS!$AA$5:$AY$305,3*($C$8-1)+2) -> 21957 | U163: =VLOOKUP($P163,Conc_All_SDEIS!$AA$5:$AY$305,3*($C$8-1)+3) -> 47579 | V163: =VLOOKUP($P163,Conc_All_SDEIS!$AA$5:$AY$305,3*($C$8-1)+4) -> 93482
H164: 138 | I164: =VLOOKUP($H164,Conc_All!$A$5:$Y$204,3*($C$8-1)+2) -> 2.4572e-18 | J164: =VLOOKUP($H164,Conc_All!$A$5:$Y$204,3*($C$8-1)+3) -> 8.3389e-18 | K164: =VLOOKUP($H164,Conc_All!$A$5:$Y$204,3*($C$8-1)+4) -> 2.1799e-17 | L164: =VLOOKUP($H164,Conc_All_SDEIS!$A$5:$Y$204,3*($C$8-1)+2) -> 2.6698e-18 | M164: =VLOOKUP($H164,Conc_All_SDEIS!$A$5:$Y$204,3*($C$8-1)+3) -> 6.2032e-18 | N164: =VLOOKUP($H164,Conc_All_SDEIS!$A$5:$Y$204,3*($C$8-1)+4) -> 1.2549e-17 | P164: 11.5 | Q164: =VLOOKUP($P164,Conc_All!$AA$5:$AY$305,3*($C$8-1)+2) -> 48150 | R164: =VLOOKUP($P164,Conc_All!$AA$5:$AY$305,3*($C$8-1)+3) -> 101100 | S164: =VLOOKUP($P164,Conc_All!$AA$5:$AY$305,3*($C$8-1)+4) -> 315450 | T164: =VLOOKUP($P164,Conc_All_SDEIS!$AA$5:$AY$305,3*($C$8-1)+2) -> 20221 | U164: =VLOOKUP($P164,Conc_All_SDEIS!$AA$5:$AY$305,3*($C$8-1)+3) -> 43634 | V164: =VLOOKUP($P164,Conc_All_SDEIS!$AA$5:$AY$305,3*($C$8-1)+4) -> 85858
H165: 139 | I165: =VLOOKUP($H165,Conc_All!$A$5:$Y$204,3*($C$8-1)+2) -> 2.4572e-18 | J165: =VLOOKUP($H165,Conc_All!$A$5:$Y$204,3*($C$8-1)+3) -> 8.3389e-18 | K165: =VLOOKUP($H165,Conc_All!$A$5:$Y$204,3*($C$8-1)+4) -> 2.1799e-17 | L165: =VLOOKUP($H165,Conc_All_SDEIS!$A$5:$Y$204,3*($C$8-1)+2) -> 2.6698e-18 | M165: =VLOOKUP($H165,Conc_All_SDEIS!$A$5:$Y$204,3*($C$8-1)+3) -> 6.2032e-18 | N165: =VLOOKUP($H165,Conc_All_SDEIS!$A$5:$Y$204,3*($C$8-1)+4) -> 1.2549e-17 | P165: 11.58333333 | Q165: =VLOOKUP($P165,Conc_All!$AA$5:$AY$305,3*($C$8-1)+2) -> 47323 | R165: =VLOOKUP($P165,Conc_All!$AA$5:$AY$305,3*($C$8-1)+3) -> 97358 | S165: =VLOOKUP($P165,Conc_All!$AA$5:$AY$305,3*($C$8-1)+4) -> 252620 | T165: =VLOOKUP($P165,Conc_All_SDEIS!$AA$5:$AY$305,3*($C$8-1)+2) -> 20182 | U165: =VLOOKUP($P165,Conc_All_SDEIS!$AA$5:$AY$305,3*($C$8-1)+3) -> 43645 | V165: =VLOOKUP($P165,Conc_All_SDEIS!$AA$5:$AY$305,3*($C$8-1)+4) -> 85977
H166: 140 | I166: =VLOOKUP($H166,Conc_All!$A$5:$Y$204,3*($C$8-1)+2) -> 2.4572e-18 | J166: =VLOOKUP($H166,Conc_All!$A$5:$Y$204,3*($C$8-1)+3) -> 8.3389e-18 | K166: =VLOOKUP($H166,Conc_All!$A$5:$Y$204,3*($C$8-1)+4) -> 2.1799e-17 | L166: =VLOOKUP($H166,Conc_All_SDEIS!$A$5:$Y$204,3*($C$8-1)+2) -> 2.6698e-18 | M166: =VLOOKUP($H166,Conc_All_SDEIS!$A$5:$Y$204,3*($C$8-1)+3) -> 6.2032e-18 | N166: =VLOOKUP($H166,Conc_All_SDEIS!$A$5:$Y$204,3*($C$8-1)+4) -> 1.2549e-17 | P166: 11.66666667 | Q166: =VLOOKUP($P166,Conc_All!$AA$5:$AY$305,3*($C$8-1)+2) -> 47310 | R166: =VLOOKUP($P166,Conc_All!$AA$5:$AY$305,3*($C$8-1)+3) -> 96527 | S166: =VLOOKUP($P166,Conc_All!$AA$5:$AY$305,3*($C$8-1)+4) -> 216130 | T166: =VLOOKUP($P166,Conc_All_SDEIS!$AA$5:$AY$305,3*($C$8-1)+2) -> 20158 | U166: =VLOOKUP($P166,Conc_All_SDEIS!$AA$5:$AY$305,3*($C$8-1)+3) -> 43693 | V166: =VLOOKUP($P166,Conc_All_SDEIS!$AA$5:$AY$305,3*($C$8-1)+4) -> 86159
H167: 141 | I167: =VLOOKUP($H167,Conc_All!$A$5:$Y$204,3*($C$8-1)+2) -> 2.4572e-18 | J167: =VLOOKUP($H167,Conc_All!$A$5:$Y$204,3*($C$8-1)+3) -> 8.3389e-18 | K167: =VLOOKUP($H167,Conc_All!$A$5:$Y$204,3*($C$8-1)+4) -> 2.1799e-17 | L167: =VLOOKUP($H167,Conc_All_SDEIS!$A$5:$Y$204,3*($C$8-1)+2) -> 2.6698e-18 | M167: =VLOOKUP($H167,Conc_All_SDEIS!$A$5:$Y$204,3*($C$8-1)+3) -> 6.2032e-18 | N167: =VLOOKUP($H167,Conc_All_SDEIS!$A$5:$Y$204,3*($C$8-1)+4) -> 1.2549e-17 | P167: 11.75 | Q167: =VLOOKUP($P167,Conc_All!$AA$5:$AY$305,3*($C$8-1)+2) -> 46875 | R167: =VLOOKUP($P167,Conc_All!$AA$5:$AY$305,3*($C$8-1)+3) -> 97793 | S167: =VLOOKUP($P167,Conc_All!$AA$5:$AY$305,3*($C$8-1)+4) -> 200630 | T167: =VLOOKUP($P167,Conc_All_SDEIS!$AA$5:$AY$305,3*($C$8-1)+2) -> 20040 | U167: =VLOOKUP($P167,Conc_All_SDEIS!$AA$5:$AY$305,3*($C$8-1)+3) -> 43474 | V167: =VLOOKUP($P167,Conc_All_SDEIS!$AA$5:$AY$305,3*($C$8-1)+4) -> 85854
H168: 142 | I168: =VLOOKUP($H168,Conc_All!$A$5:$Y$204,3*($C$8-1)+2) -> 2.4572e-18 | J168: =VLOOKUP($H168,Conc_All!$A$5:$Y$204,3*($C$8-1)+3) -> 8.3389e-18 | K168: =VLOOKUP($H168,Conc_All!$A$5:$Y$204,3*($C$8-1)+4) -> 2.1799e-17 | L168: =VLOOKUP($H168,Conc_All_SDEIS!$A$5:$Y$204,3*($C$8-1)+2) -> 2.6698e-18 | M168: =VLOOKUP($H168,Conc_All_SDEIS!$A$5:$Y$204,3*($C$8-1)+3) -> 6.2032e-18 | N168: =VLOOKUP($H168,Conc_All_SDEIS!$A$5:$Y$204,3*($C$8-1)+4) -> 1.2549e-17 | P168: 11.83333333 | Q168: =VLOOKUP($P168,Conc_All!$AA$5:$AY$305,3*($C$8-1)+2) -> 54352 | R168: =VLOOKUP($P168,Conc_All!$AA$5:$AY$305,3*($C$8-1)+3) -> 115350 | S168: =VLOOKUP($P168,Conc_All!$AA$5:$AY$305,3*($C$8-1)+4) -> 230390 | T168: =VLOOKUP($P168,Conc_All_SDEIS!$AA$5:$AY$305,3*($C$8-1)+2) -> 22852 | U168: =VLOOKUP($P168,Conc_All_SDEIS!$AA$5:$AY$305,3*($C$8-1)+3) -> 49901 | V168: =VLOOKUP($P168,Conc_All_SDEIS!$AA$5:$AY$305,3*($C$8-1)+4) -> 99055
H169: 143 | I169: =VLOOKUP($H169,Conc_All!$A$5:$Y$204,3*($C$8-1)+2) -> 2.4572e-18 | J169: =VLOOKUP($H169,Conc_All!$A$5:$Y$204,3*($C$8-1)+3) -> 8.3389e-18 | K169: =VLOOKUP($H169,Conc_All!$A$5:$Y$204,3*($C$8-1)+4) -> 2.1799e-17 | L169: =VLOOKUP($H169,Conc_All_SDEIS!$A$5:$Y$204,3*($C$8-1)+2) -> 2.6698e-18 | M169: =VLOOKUP($H169,Conc_All_SDEIS!$A$5:$Y$204,3*($C$8-1)+3) -> 6.2032e-18 | N169: =VLOOKUP($H169,Conc_All_SDEIS!$A$5:$Y$204,3*($C$8-1)+4) -> 1.2549e-17 | P169: 11.91666667 | Q169: =VLOOKUP($P169,Conc_All!$AA$5:$AY$305,3*($C$8-1)+2) -> 138410 | R169: =VLOOKUP($P169,Conc_All!$AA$5:$AY$305,3*($C$8-1)+3) -> 309940 | S169: =VLOOKUP($P169,Conc_All!$AA$5:$AY$305,3*($C$8-1)+4) -> 595060 | T169: =VLOOKUP($P169,Conc_All_SDEIS!$AA$5:$AY$305,3*($C$8-1)+2) -> 68332 | U169: =VLOOKUP($P169,Conc_All_SDEIS!$AA$5:$AY$305,3*($C$8-1)+3) -> 173120 | V169: =VLOOKUP($P169,Conc_All_SDEIS!$AA$5:$AY$305,3*($C$8-1)+4) -> 343770
H170: 144 | I170: =VLOOKUP($H170,Conc_All!$A$5:$Y$204,3*($C$8-1)+2) -> 2.4572e-18 | J170: =VLOOKUP($H170,Conc_All!$A$5:$Y$204,3*($C$8-1)+3) -> 8.3389e-18 | K170: =VLOOKUP($H170,Conc_All!$A$5:$Y$204,3*($C$8-1)+4) -> 2.1799e-17 | L170: =VLOOKUP($H170,Conc_All_SDEIS!$A$5:$Y$204,3*($C$8-1)+2) -> 2.6698e-18 | M170: =VLOOKUP($H170,Conc_All_SDEIS!$A$5:$Y$204,3*($C$8-1)+3) -> 6.2032e-18 | N170: =VLOOKUP($H170,Conc_All_SDEIS!$A$5:$Y$204,3*($C$8-1)+4) -> 1.2549e-17 | P170: 12 | Q170: =VLOOKUP($P170,Conc_All!$AA$5:$AY$305,3*($C$8-1)+2) -> 166200 | R170: =VLOOKUP($P170,Conc_All!$AA$5:$AY$305,3*($C$8-1)+3) -> 298350 | S170: =VLOOKUP($P170,Conc_All!$AA$5:$AY$305,3*($C$8-1)+4) -> 474300 | T170: =VLOOKUP($P170,Conc_All_SDEIS!$AA$5:$AY$305,3*($C$8-1)+2) -> 67113 | U170: =VLOOKUP($P170,Conc_All_SDEIS!$AA$5:$AY$305,3*($C$8-1)+3) -> 160750 | V170: =VLOOKUP($P170,Conc_All_SDEIS!$AA$5:$AY$305,3*($C$8-1)+4) -> 319630
H171: 145 | I171: =VLOOKUP($H171,Conc_All!$A$5:$Y$204,3*($C$8-1)+2) -> 2.4572e-18 | J171: =VLOOKUP($H171,Conc_All!$A$5:$Y$204,3*($C$8-1)+3) -> 8.3389e-18 | K171: =VLOOKUP($H171,Conc_All!$A$5:$Y$204,3*($C$8-1)+4) -> 2.1799e-17 | L171: =VLOOKUP($H171,Conc_All_SDEIS!$A$5:$Y$204,3*($C$8-1)+2) -> 2.6698e-18 | M171: =VLOOKUP($H171,Conc_All_SDEIS!$A$5:$Y$204,3*($C$8-1)+3) -> 6.2032e-18 | N171: =VLOOKUP($H171,Conc_All_SDEIS!$A$5:$Y$204,3*($C$8-1)+4) -> 1.2549e-17 | P171: 12.08333333 | Q171: =VLOOKUP($P171,Conc_All!$AA$5:$AY$305,3*($C$8-1)+2) -> 149300 | R171: =VLOOKUP($P171,Conc_All!$AA$5:$AY$305,3*($C$8-1)+3) -> 287470 | S171: =VLOOKUP($P171,Conc_All!$AA$5:$AY$305,3*($C$8-1)+4) -> 441650 | T171: =VLOOKUP($P171,Conc_All_SDEIS!$AA$5:$AY$305,3*($C$8-1)+2) -> 66456 | U171: =VLOOKUP($P171,Conc_All_SDEIS!$AA$5:$AY$305,3*($C$8-1)+3) -> 156610 | V171: =VLOOKUP($P171,Conc_All_SDEIS!$AA$5:$AY$305,3*($C$8-1)+4) -> 310580
H172: 146 | I172: =VLOOKUP($H172,Conc_All!$A$5:$Y$204,3*($C$8-1)+2) -> 2.4572e-18 | J172: =VLOOKUP($H172,Conc_All!$A$5:$Y$204,3*($C$8-1)+3) -> 8.3389e-18 | K172: =VLOOKUP($H172,Conc_All!$A$5:$Y$204,3*($C$8-1)+4) -> 2.1799e-17 | L172: =VLOOKUP($H172,Conc_All_SDEIS!$A$5:$Y$204,3*($C$8-1)+2) -> 2.6698e-18 | M172: =VLOOKUP($H172,Conc_All_SDEIS!$A$5:$Y$204,3*($C$8-1)+3) -> 6.2032e-18 | N172: =VLOOKUP($H172,Conc_All_SDEIS!$A$5:$Y$204,3*($C$8-1)+4) -> 1.2549e-17 | P172: 12.16666667 | Q172: =VLOOKUP($P172,Conc_All!$AA$5:$AY$305,3*($C$8-1)+2) -> 142800 | R172: =VLOOKUP($P172,Conc_All!$AA$5:$AY$305,3*($C$8-1)+3) -> 265330 | S172: =VLOOKUP($P172,Conc_All!$AA$5:$AY$305,3*($C$8-1)+4) -> 409910 | T172: =VLOOKUP($P172,Conc_All_SDEIS!$AA$5:$AY$305,3*($C$8-1)+2) -> 63493 | U172: =VLOOKUP($P172,Conc_All_SDEIS!$AA$5:$AY$305,3*($C$8-1)+3) -> 147220 | V172: =VLOOKUP($P172,Conc_All_SDEIS!$AA$5:$AY$305,3*($C$8-1)+4) -> 296940
H173: 147 | I173: =VLOOKUP($H173,Conc_All!$A$5:$Y$204,3*($C$8-1)+2) -> 2.4572e-18 | J173: =VLOOKUP($H173,Conc_All!$A$5:$Y$204,3*($C$8-1)+3) -> 8.3389e-18 | K173: =VLOOKUP($H173,Conc_All!$A$5:$Y$204,3*($C$8-1)+4) -> 2.1799e-17 | L173: =VLOOKUP($H173,Conc_All_SDEIS!$A$5:$Y$204,3*($C$8-1)+2) -> 2.6698e-18 | M173: =VLOOKUP($H173,Conc_All_SDEIS!$A$5:$Y$204,3*($C$8-1)+3) -> 6.2032e-18 | N173: =VLOOKUP($H173,Conc_All_SDEIS!$A$5:$Y$204,3*($C$8-1)+4) -> 1.2549e-17 | P173: 12.25 | Q173: =VLOOKUP($P173,Conc_All!$AA$5:$AY$305,3*($C$8-1)+2) -> 163910 | R173: =VLOOKUP($P173,Conc_All!$AA$5:$AY$305,3*($C$8-1)+3) -> 328120 | S173: =VLOOKUP($P173,Conc_All!$AA$5:$AY$305,3*($C$8-1)+4) -> 512980 | T173: =VLOOKUP($P173,Conc_All_SDEIS!$AA$5:$AY$305,3*($C$8-1)+2) -> 68622 | U173: =VLOOKUP($P173,Conc_All_SDEIS!$AA$5:$AY$305,3*($C$8-1)+3) -> 160900 | V173: =VLOOKUP($P173,Conc_All_SDEIS!$AA$5:$AY$305,3*($C$8-1)+4) -> 325650
H174: 148 | I174: =VLOOKUP($H174,Conc_All!$A$5:$Y$204,3*($C$8-1)+2) -> 2.4572e-18 | J174: =VLOOKUP($H174,Conc_All!$A$5:$Y$204,3*($C$8-1)+3) -> 8.3389e-18 | K174: =VLOOKUP($H174,Conc_All!$A$5:$Y$204,3*($C$8-1)+4) -> 2.1799e-17 | L174: =VLOOKUP($H174,Conc_All_SDEIS!$A$5:$Y$204,3*($C$8-1)+2) -> 2.6698e-18 | M174: =VLOOKUP($H174,Conc_All_SDEIS!$A$5:$Y$204,3*($C$8-1)+3) -> 6.2032e-18 | N174: =VLOOKUP($H174,Conc_All_SDEIS!$A$5:$Y$204,3*($C$8-1)+4) -> 1.2549e-17 | P174: 12.33333333 | Q174: =VLOOKUP($P174,Conc_All!$AA$5:$AY$305,3*($C$8-1)+2) -> 32174 | R174: =VLOOKUP($P174,Conc_All!$AA$5:$AY$305,3*($C$8-1)+3) -> 79004 | S174: =VLOOKUP($P174,Conc_All!$AA$5:$AY$305,3*($C$8-1)+4) -> 128250 | T174: =VLOOKUP($P174,Conc_All_SDEIS!$AA$5:$AY$305,3*($C$8-1)+2) -> 9923.4 | U174: =VLOOKUP($P174,Conc_All_SDEIS!$AA$5:$AY$305,3*($C$8-1)+3) -> 20592 | V174: =VLOOKUP($P174,Conc_All_SDEIS!$AA$5:$AY$305,3*($C$8-1)+4) -> 39880
H175: 149 | I175: =VLOOKUP($H175,Conc_All!$A$5:$Y$204,3*($C$8-1)+2) -> 2.4572e-18 | J175: =VLOOKUP($H175,Conc_All!$A$5:$Y$204,3*($C$8-1)+3) -> 8.3389e-18 | K175: =VLOOKUP($H175,Conc_All!$A$5:$Y$204,3*($C$8-1)+4) -> 2.1799e-17 | L175: =VLOOKUP($H175,Conc_All_SDEIS!$A$5:$Y$204,3*($C$8-1)+2) -> 2.6698e-18 | M175: =VLOOKUP($H175,Conc_All_SDEIS!$A$5:$Y$204,3*($C$8-1)+3) -> 6.2032e-18 | N175: =VLOOKUP($H175,Conc_All_SDEIS!$A$5:$Y$204,3*($C$8-1)+4) -> 1.2549e-17 | P175: 12.41666667 | Q175: =VLOOKUP($P175,Conc_All!$AA$5:$AY$305,3*($C$8-1)+2) -> 54464 | R175: =VLOOKUP($P175,Conc_All!$AA$5:$AY$305,3*($C$8-1)+3) -> 130550 | S175: =VLOOKUP($P175,Conc_All!$AA$5:$AY$305,3*($C$8-1)+4) -> 345370 | T175: =VLOOKUP($P175,Conc_All_SDEIS!$AA$5:$AY$305,3*($C$8-1)+2) -> 20739 | U175: =VLOOKUP($P175,Conc_All_SDEIS!$AA$5:$AY$305,3*($C$8-1)+3) -> 44394 | V175: =VLOOKUP($P175,Conc_All_SDEIS!$AA$5:$AY$305,3*($C$8-1)+4) -> 84229
H176: 150 | I176: =VLOOKUP($H176,Conc_All!$A$5:$Y$204,3*($C$8-1)+2) -> 2.4572e-18 | J176: =VLOOKUP($H176,Conc_All!$A$5:$Y$204,3*($C$8-1)+3) -> 8.3389e-18 | K176: =VLOOKUP($H176,Conc_All!$A$5:$Y$204,3*($C$8-1)+4) -> 2.1799e-17 | L176: =VLOOKUP($H176,Conc_All_SDEIS!$A$5:$Y$204,3*($C$8-1)+2) -> 2.6698e-18 | M176: =VLOOKUP($H176,Conc_All_SDEIS!$A$5:$Y$204,3*($C$8-1)+3) -> 6.2032e-18 | N176: =VLOOKUP($H176,Conc_All_SDEIS!$A$5:$Y$204,3*($C$8-1)+4) -> 1.2549e-17 | P176: 12.5 | Q176: =VLOOKUP($P176,Conc_All!$AA$5:$AY$305,3*($C$8-1)+2) -> 47151 | R176: =VLOOKUP($P176,Conc_All!$AA$5:$AY$305,3*($C$8-1)+3) -> 99380 | S176: =VLOOKUP($P176,Conc_All!$AA$5:$AY$305,3*($C$8-1)+4) -> 313740 | T176: =VLOOKUP($P176,Conc_All_SDEIS!$AA$5:$AY$305,3*($C$8-1)+2) -> 19629 | U176: =VLOOKUP($P176,Conc_All_SDEIS!$AA$5:$AY$305,3*($C$8-1)+3) -> 41833 | V176: =VLOOKUP($P176,Conc_All_SDEIS!$AA$5:$AY$305,3*($C$8-1)+4) -> 79703
H177: 151 | I177: =VLOOKUP($H177,Conc_All!$A$5:$Y$204,3*($C$8-1)+2) -> 2.4572e-18 | J177: =VLOOKUP($H177,Conc_All!$A$5:$Y$204,3*($C$8-1)+3) -> 8.3389e-18 | K177: =VLOOKUP($H177,Conc_All!$A$5:$Y$204,3*($C$8-1)+4) -> 2.1799e-17 | L177: =VLOOKUP($H177,Conc_All_SDEIS!$A$5:$Y$204,3*($C$8-1)+2) -> 2.6698e-18 | M177: =VLOOKUP($H177,Conc_All_SDEIS!$A$5:$Y$204,3*($C$8-1)+3) -> 6.2032e-18 | N177: =VLOOKUP($H177,Conc_All_SDEIS!$A$5:$Y$204,3*($C$8-1)+4) -> 1.2549e-17 | P177: 12.58333333 | Q177: =VLOOKUP($P177,Conc_All!$AA$5:$AY$305,3*($C$8-1)+2) -> 45886 | R177: =VLOOKUP($P177,Conc_All!$AA$5:$AY$305,3*($C$8-1)+3) -> 95858 | S177: =VLOOKUP($P177,Conc_All!$AA$5:$AY$305,3*($C$8-1)+4) -> 280460 | T177: =VLOOKUP($P177,Conc_All_SDEIS!$AA$5:$AY$305,3*($C$8-1)+2) -> 19710 | U177: =VLOOKUP($P177,Conc_All_SDEIS!$AA$5:$AY$305,3*($C$8-1)+3) -> 42060 | V177: =VLOOKUP($P177,Conc_All_SDEIS!$AA$5:$AY$305,3*($C$8-1)+4) -> 80129
H178: 152 | I178: =VLOOKUP($H178,Conc_All!$A$5:$Y$204,3*($C$8-1)+2) -> 2.4572e-18 | J178: =VLOOKUP($H178,Conc_All!$A$5:$Y$204,3*($C$8-1)+3) -> 8.3389e-18 | K178: =VLOOKUP($H178,Conc_All!$A$5:$Y$204,3*($C$8-1)+4) -> 2.1799e-17 | L178: =VLOOKUP($H178,Conc_All_SDEIS!$A$5:$Y$204,3*($C$8-1)+2) -> 2.6698e-18 | M178: =VLOOKUP($H178,Conc_All_SDEIS!$A$5:$Y$204,3*($C$8-1)+3) -> 6.2032e-18 | N178: =VLOOKUP($H178,Conc_All_SDEIS!$A$5:$Y$204,3*($C$8-1)+4) -> 1.2549e-17 | P178: 12.66666667 | Q178: =VLOOKUP($P178,Conc_All!$AA$5:$AY$305,3*($C$8-1)+2) -> 46109 | R178: =VLOOKUP($P178,Conc_All!$AA$5:$AY$305,3*($C$8-1)+3) -> 95729 | S178: =VLOOKUP($P178,Conc_All!$AA$5:$AY$305,3*($C$8-1)+4) -> 234880 | T178: =VLOOKUP($P178,Conc_All_SDEIS!$AA$5:$AY$305,3*($C$8-1)+2) -> 19911 | U178: =VLOOKUP($P178,Conc_All_SDEIS!$AA$5:$AY$305,3*($C$8-1)+3) -> 42491 | V178: =VLOOKUP($P178,Conc_All_SDEIS!$AA$5:$AY$305,3*($C$8-1)+4) -> 80951
H179: 153 | I179: =VLOOKUP($H179,Conc_All!$A$5:$Y$204,3*($C$8-1)+2) -> 2.4572e-18 | J179: =VLOOKUP($H179,Conc_All!$A$5:$Y$204,3*($C$8-1)+3) -> 8.3389e-18 | K179: =VLOOKUP($H179,Conc_All!$A$5:$Y$204,3*($C$8-1)+4) -> 2.1799e-17 | L179: =VLOOKUP($H179,Conc_All_SDEIS!$A$5:$Y$204,3*($C$8-1)+2) -> 2.6698e-18 | M179: =VLOOKUP($H179,Conc_All_SDEIS!$A$5:$Y$204,3*($C$8-1)+3) -> 6.2032e-18 | N179: =VLOOKUP($H179,Conc_All_SDEIS!$A$5:$Y$204,3*($C$8-1)+4) -> 1.2549e-17 | P179: 12.75 | Q179: =VLOOKUP($P179,Conc_All!$AA$5:$AY$305,3*($C$8-1)+2) -> 46820 | R179: =VLOOKUP($P179,Conc_All!$AA$5:$AY$305,3*($C$8-1)+3) -> 97492 | S179: =VLOOKUP($P179,Conc_All!$AA$5:$AY$305,3*($C$8-1)+4) -> 216640 | T179: =VLOOKUP($P179,Conc_All_SDEIS!$AA$5:$AY$305,3*($C$8-1)+2) -> 20318 | U179: =VLOOKUP($P179,Conc_All_SDEIS!$AA$5:$AY$305,3*($C$8-1)+3) -> 43316 | V179: =VLOOKUP($P179,Conc_All_SDEIS!$AA$5:$AY$305,3*($C$8-1)+4) -> 82409
H180: 154 | I180: =VLOOKUP($H180,Conc_All!$A$5:$Y$204,3*($C$8-1)+2) -> 2.4572e-18 | J180: =VLOOKUP($H180,Conc_All!$A$5:$Y$204,3*($C$8-1)+3) -> 8.3389e-18 | K180: =VLOOKUP($H180,Conc_All!$A$5:$Y$204,3*($C$8-1)+4) -> 2.1799e-17 | L180: =VLOOKUP($H180,Conc_All_SDEIS!$A$5:$Y$204,3*($C$8-1)+2) -> 2.6698e-18 | M180: =VLOOKUP($H180,Conc_All_SDEIS!$A$5:$Y$204,3*($C$8-1)+3) -> 6.2032e-18 | N180: =VLOOKUP($H180,Conc_All_SDEIS!$A$5:$Y$204,3*($C$8-1)+4) -> 1.2549e-17 | P180: 12.83333333 | Q180: =VLOOKUP($P180,Conc_All!$AA$5:$AY$305,3*($C$8-1)+2) -> 55429 | R180: =VLOOKUP($P180,Conc_All!$AA$5:$AY$305,3*($C$8-1)+3) -> 118210 | S180: =VLOOKUP($P180,Conc_All!$AA$5:$AY$305,3*($C$8-1)+4) -> 251970 | T180: =VLOOKUP($P180,Conc_All_SDEIS!$AA$5:$AY$305,3*($C$8-1)+2) -> 23307 | U180: =VLOOKUP($P180,Conc_All_SDEIS!$AA$5:$AY$305,3*($C$8-1)+3) -> 49789 | V180: =VLOOKUP($P180,Conc_All_SDEIS!$AA$5:$AY$305,3*($C$8-1)+4) -> 94637
H181: 155 | I181: =VLOOKUP($H181,Conc_All!$A$5:$Y$204,3*($C$8-1)+2) -> 2.4572e-18 | J181: =VLOOKUP($H181,Conc_All!$A$5:$Y$204,3*($C$8-1)+3) -> 8.3389e-18 | K181: =VLOOKUP($H181,Conc_All!$A$5:$Y$204,3*($C$8-1)+4) -> 2.1799e-17 | L181: =VLOOKUP($H181,Conc_All_SDEIS!$A$5:$Y$204,3*($C$8-1)+2) -> 2.6698e-18 | M181: =VLOOKUP($H181,Conc_All_SDEIS!$A$5:$Y$204,3*($C$8-1)+3) -> 6.2032e-18 | N181: =VLOOKUP($H181,Conc_All_SDEIS!$A$5:$Y$204,3*($C$8-1)+4) -> 1.2549e-17 | P181: 12.91666667 | Q181: =VLOOKUP($P181,Conc_All!$AA$5:$AY$305,3*($C$8-1)+2) -> 201540 | R181: =VLOOKUP($P181,Conc_All!$AA$5:$AY$305,3*($C$8-1)+3) -> 458070 | S181: =VLOOKUP($P181,Conc_All!$AA$5:$AY$305,3*($C$8-1)+4) -> 880510 | T181: =VLOOKUP($P181,Conc_All_SDEIS!$AA$5:$AY$305,3*($C$8-1)+2) -> 80527 | U181: =VLOOKUP($P181,Conc_All_SDEIS!$AA$5:$AY$305,3*($C$8-1)+3) -> 190030 | V181: =VLOOKUP($P181,Conc_All_SDEIS!$AA$5:$AY$305,3*($C$8-1)+4) -> 381200
H182: 156 | I182: =VLOOKUP($H182,Conc_All!$A$5:$Y$204,3*($C$8-1)+2) -> 2.4572e-18 | J182: =VLOOKUP($H182,Conc_All!$A$5:$Y$204,3*($C$8-1)+3) -> 8.3389e-18 | K182: =VLOOKUP($H182,Conc_All!$A$5:$Y$204,3*($C$8-1)+4) -> 2.1799e-17 | L182: =VLOOKUP($H182,Conc_All_SDEIS!$A$5:$Y$204,3*($C$8-1)+2) -> 2.6698e-18 | M182: =VLOOKUP($H182,Conc_All_SDEIS!$A$5:$Y$204,3*($C$8-1)+3) -> 6.2032e-18 | N182: =VLOOKUP($H182,Conc_All_SDEIS!$A$5:$Y$204,3*($C$8-1)+4) -> 1.2549e-17 | P182: 13 | Q182: =VLOOKUP($P182,Conc_All!$AA$5:$AY$305,3*($C$8-1)+2) -> 251080 | R182: =VLOOKUP($P182,Conc_All!$AA$5:$AY$305,3*($C$8-1)+3) -> 485970 | S182: =VLOOKUP($P182,Conc_All!$AA$5:$AY$305,3*($C$8-1)+4) -> 762680 | T182: =VLOOKUP($P182,Conc_All_SDEIS!$AA$5:$AY$305,3*($C$8-1)+2) -> 75322 | U182: =VLOOKUP($P182,Conc_All_SDEIS!$AA$5:$AY$305,3*($C$8-1)+3) -> 179330 | V182: =VLOOKUP($P182,Conc_All_SDEIS!$AA$5:$AY$305,3*($C$8-1)+4) -> 368150
H183: 157 | I183: =VLOOKUP($H183,Conc_All!$A$5:$Y$204,3*($C$8-1)+2) -> 2.4572e-18 | J183: =VLOOKUP($H183,Conc_All!$A$5:$Y$204,3*($C$8-1)+3) -> 8.3389e-18 | K183: =VLOOKUP($H183,Conc_All!$A$5:$Y$204,3*($C$8-1)+4) -> 2.1799e-17 | L183: =VLOOKUP($H183,Conc_All_SDEIS!$A$5:$Y$204,3*($C$8-1)+2) -> 2.6698e-18 | M183: =VLOOKUP($H183,Conc_All_SDEIS!$A$5:$Y$204,3*($C$8-1)+3) -> 6.2032e-18 | N183: =VLOOKUP($H183,Conc_All_SDEIS!$A$5:$Y$204,3*($C$8-1)+4) -> 1.2549e-17 | P183: 13.08333333 | Q183: =VLOOKUP($P183,Conc_All!$AA$5:$AY$305,3*($C$8-1)+2) -> 228210 | R183: =VLOOKUP($P183,Conc_All!$AA$5:$AY$305,3*($C$8-1)+3) -> 475000 | S183: =VLOOKUP($P183,Conc_All!$AA$5:$AY$305,3*($C$8-1)+4) -> 728330 | T183: =VLOOKUP($P183,Conc_All_SDEIS!$AA$5:$AY$305,3*($C$8-1)+2) -> 72508 | U183: =VLOOKUP($P183,Conc_All_SDEIS!$AA$5:$AY$305,3*($C$8-1)+3) -> 167840 | V183: =VLOOKUP($P183,Conc_All_SDEIS!$AA$5:$AY$305,3*($C$8-1)+4) -> 340970
H184: 158 | I184: =VLOOKUP($H184,Conc_All!$A$5:$Y$204,3*($C$8-1)+2) -> 2.4572e-18 | J184: =VLOOKUP($H184,Conc_All!$A$5:$Y$204,3*($C$8-1)+3) -> 8.3389e-18 | K184: =VLOOKUP($H184,Conc_All!$A$5:$Y$204,3*($C$8-1)+4) -> 2.1799e-17 | L184: =VLOOKUP($H184,Conc_All_SDEIS!$A$5:$Y$204,3*($C$8-1)+2) -> 2.6698e-18 | M184: =VLOOKUP($H184,Conc_All_SDEIS!$A$5:$Y$204,3*($C$8-1)+3) -> 6.2032e-18 | N184: =VLOOKUP($H184,Conc_All_SDEIS!$A$5:$Y$204,3*($C$8-1)+4) -> 1.2549e-17 | P184: 13.16666667 | Q184: =VLOOKUP($P184,Conc_All!$AA$5:$AY$305,3*($C$8-1)+2) -> 207370 | R184: =VLOOKUP($P184,Conc_All!$AA$5:$AY$305,3*($C$8-1)+3) -> 430110 | S184: =VLOOKUP($P184,Conc_All!$AA$5:$AY$305,3*($C$8-1)+4) -> 676470 | T184: =VLOOKUP($P184,Conc_All_SDEIS!$AA$5:$AY$305,3*($C$8-1)+2) -> 68966 | U184: =VLOOKUP($P184,Conc_All_SDEIS!$AA$5:$AY$305,3*($C$8-1)+3) -> 157720 | V184: =VLOOKUP($P184,Conc_All_SDEIS!$AA$5:$AY$305,3*($C$8-1)+4) -> 315080
H185: 159 | I185: =VLOOKUP($H185,Conc_All!$A$5:$Y$204,3*($C$8-1)+2) -> 2.4572e-18 | J185: =VLOOKUP($H185,Conc_All!$A$5:$Y$204,3*($C$8-1)+3) -> 8.3389e-18 | K185: =VLOOKUP($H185,Conc_All!$A$5:$Y$204,3*($C$8-1)+4) -> 2.1799e-17 | L185: =VLOOKUP($H185,Conc_All_SDEIS!$A$5:$Y$204,3*($C$8-1)+2) -> 2.6698e-18 | M185: =VLOOKUP($H185,Conc_All_SDEIS!$A$5:$Y$204,3*($C$8-1)+3) -> 6.2032e-18 | N185: =VLOOKUP($H185,Conc_All_SDEIS!$A$5:$Y$204,3*($C$8-1)+4) -> 1.2549e-17 | P185: 13.25 | Q185: =VLOOKUP($P185,Conc_All!$AA$5:$AY$305,3*($C$8-1)+2) -> 225570 | R185: =VLOOKUP($P185,Conc_All!$AA$5:$AY$305,3*($C$8-1)+3) -> 497330 | S185: =VLOOKUP($P185,Conc_All!$AA$5:$AY$305,3*($C$8-1)+4) -> 770280 | T185: =VLOOKUP($P185,Conc_All_SDEIS!$AA$5:$AY$305,3*($C$8-1)+2) -> 73749 | U185: =VLOOKUP($P185,Conc_All_SDEIS!$AA$5:$AY$305,3*($C$8-1)+3) -> 171180 | V185: =VLOOKUP($P185,Conc_All_SDEIS!$AA$5:$AY$305,3*($C$8-1)+4) -> 341950
H186: 160 | I186: =VLOOKUP($H186,Conc_All!$A$5:$Y$204,3*($C$8-1)+2) -> 2.4572e-18 | J186: =VLOOKUP($H186,Conc_All!$A$5:$Y$204,3*($C$8-1)+3) -> 8.3389e-18 | K186: =VLOOKUP($H186,Conc_All!$A$5:$Y$204,3*($C$8-1)+4) -> 2.1799e-17 | L186: =VLOOKUP($H186,Conc_All_SDEIS!$A$5:$Y$204,3*($C$8-1)+2) -> 2.6698e-18 | M186: =VLOOKUP($H186,Conc_All_SDEIS!$A$5:$Y$204,3*($C$8-1)+3) -> 6.2032e-18 | N186: =VLOOKUP($H186,Conc_All_SDEIS!$A$5:$Y$204,3*($C$8-1)+4) -> 1.2549e-17 | P186: 13.33333333 | Q186: =VLOOKUP($P186,Conc_All!$AA$5:$AY$305,3*($C$8-1)+2) -> 29382 | R186: =VLOOKUP($P186,Conc_All!$AA$5:$AY$305,3*($C$8-1)+3) -> 76219 | S186: =VLOOKUP($P186,Conc_All!$AA$5:$AY$305,3*($C$8-1)+4) -> 116970 | T186: =VLOOKUP($P186,Conc_All_SDEIS!$AA$5:$AY$305,3*($C$8-1)+2) -> 10565 | U186: =VLOOKUP($P186,Conc_All_SDEIS!$AA$5:$AY$305,3*($C$8-1)+3) -> 21860 | V186: =VLOOKUP($P186,Conc_All_SDEIS!$AA$5:$AY$305,3*($C$8-1)+4) -> 42529
H187: 161 | I187: =VLOOKUP($H187,Conc_All!$A$5:$Y$204,3*($C$8-1)+2) -> 2.4572e-18 | J187: =VLOOKUP($H187,Conc_All!$A$5:$Y$204,3*($C$8-1)+3) -> 8.3389e-18 | K187: =VLOOKUP($H187,Conc_All!$A$5:$Y$204,3*($C$8-1)+4) -> 2.1799e-17 | L187: =VLOOKUP($H187,Conc_All_SDEIS!$A$5:$Y$204,3*($C$8-1)+2) -> 2.6698e-18 | M187: =VLOOKUP($H187,Conc_All_SDEIS!$A$5:$Y$204,3*($C$8-1)+3) -> 6.2032e-18 | N187: =VLOOKUP($H187,Conc_All_SDEIS!$A$5:$Y$204,3*($C$8-1)+4) -> 1.2549e-17 | P187: 13.41666667 | Q187: =VLOOKUP($P187,Conc_All!$AA$5:$AY$305,3*($C$8-1)+2) -> 49979 | R187: =VLOOKUP($P187,Conc_All!$AA$5:$AY$305,3*($C$8-1)+3) -> 119810 | S187: =VLOOKUP($P187,Conc_All!$AA$5:$AY$305,3*($C$8-1)+4) -> 307720 | T187: =VLOOKUP($P187,Conc_All_SDEIS!$AA$5:$AY$305,3*($C$8-1)+2) -> 22616 | U187: =VLOOKUP($P187,Conc_All_SDEIS!$AA$5:$AY$305,3*($C$8-1)+3) -> 46578 | V187: =VLOOKUP($P187,Conc_All_SDEIS!$AA$5:$AY$305,3*($C$8-1)+4) -> 90089
H188: 162 | I188: =VLOOKUP($H188,Conc_All!$A$5:$Y$204,3*($C$8-1)+2) -> 2.4572e-18 | J188: =VLOOKUP($H188,Conc_All!$A$5:$Y$204,3*($C$8-1)+3) -> 8.3389e-18 | K188: =VLOOKUP($H188,Conc_All!$A$5:$Y$204,3*($C$8-1)+4) -> 2.1799e-17 | L188: =VLOOKUP($H188,Conc_All_SDEIS!$A$5:$Y$204,3*($C$8-1)+2) -> 2.6698e-18 | M188: =VLOOKUP($H188,Conc_All_SDEIS!$A$5:$Y$204,3*($C$8-1)+3) -> 6.2032e-18 | N188: =VLOOKUP($H188,Conc_All_SDEIS!$A$5:$Y$204,3*($C$8-1)+4) -> 1.2549e-17 | P188: 13.5 | Q188: =VLOOKUP($P188,Conc_All!$AA$5:$AY$305,3*($C$8-1)+2) -> 42299 | R188: =VLOOKUP($P188,Conc_All!$AA$5:$AY$305,3*($C$8-1)+3) -> 94122 | S188: =VLOOKUP($P188,Conc_All!$AA$5:$AY$305,3*($C$8-1)+4) -> 293780 | T188: =VLOOKUP($P188,Conc_All_SDEIS!$AA$5:$AY$305,3*($C$8-1)+2) -> 20845 | U188: =VLOOKUP($P188,Conc_All_SDEIS!$AA$5:$AY$305,3*($C$8-1)+3) -> 43552 | V188: =VLOOKUP($P188,Conc_All_SDEIS!$AA$5:$AY$305,3*($C$8-1)+4) -> 84215
H189: 163 | I189: =VLOOKUP($H189,Conc_All!$A$5:$Y$204,3*($C$8-1)+2) -> 2.4572e-18 | J189: =VLOOKUP($H189,Conc_All!$A$5:$Y$204,3*($C$8-1)+3) -> 8.3389e-18 | K189: =VLOOKUP($H189,Conc_All!$A$5:$Y$204,3*($C$8-1)+4) -> 2.1799e-17 | L189: =VLOOKUP($H189,Conc_All_SDEIS!$A$5:$Y$204,3*($C$8-1)+2) -> 2.6698e-18 | M189: =VLOOKUP($H189,Conc_All_SDEIS!$A$5:$Y$204,3*($C$8-1)+3) -> 6.2032e-18 | N189: =VLOOKUP($H189,Conc_All_SDEIS!$A$5:$Y$204,3*($C$8-1)+4) -> 1.2549e-17 | P189: 13.58333333 | Q189: =VLOOKUP($P189,Conc_All!$AA$5:$AY$305,3*($C$8-1)+2) -> 40375 | R189: =VLOOKUP($P189,Conc_All!$AA$5:$AY$305,3*($C$8-1)+3) -> 87443 | S189: =VLOOKUP($P189,Conc_All!$AA$5:$AY$305,3*($C$8-1)+4) -> 261990 | T189: =VLOOKUP($P189,Conc_All_SDEIS!$AA$5:$AY$305,3*($C$8-1)+2) -> 20813 | U189: =VLOOKUP($P189,Conc_All_SDEIS!$AA$5:$AY$305,3*($C$8-1)+3) -> 43470 | V189: =VLOOKUP($P189,Conc_All_SDEIS!$AA$5:$AY$305,3*($C$8-1)+4) -> 83966
H190: 164 | I190: =VLOOKUP($H190,Conc_All!$A$5:$Y$204,3*($C$8-1)+2) -> 2.4572e-18 | J190: =VLOOKUP($H190,Conc_All!$A$5:$Y$204,3*($C$8-1)+3) -> 8.3389e-18 | K190: =VLOOKUP($H190,Conc_All!$A$5:$Y$204,3*($C$8-1)+4) -> 2.1799e-17 | L190: =VLOOKUP($H190,Conc_All_SDEIS!$A$5:$Y$204,3*($C$8-1)+2) -> 2.6698e-18 | M190: =VLOOKUP($H190,Conc_All_SDEIS!$A$5:$Y$204,3*($C$8-1)+3) -> 6.2032e-18 | N190: =VLOOKUP($H190,Conc_All_SDEIS!$A$5:$Y$204,3*($C$8-1)+4) -> 1.2549e-17 | P190: 13.66666667 | Q190: =VLOOKUP($P190,Conc_All!$AA$5:$AY$305,3*($C$8-1)+2) -> 39998 | R190: =VLOOKUP($P190,Conc_All!$AA$5:$AY$305,3*($C$8-1)+3) -> 85908 | S190: =VLOOKUP($P190,Conc_All!$AA$5:$AY$305,3*($C$8-1)+4) -> 232140 | T190: =VLOOKUP($P190,Conc_All_SDEIS!$AA$5:$AY$305,3*($C$8-1)+2) -> 20891 | U190: =VLOOKUP($P190,Conc_All_SDEIS!$AA$5:$AY$305,3*($C$8-1)+3) -> 43598 | V190: =VLOOKUP($P190,Conc_All_SDEIS!$AA$5:$AY$305,3*($C$8-1)+4) -> 84236
H191: 165 | I191: =VLOOKUP($H191,Conc_All!$A$5:$Y$204,3*($C$8-1)+2) -> 2.4572e-18 | J191: =VLOOKUP($H191,Conc_All!$A$5:$Y$204,3*($C$8-1)+3) -> 8.3389e-18 | K191: =VLOOKUP($H191,Conc_All!$A$5:$Y$204,3*($C$8-1)+4) -> 2.1799e-17 | L191: =VLOOKUP($H191,Conc_All_SDEIS!$A$5:$Y$204,3*($C$8-1)+2) -> 2.6698e-18 | M191: =VLOOKUP($H191,Conc_All_SDEIS!$A$5:$Y$204,3*($C$8-1)+3) -> 6.2032e-18 | N191: =VLOOKUP($H191,Conc_All_SDEIS!$A$5:$Y$204,3*($C$8-1)+4) -> 1.2549e-17 | P191: 13.75 | Q191: =VLOOKUP($P191,Conc_All!$AA$5:$AY$305,3*($C$8-1)+2) -> 40175 | R191: =VLOOKUP($P191,Conc_All!$AA$5:$AY$305,3*($C$8-1)+3) -> 85712 | S191: =VLOOKUP($P191,Conc_All!$AA$5:$AY$305,3*($C$8-1)+4) -> 207040 | T191: =VLOOKUP($P191,Conc_All_SDEIS!$AA$5:$AY$305,3*($C$8-1)+2) -> 21173 | U191: =VLOOKUP($P191,Conc_All_SDEIS!$AA$5:$AY$305,3*($C$8-1)+3) -> 44074 | V191: =VLOOKUP($P191,Conc_All_SDEIS!$AA$5:$AY$305,3*($C$8-1)+4) -> 85379
H192: 166 | I192: =VLOOKUP($H192,Conc_All!$A$5:$Y$204,3*($C$8-1)+2) -> 2.4572e-18 | J192: =VLOOKUP($H192,Conc_All!$A$5:$Y$204,3*($C$8-1)+3) -> 8.3389e-18 | K192: =VLOOKUP($H192,Conc_All!$A$5:$Y$204,3*($C$8-1)+4) -> 2.1799e-17 | L192: =VLOOKUP($H192,Conc_All_SDEIS!$A$5:$Y$204,3*($C$8-1)+2) -> 2.6698e-18 | M192: =VLOOKUP($H192,Conc_All_SDEIS!$A$5:$Y$204,3*($C$8-1)+3) -> 6.2032e-18 | N192: =VLOOKUP($H192,Conc_All_SDEIS!$A$5:$Y$204,3*($C$8-1)+4) -> 1.2549e-17 | P192: 13.83333333 | Q192: =VLOOKUP($P192,Conc_All!$AA$5:$AY$305,3*($C$8-1)+2) -> 46650 | R192: =VLOOKUP($P192,Conc_All!$AA$5:$AY$305,3*($C$8-1)+3) -> 101670 | S192: =VLOOKUP($P192,Conc_All!$AA$5:$AY$305,3*($C$8-1)+4) -> 219440 | T192: =VLOOKUP($P192,Conc_All_SDEIS!$AA$5:$AY$305,3*($C$8-1)+2) -> 24681 | U192: =VLOOKUP($P192,Conc_All_SDEIS!$AA$5:$AY$305,3*($C$8-1)+3) -> 50492 | V192: =VLOOKUP($P192,Conc_All_SDEIS!$AA$5:$AY$305,3*($C$8-1)+4) -> 97365
H193: 167 | I193: =VLOOKUP($H193,Conc_All!$A$5:$Y$204,3*($C$8-1)+2) -> 2.4572e-18 | J193: =VLOOKUP($H193,Conc_All!$A$5:$Y$204,3*($C$8-1)+3) -> 8.3389e-18 | K193: =VLOOKUP($H193,Conc_All!$A$5:$Y$204,3*($C$8-1)+4) -> 2.1799e-17 | L193: =VLOOKUP($H193,Conc_All_SDEIS!$A$5:$Y$204,3*($C$8-1)+2) -> 2.6698e-18 | M193: =VLOOKUP($H193,Conc_All_SDEIS!$A$5:$Y$204,3*($C$8-1)+3) -> 6.2032e-18 | N193: =VLOOKUP($H193,Conc_All_SDEIS!$A$5:$Y$204,3*($C$8-1)+4) -> 1.2549e-17 | P193: 13.91666667 | Q193: =VLOOKUP($P193,Conc_All!$AA$5:$AY$305,3*($C$8-1)+2) -> 176000 | R193: =VLOOKUP($P193,Conc_All!$AA$5:$AY$305,3*($C$8-1)+3) -> 420520 | S193: =VLOOKUP($P193,Conc_All!$AA$5:$AY$305,3*($C$8-1)+4) -> 753300 | T193: =VLOOKUP($P193,Conc_All_SDEIS!$AA$5:$AY$305,3*($C$8-1)+2) -> 81954 | U193: =VLOOKUP($P193,Conc_All_SDEIS!$AA$5:$AY$305,3*($C$8-1)+3) -> 191700 | V193: =VLOOKUP($P193,Conc_All_SDEIS!$AA$5:$AY$305,3*($C$8-1)+4) -> 384620
H194: 168 | I194: =VLOOKUP($H194,Conc_All!$A$5:$Y$204,3*($C$8-1)+2) -> 2.4572e-18 | J194: =VLOOKUP($H194,Conc_All!$A$5:$Y$204,3*($C$8-1)+3) -> 8.3389e-18 | K194: =VLOOKUP($H194,Conc_All!$A$5:$Y$204,3*($C$8-1)+4) -> 2.1799e-17 | L194: =VLOOKUP($H194,Conc_All_SDEIS!$A$5:$Y$204,3*($C$8-1)+2) -> 2.6698e-18 | M194: =VLOOKUP($H194,Conc_All_SDEIS!$A$5:$Y$204,3*($C$8-1)+3) -> 6.2032e-18 | N194: =VLOOKUP($H194,Conc_All_SDEIS!$A$5:$Y$204,3*($C$8-1)+4) -> 1.2549e-17 | P194: 14 | Q194: =VLOOKUP($P194,Conc_All!$AA$5:$AY$305,3*($C$8-1)+2) -> 229160 | R194: =VLOOKUP($P194,Conc_All!$AA$5:$AY$305,3*($C$8-1)+3) -> 421590 | S194: =VLOOKUP($P194,Conc_All!$AA$5:$AY$305,3*($C$8-1)+4) -> 639190 | T194: =VLOOKUP($P194,Conc_All_SDEIS!$AA$5:$AY$305,3*($C$8-1)+2) -> 73036 | U194: =VLOOKUP($P194,Conc_All_SDEIS!$AA$5:$AY$305,3*($C$8-1)+3) -> 183580 | V194: =VLOOKUP($P194,Conc_All_SDEIS!$AA$5:$AY$305,3*($C$8-1)+4) -> 373870
H195: 169 | I195: =VLOOKUP($H195,Conc_All!$A$5:$Y$204,3*($C$8-1)+2) -> 2.4572e-18 | J195: =VLOOKUP($H195,Conc_All!$A$5:$Y$204,3*($C$8-1)+3) -> 8.3389e-18 | K195: =VLOOKUP($H195,Conc_All!$A$5:$Y$204,3*($C$8-1)+4) -> 2.1799e-17 | L195: =VLOOKUP($H195,Conc_All_SDEIS!$A$5:$Y$204,3*($C$8-1)+2) -> 2.6698e-18 | M195: =VLOOKUP($H195,Conc_All_SDEIS!$A$5:$Y$204,3*($C$8-1)+3) -> 6.2032e-18 | N195: =VLOOKUP($H195,Conc_All_SDEIS!$A$5:$Y$204,3*($C$8-1)+4) -> 1.2549e-17 | P195: 14.08333333 | Q195: =VLOOKUP($P195,Conc_All!$AA$5:$AY$305,3*($C$8-1)+2) -> 211960 | R195: =VLOOKUP($P195,Conc_All!$AA$5:$AY$305,3*($C$8-1)+3) -> 377170 | S195: =VLOOKUP($P195,Conc_All!$AA$5:$AY$305,3*($C$8-1)+4) -> 583280 | T195: =VLOOKUP($P195,Conc_All_SDEIS!$AA$5:$AY$305,3*($C$8-1)+2) -> 70115 | U195: =VLOOKUP($P195,Conc_All_SDEIS!$AA$5:$AY$305,3*($C$8-1)+3) -> 171160 | V195: =VLOOKUP($P195,Conc_All_SDEIS!$AA$5:$AY$305,3*($C$8-1)+4) -> 343530
H196: 170 | I196: =VLOOKUP($H196,Conc_All!$A$5:$Y$204,3*($C$8-1)+2) -> 2.4572e-18 | J196: =VLOOKUP($H196,Conc_All!$A$5:$Y$204,3*($C$8-1)+3) -> 8.3389e-18 | K196: =VLOOKUP($H196,Conc_All!$A$5:$Y$204,3*($C$8-1)+4) -> 2.1799e-17 | L196: =VLOOKUP($H196,Conc_All_SDEIS!$A$5:$Y$204,3*($C$8-1)+2) -> 2.6698e-18 | M196: =VLOOKUP($H196,Conc_All_SDEIS!$A$5:$Y$204,3*($C$8-1)+3) -> 6.2032e-18 | N196: =VLOOKUP($H196,Conc_All_SDEIS!$A$5:$Y$204,3*($C$8-1)+4) -> 1.2549e-17 | P196: 14.16666667 | Q196: =VLOOKUP($P196,Conc_All!$AA$5:$AY$305,3*($C$8-1)+2) -> 189300 | R196: =VLOOKUP($P196,Conc_All!$AA$5:$AY$305,3*($C$8-1)+3) -> 340540 | S196: =VLOOKUP($P196,Conc_All!$AA$5:$AY$305,3*($C$8-1)+4) -> 517490 | T196: =VLOOKUP($P196,Conc_All_SDEIS!$AA$5:$AY$305,3*($C$8-1)+2) -> 66950 | U196: =VLOOKUP($P196,Conc_All_SDEIS!$AA$5:$AY$305,3*($C$8-1)+3) -> 161160 | V196: =VLOOKUP($P196,Conc_All_SDEIS!$AA$5:$AY$305,3*($C$8-1)+4) -> 324950
H197: 171 | I197: =VLOOKUP($H197,Conc_All!$A$5:$Y$204,3*($C$8-1)+2) -> 2.4572e-18 | J197: =VLOOKUP($H197,Conc_All!$A$5:$Y$204,3*($C$8-1)+3) -> 8.3389e-18 | K197: =VLOOKUP($H197,Conc_All!$A$5:$Y$204,3*($C$8-1)+4) -> 2.1799e-17 | L197: =VLOOKUP($H197,Conc_All_SDEIS!$A$5:$Y$204,3*($C$8-1)+2) -> 2.6698e-18 | M197: =VLOOKUP($H197,Conc_All_SDEIS!$A$5:$Y$204,3*($C$8-1)+3) -> 6.2032e-18 | N197: =VLOOKUP($H197,Conc_All_SDEIS!$A$5:$Y$204,3*($C$8-1)+4) -> 1.2549e-17 | P197: 14.25 | Q197: =VLOOKUP($P197,Conc_All!$AA$5:$AY$305,3*($C$8-1)+2) -> 208460 | R197: =VLOOKUP($P197,Conc_All!$AA$5:$AY$305,3*($C$8-1)+3) -> 383560 | S197: =VLOOKUP($P197,Conc_All!$AA$5:$AY$305,3*($C$8-1)+4) -> 596300 | T197: =VLOOKUP($P197,Conc_All_SDEIS!$AA$5:$AY$305,3*($C$8-1)+2) -> 71438 | U197: =VLOOKUP($P197,Conc_All_SDEIS!$AA$5:$AY$305,3*($C$8-1)+3) -> 174800 | V197: =VLOOKUP($P197,Conc_All_SDEIS!$AA$5:$AY$305,3*($C$8-1)+4) -> 353860
H198: 172 | I198: =VLOOKUP($H198,Conc_All!$A$5:$Y$204,3*($C$8-1)+2) -> 2.4572e-18 | J198: =VLOOKUP($H198,Conc_All!$A$5:$Y$204,3*($C$8-1)+3) -> 8.3389e-18 | K198: =VLOOKUP($H198,Conc_All!$A$5:$Y$204,3*($C$8-1)+4) -> 2.1799e-17 | L198: =VLOOKUP($H198,Conc_All_SDEIS!$A$5:$Y$204,3*($C$8-1)+2) -> 2.6698e-18 | M198: =VLOOKUP($H198,Conc_All_SDEIS!$A$5:$Y$204,3*($C$8-1)+3) -> 6.2032e-18 | N198: =VLOOKUP($H198,Conc_All_SDEIS!$A$5:$Y$204,3*($C$8-1)+4) -> 1.2549e-17 | P198: 14.33333333 | Q198: =VLOOKUP($P198,Conc_All!$AA$5:$AY$305,3*($C$8-1)+2) -> 25222 | R198: =VLOOKUP($P198,Conc_All!$AA$5:$AY$305,3*($C$8-1)+3) -> 59727 | S198: =VLOOKUP($P198,Conc_All!$AA$5:$AY$305,3*($C$8-1)+4) -> 93695 | T198: =VLOOKUP($P198,Conc_All_SDEIS!$AA$5:$AY$305,3*($C$8-1)+2) -> 10412 | U198: =VLOOKUP($P198,Conc_All_SDEIS!$AA$5:$AY$305,3*($C$8-1)+3) -> 22168 | V198: =VLOOKUP($P198,Conc_All_SDEIS!$AA$5:$AY$305,3*($C$8-1)+4) -> 43067
H199: 173 | I199: =VLOOKUP($H199,Conc_All!$A$5:$Y$204,3*($C$8-1)+2) -> 2.4572e-18 | J199: =VLOOKUP($H199,Conc_All!$A$5:$Y$204,3*($C$8-1)+3) -> 8.3389e-18 | K199: =VLOOKUP($H199,Conc_All!$A$5:$Y$204,3*($C$8-1)+4) -> 2.1799e-17 | L199: =VLOOKUP($H199,Conc_All_SDEIS!$A$5:$Y$204,3*($C$8-1)+2) -> 2.6698e-18 | M199: =VLOOKUP($H199,Conc_All_SDEIS!$A$5:$Y$204,3*($C$8-1)+3) -> 6.2032e-18 | N199: =VLOOKUP($H199,Conc_All_SDEIS!$A$5:$Y$204,3*($C$8-1)+4) -> 1.2549e-17 | P199: 14.41666667 | Q199: =VLOOKUP($P199,Conc_All!$AA$5:$AY$305,3*($C$8-1)+2) -> 44453 | R199: =VLOOKUP($P199,Conc_All!$AA$5:$AY$305,3*($C$8-1)+3) -> 101400 | S199: =VLOOKUP($P199,Conc_All!$AA$5:$AY$305,3*($C$8-1)+4) -> 247480 | T199: =VLOOKUP($P199,Conc_All_SDEIS!$AA$5:$AY$305,3*($C$8-1)+2) -> 21783 | U199: =VLOOKUP($P199,Conc_All_SDEIS!$AA$5:$AY$305,3*($C$8-1)+3) -> 46862 | V199: =VLOOKUP($P199,Conc_All_SDEIS!$AA$5:$AY$305,3*($C$8-1)+4) -> 93900
H200: 174 | I200: =VLOOKUP($H200,Conc_All!$A$5:$Y$204,3*($C$8-1)+2) -> 2.4572e-18 | J200: =VLOOKUP($H200,Conc_All!$A$5:$Y$204,3*($C$8-1)+3) -> 8.3389e-18 | K200: =VLOOKUP($H200,Conc_All!$A$5:$Y$204,3*($C$8-1)+4) -> 2.1799e-17 | L200: =VLOOKUP($H200,Conc_All_SDEIS!$A$5:$Y$204,3*($C$8-1)+2) -> 2.6698e-18 | M200: =VLOOKUP($H200,Conc_All_SDEIS!$A$5:$Y$204,3*($C$8-1)+3) -> 6.2032e-18 | N200: =VLOOKUP($H200,Conc_All_SDEIS!$A$5:$Y$204,3*($C$8-1)+4) -> 1.2549e-17 | P200: 14.5 | Q200: =VLOOKUP($P200,Conc_All!$AA$5:$AY$305,3*($C$8-1)+2) -> 37872 | R200: =VLOOKUP($P200,Conc_All!$AA$5:$AY$305,3*($C$8-1)+3) -> 78861 | S200: =VLOOKUP($P200,Conc_All!$AA$5:$AY$305,3*($C$8-1)+4) -> 233930 | T200: =VLOOKUP($P200,Conc_All_SDEIS!$AA$5:$AY$305,3*($C$8-1)+2) -> 20314 | U200: =VLOOKUP($P200,Conc_All_SDEIS!$AA$5:$AY$305,3*($C$8-1)+3) -> 43518 | V200: =VLOOKUP($P200,Conc_All_SDEIS!$AA$5:$AY$305,3*($C$8-1)+4) -> 87541
H201: 175 | I201: =VLOOKUP($H201,Conc_All!$A$5:$Y$204,3*($C$8-1)+2) -> 2.4572e-18 | J201: =VLOOKUP($H201,Conc_All!$A$5:$Y$204,3*($C$8-1)+3) -> 8.3389e-18 | K201: =VLOOKUP($H201,Conc_All!$A$5:$Y$204,3*($C$8-1)+4) -> 2.1799e-17 | L201: =VLOOKUP($H201,Conc_All_SDEIS!$A$5:$Y$204,3*($C$8-1)+2) -> 2.6698e-18 | M201: =VLOOKUP($H201,Conc_All_SDEIS!$A$5:$Y$204,3*($C$8-1)+3) -> 6.2032e-18 | N201: =VLOOKUP($H201,Conc_All_SDEIS!$A$5:$Y$204,3*($C$8-1)+4) -> 1.2549e-17 | P201: 14.58333333 | Q201: =VLOOKUP($P201,Conc_All!$AA$5:$AY$305,3*($C$8-1)+2) -> 37011 | R201: =VLOOKUP($P201,Conc_All!$AA$5:$AY$305,3*($C$8-1)+3) -> 74258 | S201: =VLOOKUP($P201,Conc_All!$AA$5:$AY$305,3*($C$8-1)+4) -> 200780 | T201: =VLOOKUP($P201,Conc_All_SDEIS!$AA$5:$AY$305,3*($C$8-1)+2) -> 20278 | U201: =VLOOKUP($P201,Conc_All_SDEIS!$AA$5:$AY$305,3*($C$8-1)+3) -> 43405 | V201: =VLOOKUP($P201,Conc_All_SDEIS!$AA$5:$AY$305,3*($C$8-1)+4) -> 87301
H202: 176 | I202: =VLOOKUP($H202,Conc_All!$A$5:$Y$204,3*($C$8-1)+2) -> 2.4572e-18 | J202: =VLOOKUP($H202,Conc_All!$A$5:$Y$204,3*($C$8-1)+3) -> 8.3389e-18 | K202: =VLOOKUP($H202,Conc_All!$A$5:$Y$204,3*($C$8-1)+4) -> 2.1799e-17 | L202: =VLOOKUP($H202,Conc_All_SDEIS!$A$5:$Y$204,3*($C$8-1)+2) -> 2.6698e-18 | M202: =VLOOKUP($H202,Conc_All_SDEIS!$A$5:$Y$204,3*($C$8-1)+3) -> 6.2032e-18 | N202: =VLOOKUP($H202,Conc_All_SDEIS!$A$5:$Y$204,3*($C$8-1)+4) -> 1.2549e-17 | P202: 14.66666667 | Q202: =VLOOKUP($P202,Conc_All!$AA$5:$AY$305,3*($C$8-1)+2) -> 36693 | R202: =VLOOKUP($P202,Conc_All!$AA$5:$AY$305,3*($C$8-1)+3) -> 72076 | S202: =VLOOKUP($P202,Conc_All!$AA$5:$AY$305,3*($C$8-1)+4) -> 170310 | T202: =VLOOKUP($P202,Conc_All_SDEIS!$AA$5:$AY$305,3*($C$8-1)+2) -> 20365 | U202: =VLOOKUP($P202,Conc_All_SDEIS!$AA$5:$AY$305,3*($C$8-1)+3) -> 43576 | V202: =VLOOKUP($P202,Conc_All_SDEIS!$AA$5:$AY$305,3*($C$8-1)+4) -> 87557
H203: 177 | I203: =VLOOKUP($H203,Conc_All!$A$5:$Y$204,3*($C$8-1)+2) -> 2.4572e-18 | J203: =VLOOKUP($H203,Conc_All!$A$5:$Y$204,3*($C$8-1)+3) -> 8.3389e-18 | K203: =VLOOKUP($H203,Conc_All!$A$5:$Y$204,3*($C$8-1)+4) -> 2.1799e-17 | L203: =VLOOKUP($H203,Conc_All_SDEIS!$A$5:$Y$204,3*($C$8-1)+2) -> 2.6698e-18 | M203: =VLOOKUP($H203,Conc_All_SDEIS!$A$5:$Y$204,3*($C$8-1)+3) -> 6.2032e-18 | N203: =VLOOKUP($H203,Conc_All_SDEIS!$A$5:$Y$204,3*($C$8-1)+4) -> 1.2549e-17 | P203: 14.75 | Q203: =VLOOKUP($P203,Conc_All!$AA$5:$AY$305,3*($C$8-1)+2) -> 36673 | R203: =VLOOKUP($P203,Conc_All!$AA$5:$AY$305,3*($C$8-1)+3) -> 71040 | S203: =VLOOKUP($P203,Conc_All!$AA$5:$AY$305,3*($C$8-1)+4) -> 150570 | T203: =VLOOKUP($P203,Conc_All_SDEIS!$AA$5:$AY$305,3*($C$8-1)+2) -> 20663 | U203: =VLOOKUP($P203,Conc_All_SDEIS!$AA$5:$AY$305,3*($C$8-1)+3) -> 44147 | V203: =VLOOKUP($P203,Conc_All_SDEIS!$AA$5:$AY$305,3*($C$8-1)+4) -> 88634
H204: 178 | I204: =VLOOKUP($H204,Conc_All!$A$5:$Y$204,3*($C$8-1)+2) -> 2.4572e-18 | J204: =VLOOKUP($H204,Conc_All!$A$5:$Y$204,3*($C$8-1)+3) -> 8.3389e-18 | K204: =VLOOKUP($H204,Conc_All!$A$5:$Y$204,3*($C$8-1)+4) -> 2.1799e-17 | L204: =VLOOKUP($H204,Conc_All_SDEIS!$A$5:$Y$204,3*($C$8-1)+2) -> 2.6698e-18 | M204: =VLOOKUP($H204,Conc_All_SDEIS!$A$5:$Y$204,3*($C$8-1)+3) -> 6.2032e-18 | N204: =VLOOKUP($H204,Conc_All_SDEIS!$A$5:$Y$204,3*($C$8-1)+4) -> 1.2549e-17 | P204: 14.83333333 | Q204: =VLOOKUP($P204,Conc_All!$AA$5:$AY$305,3*($C$8-1)+2) -> 42537 | R204: =VLOOKUP($P204,Conc_All!$AA$5:$AY$305,3*($C$8-1)+3) -> 82905 | S204: =VLOOKUP($P204,Conc_All!$AA$5:$AY$305,3*($C$8-1)+4) -> 167930 | T204: =VLOOKUP($P204,Conc_All_SDEIS!$AA$5:$AY$305,3*($C$8-1)+2) -> 23737 | U204: =VLOOKUP($P204,Conc_All_SDEIS!$AA$5:$AY$305,3*($C$8-1)+3) -> 50617 | V204: =VLOOKUP($P204,Conc_All_SDEIS!$AA$5:$AY$305,3*($C$8-1)+4) -> 101910
H205: 179 | I205: =VLOOKUP($H205,Conc_All!$A$5:$Y$204,3*($C$8-1)+2) -> 2.4572e-18 | J205: =VLOOKUP($H205,Conc_All!$A$5:$Y$204,3*($C$8-1)+3) -> 8.3389e-18 | K205: =VLOOKUP($H205,Conc_All!$A$5:$Y$204,3*($C$8-1)+4) -> 2.1799e-17 | L205: =VLOOKUP($H205,Conc_All_SDEIS!$A$5:$Y$204,3*($C$8-1)+2) -> 2.6698e-18 | M205: =VLOOKUP($H205,Conc_All_SDEIS!$A$5:$Y$204,3*($C$8-1)+3) -> 6.2032e-18 | N205: =VLOOKUP($H205,Conc_All_SDEIS!$A$5:$Y$204,3*($C$8-1)+4) -> 1.2549e-17 | P205: 14.91666667 | Q205: =VLOOKUP($P205,Conc_All!$AA$5:$AY$305,3*($C$8-1)+2) -> 167100 | R205: =VLOOKUP($P205,Conc_All!$AA$5:$AY$305,3*($C$8-1)+3) -> 322500 | S205: =VLOOKUP($P205,Conc_All!$AA$5:$AY$305,3*($C$8-1)+4) -> 615720 | T205: =VLOOKUP($P205,Conc_All_SDEIS!$AA$5:$AY$305,3*($C$8-1)+2) -> 80395 | U205: =VLOOKUP($P205,Conc_All_SDEIS!$AA$5:$AY$305,3*($C$8-1)+3) -> 196370 | V205: =VLOOKUP($P205,Conc_All_SDEIS!$AA$5:$AY$305,3*($C$8-1)+4) -> 397690
H206: 180 | I206: =VLOOKUP($H206,Conc_All!$A$5:$Y$204,3*($C$8-1)+2) -> 2.4572e-18 | J206: =VLOOKUP($H206,Conc_All!$A$5:$Y$204,3*($C$8-1)+3) -> 8.3389e-18 | K206: =VLOOKUP($H206,Conc_All!$A$5:$Y$204,3*($C$8-1)+4) -> 2.1799e-17 | L206: =VLOOKUP($H206,Conc_All_SDEIS!$A$5:$Y$204,3*($C$8-1)+2) -> 2.6698e-18 | M206: =VLOOKUP($H206,Conc_All_SDEIS!$A$5:$Y$204,3*($C$8-1)+3) -> 6.2032e-18 | N206: =VLOOKUP($H206,Conc_All_SDEIS!$A$5:$Y$204,3*($C$8-1)+4) -> 1.2549e-17 | P206: 15 | Q206: =VLOOKUP($P206,Conc_All!$AA$5:$AY$305,3*($C$8-1)+2) -> 184480 | R206: =VLOOKUP($P206,Conc_All!$AA$5:$AY$305,3*($C$8-1)+3) -> 326790 | S206: =VLOOKUP($P206,Conc_All!$AA$5:$AY$305,3*($C$8-1)+4) -> 496990 | T206: =VLOOKUP($P206,Conc_All_SDEIS!$AA$5:$AY$305,3*($C$8-1)+2) -> 78612 | U206: =VLOOKUP($P206,Conc_All_SDEIS!$AA$5:$AY$305,3*($C$8-1)+3) -> 183380 | V206: =VLOOKUP($P206,Conc_All_SDEIS!$AA$5:$AY$305,3*($C$8-1)+4) -> 372890
... 120 more rows

Sheet Conc_All
B1: Values shown for constituent selected on PlotControl tab | AB1: Values shown for constituent selected on PlotControl tab
B2: =PlotControl!$A$15 -> Category 2/3 Stockpile Drainage | E2: =PlotControl!$A$16 -> Category 4 Stockpile Drainage | H2: =PlotControl!$A$17 -> Ore Surge Pile Drainage | K2: =PlotControl!$A$18 -> OSLA Runoff | N2: =PlotControl!$A$19 -> Rail Transfer Hopper Runoff | Q2: =PlotControl!$A$20 -> Haul Road Runoff | T2: =PlotControl!$A$21 -> East Pit Sump Dewatering | W2: =PlotControl!$A$22 -> CPS Pond | AB2: =PlotControl!$A$15 -> Category 2/3 Stockpile Drainage | AE2: =PlotControl!$A$16 -> Category 4 Stockpile Drainage | AH2: =PlotControl!$A$17 -> Ore Surge Pile Drainage | AK2: =PlotControl!$A$18 -> OSLA Runoff | AN2: =PlotControl!$A$19 -> Rail Transfer Hopper Runoff | AQ2: =PlotControl!$A$20 -> Haul Road Runoff | AT2: =PlotControl!$A$21 -> East Pit Sump Dewatering | AW2: =PlotControl!$A$22 -> CPS Pond
B3: Annual Project Results | E3: Annual Project Results | H3: Annual Project Results | K3: Annual Project Results | N3: Annual Project Results | Q3: Annual Project Results | T3: Annual Project Results | W3: Annual Project Results | AB3: Monthly Project Results | AE3: Monthly Project Results | AH3: Monthly Project Results | AK3: Monthly Project Results | AN3: Monthly Project Results | AQ3: Monthly Project Results | AT3: Monthly Project Results | AW3: Monthly Project Results
A4: Time | B4: P10 | C4: P50 | D4: P90 | E4: P10 | F4: P50 | G4: P90 | H4: P10 | I4: P50 | J4: P90 | K4: P10 | L4: P50 | M4: P90 | N4: P10 | O4: P50 | P4: P90 | Q4: P10 | R4: P50 | S4: P90 | T4: P10 | U4: P50 | V4: P90 | W4: P10 | X4: P50 | Y4: P90 | AA4: Time | AB4: P10 | AC4: P50 | AD4: P90 | AE4: P10 | AF4: P50 | AG4: P90 | AH4: P10 | AI4: P50 | AJ4: P90 | AK4: P10 | AL4: P50 | AM4: P90 | AN4: P10 | AO4: P50 | AP4: P90 | AQ4: P10 | AR4: P50 | AS4: P90 | AT4: P10 | AU4: P50 | AV4: P90 | AW4: P10 | AX4: P50 | AY4: P90
A5: 1 | B5: =IF(PlotControl!$B$4 = "Annual Max",MAX(OFFSET(Cat23SP_Conc!$C$10,12*($A5-1),4*(PlotControl!$C$6-1),12,1)),AVERAGE(OFFSET(Cat23SP_Conc!$C$10,12*($A5-1),4*(PlotControl!$C$6-1),12,1))) -> 517400 | C5: =IF(PlotControl!$B$4 = "Annual Max",MAX(OFFSET(Cat23SP_Conc!$D$10,12*($A5-1),4*(PlotControl!$C$6-1),12,1)),AVERAGE(OFFSET(Cat23SP_Conc!$D$10,12*($A5-1),4*(PlotControl!$C$6-1),12,1))) -> 1041500 | D5: =IF(PlotControl!$B$4 = "Annual Max",MAX(OFFSET(Cat23SP_Conc!$E$10,12*($A5-1),4*(PlotControl!$C$6-1),12,1)),AVERAGE(OFFSET(Cat23SP_Conc!$E$10,12*($A5-1),4*(PlotControl!$C$6-1),12,1))) -> 1961500 | E5: =IF(PlotControl!$B$4 = "Annual Max",MAX(OFFSET(Cat4SP_Conc!$C$10,12*($A5-1),4*(PlotControl!$C$6-1),12,1)),AVERAGE(OFFSET(Cat4SP_Conc!$C$10,12*($A5-1),4*(PlotControl!$C$6-1),12,1))) -> 3747200 | F5: =IF(PlotControl!$B$4 = "Annual Max",MAX(OFFSET(Cat4SP_Conc!$D$10,12*($A5-1),4*(PlotControl!$C$6-1),12,1)),AVERAGE(OFFSET(Cat4SP_Conc!$D$10,12*($A5-1),4*(PlotControl!$C$6-1),12,1))) -> 8295700 | G5: =IF(PlotControl!$B$4 = "Annual Max",MAX(OFFSET(Cat4SP_Conc!$E$10,12*($A5-1),4*(PlotControl!$C$6-1),12,1)),AVERAGE(OFFSET(Cat4SP_Conc!$E$10,12*($A5-1),4*(PlotControl!$C$6-1),12,1))) -> 18915000 | H5: =IF(PlotControl!$B$4 = "Annual Max",MAX(OFFSET(OSP_Conc!$C$10,12*($A5-1),4*(PlotControl!$C$6-1),12,1)),AVERAGE(OFFSET(OSP_Conc!$C$10,12*($A5-1),4*(PlotControl!$C$6-1),12,1))) -> 551580 | I5: =IF(PlotControl!$B$4 = "Annual Max",MAX(OFFSET(OSP_Conc!$D$10,12*($A5-1),4*(PlotControl!$C$6-1),12,1)),AVERAGE(OFFSET(OSP_Conc!$D$10,12*($A5-1),4*(PlotControl!$C$6-1),12,1))) -> 1110400 | J5: =IF(PlotControl!$B$4 = "Annual Max",MAX(OFFSET(OSP_Conc!$E$10,12*($A5-1),4*(PlotControl!$C$6-1),12,1)),AVERAGE(OFFSET(OSP_Conc!$E$10,12*($A5-1),4*(PlotControl!$C$6-1),12,1))) -> 2051600 | K5: =IF(PlotControl!$B$4 = "Annual Max",MAX(OFFSET(OSLA_Conc!$C$10,12*($A5-1),4*(PlotControl!$C$6-1),12,1)),AVERAGE(OFFSET(OSLA_Conc!$C$10,12*($A5-1),4*(PlotControl!$C$6-1),12,1))) -> 39610 | L5: =IF(PlotControl!$B$4 = "Annual Max",MAX(OFFSET(OSLA_Conc!$D$10,12*($A5-1),4*(PlotControl!$C$6-1),12,1)),AVERAGE(OFFSET(OSLA_Conc!$D$10,12*($A5-1),4*(PlotControl!$C$6-1),12,1))) -> 45002 | M5: =IF(PlotControl!$B$4 = "Annual Max",MAX(OFFSET(OSLA_Conc!$E$10,12*($A5-1),4*(PlotControl!$C$6-1),12,1)),AVERAGE(OFFSET(OSLA_Conc!$E$10,12*($A5-1),4*(PlotControl!$C$6-1),12,1))) -> 50687 | N5: =IF(PlotControl!$B$4 = "Annual Max",MAX(OFFSET(RTH_Conc!$C$10,12*($A5-1),4*(PlotControl!$C$6-1),12,1)),AVERAGE(OFFSET(RTH_Conc!$C$10,12*($A5-1),4*(PlotControl!$C$6-1),12,1))) -> 2071400 | O5: =IF(PlotControl!$B$4 = "Annual Max",MAX(OFFSET(RTH_Conc!$D$10,12*($A5-1),4*(PlotControl!$C$6-1),12,1)),AVERAGE(OFFSET(RTH_Conc!$D$10,12*($A5-1),4*(PlotControl!$C$6-1),12,1))) -> 2594100 | P5: =IF(PlotControl!$B$4 = "Annual Max",MAX(OFFSET(RTH_Conc!$E$10,12*($A5-1),4*(PlotControl!$C$6-1),12,1)),AVERAGE(OFFSET(RTH_Conc!$E$10,12*($A5-1),4*(PlotControl!$C$6-1),12,1))) -> 3460300 | Q5: =IF(PlotControl!$B$4 = "Annual Max",MAX(OFFSET(HR_Conc!$C$10,12*($A5-1),4*(PlotControl!$C$6-1),12,1)),AVERAGE(OFFSET(HR_Conc!$C$10,12*($A5-1),4*(PlotControl!$C$6-1),12,1))) -> 290230 | R5: =IF(PlotControl!$B$4 = "Annual Max",MAX(OFFSET(HR_Conc!$D$10,12*($A5-1),4*(PlotControl!$C$6-1),12,1)),AVERAGE(OFFSET(HR_Conc!$D$10,12*($A5-1),4*(PlotControl!$C$6-1),12,1))) -> 368340 | S5: =IF(PlotControl!$B$4 = "Annual Max",MAX(OFFSET(HR_Conc!$E$10,12*($A5-1),4*(PlotControl!$C$6-1),12,1)),AVERAGE(OFFSET(HR_Conc!$E$10,12*($A5-1),4*(PlotControl!$C$6-1),12,1))) -> 469410 | T5: =IF(PlotControl!$B$4 = "Annual Max",MAX(OFFSET(EP_Sump_Conc!$C$10,12*($A5-1),4*(PlotControl!$C$6-1),12,1)),AVERAGE(OFFSET(EP_Sump_Conc!$C$10,12*($A5-1),4*(PlotControl!$C$6-1),12,1))) -> 2069800 | U5: =IF(PlotControl!$B$4 = "Annual Max",MAX(OFFSET(EP_Sump_Conc!$D$10,12*($A5-1),4*(PlotControl!$C$6-1),12,1)),AVERAGE(OFFSET(EP_Sump_Conc!$D$10,12*($A5-1),4*(PlotControl!$C$6-1),12,1))) -> 2622900 | V5: =IF(PlotControl!$B$4 = "Annual Max",MAX(OFFSET(EP_Sump_Conc!$E$10,12*($A5-1),4*(PlotControl!$C$6-1),12,1)),AVERAGE(OFFSET(EP_Sump_Conc!$E$10,12*($A5-1),4*(PlotControl!$C$6-1),12,1))) -> 3803700 | W5: =IF(PlotControl!$B$4 = "Annual Max",MAX(OFFSET(CPS_Pond_Conc!$C$10,12*($A5-1),4*(PlotControl!$C$6-1),12,1)),AVERAGE(OFFSET(CPS_Pond_Conc!$C$10,12*($A5-1),4*(PlotControl!$C$6-1),12,1))) -> 250000 | X5: =IF(PlotControl!$B$4 = "Annual Max",MAX(OFFSET(CPS_Pond_Conc!$D$10,12*($A5-1),4*(PlotControl!$C$6-1),12,1)),AVERAGE(OFFSET(CPS_Pond_Conc!$D$10,12*($A5-1),4*(PlotControl!$C$6-1),12,1))) -> 250000 | Y5: =IF(PlotControl!$B$4 = "Annual Max",MAX(OFFSET(CPS_Pond_Conc!$E$10,12*($A5-1),4*(PlotControl!$C$6-1),12,1)),AVERAGE(OFFSET(CPS_Pond_Conc!$E$10,12*($A5-1),4*(PlotControl!$C$6-1),12,1))) -> 250000 | AA5: =PlotControl!$B$10 -> 0 | AB5: =OFFSET(Cat23SP_Conc!$C$10,ROUND(12*$AA5,0),4*(PlotControl!$C$6-1),1,1) -> 0 | AC5: =OFFSET(Cat23SP_Conc!$D$10,ROUND(12*$AA5,0),4*(PlotControl!$C$6-1),1,1) -> 0 | AD5: =OFFSET(Cat23SP_Conc!$E$10,ROUND(12*$AA5,0),4*(PlotControl!$C$6-1),1,1) -> 0 | AE5: =OFFSET(Cat4SP_Conc!$C$10,ROUND(12*$AA5,0),4*(PlotControl!$C$6-1),1,1) -> 0 | AF5: =OFFSET(Cat4SP_Conc!$D$10,ROUND(12*$AA5,0),4*(PlotControl!$C$6-1),1,1) -> 0 | AG5: =OFFSET(Cat4SP_Conc!$E$10,ROUND(12*$AA5,0),4*(PlotControl!$C$6-1),1,1) -> 0 | AH5: =OFFSET(OSP_Conc!$C$10,ROUND(12*$AA5,0),4*(PlotControl!$C$6-1),1,1) -> 0 | AI5: =OFFSET(OSP_Conc!$D$10,ROUND(12*$AA5,0),4*(PlotControl!$C$6-1),1,1) -> 0 | AJ5: =OFFSET(OSP_Conc!$E$10,ROUND(12*$AA5,0),4*(PlotControl!$C$6-1),1,1) -> 0 | AK5: =OFFSET(OSLA_Conc!$C$10,ROUND(12*$AA5,0),4*(PlotControl!$C$6-1),1,1) -> 0 | AL5: =OFFSET(OSLA_Conc!$D$10,ROUND(12*$AA5,0),4*(PlotControl!$C$6-1),1,1) -> 0 | AM5: =OFFSET(OSLA_Conc!$E$10,ROUND(12*$AA5,0),4*(PlotControl!$C$6-1),1,1) -> 0 | AN5: =OFFSET(RTH_Conc!$C$10,ROUND(12*$AA5,0),4*(PlotControl!$C$6-1),1,1) -> 0 | AO5: =OFFSET(RTH_Conc!$D$10,ROUND(12*$AA5,0),4*(PlotControl!$C$6-1),1,1) -> 0 | AP5: =OFFSET(RTH_Conc!$E$10,ROUND(12*$AA5,0),4*(PlotControl!$C$6-1),1,1) -> 0 | AQ5: =OFFSET(HR_Conc!$C$10,ROUND(12*$AA5,0),4*(PlotControl!$C$6-1),1,1) -> 0 | AR5: =OFFSET(HR_Conc!$D$10,ROUND(12*$AA5,0),4*(PlotControl!$C$6-1),1,1) -> 0 | AS5: =OFFSET(HR_Conc!$E$10,ROUND(12*$AA5,0),4*(PlotControl!$C$6-1),1,1) -> 0 | AT5: =OFFSET(EP_Sump_Conc!$C$10,ROUND(12*$AA5,0),4*(PlotControl!$C$6-1),1,1) -> 0 | AU5: =OFFSET(EP_Sump_Conc!$D$10,ROUND(12*$AA5,0),4*(PlotControl!$C$6-1),1,1) -> 0 | AV5: =OFFSET(EP_Sump_Conc!$E$10,ROUND(12*$AA5,0),4*(PlotControl!$C$6-1),1,1) -> 0 | AW5: =OFFSET(CPS_Pond_Conc!$C$10,ROUND(12*$AA5,0),4*(PlotControl!$C$6-1),1,1) -> 0 | AX5: =OFFSET(CPS_Pond_Conc!$D$10,ROUND(12*$AA5,0),4*(PlotControl!$C$6-1),1,1) -> 0 | AY5: =OFFSET(CPS_Pond_Conc!$E$10,ROUND(12*$AA5,0),4*(PlotControl!$C$6-1),1,1) -> 0
A6: 2 | B6: =IF(PlotControl!$B$4 = "Annual Max",MAX(OFFSET(Cat23SP_Conc!$C$10,12*($A6-1),4*(PlotControl!$C$6-1),12,1)),AVERAGE(OFFSET(Cat23SP_Conc!$C$10,12*($A6-1),4*(PlotControl!$C$6-1),12,1))) -> 1413300 | C6: =IF(PlotControl!$B$4 = "Annual Max",MAX(OFFSET(Cat23SP_Conc!$D$10,12*($A6-1),4*(PlotControl!$C$6-1),12,1)),AVERAGE(OFFSET(Cat23SP_Conc!$D$10,12*($A6-1),4*(PlotControl!$C$6-1),12,1))) -> 2264100 | D6: =IF(PlotControl!$B$4 = "Annual Max",MAX(OFFSET(Cat23SP_Conc!$E$10,12*($A6-1),4*(PlotControl!$C$6-1),12,1)),AVERAGE(OFFSET(Cat23SP_Conc!$E$10,12*($A6-1),4*(PlotControl!$C$6-1),12,1))) -> 3222200 | E6: =IF(PlotControl!$B$4 = "Annual Max",MAX(OFFSET(Cat4SP_Conc!$C$10,12*($A6-1),4*(PlotControl!$C$6-1),12,1)),AVERAGE(OFFSET(Cat4SP_Conc!$C$10,12*($A6-1),4*(PlotControl!$C$6-1),12,1))) -> 3787500 | F6: =IF(PlotControl!$B$4 = "Annual Max",MAX(OFFSET(Cat4SP_Conc!$D$10,12*($A6-1),4*(PlotControl!$C$6-1),12,1)),AVERAGE(OFFSET(Cat4SP_Conc!$D$10,12*($A6-1),4*(PlotControl!$C$6-1),12,1))) -> 12210000 | G6: =IF(PlotControl!$B$4 = "Annual Max",MAX(OFFSET(Cat4SP_Conc!$E$10,12*($A6-1),4*(PlotControl!$C$6-1),12,1)),AVERAGE(OFFSET(Cat4SP_Conc!$E$10,12*($A6-1),4*(PlotControl!$C$6-1),12,1))) -> 35296000 | H6: =IF(PlotControl!$B$4 = "Annual Max",MAX(OFFSET(OSP_Conc!$C$10,12*($A6-1),4*(PlotControl!$C$6-1),12,1)),AVERAGE(OFFSET(OSP_Conc!$C$10,12*($A6-1),4*(PlotControl!$C$6-1),12,1))) -> 1549200 | I6: =IF(PlotControl!$B$4 = "Annual Max",MAX(OFFSET(OSP_Conc!$D$10,12*($A6-1),4*(PlotControl!$C$6-1),12,1)),AVERAGE(OFFSET(OSP_Conc!$D$10,12*($A6-1),4*(PlotControl!$C$6-1),12,1))) -> 2327700 | J6: =IF(PlotControl!$B$4 = "Annual Max",MAX(OFFSET(OSP_Conc!$E$10,12*($A6-1),4*(PlotControl!$C$6-1),12,1)),AVERAGE(OFFSET(OSP_Conc!$E$10,12*($A6-1),4*(PlotControl!$C$6-1),12,1))) -> 3406200 | K6: =IF(PlotControl!$B$4 = "Annual Max",MAX(OFFSET(OSLA_Conc!$C$10,12*($A6-1),4*(PlotControl!$C$6-1),12,1)),AVERAGE(OFFSET(OSLA_Conc!$C$10,12*($A6-1),4*(PlotControl!$C$6-1),12,1))) -> 39610 | L6: =IF(PlotControl!$B$4 = "Annual Max",MAX(OFFSET(OSLA_Conc!$D$10,12*($A6-1),4*(PlotControl!$C$6-1),12,1)),AVERAGE(OFFSET(OSLA_Conc!$D$10,12*($A6-1),4*(PlotControl!$C$6-1),12,1))) -> 45002 | M6: =IF(PlotControl!$B$4 = "Annual Max",MAX(OFFSET(OSLA_Conc!$E$10,12*($A6-1),4*(PlotControl!$C$6-1),12,1)),AVERAGE(OFFSET(OSLA_Conc!$E$10,12*($A6-1),4*(PlotControl!$C$6-1),12,1))) -> 50687 | N6: =IF(PlotControl!$B$4 = "Annual Max",MAX(OFFSET(RTH_Conc!$C$10,12*($A6-1),4*(PlotControl!$C$6-1),12,1)),AVERAGE(OFFSET(RTH_Conc!$C$10,12*($A6-1),4*(PlotControl!$C$6-1),12,1))) -> 2071400 | O6: =IF(PlotControl!$B$4 = "Annual Max",MAX(OFFSET(RTH_Conc!$D$10,12*($A6-1),4*(PlotControl!$C$6-1),12,1)),AVERAGE(OFFSET(RTH_Conc!$D$10,12*($A6-1),4*(PlotControl!$C$6-1),12,1))) -> 2602700 | P6: =IF(PlotControl!$B$4 = "Annual Max",MAX(OFFSET(RTH_Conc!$E$10,12*($A6-1),4*(PlotControl!$C$6-1),12,1)),AVERAGE(OFFSET(RTH_Conc!$E$10,12*($A6-1),4*(PlotControl!$C$6-1),12,1))) -> 3539800 | Q6: =IF(PlotControl!$B$4 = "Annual Max",MAX(OFFSET(HR_Conc!$C$10,12*($A6-1),4*(PlotControl!$C$6-1),12,1)),AVERAGE(OFFSET(HR_Conc!$C$10,12*($A6-1),4*(PlotControl!$C$6-1),12,1))) -> 301310 | R6: =IF(PlotControl!$B$4 = "Annual Max",MAX(OFFSET(HR_Conc!$D$10,12*($A6-1),4*(PlotControl!$C$6-1),12,1)),AVERAGE(OFFSET(HR_Conc!$D$10,12*($A6-1),4*(PlotControl!$C$6-1),12,1))) -> 375780 | S6: =IF(PlotControl!$B$4 = "Annual Max",MAX(OFFSET(HR_Conc!$E$10,12*($A6-1),4*(PlotControl!$C$6-1),12,1)),AVERAGE(OFFSET(HR_Conc!$E$10,12*($A6-1),4*(PlotControl!$C$6-1),12,1))) -> 485910 | T6: =IF(PlotControl!$B$4 = "Annual Max",MAX(OFFSET(EP_Sump_Conc!$C$10,12*($A6-1),4*(PlotControl!$C$6-1),12,1)),AVERAGE(OFFSET(EP_Sump_Conc!$C$10,12*($A6-1),4*(PlotControl!$C$6-1),12,1))) -> 148350 | U6: =IF(PlotControl!$B$4 = "Annual Max",MAX(OFFSET(EP_Sump_Conc!$D$10,12*($A6-1),4*(PlotControl!$C$6-1),12,1)),AVERAGE(OFFSET(EP_Sump_Conc!$D$10,12*($A6-1),4*(PlotControl!$C$6-1),12,1))) -> 244760 | V6: =IF(PlotControl!$B$4 = "Annual Max",MAX(OFFSET(EP_Sump_Conc!$E$10,12*($A6-1),4*(PlotControl!$C$6-1),12,1)),AVERAGE(OFFSET(EP_Sump_Conc!$E$10,12*($A6-1),4*(PlotControl!$C$6-1),12,1))) -> 414250 | W6: =IF(PlotControl!$B$4 = "Annual Max",MAX(OFFSET(CPS_Pond_Conc!$C$10,12*($A6-1),4*(PlotControl!$C$6-1),12,1)),AVERAGE(OFFSET(CPS_Pond_Conc!$C$10,12*($A6-1),4*(PlotControl!$C$6-1),12,1))) -> 250000 | X6: =IF(PlotControl!$B$4 = "Annual Max",MAX(OFFSET(CPS_Pond_Conc!$D$10,12*($A6-1),4*(PlotControl!$C$6-1),12,1)),AVERAGE(OFFSET(CPS_Pond_Conc!$D$10,12*($A6-1),4*(PlotControl!$C$6-1),12,1))) -> 250000 | Y6: =IF(PlotControl!$B$4 = "Annual Max",MAX(OFFSET(CPS_Pond_Conc!$E$10,12*($A6-1),4*(PlotControl!$C$6-1),12,1)),AVERAGE(OFFSET(CPS_Pond_Conc!$E$10,12*($A6-1),4*(PlotControl!$C$6-1),12,1))) -> 250000 | AA6: =AA5+1/12 -> 0.08333333333 | AB6: =OFFSET(Cat23SP_Conc!$C$10,ROUND(12*$AA6,0),4*(PlotControl!$C$6-1),1,1) -> 98723 | AC6: =OFFSET(Cat23SP_Conc!$D$10,ROUND(12*$AA6,0),4*(PlotControl!$C$6-1),1,1) -> 193790 | AD6: =OFFSET(Cat23SP_Conc!$E$10,ROUND(12*$AA6,0),4*(PlotControl!$C$6-1),1,1) -> 363800 | AE6: =OFFSET(Cat4SP_Conc!$C$10,ROUND(12*$AA6,0),4*(PlotControl!$C$6-1),1,1) -> 0 | AF6: =OFFSET(Cat4SP_Conc!$D$10,ROUND(12*$AA6,0),4*(PlotControl!$C$6-1),1,1) -> 0 | AG6: =OFFSET(Cat4SP_Conc!$E$10,ROUND(12*$AA6,0),4*(PlotControl!$C$6-1),1,1) -> 0 | AH6: =OFFSET(OSP_Conc!$C$10,ROUND(12*$AA6,0),4*(PlotControl!$C$6-1),1,1) -> 0 | AI6: =OFFSET(OSP_Conc!$D$10,ROUND(12*$AA6,0),4*(PlotControl!$C$6-1),1,1) -> 0 | AJ6: =OFFSET(OSP_Conc!$E$10,ROUND(12*$AA6,0),4*(PlotControl!$C$6-1),1,1) -> 0 | AK6: =OFFSET(OSLA_Conc!$C$10,ROUND(12*$AA6,0),4*(PlotControl!$C$6-1),1,1) -> 23994 | AL6: =OFFSET(OSLA_Conc!$D$10,ROUND(12*$AA6,0),4*(PlotControl!$C$6-1),1,1) -> 27762 | AM6: =OFFSET(OSLA_Conc!$E$10,ROUND(12*$AA6,0),4*(PlotControl!$C$6-1),1,1) -> 32773 | AN6: =OFFSET(RTH_Conc!$C$10,ROUND(12*$AA6,0),4*(PlotControl!$C$6-1),1,1) -> 2004600 | AO6: =OFFSET(RTH_Conc!$D$10,ROUND(12*$AA6,0),4*(PlotControl!$C$6-1),1,1) -> 2344700 | AP6: =OFFSET(RTH_Conc!$E$10,ROUND(12*$AA6,0),4*(PlotControl!$C$6-1),1,1) -> 2879800 | AQ6: =OFFSET(HR_Conc!$C$10,ROUND(12*$AA6,0),4*(PlotControl!$C$6-1),1,1) -> 219250 | AR6: =OFFSET(HR_Conc!$D$10,ROUND(12*$AA6,0),4*(PlotControl!$C$6-1),1,1) -> 271990 | AS6: =OFFSET(HR_Conc!$E$10,ROUND(12*$AA6,0),4*(PlotControl!$C$6-1),1,1) -> 336630 | AT6: =OFFSET(EP_Sump_Conc!$C$10,ROUND(12*$AA6,0),4*(PlotControl!$C$6-1),1,1) -> 2069800 | AU6: =OFFSET(EP_Sump_Conc!$D$10,ROUND(12*$AA6,0),4*(PlotControl!$C$6-1),1,1) -> 2622900 | AV6: =OFFSET(EP_Sump_Conc!$E$10,ROUND(12*$AA6,0),4*(PlotControl!$C$6-1),1,1) -> 3803700 | AW6: =OFFSET(CPS_Pond_Conc!$C$10,ROUND(12*$AA6,0),4*(PlotControl!$C$6-1),1,1) -> 250000 | AX6: =OFFSET(CPS_Pond_Conc!$D$10,ROUND(12*$AA6,0),4*(PlotControl!$C$6-1),1,1) -> 250000 | AY6: =OFFSET(CPS_Pond_Conc!$E$10,ROUND(12*$AA6,0),4*(PlotControl!$C$6-1),1,1) -> 250000
A7: 3 | B7: =IF(PlotControl!$B$4 = "Annual Max",MAX(OFFSET(Cat23SP_Conc!$C$10,12*($A7-1),4*(PlotControl!$C$6-1),12,1)),AVERAGE(OFFSET(Cat23SP_Conc!$C$10,12*($A7-1),4*(PlotControl!$C$6-1),12,1))) -> 1881800 | C7: =IF(PlotControl!$B$4 = "Annual Max",MAX(OFFSET(Cat23SP_Conc!$D$10,12*($A7-1),4*(PlotControl!$C$6-1),12,1)),AVERAGE(OFFSET(Cat23SP_Conc!$D$10,12*($A7-1),4*(PlotControl!$C$6-1),12,1))) -> 2401600 | D7: =IF(PlotControl!$B$4 = "Annual Max",MAX(OFFSET(Cat23SP_Conc!$E$10,12*($A7-1),4*(PlotControl!$C$6-1),12,1)),AVERAGE(OFFSET(Cat23SP_Conc!$E$10,12*($A7-1),4*(PlotControl!$C$6-1),12,1))) -> 3553300 | E7: =IF(PlotControl!$B$4 = "Annual Max",MAX(OFFSET(Cat4SP_Conc!$C$10,12*($A7-1),4*(PlotControl!$C$6-1),12,1)),AVERAGE(OFFSET(Cat4SP_Conc!$C$10,12*($A7-1),4*(PlotControl!$C$6-1),12,1))) -> 3825700 | F7: =IF(PlotControl!$B$4 = "Annual Max",MAX(OFFSET(Cat4SP_Conc!$D$10,12*($A7-1),4*(PlotControl!$C$6-1),12,1)),AVERAGE(OFFSET(Cat4SP_Conc!$D$10,12*($A7-1),4*(PlotControl!$C$6-1),12,1))) -> 12143000 | G7: =IF(PlotControl!$B$4 = "Annual Max",MAX(OFFSET(Cat4SP_Conc!$E$10,12*($A7-1),4*(PlotControl!$C$6-1),12,1)),AVERAGE(OFFSET(Cat4SP_Conc!$E$10,12*($A7-1),4*(PlotControl!$C$6-1),12,1))) -> 42338000 | H7: =IF(PlotControl!$B$4 = "Annual Max",MAX(OFFSET(OSP_Conc!$C$10,12*($A7-1),4*(PlotControl!$C$6-1),12,1)),AVERAGE(OFFSET(OSP_Conc!$C$10,12*($A7-1),4*(PlotControl!$C$6-1),12,1))) -> 2027100 | I7: =IF(PlotControl!$B$4 = "Annual Max",MAX(OFFSET(OSP_Conc!$D$10,12*($A7-1),4*(PlotControl!$C$6-1),12,1)),AVERAGE(OFFSET(OSP_Conc!$D$10,12*($A7-1),4*(PlotControl!$C$6-1),12,1))) -> 2566000 | J7: =IF(PlotControl!$B$4 = "Annual Max",MAX(OFFSET(OSP_Conc!$E$10,12*($A7-1),4*(PlotControl!$C$6-1),12,1)),AVERAGE(OFFSET(OSP_Conc!$E$10,12*($A7-1),4*(PlotControl!$C$6-1),12,1))) -> 3752800 | K7: =IF(PlotControl!$B$4 = "Annual Max",MAX(OFFSET(OSLA_Conc!$C$10,12*($A7-1),4*(PlotControl!$C$6-1),12,1)),AVERAGE(OFFSET(OSLA_Conc!$C$10,12*($A7-1),4*(PlotControl!$C$6-1),12,1))) -> 39610 | L7: =IF(PlotControl!$B$4 = "Annual Max",MAX(OFFSET(OSLA_Conc!$D$10,12*($A7-1),4*(PlotControl!$C$6-1),12,1)),AVERAGE(OFFSET(OSLA_Conc!$D$10,12*($A7-1),4*(PlotControl!$C$6-1),12,1))) -> 45002 | M7: =IF(PlotControl!$B$4 = "Annual Max",MAX(OFFSET(OSLA_Conc!$E$10,12*($A7-1),4*(PlotControl!$C$6-1),12,1)),AVERAGE(OFFSET(OSLA_Conc!$E$10,12*($A7-1),4*(PlotControl!$C$6-1),12,1))) -> 50687 | N7: =IF(PlotControl!$B$4 = "Annual Max",MAX(OFFSET(RTH_Conc!$C$10,12*($A7-1),4*(PlotControl!$C$6-1),12,1)),AVERAGE(OFFSET(RTH_Conc!$C$10,12*($A7-1),4*(PlotControl!$C$6-1),12,1))) -> 2071400 | O7: =IF(PlotControl!$B$4 = "Annual Max",MAX(OFFSET(RTH_Conc!$D$10,12*($A7-1),4*(PlotControl!$C$6-1),12,1)),AVERAGE(OFFSET(RTH_Conc!$D$10,12*($A7-1),4*(PlotControl!$C$6-1),12,1))) -> 2601700 | P7: =IF(PlotControl!$B$4 = "Annual Max",MAX(OFFSET(RTH_Conc!$E$10,12*($A7-1),4*(PlotControl!$C$6-1),12,1)),AVERAGE(OFFSET(RTH_Conc!$E$10,12*($A7-1),4*(PlotControl!$C$6-1),12,1))) -> 3567900 | Q7: =IF(PlotControl!$B$4 = "Annual Max",MAX(OFFSET(HR_Conc!$C$10,12*($A7-1),4*(PlotControl!$C$6-1),12,1)),AVERAGE(OFFSET(HR_Conc!$C$10,12*($A7-1),4*(PlotControl!$C$6-1),12,1))) -> 298200 | R7: =IF(PlotControl!$B$4 = "Annual Max",MAX(OFFSET(HR_Conc!$D$10,12*($A7-1),4*(PlotControl!$C$6-1),12,1)),AVERAGE(OFFSET(HR_Conc!$D$10,12*($A7-1),4*(PlotControl!$C$6-1),12,1))) -> 387440 | S7: =IF(PlotControl!$B$4 = "Annual Max",MAX(OFFSET(HR_Conc!$E$10,12*($A7-1),4*(PlotControl!$C$6-1),12,1)),AVERAGE(OFFSET(HR_Conc!$E$10,12*($A7-1),4*(PlotControl!$C$6-1),12,1))) -> 487270 | T7: =IF(PlotControl!$B$4 = "Annual Max",MAX(OFFSET(EP_Sump_Conc!$C$10,12*($A7-1),4*(PlotControl!$C$6-1),12,1)),AVERAGE(OFFSET(EP_Sump_Conc!$C$10,12*($A7-1),4*(PlotControl!$C$6-1),12,1))) -> 141360 | U7: =IF(PlotControl!$B$4 = "Annual Max",MAX(OFFSET(EP_Sump_Conc!$D$10,12*($A7-1),4*(PlotControl!$C$6-1),12,1)),AVERAGE(OFFSET(EP_Sump_Conc!$D$10,12*($A7-1),4*(PlotControl!$C$6-1),12,1))) -> 237950 | V7: =IF(PlotControl!$B$4 = "Annual Max",MAX(OFFSET(EP_Sump_Conc!$E$10,12*($A7-1),4*(PlotControl!$C$6-1),12,1)),AVERAGE(OFFSET(EP_Sump_Conc!$E$10,12*($A7-1),4*(PlotControl!$C$6-1),12,1))) -> 394820 | W7: =IF(PlotControl!$B$4 = "Annual Max",MAX(OFFSET(CPS_Pond_Conc!$C$10,12*($A7-1),4*(PlotControl!$C$6-1),12,1)),AVERAGE(OFFSET(CPS_Pond_Conc!$C$10,12*($A7-1),4*(PlotControl!$C$6-1),12,1))) -> 250000 | X7: =IF(PlotControl!$B$4 = "Annual Max",MAX(OFFSET(CPS_Pond_Conc!$D$10,12*($A7-1),4*(PlotControl!$C$6-1),12,1)),AVERAGE(OFFSET(CPS_Pond_Conc!$D$10,12*($A7-1),4*(PlotControl!$C$6-1),12,1))) -> 250000 | Y7: =IF(PlotControl!$B$4 = "Annual Max",MAX(OFFSET(CPS_Pond_Conc!$E$10,12*($A7-1),4*(PlotControl!$C$6-1),12,1)),AVERAGE(OFFSET(CPS_Pond_Conc!$E$10,12*($A7-1),4*(PlotControl!$C$6-1),12,1))) -> 250000 | AA7: =AA6+1/12 -> 0.1666666667 | AB7: =OFFSET(Cat23SP_Conc!$C$10,ROUND(12*$AA7,0),4*(PlotControl!$C$6-1),1,1) -> 218160 | AC7: =OFFSET(Cat23SP_Conc!$D$10,ROUND(12*$AA7,0),4*(PlotControl!$C$6-1),1,1) -> 433380 | AD7: =OFFSET(Cat23SP_Conc!$E$10,ROUND(12*$AA7,0),4*(PlotControl!$C$6-1),1,1) -> 805470 | AE7: =OFFSET(Cat4SP_Conc!$C$10,ROUND(12*$AA7,0),4*(PlotControl!$C$6-1),1,1) -> 2816000 | AF7: =OFFSET(Cat4SP_Conc!$D$10,ROUND(12*$AA7,0),4*(PlotControl!$C$6-1),1,1) -> 5422900 | AG7: =OFFSET(Cat4SP_Conc!$E$10,ROUND(12*$AA7,0),4*(PlotControl!$C$6-1),1,1) -> 11437000 | AH7: =OFFSET(OSP_Conc!$C$10,ROUND(12*$AA7,0),4*(PlotControl!$C$6-1),1,1) -> 147060 | AI7: =OFFSET(OSP_Conc!$D$10,ROUND(12*$AA7,0),4*(PlotControl!$C$6-1),1,1) -> 286460 | AJ7: =OFFSET(OSP_Conc!$E$10,ROUND(12*$AA7,0),4*(PlotControl!$C$6-1),1,1) -> 540300 | AK7: =OFFSET(OSLA_Conc!$C$10,ROUND(12*$AA7,0),4*(PlotControl!$C$6-1),1,1) -> 32955 | AL7: =OFFSET(OSLA_Conc!$D$10,ROUND(12*$AA7,0),4*(PlotControl!$C$6-1),1,1) -> 37566 | AM7: =OFFSET(OSLA_Conc!$E$10,ROUND(12*$AA7,0),4*(PlotControl!$C$6-1),1,1) -> 43366 | AN7: =OFFSET(RTH_Conc!$C$10,ROUND(12*$AA7,0),4*(PlotControl!$C$6-1),1,1) -> 2071400 | AO7: =OFFSET(RTH_Conc!$D$10,ROUND(12*$AA7,0),4*(PlotControl!$C$6-1),1,1) -> 2594100 | AP7: =OFFSET(RTH_Conc!$E$10,ROUND(12*$AA7,0),4*(PlotControl!$C$6-1),1,1) -> 3460300 | AQ7: =OFFSET(HR_Conc!$C$10,ROUND(12*$AA7,0),4*(PlotControl!$C$6-1),1,1) -> 290230 | AR7: =OFFSET(HR_Conc!$D$10,ROUND(12*$AA7,0),4*(PlotControl!$C$6-1),1,1) -> 368340 | AS7: =OFFSET(HR_Conc!$E$10,ROUND(12*$AA7,0),4*(PlotControl!$C$6-1),1,1) -> 469410 | AT7: =OFFSET(EP_Sump_Conc!$C$10,ROUND(12*$AA7,0),4*(PlotControl!$C$6-1),1,1) -> 876750 | AU7: =OFFSET(EP_Sump_Conc!$D$10,ROUND(12*$AA7,0),4*(PlotControl!$C$6-1),1,1) -> 1743000 | AV7: =OFFSET(EP_Sump_Conc!$E$10,ROUND(12*$AA7,0),4*(PlotControl!$C$6-1),1,1) -> 2697800 | AW7: =OFFSET(CPS_Pond_Conc!$C$10,ROUND(12*$AA7,0),4*(PlotControl!$C$6-1),1,1) -> 250000 | AX7: =OFFSET(CPS_Pond_Conc!$D$10,ROUND(12*$AA7,0),4*(PlotControl!$C$6-1),1,1) -> 250000 | AY7: =OFFSET(CPS_Pond_Conc!$E$10,ROUND(12*$AA7,0),4*(PlotControl!$C$6-1),1,1) -> 250000
A8: 4 | B8: =IF(PlotControl!$B$4 = "Annual Max",MAX(OFFSET(Cat23SP_Conc!$C$10,12*($A8-1),4*(PlotControl!$C$6-1),12,1)),AVERAGE(OFFSET(Cat23SP_Conc!$C$10,12*($A8-1),4*(PlotControl!$C$6-1),12,1))) -> 1826700 | C8: =IF(PlotControl!$B$4 = "Annual Max",MAX(OFFSET(Cat23SP_Conc!$D$10,12*($A8-1),4*(PlotControl!$C$6-1),12,1)),AVERAGE(OFFSET(Cat23SP_Conc!$D$10,12*($A8-1),4*(PlotControl!$C$6-1),12,1))) -> 2407100 | D8: =IF(PlotControl!$B$4 = "Annual Max",MAX(OFFSET(Cat23SP_Conc!$E$10,12*($A8-1),4*(PlotControl!$C$6-1),12,1)),AVERAGE(OFFSET(Cat23SP_Conc!$E$10,12*($A8-1),4*(PlotControl!$C$6-1),12,1))) -> 3558300 | E8: =IF(PlotControl!$B$4 = "Annual Max",MAX(OFFSET(Cat4SP_Conc!$C$10,12*($A8-1),4*(PlotControl!$C$6-1),12,1)),AVERAGE(OFFSET(Cat4SP_Conc!$C$10,12*($A8-1),4*(PlotControl!$C$6-1),12,1))) -> 3951900 | F8: =IF(PlotControl!$B$4 = "Annual Max",MAX(OFFSET(Cat4SP_Conc!$D$10,12*($A8-1),4*(PlotControl!$C$6-1),12,1)),AVERAGE(OFFSET(Cat4SP_Conc!$D$10,12*($A8-1),4*(PlotControl!$C$6-1),12,1))) -> 12330000 | G8: =IF(PlotControl!$B$4 = "Annual Max",MAX(OFFSET(Cat4SP_Conc!$E$10,12*($A8-1),4*(PlotControl!$C$6-1),12,1)),AVERAGE(OFFSET(Cat4SP_Conc!$E$10,12*($A8-1),4*(PlotControl!$C$6-1),12,1))) -> 38166000 | H8: =IF(PlotControl!$B$4 = "Annual Max",MAX(OFFSET(OSP_Conc!$C$10,12*($A8-1),4*(PlotControl!$C$6-1),12,1)),AVERAGE(OFFSET(OSP_Conc!$C$10,12*($A8-1),4*(PlotControl!$C$6-1),12,1))) -> 2071300 | I8: =IF(PlotControl!$B$4 = "Annual Max",MAX(OFFSET(OSP_Conc!$D$10,12*($A8-1),4*(PlotControl!$C$6-1),12,1)),AVERAGE(OFFSET(OSP_Conc!$D$10,12*($A8-1),4*(PlotControl!$C$6-1),12,1))) -> 2611700 | J8: =IF(PlotControl!$B$4 = "Annual Max",MAX(OFFSET(OSP_Conc!$E$10,12*($A8-1),4*(PlotControl!$C$6-1),12,1)),AVERAGE(OFFSET(OSP_Conc!$E$10,12*($A8-1),4*(PlotControl!$C$6-1),12,1))) -> 3789000 | K8: =IF(PlotControl!$B$4 = "Annual Max",MAX(OFFSET(OSLA_Conc!$C$10,12*($A8-1),4*(PlotControl!$C$6-1),12,1)),AVERAGE(OFFSET(OSLA_Conc!$C$10,12*($A8-1),4*(PlotControl!$C$6-1),12,1))) -> 39610 | L8: =IF(PlotControl!$B$4 = "Annual Max",MAX(OFFSET(OSLA_Conc!$D$10,12*($A8-1),4*(PlotControl!$C$6-1),12,1)),AVERAGE(OFFSET(OSLA_Conc!$D$10,12*($A8-1),4*(PlotControl!$C$6-1),12,1))) -> 45002 | M8: =IF(PlotControl!$B$4 = "Annual Max",MAX(OFFSET(OSLA_Conc!$E$10,12*($A8-1),4*(PlotControl!$C$6-1),12,1)),AVERAGE(OFFSET(OSLA_Conc!$E$10,12*($A8-1),4*(PlotControl!$C$6-1),12,1))) -> 50687 | N8: =IF(PlotControl!$B$4 = "Annual Max",MAX(OFFSET(RTH_Conc!$C$10,12*($A8-1),4*(PlotControl!$C$6-1),12,1)),AVERAGE(OFFSET(RTH_Conc!$C$10,12*($A8-1),4*(PlotControl!$C$6-1),12,1))) -> 2071400 | O8: =IF(PlotControl!$B$4 = "Annual Max",MAX(OFFSET(RTH_Conc!$D$10,12*($A8-1),4*(PlotControl!$C$6-1),12,1)),AVERAGE(OFFSET(RTH_Conc!$D$10,12*($A8-1),4*(PlotControl!$C$6-1),12,1))) -> 2597800 | P8: =IF(PlotControl!$B$4 = "Annual Max",MAX(OFFSET(RTH_Conc!$E$10,12*($A8-1),4*(PlotControl!$C$6-1),12,1)),AVERAGE(OFFSET(RTH_Conc!$E$10,12*($A8-1),4*(PlotControl!$C$6-1),12,1))) -> 3443300 | Q8: =IF(PlotControl!$B$4 = "Annual Max",MAX(OFFSET(HR_Conc!$C$10,12*($A8-1),4*(PlotControl!$C$6-1),12,1)),AVERAGE(OFFSET(HR_Conc!$C$10,12*($A8-1),4*(PlotControl!$C$6-1),12,1))) -> 290800 | R8: =IF(PlotControl!$B$4 = "Annual Max",MAX(OFFSET(HR_Conc!$D$10,12*($A8-1),4*(PlotControl!$C$6-1),12,1)),AVERAGE(OFFSET(HR_Conc!$D$10,12*($A8-1),4*(PlotControl!$C$6-1),12,1))) -> 383290 | S8: =IF(PlotControl!$B$4 = "Annual Max",MAX(OFFSET(HR_Conc!$E$10,12*($A8-1),4*(PlotControl!$C$6-1),12,1)),AVERAGE(OFFSET(HR_Conc!$E$10,12*($A8-1),4*(PlotControl!$C$6-1),12,1))) -> 477640 | T8: =IF(PlotControl!$B$4 = "Annual Max",MAX(OFFSET(EP_Sump_Conc!$C$10,12*($A8-1),4*(PlotControl!$C$6-1),12,1)),AVERAGE(OFFSET(EP_Sump_Conc!$C$10,12*($A8-1),4*(PlotControl!$C$6-1),12,1))) -> 121650 | U8: =IF(PlotControl!$B$4 = "Annual Max",MAX(OFFSET(EP_Sump_Conc!$D$10,12*($A8-1),4*(PlotControl!$C$6-1),12,1)),AVERAGE(OFFSET(EP_Sump_Conc!$D$10,12*($A8-1),4*(PlotControl!$C$6-1),12,1))) -> 211180 | V8: =IF(PlotControl!$B$4 = "Annual Max",MAX(OFFSET(EP_Sump_Conc!$E$10,12*($A8-1),4*(PlotControl!$C$6-1),12,1)),AVERAGE(OFFSET(EP_Sump_Conc!$E$10,12*($A8-1),4*(PlotControl!$C$6-1),12,1))) -> 346100 | W8: =IF(PlotControl!$B$4 = "Annual Max",MAX(OFFSET(CPS_Pond_Conc!$C$10,12*($A8-1),4*(PlotControl!$C$6-1),12,1)),AVERAGE(OFFSET(CPS_Pond_Conc!$C$10,12*($A8-1),4*(PlotControl!$C$6-1),12,1))) -> 250000 | X8: =IF(PlotControl!$B$4 = "Annual Max",MAX(OFFSET(CPS_Pond_Conc!$D$10,12*($A8-1),4*(PlotControl!$C$6-1),12,1)),AVERAGE(OFFSET(CPS_Pond_Conc!$D$10,12*($A8-1),4*(PlotControl!$C$6-1),12,1))) -> 250000 | Y8: =IF(PlotControl!$B$4 = "Annual Max",MAX(OFFSET(CPS_Pond_Conc!$E$10,12*($A8-1),4*(PlotControl!$C$6-1),12,1)),AVERAGE(OFFSET(CPS_Pond_Conc!$E$10,12*($A8-1),4*(PlotControl!$C$6-1),12,1))) -> 250000 | AA8: 0.25 | AB8: =OFFSET(Cat23SP_Conc!$C$10,ROUND(12*$AA8,0),4*(PlotControl!$C$6-1),1,1) -> 281490 | AC8: =OFFSET(Cat23SP_Conc!$D$10,ROUND(12*$AA8,0),4*(PlotControl!$C$6-1),1,1) -> 568500 | AD8: =OFFSET(Cat23SP_Conc!$E$10,ROUND(12*$AA8,0),4*(PlotControl!$C$6-1),1,1) -> 1073200 | AE8: =OFFSET(Cat4SP_Conc!$C$10,ROUND(12*$AA8,0),4*(PlotControl!$C$6-1),1,1) -> 3513800 | AF8: =OFFSET(Cat4SP_Conc!$D$10,ROUND(12*$AA8,0),4*(PlotControl!$C$6-1),1,1) -> 6854400 | AG8: =OFFSET(Cat4SP_Conc!$E$10,ROUND(12*$AA8,0),4*(PlotControl!$C$6-1),1,1) -> 14706000 | AH8: =OFFSET(OSP_Conc!$C$10,ROUND(12*$AA8,0),4*(PlotControl!$C$6-1),1,1) -> 245660 | AI8: =OFFSET(OSP_Conc!$D$10,ROUND(12*$AA8,0),4*(PlotControl!$C$6-1),1,1) -> 491960 | AJ8: =OFFSET(OSP_Conc!$E$10,ROUND(12*$AA8,0),4*(PlotControl!$C$6-1),1,1) -> 924340 | AK8: =OFFSET(OSLA_Conc!$C$10,ROUND(12*$AA8,0),4*(PlotControl!$C$6-1),1,1) -> 37217 | AL8: =OFFSET(OSLA_Conc!$D$10,ROUND(12*$AA8,0),4*(PlotControl!$C$6-1),1,1) -> 42252 | AM8: =OFFSET(OSLA_Conc!$E$10,ROUND(12*$AA8,0),4*(PlotControl!$C$6-1),1,1) -> 47887 | AN8: =OFFSET(RTH_Conc!$C$10,ROUND(12*$AA8,0),4*(PlotControl!$C$6-1),1,1) -> 2059800 | AO8: =OFFSET(RTH_Conc!$D$10,ROUND(12*$AA8,0),4*(PlotControl!$C$6-1),1,1) -> 2508700 | AP8: =OFFSET(RTH_Conc!$E$10,ROUND(12*$AA8,0),4*(PlotControl!$C$6-1),1,1) -> 3321700 | AQ8: =OFFSET(HR_Conc!$C$10,ROUND(12*$AA8,0),4*(PlotControl!$C$6-1),1,1) -> 244830 | AR8: =OFFSET(HR_Conc!$D$10,ROUND(12*$AA8,0),4*(PlotControl!$C$6-1),1,1) -> 318650 | AS8: =OFFSET(HR_Conc!$E$10,ROUND(12*$AA8,0),4*(PlotControl!$C$6-1),1,1) -> 418490 | AT8: =OFFSET(EP_Sump_Conc!$C$10,ROUND(12*$AA8,0),4*(PlotControl!$C$6-1),1,1) -> 438880 | AU8: =OFFSET(EP_Sump_Conc!$D$10,ROUND(12*$AA8,0),4*(PlotControl!$C$6-1),1,1) -> 937760 | AV8: =OFFSET(EP_Sump_Conc!$E$10,ROUND(12*$AA8,0),4*(PlotControl!$C$6-1),1,1) -> 1808500 | AW8: =OFFSET(CPS_Pond_Conc!$C$10,ROUND(12*$AA8,0),4*(PlotControl!$C$6-1),1,1) -> 250000 | AX8: =OFFSET(CPS_Pond_Conc!$D$10,ROUND(12*$AA8,0),4*(PlotControl!$C$6-1),1,1) -> 250000 | AY8: =OFFSET(CPS_Pond_Conc!$E$10,ROUND(12*$AA8,0),4*(PlotControl!$C$6-1),1,1) -> 250000
A9: 5 | B9: =IF(PlotControl!$B$4 = "Annual Max",MAX(OFFSET(Cat23SP_Conc!$C$10,12*($A9-1),4*(PlotControl!$C$6-1),12,1)),AVERAGE(OFFSET(Cat23SP_Conc!$C$10,12*($A9-1),4*(PlotControl!$C$6-1),12,1))) -> 1969100 | C9: =IF(PlotControl!$B$4 = "Annual Max",MAX(OFFSET(Cat23SP_Conc!$D$10,12*($A9-1),4*(PlotControl!$C$6-1),12,1)),AVERAGE(OFFSET(Cat23SP_Conc!$D$10,12*($A9-1),4*(PlotControl!$C$6-1),12,1))) -> 2504200 | D9: =IF(PlotControl!$B$4 = "Annual Max",MAX(OFFSET(Cat23SP_Conc!$E$10,12*($A9-1),4*(PlotControl!$C$6-1),12,1)),AVERAGE(OFFSET(Cat23SP_Conc!$E$10,12*($A9-1),4*(PlotControl!$C$6-1),12,1))) -> 3699800 | E9: =IF(PlotControl!$B$4 = "Annual Max",MAX(OFFSET(Cat4SP_Conc!$C$10,12*($A9-1),4*(PlotControl!$C$6-1),12,1)),AVERAGE(OFFSET(Cat4SP_Conc!$C$10,12*($A9-1),4*(PlotControl!$C$6-1),12,1))) -> 3965200 | F9: =IF(PlotControl!$B$4 = "Annual Max",MAX(OFFSET(Cat4SP_Conc!$D$10,12*($A9-1),4*(PlotControl!$C$6-1),12,1)),AVERAGE(OFFSET(Cat4SP_Conc!$D$10,12*($A9-1),4*(PlotControl!$C$6-1),12,1))) -> 12242000 | G9: =IF(PlotControl!$B$4 = "Annual Max",MAX(OFFSET(Cat4SP_Conc!$E$10,12*($A9-1),4*(PlotControl!$C$6-1),12,1)),AVERAGE(OFFSET(Cat4SP_Conc!$E$10,12*($A9-1),4*(PlotControl!$C$6-1),12,1))) -> 41819000 | H9: =IF(PlotControl!$B$4 = "Annual Max",MAX(OFFSET(OSP_Conc!$C$10,12*($A9-1),4*(PlotControl!$C$6-1),12,1)),AVERAGE(OFFSET(OSP_Conc!$C$10,12*($A9-1),4*(PlotControl!$C$6-1),12,1))) -> 2071300 | I9: =IF(PlotControl!$B$4 = "Annual Max",MAX(OFFSET(OSP_Conc!$D$10,12*($A9-1),4*(PlotControl!$C$6-1),12,1)),AVERAGE(OFFSET(OSP_Conc!$D$10,12*($A9-1),4*(PlotControl!$C$6-1),12,1))) -> 2622400 | J9: =IF(PlotControl!$B$4 = "Annual Max",MAX(OFFSET(OSP_Conc!$E$10,12*($A9-1),4*(PlotControl!$C$6-1),12,1)),AVERAGE(OFFSET(OSP_Conc!$E$10,12*($A9-1),4*(PlotControl!$C$6-1),12,1))) -> 3817400 | K9: =IF(PlotControl!$B$4 = "Annual Max",MAX(OFFSET(OSLA_Conc!$C$10,12*($A9-1),4*(PlotControl!$C$6-1),12,1)),AVERAGE(OFFSET(OSLA_Conc!$C$10,12*($A9-1),4*(PlotControl!$C$6-1),12,1))) -> 39610 | L9: =IF(PlotControl!$B$4 = "Annual Max",MAX(OFFSET(OSLA_Conc!$D$10,12*($A9-1),4*(PlotControl!$C$6-1),12,1)),AVERAGE(OFFSET(OSLA_Conc!$D$10,12*($A9-1),4*(PlotControl!$C$6-1),12,1))) -> 45002 | M9: =IF(PlotControl!$B$4 = "Annual Max",MAX(OFFSET(OSLA_Conc!$E$10,12*($A9-1),4*(PlotControl!$C$6-1),12,1)),AVERAGE(OFFSET(OSLA_Conc!$E$10,12*($A9-1),4*(PlotControl!$C$6-1),12,1))) -> 50687 | N9: =IF(PlotControl!$B$4 = "Annual Max",MAX(OFFSET(RTH_Conc!$C$10,12*($A9-1),4*(PlotControl!$C$6-1),12,1)),AVERAGE(OFFSET(RTH_Conc!$C$10,12*($A9-1),4*(PlotControl!$C$6-1),12,1))) -> 2071400 | O9: =IF(PlotControl!$B$4 = "Annual Max",MAX(OFFSET(RTH_Conc!$D$10,12*($A9-1),4*(PlotControl!$C$6-1),12,1)),AVERAGE(OFFSET(RTH_Conc!$D$10,12*($A9-1),4*(PlotControl!$C$6-1),12,1))) -> 2601700 | P9: =IF(PlotControl!$B$4 = "Annual Max",MAX(OFFSET(RTH_Conc!$E$10,12*($A9-1),4*(PlotControl!$C$6-1),12,1)),AVERAGE(OFFSET(RTH_Conc!$E$10,12*($A9-1),4*(PlotControl!$C$6-1),12,1))) -> 3506800 | Q9: =IF(PlotControl!$B$4 = "Annual Max",MAX(OFFSET(HR_Conc!$C$10,12*($A9-1),4*(PlotControl!$C$6-1),12,1)),AVERAGE(OFFSET(HR_Conc!$C$10,12*($A9-1),4*(PlotControl!$C$6-1),12,1))) -> 302950 | R9: =IF(PlotControl!$B$4 = "Annual Max",MAX(OFFSET(HR_Conc!$D$10,12*($A9-1),4*(PlotControl!$C$6-1),12,1)),AVERAGE(OFFSET(HR_Conc!$D$10,12*($A9-1),4*(PlotControl!$C$6-1),12,1))) -> 374780 | S9: =IF(PlotControl!$B$4 = "Annual Max",MAX(OFFSET(HR_Conc!$E$10,12*($A9-1),4*(PlotControl!$C$6-1),12,1)),AVERAGE(OFFSET(HR_Conc!$E$10,12*($A9-1),4*(PlotControl!$C$6-1),12,1))) -> 481820 | T9: =IF(PlotControl!$B$4 = "Annual Max",MAX(OFFSET(EP_Sump_Conc!$C$10,12*($A9-1),4*(PlotControl!$C$6-1),12,1)),AVERAGE(OFFSET(EP_Sump_Conc!$C$10,12*($A9-1),4*(PlotControl!$C$6-1),12,1))) -> 108320 | U9: =IF(PlotControl!$B$4 = "Annual Max",MAX(OFFSET(EP_Sump_Conc!$D$10,12*($A9-1),4*(PlotControl!$C$6-1),12,1)),AVERAGE(OFFSET(EP_Sump_Conc!$D$10,12*($A9-1),4*(PlotControl!$C$6-1),12,1))) -> 185090 | V9: =IF(PlotControl!$B$4 = "Annual Max",MAX(OFFSET(EP_Sump_Conc!$E$10,12*($A9-1),4*(PlotControl!$C$6-1),12,1)),AVERAGE(OFFSET(EP_Sump_Conc!$E$10,12*($A9-1),4*(PlotControl!$C$6-1),12,1))) -> 300600 | W9: =IF(PlotControl!$B$4 = "Annual Max",MAX(OFFSET(CPS_Pond_Conc!$C$10,12*($A9-1),4*(PlotControl!$C$6-1),12,1)),AVERAGE(OFFSET(CPS_Pond_Conc!$C$10,12*($A9-1),4*(PlotControl!$C$6-1),12,1))) -> 250000 | X9: =IF(PlotControl!$B$4 = "Annual Max",MAX(OFFSET(CPS_Pond_Conc!$D$10,12*($A9-1),4*(PlotControl!$C$6-1),12,1)),AVERAGE(OFFSET(CPS_Pond_Conc!$D$10,12*($A9-1),4*(PlotControl!$C$6-1),12,1))) -> 250000 | Y9: =IF(PlotControl!$B$4 = "Annual Max",MAX(OFFSET(CPS_Pond_Conc!$E$10,12*($A9-1),4*(PlotControl!$C$6-1),12,1)),AVERAGE(OFFSET(CPS_Pond_Conc!$E$10,12*($A9-1),4*(PlotControl!$C$6-1),12,1))) -> 250000 | AA9: 0.3333333333 | AB9: =OFFSET(Cat23SP_Conc!$C$10,ROUND(12*$AA9,0),4*(PlotControl!$C$6-1),1,1) -> 208890 | AC9: =OFFSET(Cat23SP_Conc!$D$10,ROUND(12*$AA9,0),4*(PlotControl!$C$6-1),1,1) -> 419470 | AD9: =OFFSET(Cat23SP_Conc!$E$10,ROUND(12*$AA9,0),4*(PlotControl!$C$6-1),1,1) -> 801400 | AE9: =OFFSET(Cat4SP_Conc!$C$10,ROUND(12*$AA9,0),4*(PlotControl!$C$6-1),1,1) -> 3332400 | AF9: =OFFSET(Cat4SP_Conc!$D$10,ROUND(12*$AA9,0),4*(PlotControl!$C$6-1),1,1) -> 5190700 | AG9: =OFFSET(Cat4SP_Conc!$E$10,ROUND(12*$AA9,0),4*(PlotControl!$C$6-1),1,1) -> 10834000 | AH9: =OFFSET(OSP_Conc!$C$10,ROUND(12*$AA9,0),4*(PlotControl!$C$6-1),1,1) -> 198590 | AI9: =OFFSET(OSP_Conc!$D$10,ROUND(12*$AA9,0),4*(PlotControl!$C$6-1),1,1) -> 397600 | AJ9: =OFFSET(OSP_Conc!$E$10,ROUND(12*$AA9,0),4*(PlotControl!$C$6-1),1,1) -> 756540 | AK9: =OFFSET(OSLA_Conc!$C$10,ROUND(12*$AA9,0),4*(PlotControl!$C$6-1),1,1) -> 39067 | AL9: =OFFSET(OSLA_Conc!$D$10,ROUND(12*$AA9,0),4*(PlotControl!$C$6-1),1,1) -> 44485 | AM9: =OFFSET(OSLA_Conc!$E$10,ROUND(12*$AA9,0),4*(PlotControl!$C$6-1),1,1) -> 50017 | AN9: =OFFSET(RTH_Conc!$C$10,ROUND(12*$AA9,0),4*(PlotControl!$C$6-1),1,1) -> 1186200 | AO9: =OFFSET(RTH_Conc!$D$10,ROUND(12*$AA9,0),4*(PlotControl!$C$6-1),1,1) -> 1547500 | AP9: =OFFSET(RTH_Conc!$E$10,ROUND(12*$AA9,0),4*(PlotControl!$C$6-1),1,1) -> 2315800 | AQ9: =OFFSET(HR_Conc!$C$10,ROUND(12*$AA9,0),4*(PlotControl!$C$6-1),1,1) -> 123330 | AR9: =OFFSET(HR_Conc!$D$10,ROUND(12*$AA9,0),4*(PlotControl!$C$6-1),1,1) -> 163630 | AS9: =OFFSET(HR_Conc!$E$10,ROUND(12*$AA9,0),4*(PlotControl!$C$6-1),1,1) -> 220110 | AT9: =OFFSET(EP_Sump_Conc!$C$10,ROUND(12*$AA9,0),4*(PlotControl!$C$6-1),1,1) -> 72349 | AU9: =OFFSET(EP_Sump_Conc!$D$10,ROUND(12*$AA9,0),4*(PlotControl!$C$6-1),1,1) -> 146980 | AV9: =OFFSET(EP_Sump_Conc!$E$10,ROUND(12*$AA9,0),4*(PlotControl!$C$6-1),1,1) -> 269020 | AW9: =OFFSET(CPS_Pond_Conc!$C$10,ROUND(12*$AA9,0),4*(PlotControl!$C$6-1),1,1) -> 250000 | AX9: =OFFSET(CPS_Pond_Conc!$D$10,ROUND(12*$AA9,0),4*(PlotControl!$C$6-1),1,1) -> 250000 | AY9: =OFFSET(CPS_Pond_Conc!$E$10,ROUND(12*$AA9,0),4*(PlotControl!$C$6-1),1,1) -> 250000
A10: 6 | B10: =IF(PlotControl!$B$4 = "Annual Max",MAX(OFFSET(Cat23SP_Conc!$C$10,12*($A10-1),4*(PlotControl!$C$6-1),12,1)),AVERAGE(OFFSET(Cat23SP_Conc!$C$10,12*($A10-1),4*(PlotControl!$C$6-1),12,1))) -> 1954700 | C10: =IF(PlotControl!$B$4 = "Annual Max",MAX(OFFSET(Cat23SP_Conc!$D$10,12*($A10-1),4*(PlotControl!$C$6-1),12,1)),AVERAGE(OFFSET(Cat23SP_Conc!$D$10,12*($A10-1),4*(PlotControl!$C$6-1),12,1))) -> 2479400 | D10: =IF(PlotControl!$B$4 = "Annual Max",MAX(OFFSET(Cat23SP_Conc!$E$10,12*($A10-1),4*(PlotControl!$C$6-1),12,1)),AVERAGE(OFFSET(Cat23SP_Conc!$E$10,12*($A10-1),4*(PlotControl!$C$6-1),12,1))) -> 3600500 | E10: =IF(PlotControl!$B$4 = "Annual Max",MAX(OFFSET(Cat4SP_Conc!$C$10,12*($A10-1),4*(PlotControl!$C$6-1),12,1)),AVERAGE(OFFSET(Cat4SP_Conc!$C$10,12*($A10-1),4*(PlotControl!$C$6-1),12,1))) -> 3934300 | F10: =IF(PlotControl!$B$4 = "Annual Max",MAX(OFFSET(Cat4SP_Conc!$D$10,12*($A10-1),4*(PlotControl!$C$6-1),12,1)),AVERAGE(OFFSET(Cat4SP_Conc!$D$10,12*($A10-1),4*(PlotControl!$C$6-1),12,1))) -> 12486000 | G10: =IF(PlotControl!$B$4 = "Annual Max",MAX(OFFSET(Cat4SP_Conc!$E$10,12*($A10-1),4*(PlotControl!$C$6-1),12,1)),AVERAGE(OFFSET(Cat4SP_Conc!$E$10,12*($A10-1),4*(PlotControl!$C$6-1),12,1))) -> 43802000 | H10: =IF(PlotControl!$B$4 = "Annual Max",MAX(OFFSET(OSP_Conc!$C$10,12*($A10-1),4*(PlotControl!$C$6-1),12,1)),AVERAGE(OFFSET(OSP_Conc!$C$10,12*($A10-1),4*(PlotControl!$C$6-1),12,1))) -> 2170300 | I10: =IF(PlotControl!$B$4 = "Annual Max",MAX(OFFSET(OSP_Conc!$D$10,12*($A10-1),4*(PlotControl!$C$6-1),12,1)),AVERAGE(OFFSET(OSP_Conc!$D$10,12*($A10-1),4*(PlotControl!$C$6-1),12,1))) -> 2858100 | J10: =IF(PlotControl!$B$4 = "Annual Max",MAX(OFFSET(OSP_Conc!$E$10,12*($A10-1),4*(PlotControl!$C$6-1),12,1)),AVERAGE(OFFSET(OSP_Conc!$E$10,12*($A10-1),4*(PlotControl!$C$6-1),12,1))) -> 3942200 | K10: =IF(PlotControl!$B$4 = "Annual Max",MAX(OFFSET(OSLA_Conc!$C$10,12*($A10-1),4*(PlotControl!$C$6-1),12,1)),AVERAGE(OFFSET(OSLA_Conc!$C$10,12*($A10-1),4*(PlotControl!$C$6-1),12,1))) -> 39610 | L10: =IF(PlotControl!$B$4 = "Annual Max",MAX(OFFSET(OSLA_Conc!$D$10,12*($A10-1),4*(PlotControl!$C$6-1),12,1)),AVERAGE(OFFSET(OSLA_Conc!$D$10,12*($A10-1),4*(PlotControl!$C$6-1),12,1))) -> 45002 | M10: =IF(PlotControl!$B$4 = "Annual Max",MAX(OFFSET(OSLA_Conc!$E$10,12*($A10-1),4*(PlotControl!$C$6-1),12,1)),AVERAGE(OFFSET(OSLA_Conc!$E$10,12*($A10-1),4*(PlotControl!$C$6-1),12,1))) -> 50687 | N10: =IF(PlotControl!$B$4 = "Annual Max",MAX(OFFSET(RTH_Conc!$C$10,12*($A10-1),4*(PlotControl!$C$6-1),12,1)),AVERAGE(OFFSET(RTH_Conc!$C$10,12*($A10-1),4*(PlotControl!$C$6-1),12,1))) -> 2071400 | O10: =IF(PlotControl!$B$4 = "Annual Max",MAX(OFFSET(RTH_Conc!$D$10,12*($A10-1),4*(PlotControl!$C$6-1),12,1)),AVERAGE(OFFSET(RTH_Conc!$D$10,12*($A10-1),4*(PlotControl!$C$6-1),12,1))) -> 2603400 | P10: =IF(PlotControl!$B$4 = "Annual Max",MAX(OFFSET(RTH_Conc!$E$10,12*($A10-1),4*(PlotControl!$C$6-1),12,1)),AVERAGE(OFFSET(RTH_Conc!$E$10,12*($A10-1),4*(PlotControl!$C$6-1),12,1))) -> 3433700 | Q10: =IF(PlotControl!$B$4 = "Annual Max",MAX(OFFSET(HR_Conc!$C$10,12*($A10-1),4*(PlotControl!$C$6-1),12,1)),AVERAGE(OFFSET(HR_Conc!$C$10,12*($A10-1),4*(PlotControl!$C$6-1),12,1))) -> 295320 | R10: =IF(PlotControl!$B$4 = "Annual Max",MAX(OFFSET(HR_Conc!$D$10,12*($A10-1),4*(PlotControl!$C$6-1),12,1)),AVERAGE(OFFSET(HR_Conc!$D$10,12*($A10-1),4*(PlotControl!$C$6-1),12,1))) -> 377440 | S10: =IF(PlotControl!$B$4 = "Annual Max",MAX(OFFSET(HR_Conc!$E$10,12*($A10-1),4*(PlotControl!$C$6-1),12,1)),AVERAGE(OFFSET(HR_Conc!$E$10,12*($A10-1),4*(PlotControl!$C$6-1),12,1))) -> 479880 | T10: =IF(PlotControl!$B$4 = "Annual Max",MAX(OFFSET(EP_Sump_Conc!$C$10,12*($A10-1),4*(PlotControl!$C$6-1),12,1)),AVERAGE(OFFSET(EP_Sump_Conc!$C$10,12*($A10-1),4*(PlotControl!$C$6-1),12,1))) -> 85242 | U10: =IF(PlotControl!$B$4 = "Annual Max",MAX(OFFSET(EP_Sump_Conc!$D$10,12*($A10-1),4*(PlotControl!$C$6-1),12,1)),AVERAGE(OFFSET(EP_Sump_Conc!$D$10,12*($A10-1),4*(PlotControl!$C$6-1),12,1))) -> 132200 | V10: =IF(PlotControl!$B$4 = "Annual Max",MAX(OFFSET(EP_Sump_Conc!$E$10,12*($A10-1),4*(PlotControl!$C$6-1),12,1)),AVERAGE(OFFSET(EP_Sump_Conc!$E$10,12*($A10-1),4*(PlotControl!$C$6-1),12,1))) -> 206430 | W10: =IF(PlotControl!$B$4 = "Annual Max",MAX(OFFSET(CPS_Pond_Conc!$C$10,12*($A10-1),4*(PlotControl!$C$6-1),12,1)),AVERAGE(OFFSET(CPS_Pond_Conc!$C$10,12*($A10-1),4*(PlotControl!$C$6-1),12,1))) -> 250000 | X10: =IF(PlotControl!$B$4 = "Annual Max",MAX(OFFSET(CPS_Pond_Conc!$D$10,12*($A10-1),4*(PlotControl!$C$6-1),12,1)),AVERAGE(OFFSET(CPS_Pond_Conc!$D$10,12*($A10-1),4*(PlotControl!$C$6-1),12,1))) -> 250000 | Y10: =IF(PlotControl!$B$4 = "Annual Max",MAX(OFFSET(CPS_Pond_Conc!$E$10,12*($A10-1),4*(PlotControl!$C$6-1),12,1)),AVERAGE(OFFSET(CPS_Pond_Conc!$E$10,12*($A10-1),4*(PlotControl!$C$6-1),12,1))) -> 250000 | AA10: 0.4166666667 | AB10: =OFFSET(Cat23SP_Conc!$C$10,ROUND(12*$AA10,0),4*(PlotControl!$C$6-1),1,1) -> 137430 | AC10: =OFFSET(Cat23SP_Conc!$D$10,ROUND(12*$AA10,0),4*(PlotControl!$C$6-1),1,1) -> 276690 | AD10: =OFFSET(Cat23SP_Conc!$E$10,ROUND(12*$AA10,0),4*(PlotControl!$C$6-1),1,1) -> 529710 | AE10: =OFFSET(Cat4SP_Conc!$C$10,ROUND(12*$AA10,0),4*(PlotControl!$C$6-1),1,1) -> 1994900 | AF10: =OFFSET(Cat4SP_Conc!$D$10,ROUND(12*$AA10,0),4*(PlotControl!$C$6-1),1,1) -> 3874100 | AG10: =OFFSET(Cat4SP_Conc!$E$10,ROUND(12*$AA10,0),4*(PlotControl!$C$6-1),1,1) -> 7287800 | AH10: =OFFSET(OSP_Conc!$C$10,ROUND(12*$AA10,0),4*(PlotControl!$C$6-1),1,1) -> 136420 | AI10: =OFFSET(OSP_Conc!$D$10,ROUND(12*$AA10,0),4*(PlotControl!$C$6-1),1,1) -> 273960 | AJ10: =OFFSET(OSP_Conc!$E$10,ROUND(12*$AA10,0),4*(PlotControl!$C$6-1),1,1) -> 523740 | AK10: =OFFSET(OSLA_Conc!$C$10,ROUND(12*$AA10,0),4*(PlotControl!$C$6-1),1,1) -> 39506 | AL10: =OFFSET(OSLA_Conc!$D$10,ROUND(12*$AA10,0),4*(PlotControl!$C$6-1),1,1) -> 44917 | AM10: =OFFSET(OSLA_Conc!$E$10,ROUND(12*$AA10,0),4*(PlotControl!$C$6-1),1,1) -> 50574 | AN10: =OFFSET(RTH_Conc!$C$10,ROUND(12*$AA10,0),4*(PlotControl!$C$6-1),1,1) -> 636520 | AO10: =OFFSET(RTH_Conc!$D$10,ROUND(12*$AA10,0),4*(PlotControl!$C$6-1),1,1) -> 837460 | AP10: =OFFSET(RTH_Conc!$E$10,ROUND(12*$AA10,0),4*(PlotControl!$C$6-1),1,1) -> 1130900 | AQ10: =OFFSET(HR_Conc!$C$10,ROUND(12*$AA10,0),4*(PlotControl!$C$6-1),1,1) -> 65973 | AR10: =OFFSET(HR_Conc!$D$10,ROUND(12*$AA10,0),4*(PlotControl!$C$6-1),1,1) -> 86815 | AS10: =OFFSET(HR_Conc!$E$10,ROUND(12*$AA10,0),4*(PlotControl!$C$6-1),1,1) -> 115940 | AT10: =OFFSET(EP_Sump_Conc!$C$10,ROUND(12*$AA10,0),4*(PlotControl!$C$6-1),1,1) -> 82402 | AU10: =OFFSET(EP_Sump_Conc!$D$10,ROUND(12*$AA10,0),4*(PlotControl!$C$6-1),1,1) -> 162810 | AV10: =OFFSET(EP_Sump_Conc!$E$10,ROUND(12*$AA10,0),4*(PlotControl!$C$6-1),1,1) -> 294140 | AW10: =OFFSET(CPS_Pond_Conc!$C$10,ROUND(12*$AA10,0),4*(PlotControl!$C$6-1),1,1) -> 250000 | AX10: =OFFSET(CPS_Pond_Conc!$D$10,ROUND(12*$AA10,0),4*(PlotControl!$C$6-1),1,1) -> 250000 | AY10: =OFFSET(CPS_Pond_Conc!$E$10,ROUND(12*$AA10,0),4*(PlotControl!$C$6-1),1,1) -> 250000
A11: 7 | B11: =IF(PlotControl!$B$4 = "Annual Max",MAX(OFFSET(Cat23SP_Conc!$C$10,12*($A11-1),4*(PlotControl!$C$6-1),12,1)),AVERAGE(OFFSET(Cat23SP_Conc!$C$10,12*($A11-1),4*(PlotControl!$C$6-1),12,1))) -> 1953500 | C11: =IF(PlotControl!$B$4 = "Annual Max",MAX(OFFSET(Cat23SP_Conc!$D$10,12*($A11-1),4*(PlotControl!$C$6-1),12,1)),AVERAGE(OFFSET(Cat23SP_Conc!$D$10,12*($A11-1),4*(PlotControl!$C$6-1),12,1))) -> 2560200 | D11: =IF(PlotControl!$B$4 = "Annual Max",MAX(OFFSET(Cat23SP_Conc!$E$10,12*($A11-1),4*(PlotControl!$C$6-1),12,1)),AVERAGE(OFFSET(Cat23SP_Conc!$E$10,12*($A11-1),4*(PlotControl!$C$6-1),12,1))) -> 3666800 | E11: =IF(PlotControl!$B$4 = "Annual Max",MAX(OFFSET(Cat4SP_Conc!$C$10,12*($A11-1),4*(PlotControl!$C$6-1),12,1)),AVERAGE(OFFSET(Cat4SP_Conc!$C$10,12*($A11-1),4*(PlotControl!$C$6-1),12,1))) -> 3986300 | F11: =IF(PlotControl!$B$4 = "Annual Max",MAX(OFFSET(Cat4SP_Conc!$D$10,12*($A11-1),4*(PlotControl!$C$6-1),12,1)),AVERAGE(OFFSET(Cat4SP_Conc!$D$10,12*($A11-1),4*(PlotControl!$C$6-1),12,1))) -> 12635000 | G11: =IF(PlotControl!$B$4 = "Annual Max",MAX(OFFSET(Cat4SP_Conc!$E$10,12*($A11-1),4*(PlotControl!$C$6-1),12,1)),AVERAGE(OFFSET(Cat4SP_Conc!$E$10,12*($A11-1),4*(PlotControl!$C$6-1),12,1))) -> 47692000 | H11: =IF(PlotControl!$B$4 = "Annual Max",MAX(OFFSET(OSP_Conc!$C$10,12*($A11-1),4*(PlotControl!$C$6-1),12,1)),AVERAGE(OFFSET(OSP_Conc!$C$10,12*($A11-1),4*(PlotControl!$C$6-1),12,1))) -> 2822000 | I11: =IF(PlotControl!$B$4 = "Annual Max",MAX(OFFSET(OSP_Conc!$D$10,12*($A11-1),4*(PlotControl!$C$6-1),12,1)),AVERAGE(OFFSET(OSP_Conc!$D$10,12*($A11-1),4*(PlotControl!$C$6-1),12,1))) -> 3922100 | J11: =IF(PlotControl!$B$4 = "Annual Max",MAX(OFFSET(OSP_Conc!$E$10,12*($A11-1),4*(PlotControl!$C$6-1),12,1)),AVERAGE(OFFSET(OSP_Conc!$E$10,12*($A11-1),4*(PlotControl!$C$6-1),12,1))) -> 5553900 | K11: =IF(PlotControl!$B$4 = "Annual Max",MAX(OFFSET(OSLA_Conc!$C$10,12*($A11-1),4*(PlotControl!$C$6-1),12,1)),AVERAGE(OFFSET(OSLA_Conc!$C$10,12*($A11-1),4*(PlotControl!$C$6-1),12,1))) -> 39610 | L11: =IF(PlotControl!$B$4 = "Annual Max",MAX(OFFSET(OSLA_Conc!$D$10,12*($A11-1),4*(PlotControl!$C$6-1),12,1)),AVERAGE(OFFSET(OSLA_Conc!$D$10,12*($A11-1),4*(PlotControl!$C$6-1),12,1))) -> 45002 | M11: =IF(PlotControl!$B$4 = "Annual Max",MAX(OFFSET(OSLA_Conc!$E$10,12*($A11-1),4*(PlotControl!$C$6-1),12,1)),AVERAGE(OFFSET(OSLA_Conc!$E$10,12*($A11-1),4*(PlotControl!$C$6-1),12,1))) -> 50687 | N11: =IF(PlotControl!$B$4 = "Annual Max",MAX(OFFSET(RTH_Conc!$C$10,12*($A11-1),4*(PlotControl!$C$6-1),12,1)),AVERAGE(OFFSET(RTH_Conc!$C$10,12*($A11-1),4*(PlotControl!$C$6-1),12,1))) -> 2071400 | O11: =IF(PlotControl!$B$4 = "Annual Max",MAX(OFFSET(RTH_Conc!$D$10,12*($A11-1),4*(PlotControl!$C$6-1),12,1)),AVERAGE(OFFSET(RTH_Conc!$D$10,12*($A11-1),4*(PlotControl!$C$6-1),12,1))) -> 2601700 | P11: =IF(PlotControl!$B$4 = "Annual Max",MAX(OFFSET(RTH_Conc!$E$10,12*($A11-1),4*(PlotControl!$C$6-1),12,1)),AVERAGE(OFFSET(RTH_Conc!$E$10,12*($A11-1),4*(PlotControl!$C$6-1),12,1))) -> 3497400 | Q11: =IF(PlotControl!$B$4 = "Annual Max",MAX(OFFSET(HR_Conc!$C$10,12*($A11-1),4*(PlotControl!$C$6-1),12,1)),AVERAGE(OFFSET(HR_Conc!$C$10,12*($A11-1),4*(PlotControl!$C$6-1),12,1))) -> 297700 | R11: =IF(PlotControl!$B$4 = "Annual Max",MAX(OFFSET(HR_Conc!$D$10,12*($A11-1),4*(PlotControl!$C$6-1),12,1)),AVERAGE(OFFSET(HR_Conc!$D$10,12*($A11-1),4*(PlotControl!$C$6-1),12,1))) -> 381240 | S11: =IF(PlotControl!$B$4 = "Annual Max",MAX(OFFSET(HR_Conc!$E$10,12*($A11-1),4*(PlotControl!$C$6-1),12,1)),AVERAGE(OFFSET(HR_Conc!$E$10,12*($A11-1),4*(PlotControl!$C$6-1),12,1))) -> 495590 | T11: =IF(PlotControl!$B$4 = "Annual Max",MAX(OFFSET(EP_Sump_Conc!$C$10,12*($A11-1),4*(PlotControl!$C$6-1),12,1)),AVERAGE(OFFSET(EP_Sump_Conc!$C$10,12*($A11-1),4*(PlotControl!$C$6-1),12,1))) -> 85605 | U11: =IF(PlotControl!$B$4 = "Annual Max",MAX(OFFSET(EP_Sump_Conc!$D$10,12*($A11-1),4*(PlotControl!$C$6-1),12,1)),AVERAGE(OFFSET(EP_Sump_Conc!$D$10,12*($A11-1),4*(PlotControl!$C$6-1),12,1))) -> 138710 | V11: =IF(PlotControl!$B$4 = "Annual Max",MAX(OFFSET(EP_Sump_Conc!$E$10,12*($A11-1),4*(PlotControl!$C$6-1),12,1)),AVERAGE(OFFSET(EP_Sump_Conc!$E$10,12*($A11-1),4*(PlotControl!$C$6-1),12,1))) -> 210270 | W11: =IF(PlotControl!$B$4 = "Annual Max",MAX(OFFSET(CPS_Pond_Conc!$C$10,12*($A11-1),4*(PlotControl!$C$6-1),12,1)),AVERAGE(OFFSET(CPS_Pond_Conc!$C$10,12*($A11-1),4*(PlotControl!$C$6-1),12,1))) -> 250000 | X11: =IF(PlotControl!$B$4 = "Annual Max",MAX(OFFSET(CPS_Pond_Conc!$D$10,12*($A11-1),4*(PlotControl!$C$6-1),12,1)),AVERAGE(OFFSET(CPS_Pond_Conc!$D$10,12*($A11-1),4*(PlotControl!$C$6-1),12,1))) -> 250000 | Y11: =IF(PlotControl!$B$4 = "Annual Max",MAX(OFFSET(CPS_Pond_Conc!$E$10,12*($A11-1),4*(PlotControl!$C$6-1),12,1)),AVERAGE(OFFSET(CPS_Pond_Conc!$E$10,12*($A11-1),4*(PlotControl!$C$6-1),12,1))) -> 250000 | AA11: 0.5 | AB11: =OFFSET(Cat23SP_Conc!$C$10,ROUND(12*$AA11,0),4*(PlotControl!$C$6-1),1,1) -> 127240 | AC11: =OFFSET(Cat23SP_Conc!$D$10,ROUND(12*$AA11,0),4*(PlotControl!$C$6-1),1,1) -> 254160 | AD11: =OFFSET(Cat23SP_Conc!$E$10,ROUND(12*$AA11,0),4*(PlotControl!$C$6-1),1,1) -> 483480 | AE11: =OFFSET(Cat4SP_Conc!$C$10,ROUND(12*$AA11,0),4*(PlotControl!$C$6-1),1,1) -> 1755000 | AF11: =OFFSET(Cat4SP_Conc!$D$10,ROUND(12*$AA11,0),4*(PlotControl!$C$6-1),1,1) -> 3658400 | AG11: =OFFSET(Cat4SP_Conc!$E$10,ROUND(12*$AA11,0),4*(PlotControl!$C$6-1),1,1) -> 6463000 | AH11: =OFFSET(OSP_Conc!$C$10,ROUND(12*$AA11,0),4*(PlotControl!$C$6-1),1,1) -> 129380 | AI11: =OFFSET(OSP_Conc!$D$10,ROUND(12*$AA11,0),4*(PlotControl!$C$6-1),1,1) -> 258290 | AJ11: =OFFSET(OSP_Conc!$E$10,ROUND(12*$AA11,0),4*(PlotControl!$C$6-1),1,1) -> 491400 | AK11: =OFFSET(OSLA_Conc!$C$10,ROUND(12*$AA11,0),4*(PlotControl!$C$6-1),1,1) -> 39598 | AL11: =OFFSET(OSLA_Conc!$D$10,ROUND(12*$AA11,0),4*(PlotControl!$C$6-1),1,1) -> 44987 | AM11: =OFFSET(OSLA_Conc!$E$10,ROUND(12*$AA11,0),4*(PlotControl!$C$6-1),1,1) -> 50673 | AN11: =OFFSET(RTH_Conc!$C$10,ROUND(12*$AA11,0),4*(PlotControl!$C$6-1),1,1) -> 511080 | AO11: =OFFSET(RTH_Conc!$D$10,ROUND(12*$AA11,0),4*(PlotControl!$C$6-1),1,1) -> 665380 | AP11: =OFFSET(RTH_Conc!$E$10,ROUND(12*$AA11,0),4*(PlotControl!$C$6-1),1,1) -> 879150 | AQ11: =OFFSET(HR_Conc!$C$10,ROUND(12*$AA11,0),4*(PlotControl!$C$6-1),1,1) -> 52963 | AR11: =OFFSET(HR_Conc!$D$10,ROUND(12*$AA11,0),4*(PlotControl!$C$6-1),1,1) -> 68955 | AS11: =OFFSET(HR_Conc!$E$10,ROUND(12*$AA11,0),4*(PlotControl!$C$6-1),1,1) -> 91051 | AT11: =OFFSET(EP_Sump_Conc!$C$10,ROUND(12*$AA11,0),4*(PlotControl!$C$6-1),1,1) -> 71574 | AU11: =OFFSET(EP_Sump_Conc!$D$10,ROUND(12*$AA11,0),4*(PlotControl!$C$6-1),1,1) -> 140660 | AV11: =OFFSET(EP_Sump_Conc!$E$10,ROUND(12*$AA11,0),4*(PlotControl!$C$6-1),1,1) -> 243390 | AW11: =OFFSET(CPS_Pond_Conc!$C$10,ROUND(12*$AA11,0),4*(PlotControl!$C$6-1),1,1) -> 250000 | AX11: =OFFSET(CPS_Pond_Conc!$D$10,ROUND(12*$AA11,0),4*(PlotControl!$C$6-1),1,1) -> 250000 | AY11: =OFFSET(CPS_Pond_Conc!$E$10,ROUND(12*$AA11,0),4*(PlotControl!$C$6-1),1,1) -> 250000
A12: 8 | B12: =IF(PlotControl!$B$4 = "Annual Max",MAX(OFFSET(Cat23SP_Conc!$C$10,12*($A12-1),4*(PlotControl!$C$6-1),12,1)),AVERAGE(OFFSET(Cat23SP_Conc!$C$10,12*($A12-1),4*(PlotControl!$C$6-1),12,1))) -> 2244000 | C12: =IF(PlotControl!$B$4 = "Annual Max",MAX(OFFSET(Cat23SP_Conc!$D$10,12*($A12-1),4*(PlotControl!$C$6-1),12,1)),AVERAGE(OFFSET(Cat23SP_Conc!$D$10,12*($A12-1),4*(PlotControl!$C$6-1),12,1))) -> 3038100 | D12: =IF(PlotControl!$B$4 = "Annual Max",MAX(OFFSET(Cat23SP_Conc!$E$10,12*($A12-1),4*(PlotControl!$C$6-1),12,1)),AVERAGE(OFFSET(Cat23SP_Conc!$E$10,12*($A12-1),4*(PlotControl!$C$6-1),12,1))) -> 4799900 | E12: =IF(PlotControl!$B$4 = "Annual Max",MAX(OFFSET(Cat4SP_Conc!$C$10,12*($A12-1),4*(PlotControl!$C$6-1),12,1)),AVERAGE(OFFSET(Cat4SP_Conc!$C$10,12*($A12-1),4*(PlotControl!$C$6-1),12,1))) -> 4051700 | F12: =IF(PlotControl!$B$4 = "Annual Max",MAX(OFFSET(Cat4SP_Conc!$D$10,12*($A12-1),4*(PlotControl!$C$6-1),12,1)),AVERAGE(OFFSET(Cat4SP_Conc!$D$10,12*($A12-1),4*(PlotControl!$C$6-1),12,1))) -> 12612000 | G12: =IF(PlotControl!$B$4 = "Annual Max",MAX(OFFSET(Cat4SP_Conc!$E$10,12*($A12-1),4*(PlotControl!$C$6-1),12,1)),AVERAGE(OFFSET(Cat4SP_Conc!$E$10,12*($A12-1),4*(PlotControl!$C$6-1),12,1))) -> 48725000 | H12: =IF(PlotControl!$B$4 = "Annual Max",MAX(OFFSET(OSP_Conc!$C$10,12*($A12-1),4*(PlotControl!$C$6-1),12,1)),AVERAGE(OFFSET(OSP_Conc!$C$10,12*($A12-1),4*(PlotControl!$C$6-1),12,1))) -> 3485500 | I12: =IF(PlotControl!$B$4 = "Annual Max",MAX(OFFSET(OSP_Conc!$D$10,12*($A12-1),4*(PlotControl!$C$6-1),12,1)),AVERAGE(OFFSET(OSP_Conc!$D$10,12*($A12-1),4*(PlotControl!$C$6-1),12,1))) -> 5135200 | J12: =IF(PlotControl!$B$4 = "Annual Max",MAX(OFFSET(OSP_Conc!$E$10,12*($A12-1),4*(PlotControl!$C$6-1),12,1)),AVERAGE(OFFSET(OSP_Conc!$E$10,12*($A12-1),4*(PlotControl!$C$6-1),12,1))) -> 7359700 | K12: =IF(PlotControl!$B$4 = "Annual Max",MAX(OFFSET(OSLA_Conc!$C$10,12*($A12-1),4*(PlotControl!$C$6-1),12,1)),AVERAGE(OFFSET(OSLA_Conc!$C$10,12*($A12-1),4*(PlotControl!$C$6-1),12,1))) -> 39610 | L12: =IF(PlotControl!$B$4 = "Annual Max",MAX(OFFSET(OSLA_Conc!$D$10,12*($A12-1),4*(PlotControl!$C$6-1),12,1)),AVERAGE(OFFSET(OSLA_Conc!$D$10,12*($A12-1),4*(PlotControl!$C$6-1),12,1))) -> 45002 | M12: =IF(PlotControl!$B$4 = "Annual Max",MAX(OFFSET(OSLA_Conc!$E$10,12*($A12-1),4*(PlotControl!$C$6-1),12,1)),AVERAGE(OFFSET(OSLA_Conc!$E$10,12*($A12-1),4*(PlotControl!$C$6-1),12,1))) -> 50687 | N12: =IF(PlotControl!$B$4 = "Annual Max",MAX(OFFSET(RTH_Conc!$C$10,12*($A12-1),4*(PlotControl!$C$6-1),12,1)),AVERAGE(OFFSET(RTH_Conc!$C$10,12*($A12-1),4*(PlotControl!$C$6-1),12,1))) -> 2069500 | O12: =IF(PlotControl!$B$4 = "Annual Max",MAX(OFFSET(RTH_Conc!$D$10,12*($A12-1),4*(PlotControl!$C$6-1),12,1)),AVERAGE(OFFSET(RTH_Conc!$D$10,12*($A12-1),4*(PlotControl!$C$6-1),12,1))) -> 2611900 | P12: =IF(PlotControl!$B$4 = "Annual Max",MAX(OFFSET(RTH_Conc!$E$10,12*($A12-1),4*(PlotControl!$C$6-1),12,1)),AVERAGE(OFFSET(RTH_Conc!$E$10,12*($A12-1),4*(PlotControl!$C$6-1),12,1))) -> 3516100 | Q12: =IF(PlotControl!$B$4 = "Annual Max",MAX(OFFSET(HR_Conc!$C$10,12*($A12-1),4*(PlotControl!$C$6-1),12,1)),AVERAGE(OFFSET(HR_Conc!$C$10,12*($A12-1),4*(PlotControl!$C$6-1),12,1))) -> 304890 | R12: =IF(PlotControl!$B$4 = "Annual Max",MAX(OFFSET(HR_Conc!$D$10,12*($A12-1),4*(PlotControl!$C$6-1),12,1)),AVERAGE(OFFSET(HR_Conc!$D$10,12*($A12-1),4*(PlotControl!$C$6-1),12,1))) -> 385000 | S12: =IF(PlotControl!$B$4 = "Annual Max",MAX(OFFSET(HR_Conc!$E$10,12*($A12-1),4*(PlotControl!$C$6-1),12,1)),AVERAGE(OFFSET(HR_Conc!$E$10,12*($A12-1),4*(PlotControl!$C$6-1),12,1))) -> 493400 | T12: =IF(PlotControl!$B$4 = "Annual Max",MAX(OFFSET(EP_Sump_Conc!$C$10,12*($A12-1),4*(PlotControl!$C$6-1),12,1)),AVERAGE(OFFSET(EP_Sump_Conc!$C$10,12*($A12-1),4*(PlotControl!$C$6-1),12,1))) -> 83544 | U12: =IF(PlotControl!$B$4 = "Annual Max",MAX(OFFSET(EP_Sump_Conc!$D$10,12*($A12-1),4*(PlotControl!$C$6-1),12,1)),AVERAGE(OFFSET(EP_Sump_Conc!$D$10,12*($A12-1),4*(PlotControl!$C$6-1),12,1))) -> 132980 | V12: =IF(PlotControl!$B$4 = "Annual Max",MAX(OFFSET(EP_Sump_Conc!$E$10,12*($A12-1),4*(PlotControl!$C$6-1),12,1)),AVERAGE(OFFSET(EP_Sump_Conc!$E$10,12*($A12-1),4*(PlotControl!$C$6-1),12,1))) -> 202340 | W12: =IF(PlotControl!$B$4 = "Annual Max",MAX(OFFSET(CPS_Pond_Conc!$C$10,12*($A12-1),4*(PlotControl!$C$6-1),12,1)),AVERAGE(OFFSET(CPS_Pond_Conc!$C$10,12*($A12-1),4*(PlotControl!$C$6-1),12,1))) -> 250000 | X12: =IF(PlotControl!$B$4 = "Annual Max",MAX(OFFSET(CPS_Pond_Conc!$D$10,12*($A12-1),4*(PlotControl!$C$6-1),12,1)),AVERAGE(OFFSET(CPS_Pond_Conc!$D$10,12*($A12-1),4*(PlotControl!$C$6-1),12,1))) -> 250000 | Y12: =IF(PlotControl!$B$4 = "Annual Max",MAX(OFFSET(CPS_Pond_Conc!$E$10,12*($A12-1),4*(PlotControl!$C$6-1),12,1)),AVERAGE(OFFSET(CPS_Pond_Conc!$E$10,12*($A12-1),4*(PlotControl!$C$6-1),12,1))) -> 250000 | AA12: 0.5833333333 | AB12: =OFFSET(Cat23SP_Conc!$C$10,ROUND(12*$AA12,0),4*(PlotControl!$C$6-1),1,1) -> 143850 | AC12: =OFFSET(Cat23SP_Conc!$D$10,ROUND(12*$AA12,0),4*(PlotControl!$C$6-1),1,1) -> 286210 | AD12: =OFFSET(Cat23SP_Conc!$E$10,ROUND(12*$AA12,0),4*(PlotControl!$C$6-1),1,1) -> 544820 | AE12: =OFFSET(Cat4SP_Conc!$C$10,ROUND(12*$AA12,0),4*(PlotControl!$C$6-1),1,1) -> 1932100 | AF12: =OFFSET(Cat4SP_Conc!$D$10,ROUND(12*$AA12,0),4*(PlotControl!$C$6-1),1,1) -> 3717100 | AG12: =OFFSET(Cat4SP_Conc!$E$10,ROUND(12*$AA12,0),4*(PlotControl!$C$6-1),1,1) -> 6743200 | AH12: =OFFSET(OSP_Conc!$C$10,ROUND(12*$AA12,0),4*(PlotControl!$C$6-1),1,1) -> 148520 | AI12: =OFFSET(OSP_Conc!$D$10,ROUND(12*$AA12,0),4*(PlotControl!$C$6-1),1,1) -> 295420 | AJ12: =OFFSET(OSP_Conc!$E$10,ROUND(12*$AA12,0),4*(PlotControl!$C$6-1),1,1) -> 562390 | AK12: =OFFSET(OSLA_Conc!$C$10,ROUND(12*$AA12,0),4*(PlotControl!$C$6-1),1,1) -> 39609 | AL12: =OFFSET(OSLA_Conc!$D$10,ROUND(12*$AA12,0),4*(PlotControl!$C$6-1),1,1) -> 45000 | AM12: =OFFSET(OSLA_Conc!$E$10,ROUND(12*$AA12,0),4*(PlotControl!$C$6-1),1,1) -> 50685 | AN12: =OFFSET(RTH_Conc!$C$10,ROUND(12*$AA12,0),4*(PlotControl!$C$6-1),1,1) -> 506480 | AO12: =OFFSET(RTH_Conc!$D$10,ROUND(12*$AA12,0),4*(PlotControl!$C$6-1),1,1) -> 657050 | AP12: =OFFSET(RTH_Conc!$E$10,ROUND(12*$AA12,0),4*(PlotControl!$C$6-1),1,1) -> 863150 | AQ12: =OFFSET(HR_Conc!$C$10,ROUND(12*$AA12,0),4*(PlotControl!$C$6-1),1,1) -> 52481 | AR12: =OFFSET(HR_Conc!$D$10,ROUND(12*$AA12,0),4*(PlotControl!$C$6-1),1,1) -> 68083 | AS12: =OFFSET(HR_Conc!$E$10,ROUND(12*$AA12,0),4*(PlotControl!$C$6-1),1,1) -> 89435 | AT12: =OFFSET(EP_Sump_Conc!$C$10,ROUND(12*$AA12,0),4*(PlotControl!$C$6-1),1,1) -> 71945 | AU12: =OFFSET(EP_Sump_Conc!$D$10,ROUND(12*$AA12,0),4*(PlotControl!$C$6-1),1,1) -> 139740 | AV12: =OFFSET(EP_Sump_Conc!$E$10,ROUND(12*$AA12,0),4*(PlotControl!$C$6-1),1,1) -> 238660 | AW12: =OFFSET(CPS_Pond_Conc!$C$10,ROUND(12*$AA12,0),4*(PlotControl!$C$6-1),1,1) -> 250000 | AX12: =OFFSET(CPS_Pond_Conc!$D$10,ROUND(12*$AA12,0),4*(PlotControl!$C$6-1),1,1) -> 250000 | AY12: =OFFSET(CPS_Pond_Conc!$E$10,ROUND(12*$AA12,0),4*(PlotControl!$C$6-1),1,1) -> 250000
A13: 9 | B13: =IF(PlotControl!$B$4 = "Annual Max",MAX(OFFSET(Cat23SP_Conc!$C$10,12*($A13-1),4*(PlotControl!$C$6-1),12,1)),AVERAGE(OFFSET(Cat23SP_Conc!$C$10,12*($A13-1),4*(PlotControl!$C$6-1),12,1))) -> 2835700 | C13: =IF(PlotControl!$B$4 = "Annual Max",MAX(OFFSET(Cat23SP_Conc!$D$10,12*($A13-1),4*(PlotControl!$C$6-1),12,1)),AVERAGE(OFFSET(Cat23SP_Conc!$D$10,12*($A13-1),4*(PlotControl!$C$6-1),12,1))) -> 3902700 | D13: =IF(PlotControl!$B$4 = "Annual Max",MAX(OFFSET(Cat23SP_Conc!$E$10,12*($A13-1),4*(PlotControl!$C$6-1),12,1)),AVERAGE(OFFSET(Cat23SP_Conc!$E$10,12*($A13-1),4*(PlotControl!$C$6-1),12,1))) -> 5669400 | E13: =IF(PlotControl!$B$4 = "Annual Max",MAX(OFFSET(Cat4SP_Conc!$C$10,12*($A13-1),4*(PlotControl!$C$6-1),12,1)),AVERAGE(OFFSET(Cat4SP_Conc!$C$10,12*($A13-1),4*(PlotControl!$C$6-1),12,1))) -> 4122900 | F13: =IF(PlotControl!$B$4 = "Annual Max",MAX(OFFSET(Cat4SP_Conc!$D$10,12*($A13-1),4*(PlotControl!$C$6-1),12,1)),AVERAGE(OFFSET(Cat4SP_Conc!$D$10,12*($A13-1),4*(PlotControl!$C$6-1),12,1))) -> 12578000 | G13: =IF(PlotControl!$B$4 = "Annual Max",MAX(OFFSET(Cat4SP_Conc!$E$10,12*($A13-1),4*(PlotControl!$C$6-1),12,1)),AVERAGE(OFFSET(Cat4SP_Conc!$E$10,12*($A13-1),4*(PlotControl!$C$6-1),12,1))) -> 50637000 | H13: =IF(PlotControl!$B$4 = "Annual Max",MAX(OFFSET(OSP_Conc!$C$10,12*($A13-1),4*(PlotControl!$C$6-1),12,1)),AVERAGE(OFFSET(OSP_Conc!$C$10,12*($A13-1),4*(PlotControl!$C$6-1),12,1))) -> 3914300 | I13: =IF(PlotControl!$B$4 = "Annual Max",MAX(OFFSET(OSP_Conc!$D$10,12*($A13-1),4*(PlotControl!$C$6-1),12,1)),AVERAGE(OFFSET(OSP_Conc!$D$10,12*($A13-1),4*(PlotControl!$C$6-1),12,1))) -> 6340800 | J13: =IF(PlotControl!$B$4 = "Annual Max",MAX(OFFSET(OSP_Conc!$E$10,12*($A13-1),4*(PlotControl!$C$6-1),12,1)),AVERAGE(OFFSET(OSP_Conc!$E$10,12*($A13-1),4*(PlotControl!$C$6-1),12,1))) -> 9474100 | K13: =IF(PlotControl!$B$4 = "Annual Max",MAX(OFFSET(OSLA_Conc!$C$10,12*($A13-1),4*(PlotControl!$C$6-1),12,1)),AVERAGE(OFFSET(OSLA_Conc!$C$10,12*($A13-1),4*(PlotControl!$C$6-1),12,1))) -> 39610 | L13: =IF(PlotControl!$B$4 = "Annual Max",MAX(OFFSET(OSLA_Conc!$D$10,12*($A13-1),4*(PlotControl!$C$6-1),12,1)),AVERAGE(OFFSET(OSLA_Conc!$D$10,12*($A13-1),4*(PlotControl!$C$6-1),12,1))) -> 45002 | M13: =IF(PlotControl!$B$4 = "Annual Max",MAX(OFFSET(OSLA_Conc!$E$10,12*($A13-1),4*(PlotControl!$C$6-1),12,1)),AVERAGE(OFFSET(OSLA_Conc!$E$10,12*($A13-1),4*(PlotControl!$C$6-1),12,1))) -> 50687 | N13: =IF(PlotControl!$B$4 = "Annual Max",MAX(OFFSET(RTH_Conc!$C$10,12*($A13-1),4*(PlotControl!$C$6-1),12,1)),AVERAGE(OFFSET(RTH_Conc!$C$10,12*($A13-1),4*(PlotControl!$C$6-1),12,1))) -> 2069800 | O13: =IF(PlotControl!$B$4 = "Annual Max",MAX(OFFSET(RTH_Conc!$D$10,12*($A13-1),4*(PlotControl!$C$6-1),12,1)),AVERAGE(OFFSET(RTH_Conc!$D$10,12*($A13-1),4*(PlotControl!$C$6-1),12,1))) -> 2620900 | P13: =IF(PlotControl!$B$4 = "Annual Max",MAX(OFFSET(RTH_Conc!$E$10,12*($A13-1),4*(PlotControl!$C$6-1),12,1)),AVERAGE(OFFSET(RTH_Conc!$E$10,12*($A13-1),4*(PlotControl!$C$6-1),12,1))) -> 3526200 | Q13: =IF(PlotControl!$B$4 = "Annual Max",MAX(OFFSET(HR_Conc!$C$10,12*($A13-1),4*(PlotControl!$C$6-1),12,1)),AVERAGE(OFFSET(HR_Conc!$C$10,12*($A13-1),4*(PlotControl!$C$6-1),12,1))) -> 304630 | R13: =IF(PlotControl!$B$4 = "Annual Max",MAX(OFFSET(HR_Conc!$D$10,12*($A13-1),4*(PlotControl!$C$6-1),12,1)),AVERAGE(OFFSET(HR_Conc!$D$10,12*($A13-1),4*(PlotControl!$C$6-1),12,1))) -> 387070 | S13: =IF(PlotControl!$B$4 = "Annual Max",MAX(OFFSET(HR_Conc!$E$10,12*($A13-1),4*(PlotControl!$C$6-1),12,1)),AVERAGE(OFFSET(HR_Conc!$E$10,12*($A13-1),4*(PlotControl!$C$6-1),12,1))) -> 493630 | T13: =IF(PlotControl!$B$4 = "Annual Max",MAX(OFFSET(EP_Sump_Conc!$C$10,12*($A13-1),4*(PlotControl!$C$6-1),12,1)),AVERAGE(OFFSET(EP_Sump_Conc!$C$10,12*($A13-1),4*(PlotControl!$C$6-1),12,1))) -> 76164 | U13: =IF(PlotControl!$B$4 = "Annual Max",MAX(OFFSET(EP_Sump_Conc!$D$10,12*($A13-1),4*(PlotControl!$C$6-1),12,1)),AVERAGE(OFFSET(EP_Sump_Conc!$D$10,12*($A13-1),4*(PlotControl!$C$6-1),12,1))) -> 120250 | V13: =IF(PlotControl!$B$4 = "Annual Max",MAX(OFFSET(EP_Sump_Conc!$E$10,12*($A13-1),4*(PlotControl!$C$6-1),12,1)),AVERAGE(OFFSET(EP_Sump_Conc!$E$10,12*($A13-1),4*(PlotControl!$C$6-1),12,1))) -> 184340 | W13: =IF(PlotControl!$B$4 = "Annual Max",MAX(OFFSET(CPS_Pond_Conc!$C$10,12*($A13-1),4*(PlotControl!$C$6-1),12,1)),AVERAGE(OFFSET(CPS_Pond_Conc!$C$10,12*($A13-1),4*(PlotControl!$C$6-1),12,1))) -> 250000 | X13: =IF(PlotControl!$B$4 = "Annual Max",MAX(OFFSET(CPS_Pond_Conc!$D$10,12*($A13-1),4*(PlotControl!$C$6-1),12,1)),AVERAGE(OFFSET(CPS_Pond_Conc!$D$10,12*($A13-1),4*(PlotControl!$C$6-1),12,1))) -> 250000 | Y13: =IF(PlotControl!$B$4 = "Annual Max",MAX(OFFSET(CPS_Pond_Conc!$E$10,12*($A13-1),4*(PlotControl!$C$6-1),12,1)),AVERAGE(OFFSET(CPS_Pond_Conc!$E$10,12*($A13-1),4*(PlotControl!$C$6-1),12,1))) -> 250000 | AA13: 0.6666666667 | AB13: =OFFSET(Cat23SP_Conc!$C$10,ROUND(12*$AA13,0),4*(PlotControl!$C$6-1),1,1) -> 163760 | AC13: =OFFSET(Cat23SP_Conc!$D$10,ROUND(12*$AA13,0),4*(PlotControl!$C$6-1),1,1) -> 325710 | AD13: =OFFSET(Cat23SP_Conc!$E$10,ROUND(12*$AA13,0),4*(PlotControl!$C$6-1),1,1) -> 620060 | AE13: =OFFSET(Cat4SP_Conc!$C$10,ROUND(12*$AA13,0),4*(PlotControl!$C$6-1),1,1) -> 2159200 | AF13: =OFFSET(Cat4SP_Conc!$D$10,ROUND(12*$AA13,0),4*(PlotControl!$C$6-1),1,1) -> 3915700 | AG13: =OFFSET(Cat4SP_Conc!$E$10,ROUND(12*$AA13,0),4*(PlotControl!$C$6-1),1,1) -> 7433200 | AH13: =OFFSET(OSP_Conc!$C$10,ROUND(12*$AA13,0),4*(PlotControl!$C$6-1),1,1) -> 170960 | AI13: =OFFSET(OSP_Conc!$D$10,ROUND(12*$AA13,0),4*(PlotControl!$C$6-1),1,1) -> 339970 | AJ13: =OFFSET(OSP_Conc!$E$10,ROUND(12*$AA13,0),4*(PlotControl!$C$6-1),1,1) -> 647250 | AK13: =OFFSET(OSLA_Conc!$C$10,ROUND(12*$AA13,0),4*(PlotControl!$C$6-1),1,1) -> 39610 | AL13: =OFFSET(OSLA_Conc!$D$10,ROUND(12*$AA13,0),4*(PlotControl!$C$6-1),1,1) -> 45002 | AM13: =OFFSET(OSLA_Conc!$E$10,ROUND(12*$AA13,0),4*(PlotControl!$C$6-1),1,1) -> 50686 | AN13: =OFFSET(RTH_Conc!$C$10,ROUND(12*$AA13,0),4*(PlotControl!$C$6-1),1,1) -> 509810 | AO13: =OFFSET(RTH_Conc!$D$10,ROUND(12*$AA13,0),4*(PlotControl!$C$6-1),1,1) -> 661140 | AP13: =OFFSET(RTH_Conc!$E$10,ROUND(12*$AA13,0),4*(PlotControl!$C$6-1),1,1) -> 867930 | AQ13: =OFFSET(HR_Conc!$C$10,ROUND(12*$AA13,0),4*(PlotControl!$C$6-1),1,1) -> 52826 | AR13: =OFFSET(HR_Conc!$D$10,ROUND(12*$AA13,0),4*(PlotControl!$C$6-1),1,1) -> 68506 | AS13: =OFFSET(HR_Conc!$E$10,ROUND(12*$AA13,0),4*(PlotControl!$C$6-1),1,1) -> 89934 | AT13: =OFFSET(EP_Sump_Conc!$C$10,ROUND(12*$AA13,0),4*(PlotControl!$C$6-1),1,1) -> 73205 | AU13: =OFFSET(EP_Sump_Conc!$D$10,ROUND(12*$AA13,0),4*(PlotControl!$C$6-1),1,1) -> 141080 | AV13: =OFFSET(EP_Sump_Conc!$E$10,ROUND(12*$AA13,0),4*(PlotControl!$C$6-1),1,1) -> 239930 | AW13: =OFFSET(CPS_Pond_Conc!$C$10,ROUND(12*$AA13,0),4*(PlotControl!$C$6-1),1,1) -> 250000 | AX13: =OFFSET(CPS_Pond_Conc!$D$10,ROUND(12*$AA13,0),4*(PlotControl!$C$6-1),1,1) -> 250000 | AY13: =OFFSET(CPS_Pond_Conc!$E$10,ROUND(12*$AA13,0),4*(PlotControl!$C$6-1),1,1) -> 250000
A14: 10 | B14: =IF(PlotControl!$B$4 = "Annual Max",MAX(OFFSET(Cat23SP_Conc!$C$10,12*($A14-1),4*(PlotControl!$C$6-1),12,1)),AVERAGE(OFFSET(Cat23SP_Conc!$C$10,12*($A14-1),4*(PlotControl!$C$6-1),12,1))) -> 3172400 | C14: =IF(PlotControl!$B$4 = "Annual Max",MAX(OFFSET(Cat23SP_Conc!$D$10,12*($A14-1),4*(PlotControl!$C$6-1),12,1)),AVERAGE(OFFSET(Cat23SP_Conc!$D$10,12*($A14-1),4*(PlotControl!$C$6-1),12,1))) -> 4481200 | D14: =IF(PlotControl!$B$4 = "Annual Max",MAX(OFFSET(Cat23SP_Conc!$E$10,12*($A14-1),4*(PlotControl!$C$6-1),12,1)),AVERAGE(OFFSET(Cat23SP_Conc!$E$10,12*($A14-1),4*(PlotControl!$C$6-1),12,1))) -> 6439900 | E14: =IF(PlotControl!$B$4 = "Annual Max",MAX(OFFSET(Cat4SP_Conc!$C$10,12*($A14-1),4*(PlotControl!$C$6-1),12,1)),AVERAGE(OFFSET(Cat4SP_Conc!$C$10,12*($A14-1),4*(PlotControl!$C$6-1),12,1))) -> 4159200 | F14: =IF(PlotControl!$B$4 = "Annual Max",MAX(OFFSET(Cat4SP_Conc!$D$10,12*($A14-1),4*(PlotControl!$C$6-1),12,1)),AVERAGE(OFFSET(Cat4SP_Conc!$D$10,12*($A14-1),4*(PlotControl!$C$6-1),12,1))) -> 12541000 | G14: =IF(PlotControl!$B$4 = "Annual Max",MAX(OFFSET(Cat4SP_Conc!$E$10,12*($A14-1),4*(PlotControl!$C$6-1),12,1)),AVERAGE(OFFSET(Cat4SP_Conc!$E$10,12*($A14-1),4*(PlotControl!$C$6-1),12,1))) -> 50071000 | H14: =IF(PlotControl!$B$4 = "Annual Max",MAX(OFFSET(OSP_Conc!$C$10,12*($A14-1),4*(PlotControl!$C$6-1),12,1)),AVERAGE(OFFSET(OSP_Conc!$C$10,12*($A14-1),4*(PlotControl!$C$6-1),12,1))) -> 4325100 | I14: =IF(PlotControl!$B$4 = "Annual Max",MAX(OFFSET(OSP_Conc!$D$10,12*($A14-1),4*(PlotControl!$C$6-1),12,1)),AVERAGE(OFFSET(OSP_Conc!$D$10,12*($A14-1),4*(PlotControl!$C$6-1),12,1))) -> 7458400 | J14: =IF(PlotControl!$B$4 = "Annual Max",MAX(OFFSET(OSP_Conc!$E$10,12*($A14-1),4*(PlotControl!$C$6-1),12,1)),AVERAGE(OFFSET(OSP_Conc!$E$10,12*($A14-1),4*(PlotControl!$C$6-1),12,1))) -> 11750000 | K14: =IF(PlotControl!$B$4 = "Annual Max",MAX(OFFSET(OSLA_Conc!$C$10,12*($A14-1),4*(PlotControl!$C$6-1),12,1)),AVERAGE(OFFSET(OSLA_Conc!$C$10,12*($A14-1),4*(PlotControl!$C$6-1),12,1))) -> 39610 | L14: =IF(PlotControl!$B$4 = "Annual Max",MAX(OFFSET(OSLA_Conc!$D$10,12*($A14-1),4*(PlotControl!$C$6-1),12,1)),AVERAGE(OFFSET(OSLA_Conc!$D$10,12*($A14-1),4*(PlotControl!$C$6-1),12,1))) -> 45002 | M14: =IF(PlotControl!$B$4 = "Annual Max",MAX(OFFSET(OSLA_Conc!$E$10,12*($A14-1),4*(PlotControl!$C$6-1),12,1)),AVERAGE(OFFSET(OSLA_Conc!$E$10,12*($A14-1),4*(PlotControl!$C$6-1),12,1))) -> 50687 | N14: =IF(PlotControl!$B$4 = "Annual Max",MAX(OFFSET(RTH_Conc!$C$10,12*($A14-1),4*(PlotControl!$C$6-1),12,1)),AVERAGE(OFFSET(RTH_Conc!$C$10,12*($A14-1),4*(PlotControl!$C$6-1),12,1))) -> 2071400 | O14: =IF(PlotControl!$B$4 = "Annual Max",MAX(OFFSET(RTH_Conc!$D$10,12*($A14-1),4*(PlotControl!$C$6-1),12,1)),AVERAGE(OFFSET(RTH_Conc!$D$10,12*($A14-1),4*(PlotControl!$C$6-1),12,1))) -> 2597800 | P14: =IF(PlotControl!$B$4 = "Annual Max",MAX(OFFSET(RTH_Conc!$E$10,12*($A14-1),4*(PlotControl!$C$6-1),12,1)),AVERAGE(OFFSET(RTH_Conc!$E$10,12*($A14-1),4*(PlotControl!$C$6-1),12,1))) -> 3469300 | Q14: =IF(PlotControl!$B$4 = "Annual Max",MAX(OFFSET(HR_Conc!$C$10,12*($A14-1),4*(PlotControl!$C$6-1),12,1)),AVERAGE(OFFSET(HR_Conc!$C$10,12*($A14-1),4*(PlotControl!$C$6-1),12,1))) -> 295940 | R14: =IF(PlotControl!$B$4 = "Annual Max",MAX(OFFSET(HR_Conc!$D$10,12*($A14-1),4*(PlotControl!$C$6-1),12,1)),AVERAGE(OFFSET(HR_Conc!$D$10,12*($A14-1),4*(PlotControl!$C$6-1),12,1))) -> 381940 | S14: =IF(PlotControl!$B$4 = "Annual Max",MAX(OFFSET(HR_Conc!$E$10,12*($A14-1),4*(PlotControl!$C$6-1),12,1)),AVERAGE(OFFSET(HR_Conc!$E$10,12*($A14-1),4*(PlotControl!$C$6-1),12,1))) -> 489720 | T14: =IF(PlotControl!$B$4 = "Annual Max",MAX(OFFSET(EP_Sump_Conc!$C$10,12*($A14-1),4*(PlotControl!$C$6-1),12,1)),AVERAGE(OFFSET(EP_Sump_Conc!$C$10,12*($A14-1),4*(PlotControl!$C$6-1),12,1))) -> 67292 | U14: =IF(PlotControl!$B$4 = "Annual Max",MAX(OFFSET(EP_Sump_Conc!$D$10,12*($A14-1),4*(PlotControl!$C$6-1),12,1)),AVERAGE(OFFSET(EP_Sump_Conc!$D$10,12*($A14-1),4*(PlotControl!$C$6-1),12,1))) -> 104960 | V14: =IF(PlotControl!$B$4 = "Annual Max",MAX(OFFSET(EP_Sump_Conc!$E$10,12*($A14-1),4*(PlotControl!$C$6-1),12,1)),AVERAGE(OFFSET(EP_Sump_Conc!$E$10,12*($A14-1),4*(PlotControl!$C$6-1),12,1))) -> 150680 | W14: =IF(PlotControl!$B$4 = "Annual Max",MAX(OFFSET(CPS_Pond_Conc!$C$10,12*($A14-1),4*(PlotControl!$C$6-1),12,1)),AVERAGE(OFFSET(CPS_Pond_Conc!$C$10,12*($A14-1),4*(PlotControl!$C$6-1),12,1))) -> 250000 | X14: =IF(PlotControl!$B$4 = "Annual Max",MAX(OFFSET(CPS_Pond_Conc!$D$10,12*($A14-1),4*(PlotControl!$C$6-1),12,1)),AVERAGE(OFFSET(CPS_Pond_Conc!$D$10,12*($A14-1),4*(PlotControl!$C$6-1),12,1))) -> 250000 | Y14: =IF(PlotControl!$B$4 = "Annual Max",MAX(OFFSET(CPS_Pond_Conc!$E$10,12*($A14-1),4*(PlotControl!$C$6-1),12,1)),AVERAGE(OFFSET(CPS_Pond_Conc!$E$10,12*($A14-1),4*(PlotControl!$C$6-1),12,1))) -> 250000 | AA14: 0.75 | AB14: =OFFSET(Cat23SP_Conc!$C$10,ROUND(12*$AA14,0),4*(PlotControl!$C$6-1),1,1) -> 187900 | AC14: =OFFSET(Cat23SP_Conc!$D$10,ROUND(12*$AA14,0),4*(PlotControl!$C$6-1),1,1) -> 373640 | AD14: =OFFSET(Cat23SP_Conc!$E$10,ROUND(12*$AA14,0),4*(PlotControl!$C$6-1),1,1) -> 711340 | AE14: =OFFSET(Cat4SP_Conc!$C$10,ROUND(12*$AA14,0),4*(PlotControl!$C$6-1),1,1) -> 2443300 | AF14: =OFFSET(Cat4SP_Conc!$D$10,ROUND(12*$AA14,0),4*(PlotControl!$C$6-1),1,1) -> 4298500 | AG14: =OFFSET(Cat4SP_Conc!$E$10,ROUND(12*$AA14,0),4*(PlotControl!$C$6-1),1,1) -> 8184500 | AH14: =OFFSET(OSP_Conc!$C$10,ROUND(12*$AA14,0),4*(PlotControl!$C$6-1),1,1) -> 197870 | AI14: =OFFSET(OSP_Conc!$D$10,ROUND(12*$AA14,0),4*(PlotControl!$C$6-1),1,1) -> 393420 | AJ14: =OFFSET(OSP_Conc!$E$10,ROUND(12*$AA14,0),4*(PlotControl!$C$6-1),1,1) -> 749010 | AK14: =OFFSET(OSLA_Conc!$C$10,ROUND(12*$AA14,0),4*(PlotControl!$C$6-1),1,1) -> 39610 | AL14: =OFFSET(OSLA_Conc!$D$10,ROUND(12*$AA14,0),4*(PlotControl!$C$6-1),1,1) -> 45002 | AM14: =OFFSET(OSLA_Conc!$E$10,ROUND(12*$AA14,0),4*(PlotControl!$C$6-1),1,1) -> 50687 | AN14: =OFFSET(RTH_Conc!$C$10,ROUND(12*$AA14,0),4*(PlotControl!$C$6-1),1,1) -> 524470 | AO14: =OFFSET(RTH_Conc!$D$10,ROUND(12*$AA14,0),4*(PlotControl!$C$6-1),1,1) -> 679950 | AP14: =OFFSET(RTH_Conc!$E$10,ROUND(12*$AA14,0),4*(PlotControl!$C$6-1),1,1) -> 892270 | AQ14: =OFFSET(HR_Conc!$C$10,ROUND(12*$AA14,0),4*(PlotControl!$C$6-1),1,1) -> 54344 | AR14: =OFFSET(HR_Conc!$D$10,ROUND(12*$AA14,0),4*(PlotControl!$C$6-1),1,1) -> 70455 | AS14: =OFFSET(HR_Conc!$E$10,ROUND(12*$AA14,0),4*(PlotControl!$C$6-1),1,1) -> 92456 | AT14: =OFFSET(EP_Sump_Conc!$C$10,ROUND(12*$AA14,0),4*(PlotControl!$C$6-1),1,1) -> 75480 | AU14: =OFFSET(EP_Sump_Conc!$D$10,ROUND(12*$AA14,0),4*(PlotControl!$C$6-1),1,1) -> 143650 | AV14: =OFFSET(EP_Sump_Conc!$E$10,ROUND(12*$AA14,0),4*(PlotControl!$C$6-1),1,1) -> 239030 | AW14: =OFFSET(CPS_Pond_Conc!$C$10,ROUND(12*$AA14,0),4*(PlotControl!$C$6-1),1,1) -> 250000 | AX14: =OFFSET(CPS_Pond_Conc!$D$10,ROUND(12*$AA14,0),4*(PlotControl!$C$6-1),1,1) -> 250000 | AY14: =OFFSET(CPS_Pond_Conc!$E$10,ROUND(12*$AA14,0),4*(PlotControl!$C$6-1),1,1) -> 250000
A15: 11 | B15: =IF(PlotControl!$B$4 = "Annual Max",MAX(OFFSET(Cat23SP_Conc!$C$10,12*($A15-1),4*(PlotControl!$C$6-1),12,1)),AVERAGE(OFFSET(Cat23SP_Conc!$C$10,12*($A15-1),4*(PlotControl!$C$6-1),12,1))) -> 3431300 | C15: =IF(PlotControl!$B$4 = "Annual Max",MAX(OFFSET(Cat23SP_Conc!$D$10,12*($A15-1),4*(PlotControl!$C$6-1),12,1)),AVERAGE(OFFSET(Cat23SP_Conc!$D$10,12*($A15-1),4*(PlotControl!$C$6-1),12,1))) -> 4905900 | D15: =IF(PlotControl!$B$4 = "Annual Max",MAX(OFFSET(Cat23SP_Conc!$E$10,12*($A15-1),4*(PlotControl!$C$6-1),12,1)),AVERAGE(OFFSET(Cat23SP_Conc!$E$10,12*($A15-1),4*(PlotControl!$C$6-1),12,1))) -> 7094100 | E15: =IF(PlotControl!$B$4 = "Annual Max",MAX(OFFSET(Cat4SP_Conc!$C$10,12*($A15-1),4*(PlotControl!$C$6-1),12,1)),AVERAGE(OFFSET(Cat4SP_Conc!$C$10,12*($A15-1),4*(PlotControl!$C$6-1),12,1))) -> 5461100 | F15: =IF(PlotControl!$B$4 = "Annual Max",MAX(OFFSET(Cat4SP_Conc!$D$10,12*($A15-1),4*(PlotControl!$C$6-1),12,1)),AVERAGE(OFFSET(Cat4SP_Conc!$D$10,12*($A15-1),4*(PlotControl!$C$6-1),12,1))) -> 13936000 | G15: =IF(PlotControl!$B$4 = "Annual Max",MAX(OFFSET(Cat4SP_Conc!$E$10,12*($A15-1),4*(PlotControl!$C$6-1),12,1)),AVERAGE(OFFSET(Cat4SP_Conc!$E$10,12*($A15-1),4*(PlotControl!$C$6-1),12,1))) -> 51257000 | H15: =IF(PlotControl!$B$4 = "Annual Max",MAX(OFFSET(OSP_Conc!$C$10,12*($A15-1),4*(PlotControl!$C$6-1),12,1)),AVERAGE(OFFSET(OSP_Conc!$C$10,12*($A15-1),4*(PlotControl!$C$6-1),12,1))) -> 4747900 | I15: =IF(PlotControl!$B$4 = "Annual Max",MAX(OFFSET(OSP_Conc!$D$10,12*($A15-1),4*(PlotControl!$C$6-1),12,1)),AVERAGE(OFFSET(OSP_Conc!$D$10,12*($A15-1),4*(PlotControl!$C$6-1),12,1))) -> 8334600 | J15: =IF(PlotControl!$B$4 = "Annual Max",MAX(OFFSET(OSP_Conc!$E$10,12*($A15-1),4*(PlotControl!$C$6-1),12,1)),AVERAGE(OFFSET(OSP_Conc!$E$10,12*($A15-1),4*(PlotControl!$C$6-1),12,1))) -> 13321000 | K15: =IF(PlotControl!$B$4 = "Annual Max",MAX(OFFSET(OSLA_Conc!$C$10,12*($A15-1),4*(PlotControl!$C$6-1),12,1)),AVERAGE(OFFSET(OSLA_Conc!$C$10,12*($A15-1),4*(PlotControl!$C$6-1),12,1))) -> 39610 | L15: =IF(PlotControl!$B$4 = "Annual Max",MAX(OFFSET(OSLA_Conc!$D$10,12*($A15-1),4*(PlotControl!$C$6-1),12,1)),AVERAGE(OFFSET(OSLA_Conc!$D$10,12*($A15-1),4*(PlotControl!$C$6-1),12,1))) -> 45002 | M15: =IF(PlotControl!$B$4 = "Annual Max",MAX(OFFSET(OSLA_Conc!$E$10,12*($A15-1),4*(PlotControl!$C$6-1),12,1)),AVERAGE(OFFSET(OSLA_Conc!$E$10,12*($A15-1),4*(PlotControl!$C$6-1),12,1))) -> 50687 | N15: =IF(PlotControl!$B$4 = "Annual Max",MAX(OFFSET(RTH_Conc!$C$10,12*($A15-1),4*(PlotControl!$C$6-1),12,1)),AVERAGE(OFFSET(RTH_Conc!$C$10,12*($A15-1),4*(PlotControl!$C$6-1),12,1))) -> 2071400 | O15: =IF(PlotControl!$B$4 = "Annual Max",MAX(OFFSET(RTH_Conc!$D$10,12*($A15-1),4*(PlotControl!$C$6-1),12,1)),AVERAGE(OFFSET(RTH_Conc!$D$10,12*($A15-1),4*(PlotControl!$C$6-1),12,1))) -> 2611900 | P15: =IF(PlotControl!$B$4 = "Annual Max",MAX(OFFSET(RTH_Conc!$E$10,12*($A15-1),4*(PlotControl!$C$6-1),12,1)),AVERAGE(OFFSET(RTH_Conc!$E$10,12*($A15-1),4*(PlotControl!$C$6-1),12,1))) -> 3540800 | Q15: =IF(PlotControl!$B$4 = "Annual Max",MAX(OFFSET(HR_Conc!$C$10,12*($A15-1),4*(PlotControl!$C$6-1),12,1)),AVERAGE(OFFSET(HR_Conc!$C$10,12*($A15-1),4*(PlotControl!$C$6-1),12,1))) -> 300580 | R15: =IF(PlotControl!$B$4 = "Annual Max",MAX(OFFSET(HR_Conc!$D$10,12*($A15-1),4*(PlotControl!$C$6-1),12,1)),AVERAGE(OFFSET(HR_Conc!$D$10,12*($A15-1),4*(PlotControl!$C$6-1),12,1))) -> 381730 | S15: =IF(PlotControl!$B$4 = "Annual Max",MAX(OFFSET(HR_Conc!$E$10,12*($A15-1),4*(PlotControl!$C$6-1),12,1)),AVERAGE(OFFSET(HR_Conc!$E$10,12*($A15-1),4*(PlotControl!$C$6-1),12,1))) -> 478730 | T15: =IF(PlotControl!$B$4 = "Annual Max",MAX(OFFSET(EP_Sump_Conc!$C$10,12*($A15-1),4*(PlotControl!$C$6-1),12,1)),AVERAGE(OFFSET(EP_Sump_Conc!$C$10,12*($A15-1),4*(PlotControl!$C$6-1),12,1))) -> 117270 | U15: =IF(PlotControl!$B$4 = "Annual Max",MAX(OFFSET(EP_Sump_Conc!$D$10,12*($A15-1),4*(PlotControl!$C$6-1),12,1)),AVERAGE(OFFSET(EP_Sump_Conc!$D$10,12*($A15-1),4*(PlotControl!$C$6-1),12,1))) -> 242130 | V15: =IF(PlotControl!$B$4 = "Annual Max",MAX(OFFSET(EP_Sump_Conc!$E$10,12*($A15-1),4*(PlotControl!$C$6-1),12,1)),AVERAGE(OFFSET(EP_Sump_Conc!$E$10,12*($A15-1),4*(PlotControl!$C$6-1),12,1))) -> 461810 | W15: =IF(PlotControl!$B$4 = "Annual Max",MAX(OFFSET(CPS_Pond_Conc!$C$10,12*($A15-1),4*(PlotControl!$C$6-1),12,1)),AVERAGE(OFFSET(CPS_Pond_Conc!$C$10,12*($A15-1),4*(PlotControl!$C$6-1),12,1))) -> 250000 | X15: =IF(PlotControl!$B$4 = "Annual Max",MAX(OFFSET(CPS_Pond_Conc!$D$10,12*($A15-1),4*(PlotControl!$C$6-1),12,1)),AVERAGE(OFFSET(CPS_Pond_Conc!$D$10,12*($A15-1),4*(PlotControl!$C$6-1),12,1))) -> 250000 | Y15: =IF(PlotControl!$B$4 = "Annual Max",MAX(OFFSET(CPS_Pond_Conc!$E$10,12*($A15-1),4*(PlotControl!$C$6-1),12,1)),AVERAGE(OFFSET(CPS_Pond_Conc!$E$10,12*($A15-1),4*(PlotControl!$C$6-1),12,1))) -> 250000 | AA15: 0.8333333333 | AB15: =OFFSET(Cat23SP_Conc!$C$10,ROUND(12*$AA15,0),4*(PlotControl!$C$6-1),1,1) -> 280350 | AC15: =OFFSET(Cat23SP_Conc!$D$10,ROUND(12*$AA15,0),4*(PlotControl!$C$6-1),1,1) -> 556910 | AD15: =OFFSET(Cat23SP_Conc!$E$10,ROUND(12*$AA15,0),4*(PlotControl!$C$6-1),1,1) -> 1062900 | AE15: =OFFSET(Cat4SP_Conc!$C$10,ROUND(12*$AA15,0),4*(PlotControl!$C$6-1),1,1) -> 3495400 | AF15: =OFFSET(Cat4SP_Conc!$D$10,ROUND(12*$AA15,0),4*(PlotControl!$C$6-1),1,1) -> 5472700 | AG15: =OFFSET(Cat4SP_Conc!$E$10,ROUND(12*$AA15,0),4*(PlotControl!$C$6-1),1,1) -> 11380000 | AH15: =OFFSET(OSP_Conc!$C$10,ROUND(12*$AA15,0),4*(PlotControl!$C$6-1),1,1) -> 297230 | AI15: =OFFSET(OSP_Conc!$D$10,ROUND(12*$AA15,0),4*(PlotControl!$C$6-1),1,1) -> 590520 | AJ15: =OFFSET(OSP_Conc!$E$10,ROUND(12*$AA15,0),4*(PlotControl!$C$6-1),1,1) -> 1127000 | AK15: =OFFSET(OSLA_Conc!$C$10,ROUND(12*$AA15,0),4*(PlotControl!$C$6-1),1,1) -> 39610 | AL15: =OFFSET(OSLA_Conc!$D$10,ROUND(12*$AA15,0),4*(PlotControl!$C$6-1),1,1) -> 45002 | AM15: =OFFSET(OSLA_Conc!$E$10,ROUND(12*$AA15,0),4*(PlotControl!$C$6-1),1,1) -> 50687 | AN15: =OFFSET(RTH_Conc!$C$10,ROUND(12*$AA15,0),4*(PlotControl!$C$6-1),1,1) -> 726970 | AO15: =OFFSET(RTH_Conc!$D$10,ROUND(12*$AA15,0),4*(PlotControl!$C$6-1),1,1) -> 938780 | AP15: =OFFSET(RTH_Conc!$E$10,ROUND(12*$AA15,0),4*(PlotControl!$C$6-1),1,1) -> 1224300 | AQ15: =OFFSET(HR_Conc!$C$10,ROUND(12*$AA15,0),4*(PlotControl!$C$6-1),1,1) -> 75328 | AR15: =OFFSET(HR_Conc!$D$10,ROUND(12*$AA15,0),4*(PlotControl!$C$6-1),1,1) -> 97275 | AS15: =OFFSET(HR_Conc!$E$10,ROUND(12*$AA15,0),4*(PlotControl!$C$6-1),1,1) -> 126860 | AT15: =OFFSET(EP_Sump_Conc!$C$10,ROUND(12*$AA15,0),4*(PlotControl!$C$6-1),1,1) -> 89751 | AU15: =OFFSET(EP_Sump_Conc!$D$10,ROUND(12*$AA15,0),4*(PlotControl!$C$6-1),1,1) -> 166440 | AV15: =OFFSET(EP_Sump_Conc!$E$10,ROUND(12*$AA15,0),4*(PlotControl!$C$6-1),1,1) -> 266390 | AW15: =OFFSET(CPS_Pond_Conc!$C$10,ROUND(12*$AA15,0),4*(PlotControl!$C$6-1),1,1) -> 250000 | AX15: =OFFSET(CPS_Pond_Conc!$D$10,ROUND(12*$AA15,0),4*(PlotControl!$C$6-1),1,1) -> 250000 | AY15: =OFFSET(CPS_Pond_Conc!$E$10,ROUND(12*$AA15,0),4*(PlotControl!$C$6-1),1,1) -> 250000
A16: 12 | B16: =IF(PlotControl!$B$4 = "Annual Max",MAX(OFFSET(Cat23SP_Conc!$C$10,12*($A16-1),4*(PlotControl!$C$6-1),12,1)),AVERAGE(OFFSET(Cat23SP_Conc!$C$10,12*($A16-1),4*(PlotControl!$C$6-1),12,1))) -> 3542500 | C16: =IF(PlotControl!$B$4 = "Annual Max",MAX(OFFSET(Cat23SP_Conc!$D$10,12*($A16-1),4*(PlotControl!$C$6-1),12,1)),AVERAGE(OFFSET(Cat23SP_Conc!$D$10,12*($A16-1),4*(PlotControl!$C$6-1),12,1))) -> 5180700 | D16: =IF(PlotControl!$B$4 = "Annual Max",MAX(OFFSET(Cat23SP_Conc!$E$10,12*($A16-1),4*(PlotControl!$C$6-1),12,1)),AVERAGE(OFFSET(Cat23SP_Conc!$E$10,12*($A16-1),4*(PlotControl!$C$6-1),12,1))) -> 7555400 | E16: =IF(PlotControl!$B$4 = "Annual Max",MAX(OFFSET(Cat4SP_Conc!$C$10,12*($A16-1),4*(PlotControl!$C$6-1),12,1)),AVERAGE(OFFSET(Cat4SP_Conc!$C$10,12*($A16-1),4*(PlotControl!$C$6-1),12,1))) -> 0 | F16: =IF(PlotControl!$B$4 = "Annual Max",MAX(OFFSET(Cat4SP_Conc!$D$10,12*($A16-1),4*(PlotControl!$C$6-1),12,1)),AVERAGE(OFFSET(Cat4SP_Conc!$D$10,12*($A16-1),4*(PlotControl!$C$6-1),12,1))) -> 0 | G16: =IF(PlotControl!$B$4 = "Annual Max",MAX(OFFSET(Cat4SP_Conc!$E$10,12*($A16-1),4*(PlotControl!$C$6-1),12,1)),AVERAGE(OFFSET(Cat4SP_Conc!$E$10,12*($A16-1),4*(PlotControl!$C$6-1),12,1))) -> 0 | H16: =IF(PlotControl!$B$4 = "Annual Max",MAX(OFFSET(OSP_Conc!$C$10,12*($A16-1),4*(PlotControl!$C$6-1),12,1)),AVERAGE(OFFSET(OSP_Conc!$C$10,12*($A16-1),4*(PlotControl!$C$6-1),12,1))) -> 4938400 | I16: =IF(PlotControl!$B$4 = "Annual Max",MAX(OFFSET(OSP_Conc!$D$10,12*($A16-1),4*(PlotControl!$C$6-1),12,1)),AVERAGE(OFFSET(OSP_Conc!$D$10,12*($A16-1),4*(PlotControl!$C$6-1),12,1))) -> 8862900 | J16: =IF(PlotControl!$B$4 = "Annual Max",MAX(OFFSET(OSP_Conc!$E$10,12*($A16-1),4*(PlotControl!$C$6-1),12,1)),AVERAGE(OFFSET(OSP_Conc!$E$10,12*($A16-1),4*(PlotControl!$C$6-1),12,1))) -> 13857000 | K16: =IF(PlotControl!$B$4 = "Annual Max",MAX(OFFSET(OSLA_Conc!$C$10,12*($A16-1),4*(PlotControl!$C$6-1),12,1)),AVERAGE(OFFSET(OSLA_Conc!$C$10,12*($A16-1),4*(PlotControl!$C$6-1),12,1))) -> 39610 | L16: =IF(PlotControl!$B$4 = "Annual Max",MAX(OFFSET(OSLA_Conc!$D$10,12*($A16-1),4*(PlotControl!$C$6-1),12,1)),AVERAGE(OFFSET(OSLA_Conc!$D$10,12*($A16-1),4*(PlotControl!$C$6-1),12,1))) -> 45002 | M16: =IF(PlotControl!$B$4 = "Annual Max",MAX(OFFSET(OSLA_Conc!$E$10,12*($A16-1),4*(PlotControl!$C$6-1),12,1)),AVERAGE(OFFSET(OSLA_Conc!$E$10,12*($A16-1),4*(PlotControl!$C$6-1),12,1))) -> 50687 | N16: =IF(PlotControl!$B$4 = "Annual Max",MAX(OFFSET(RTH_Conc!$C$10,12*($A16-1),4*(PlotControl!$C$6-1),12,1)),AVERAGE(OFFSET(RTH_Conc!$C$10,12*($A16-1),4*(PlotControl!$C$6-1),12,1))) -> 2071400 | O16: =IF(PlotControl!$B$4 = "Annual Max",MAX(OFFSET(RTH_Conc!$D$10,12*($A16-1),4*(PlotControl!$C$6-1),12,1)),AVERAGE(OFFSET(RTH_Conc!$D$10,12*($A16-1),4*(PlotControl!$C$6-1),12,1))) -> 2615800 | P16: =IF(PlotControl!$B$4 = "Annual Max",MAX(OFFSET(RTH_Conc!$E$10,12*($A16-1),4*(PlotControl!$C$6-1),12,1)),AVERAGE(OFFSET(RTH_Conc!$E$10,12*($A16-1),4*(PlotControl!$C$6-1),12,1))) -> 3494200 | Q16: =IF(PlotControl!$B$4 = "Annual Max",MAX(OFFSET(HR_Conc!$C$10,12*($A16-1),4*(PlotControl!$C$6-1),12,1)),AVERAGE(OFFSET(HR_Conc!$C$10,12*($A16-1),4*(PlotControl!$C$6-1),12,1))) -> 301840 | R16: =IF(PlotControl!$B$4 = "Annual Max",MAX(OFFSET(HR_Conc!$D$10,12*($A16-1),4*(PlotControl!$C$6-1),12,1)),AVERAGE(OFFSET(HR_Conc!$D$10,12*($A16-1),4*(PlotControl!$C$6-1),12,1))) -> 381880 | S16: =IF(PlotControl!$B$4 = "Annual Max",MAX(OFFSET(HR_Conc!$E$10,12*($A16-1),4*(PlotControl!$C$6-1),12,1)),AVERAGE(OFFSET(HR_Conc!$E$10,12*($A16-1),4*(PlotControl!$C$6-1),12,1))) -> 489500 | T16: =IF(PlotControl!$B$4 = "Annual Max",MAX(OFFSET(EP_Sump_Conc!$C$10,12*($A16-1),4*(PlotControl!$C$6-1),12,1)),AVERAGE(OFFSET(EP_Sump_Conc!$C$10,12*($A16-1),4*(PlotControl!$C$6-1),12,1))) -> 144670 | U16: =IF(PlotControl!$B$4 = "Annual Max",MAX(OFFSET(EP_Sump_Conc!$D$10,12*($A16-1),4*(PlotControl!$C$6-1),12,1)),AVERAGE(OFFSET(EP_Sump_Conc!$D$10,12*($A16-1),4*(PlotControl!$C$6-1),12,1))) -> 309940 | V16: =IF(PlotControl!$B$4 = "Annual Max",MAX(OFFSET(EP_Sump_Conc!$E$10,12*($A16-1),4*(PlotControl!$C$6-1),12,1)),AVERAGE(OFFSET(EP_Sump_Conc!$E$10,12*($A16-1),4*(PlotControl!$C$6-1),12,1))) -> 595060 | W16: =IF(PlotControl!$B$4 = "Annual Max",MAX(OFFSET(CPS_Pond_Conc!$C$10,12*($A16-1),4*(PlotControl!$C$6-1),12,1)),AVERAGE(OFFSET(CPS_Pond_Conc!$C$10,12*($A16-1),4*(PlotControl!$C$6-1),12,1))) -> 250000 | X16: =IF(PlotControl!$B$4 = "Annual Max",MAX(OFFSET(CPS_Pond_Conc!$D$10,12*($A16-1),4*(PlotControl!$C$6-1),12,1)),AVERAGE(OFFSET(CPS_Pond_Conc!$D$10,12*($A16-1),4*(PlotControl!$C$6-1),12,1))) -> 250000 | Y16: =IF(PlotControl!$B$4 = "Annual Max",MAX(OFFSET(CPS_Pond_Conc!$E$10,12*($A16-1),4*(PlotControl!$C$6-1),12,1)),AVERAGE(OFFSET(CPS_Pond_Conc!$E$10,12*($A16-1),4*(PlotControl!$C$6-1),12,1))) -> 250000 | AA16: 0.9166666667 | AB16: =OFFSET(Cat23SP_Conc!$C$10,ROUND(12*$AA16,0),4*(PlotControl!$C$6-1),1,1) -> 517400 | AC16: =OFFSET(Cat23SP_Conc!$D$10,ROUND(12*$AA16,0),4*(PlotControl!$C$6-1),1,1) -> 1041500 | AD16: =OFFSET(Cat23SP_Conc!$E$10,ROUND(12*$AA16,0),4*(PlotControl!$C$6-1),1,1) -> 1961500 | AE16: =OFFSET(Cat4SP_Conc!$C$10,ROUND(12*$AA16,0),4*(PlotControl!$C$6-1),1,1) -> 3747200 | AF16: =OFFSET(Cat4SP_Conc!$D$10,ROUND(12*$AA16,0),4*(PlotControl!$C$6-1),1,1) -> 8295700 | AG16: =OFFSET(Cat4SP_Conc!$E$10,ROUND(12*$AA16,0),4*(PlotControl!$C$6-1),1,1) -> 18915000 | AH16: =OFFSET(OSP_Conc!$C$10,ROUND(12*$AA16,0),4*(PlotControl!$C$6-1),1,1) -> 551580 | AI16: =OFFSET(OSP_Conc!$D$10,ROUND(12*$AA16,0),4*(PlotControl!$C$6-1),1,1) -> 1110400 | AJ16: =OFFSET(OSP_Conc!$E$10,ROUND(12*$AA16,0),4*(PlotControl!$C$6-1),1,1) -> 2051600 | AK16: =OFFSET(OSLA_Conc!$C$10,ROUND(12*$AA16,0),4*(PlotControl!$C$6-1),1,1) -> 39610 | AL16: =OFFSET(OSLA_Conc!$D$10,ROUND(12*$AA16,0),4*(PlotControl!$C$6-1),1,1) -> 45002 | AM16: =OFFSET(OSLA_Conc!$E$10,ROUND(12*$AA16,0),4*(PlotControl!$C$6-1),1,1) -> 50687 | AN16: =OFFSET(RTH_Conc!$C$10,ROUND(12*$AA16,0),4*(PlotControl!$C$6-1),1,1) -> 1303300 | AO16: =OFFSET(RTH_Conc!$D$10,ROUND(12*$AA16,0),4*(PlotControl!$C$6-1),1,1) -> 1669100 | AP16: =OFFSET(RTH_Conc!$E$10,ROUND(12*$AA16,0),4*(PlotControl!$C$6-1),1,1) -> 2104000 | AQ16: =OFFSET(HR_Conc!$C$10,ROUND(12*$AA16,0),4*(PlotControl!$C$6-1),1,1) -> 135050 | AR16: =OFFSET(HR_Conc!$D$10,ROUND(12*$AA16,0),4*(PlotControl!$C$6-1),1,1) -> 172950 | AS16: =OFFSET(HR_Conc!$E$10,ROUND(12*$AA16,0),4*(PlotControl!$C$6-1),1,1) -> 222970 | AT16: =OFFSET(EP_Sump_Conc!$C$10,ROUND(12*$AA16,0),4*(PlotControl!$C$6-1),1,1) -> 143890 | AU16: =OFFSET(EP_Sump_Conc!$D$10,ROUND(12*$AA16,0),4*(PlotControl!$C$6-1),1,1) -> 255720 | AV16: =OFFSET(EP_Sump_Conc!$E$10,ROUND(12*$AA16,0),4*(PlotControl!$C$6-1),1,1) -> 417170 | AW16: =OFFSET(CPS_Pond_Conc!$C$10,ROUND(12*$AA16,0),4*(PlotControl!$C$6-1),1,1) -> 250000 | AX16: =OFFSET(CPS_Pond_Conc!$D$10,ROUND(12*$AA16,0),4*(PlotControl!$C$6-1),1,1) -> 250000 | AY16: =OFFSET(CPS_Pond_Conc!$E$10,ROUND(12*$AA16,0),4*(PlotControl!$C$6-1),1,1) -> 250000
A17: 13 | B17: =IF(PlotControl!$B$4 = "Annual Max",MAX(OFFSET(Cat23SP_Conc!$C$10,12*($A17-1),4*(PlotControl!$C$6-1),12,1)),AVERAGE(OFFSET(Cat23SP_Conc!$C$10,12*($A17-1),4*(PlotControl!$C$6-1),12,1))) -> 3653400 | C17: =IF(PlotControl!$B$4 = "Annual Max",MAX(OFFSET(Cat23SP_Conc!$D$10,12*($A17-1),4*(PlotControl!$C$6-1),12,1)),AVERAGE(OFFSET(Cat23SP_Conc!$D$10,12*($A17-1),4*(PlotControl!$C$6-1),12,1))) -> 5532500 | D17: =IF(PlotControl!$B$4 = "Annual Max",MAX(OFFSET(Cat23SP_Conc!$E$10,12*($A17-1),4*(PlotControl!$C$6-1),12,1)),AVERAGE(OFFSET(Cat23SP_Conc!$E$10,12*($A17-1),4*(PlotControl!$C$6-1),12,1))) -> 8292600 | E17: =IF(PlotControl!$B$4 = "Annual Max",MAX(OFFSET(Cat4SP_Conc!$C$10,12*($A17-1),4*(PlotControl!$C$6-1),12,1)),AVERAGE(OFFSET(Cat4SP_Conc!$C$10,12*($A17-1),4*(PlotControl!$C$6-1),12,1))) -> 0 | F17: =IF(PlotControl!$B$4 = "Annual Max",MAX(OFFSET(Cat4SP_Conc!$D$10,12*($A17-1),4*(PlotControl!$C$6-1),12,1)),AVERAGE(OFFSET(Cat4SP_Conc!$D$10,12*($A17-1),4*(PlotControl!$C$6-1),12,1))) -> 0 | G17: =IF(PlotControl!$B$4 = "Annual Max",MAX(OFFSET(Cat4SP_Conc!$E$10,12*($A17-1),4*(PlotControl!$C$6-1),12,1)),AVERAGE(OFFSET(Cat4SP_Conc!$E$10,12*($A17-1),4*(PlotControl!$C$6-1),12,1))) -> 0 | H17: =IF(PlotControl!$B$4 = "Annual Max",MAX(OFFSET(OSP_Conc!$C$10,12*($A17-1),4*(PlotControl!$C$6-1),12,1)),AVERAGE(OFFSET(OSP_Conc!$C$10,12*($A17-1),4*(PlotControl!$C$6-1),12,1))) -> 4933900 | I17: =IF(PlotControl!$B$4 = "Annual Max",MAX(OFFSET(OSP_Conc!$D$10,12*($A17-1),4*(PlotControl!$C$6-1),12,1)),AVERAGE(OFFSET(OSP_Conc!$D$10,12*($A17-1),4*(PlotControl!$C$6-1),12,1))) -> 8776800 | J17: =IF(PlotControl!$B$4 = "Annual Max",MAX(OFFSET(OSP_Conc!$E$10,12*($A17-1),4*(PlotControl!$C$6-1),12,1)),AVERAGE(OFFSET(OSP_Conc!$E$10,12*($A17-1),4*(PlotControl!$C$6-1),12,1))) -> 13665000 | K17: =IF(PlotControl!$B$4 = "Annual Max",MAX(OFFSET(OSLA_Conc!$C$10,12*($A17-1),4*(PlotControl!$C$6-1),12,1)),AVERAGE(OFFSET(OSLA_Conc!$C$10,12*($A17-1),4*(PlotControl!$C$6-1),12,1))) -> 39610 | L17: =IF(PlotControl!$B$4 = "Annual Max",MAX(OFFSET(OSLA_Conc!$D$10,12*($A17-1),4*(PlotControl!$C$6-1),12,1)),AVERAGE(OFFSET(OSLA_Conc!$D$10,12*($A17-1),4*(PlotControl!$C$6-1),12,1))) -> 45002 | M17: =IF(PlotControl!$B$4 = "Annual Max",MAX(OFFSET(OSLA_Conc!$E$10,12*($A17-1),4*(PlotControl!$C$6-1),12,1)),AVERAGE(OFFSET(OSLA_Conc!$E$10,12*($A17-1),4*(PlotControl!$C$6-1),12,1))) -> 50687 | N17: =IF(PlotControl!$B$4 = "Annual Max",MAX(OFFSET(RTH_Conc!$C$10,12*($A17-1),4*(PlotControl!$C$6-1),12,1)),AVERAGE(OFFSET(RTH_Conc!$C$10,12*($A17-1),4*(PlotControl!$C$6-1),12,1))) -> 2071400 | O17: =IF(PlotControl!$B$4 = "Annual Max",MAX(OFFSET(RTH_Conc!$D$10,12*($A17-1),4*(PlotControl!$C$6-1),12,1)),AVERAGE(OFFSET(RTH_Conc!$D$10,12*($A17-1),4*(PlotControl!$C$6-1),12,1))) -> 2603400 | P17: =IF(PlotControl!$B$4 = "Annual Max",MAX(OFFSET(RTH_Conc!$E$10,12*($A17-1),4*(PlotControl!$C$6-1),12,1)),AVERAGE(OFFSET(RTH_Conc!$E$10,12*($A17-1),4*(PlotControl!$C$6-1),12,1))) -> 3509500 | Q17: =IF(PlotControl!$B$4 = "Annual Max",MAX(OFFSET(HR_Conc!$C$10,12*($A17-1),4*(PlotControl!$C$6-1),12,1)),AVERAGE(OFFSET(HR_Conc!$C$10,12*($A17-1),4*(PlotControl!$C$6-1),12,1))) -> 297620 | R17: =IF(PlotControl!$B$4 = "Annual Max",MAX(OFFSET(HR_Conc!$D$10,12*($A17-1),4*(PlotControl!$C$6-1),12,1)),AVERAGE(OFFSET(HR_Conc!$D$10,12*($A17-1),4*(PlotControl!$C$6-1),12,1))) -> 377130 | S17: =IF(PlotControl!$B$4 = "Annual Max",MAX(OFFSET(HR_Conc!$E$10,12*($A17-1),4*(PlotControl!$C$6-1),12,1)),AVERAGE(OFFSET(HR_Conc!$E$10,12*($A17-1),4*(PlotControl!$C$6-1),12,1))) -> 483600 | T17: =IF(PlotControl!$B$4 = "Annual Max",MAX(OFFSET(EP_Sump_Conc!$C$10,12*($A17-1),4*(PlotControl!$C$6-1),12,1)),AVERAGE(OFFSET(EP_Sump_Conc!$C$10,12*($A17-1),4*(PlotControl!$C$6-1),12,1))) -> 201540 | U17: =IF(PlotControl!$B$4 = "Annual Max",MAX(OFFSET(EP_Sump_Conc!$D$10,12*($A17-1),4*(PlotControl!$C$6-1),12,1)),AVERAGE(OFFSET(EP_Sump_Conc!$D$10,12*($A17-1),4*(PlotControl!$C$6-1),12,1))) -> 458070 | V17: =IF(PlotControl!$B$4 = "Annual Max",MAX(OFFSET(EP_Sump_Conc!$E$10,12*($A17-1),4*(PlotControl!$C$6-1),12,1)),AVERAGE(OFFSET(EP_Sump_Conc!$E$10,12*($A17-1),4*(PlotControl!$C$6-1),12,1))) -> 880510 | W17: =IF(PlotControl!$B$4 = "Annual Max",MAX(OFFSET(CPS_Pond_Conc!$C$10,12*($A17-1),4*(PlotControl!$C$6-1),12,1)),AVERAGE(OFFSET(CPS_Pond_Conc!$C$10,12*($A17-1),4*(PlotControl!$C$6-1),12,1))) -> 250000 | X17: =IF(PlotControl!$B$4 = "Annual Max",MAX(OFFSET(CPS_Pond_Conc!$D$10,12*($A17-1),4*(PlotControl!$C$6-1),12,1)),AVERAGE(OFFSET(CPS_Pond_Conc!$D$10,12*($A17-1),4*(PlotControl!$C$6-1),12,1))) -> 250000 | Y17: =IF(PlotControl!$B$4 = "Annual Max",MAX(OFFSET(CPS_Pond_Conc!$E$10,12*($A17-1),4*(PlotControl!$C$6-1),12,1)),AVERAGE(OFFSET(CPS_Pond_Conc!$E$10,12*($A17-1),4*(PlotControl!$C$6-1),12,1))) -> 250000 | AA17: 1 | AB17: =OFFSET(Cat23SP_Conc!$C$10,ROUND(12*$AA17,0),4*(PlotControl!$C$6-1),1,1) -> 848570 | AC17: =OFFSET(Cat23SP_Conc!$D$10,ROUND(12*$AA17,0),4*(PlotControl!$C$6-1),1,1) -> 1709800 | AD17: =OFFSET(Cat23SP_Conc!$E$10,ROUND(12*$AA17,0),4*(PlotControl!$C$6-1),1,1) -> 2556700 | AE17: =OFFSET(Cat4SP_Conc!$C$10,ROUND(12*$AA17,0),4*(PlotControl!$C$6-1),1,1) -> 3783000 | AF17: =OFFSET(Cat4SP_Conc!$D$10,ROUND(12*$AA17,0),4*(PlotControl!$C$6-1),1,1) -> 10574000 | AG17: =OFFSET(Cat4SP_Conc!$E$10,ROUND(12*$AA17,0),4*(PlotControl!$C$6-1),1,1) -> 27908000 | AH17: =OFFSET(OSP_Conc!$C$10,ROUND(12*$AA17,0),4*(PlotControl!$C$6-1),1,1) -> 908820 | AI17: =OFFSET(OSP_Conc!$D$10,ROUND(12*$AA17,0),4*(PlotControl!$C$6-1),1,1) -> 1824600 | AJ17: =OFFSET(OSP_Conc!$E$10,ROUND(12*$AA17,0),4*(PlotControl!$C$6-1),1,1) -> 2636600 | AK17: =OFFSET(OSLA_Conc!$C$10,ROUND(12*$AA17,0),4*(PlotControl!$C$6-1),1,1) -> 39610 | AL17: =OFFSET(OSLA_Conc!$D$10,ROUND(12*$AA17,0),4*(PlotControl!$C$6-1),1,1) -> 45002 | AM17: =OFFSET(OSLA_Conc!$E$10,ROUND(12*$AA17,0),4*(PlotControl!$C$6-1),1,1) -> 50687 | AN17: =OFFSET(RTH_Conc!$C$10,ROUND(12*$AA17,0),4*(PlotControl!$C$6-1),1,1) -> 1966100 | AO17: =OFFSET(RTH_Conc!$D$10,ROUND(12*$AA17,0),4*(PlotControl!$C$6-1),1,1) -> 2306600 | AP17: =OFFSET(RTH_Conc!$E$10,ROUND(12*$AA17,0),4*(PlotControl!$C$6-1),1,1) -> 2891900 | AQ17: =OFFSET(HR_Conc!$C$10,ROUND(12*$AA17,0),4*(PlotControl!$C$6-1),1,1) -> 210270 | AR17: =OFFSET(HR_Conc!$D$10,ROUND(12*$AA17,0),4*(PlotControl!$C$6-1),1,1) -> 268200 | AS17: =OFFSET(HR_Conc!$E$10,ROUND(12*$AA17,0),4*(PlotControl!$C$6-1),1,1) -> 344470 | AT17: =OFFSET(EP_Sump_Conc!$C$10,ROUND(12*$AA17,0),4*(PlotControl!$C$6-1),1,1) -> 118260 | AU17: =OFFSET(EP_Sump_Conc!$D$10,ROUND(12*$AA17,0),4*(PlotControl!$C$6-1),1,1) -> 212080 | AV17: =OFFSET(EP_Sump_Conc!$E$10,ROUND(12*$AA17,0),4*(PlotControl!$C$6-1),1,1) -> 355460 | AW17: =OFFSET(CPS_Pond_Conc!$C$10,ROUND(12*$AA17,0),4*(PlotControl!$C$6-1),1,1) -> 250000 | AX17: =OFFSET(CPS_Pond_Conc!$D$10,ROUND(12*$AA17,0),4*(PlotControl!$C$6-1),1,1) -> 250000 | AY17: =OFFSET(CPS_Pond_Conc!$E$10,ROUND(12*$AA17,0),4*(PlotControl!$C$6-1),1,1) -> 250000
A18: 14 | B18: =IF(PlotControl!$B$4 = "Annual Max",MAX(OFFSET(Cat23SP_Conc!$C$10,12*($A18-1),4*(PlotControl!$C$6-1),12,1)),AVERAGE(OFFSET(Cat23SP_Conc!$C$10,12*($A18-1),4*(PlotControl!$C$6-1),12,1))) -> 3665300 | C18: =IF(PlotControl!$B$4 = "Annual Max",MAX(OFFSET(Cat23SP_Conc!$D$10,12*($A18-1),4*(PlotControl!$C$6-1),12,1)),AVERAGE(OFFSET(Cat23SP_Conc!$D$10,12*($A18-1),4*(PlotControl!$C$6-1),12,1))) -> 5821100 | D18: =IF(PlotControl!$B$4 = "Annual Max",MAX(OFFSET(Cat23SP_Conc!$E$10,12*($A18-1),4*(PlotControl!$C$6-1),12,1)),AVERAGE(OFFSET(Cat23SP_Conc!$E$10,12*($A18-1),4*(PlotControl!$C$6-1),12,1))) -> 8986800 | E18: =IF(PlotControl!$B$4 = "Annual Max",MAX(OFFSET(Cat4SP_Conc!$C$10,12*($A18-1),4*(PlotControl!$C$6-1),12,1)),AVERAGE(OFFSET(Cat4SP_Conc!$C$10,12*($A18-1),4*(PlotControl!$C$6-1),12,1))) -> 0 | F18: =IF(PlotControl!$B$4 = "Annual Max",MAX(OFFSET(Cat4SP_Conc!$D$10,12*($A18-1),4*(PlotControl!$C$6-1),12,1)),AVERAGE(OFFSET(Cat4SP_Conc!$D$10,12*($A18-1),4*(PlotControl!$C$6-1),12,1))) -> 0 | G18: =IF(PlotControl!$B$4 = "Annual Max",MAX(OFFSET(Cat4SP_Conc!$E$10,12*($A18-1),4*(PlotControl!$C$6-1),12,1)),AVERAGE(OFFSET(Cat4SP_Conc!$E$10,12*($A18-1),4*(PlotControl!$C$6-1),12,1))) -> 0 | H18: =IF(PlotControl!$B$4 = "Annual Max",MAX(OFFSET(OSP_Conc!$C$10,12*($A18-1),4*(PlotControl!$C$6-1),12,1)),AVERAGE(OFFSET(OSP_Conc!$C$10,12*($A18-1),4*(PlotControl!$C$6-1),12,1))) -> 4690500 | I18: =IF(PlotControl!$B$4 = "Annual Max",MAX(OFFSET(OSP_Conc!$D$10,12*($A18-1),4*(PlotControl!$C$6-1),12,1)),AVERAGE(OFFSET(OSP_Conc!$D$10,12*($A18-1),4*(PlotControl!$C$6-1),12,1))) -> 8498500 | J18: =IF(PlotControl!$B$4 = "Annual Max",MAX(OFFSET(OSP_Conc!$E$10,12*($A18-1),4*(PlotControl!$C$6-1),12,1)),AVERAGE(OFFSET(OSP_Conc!$E$10,12*($A18-1),4*(PlotControl!$C$6-1),12,1))) -> 13476000 | K18: =IF(PlotControl!$B$4 = "Annual Max",MAX(OFFSET(OSLA_Conc!$C$10,12*($A18-1),4*(PlotControl!$C$6-1),12,1)),AVERAGE(OFFSET(OSLA_Conc!$C$10,12*($A18-1),4*(PlotControl!$C$6-1),12,1))) -> 39610 | L18: =IF(PlotControl!$B$4 = "Annual Max",MAX(OFFSET(OSLA_Conc!$D$10,12*($A18-1),4*(PlotControl!$C$6-1),12,1)),AVERAGE(OFFSET(OSLA_Conc!$D$10,12*($A18-1),4*(PlotControl!$C$6-1),12,1))) -> 45002 | M18: =IF(PlotControl!$B$4 = "Annual Max",MAX(OFFSET(OSLA_Conc!$E$10,12*($A18-1),4*(PlotControl!$C$6-1),12,1)),AVERAGE(OFFSET(OSLA_Conc!$E$10,12*($A18-1),4*(PlotControl!$C$6-1),12,1))) -> 50687 | N18: =IF(PlotControl!$B$4 = "Annual Max",MAX(OFFSET(RTH_Conc!$C$10,12*($A18-1),4*(PlotControl!$C$6-1),12,1)),AVERAGE(OFFSET(RTH_Conc!$C$10,12*($A18-1),4*(PlotControl!$C$6-1),12,1))) -> 2071400 | O18: =IF(PlotControl!$B$4 = "Annual Max",MAX(OFFSET(RTH_Conc!$D$10,12*($A18-1),4*(PlotControl!$C$6-1),12,1)),AVERAGE(OFFSET(RTH_Conc!$D$10,12*($A18-1),4*(PlotControl!$C$6-1),12,1))) -> 2594500 | P18: =IF(PlotControl!$B$4 = "Annual Max",MAX(OFFSET(RTH_Conc!$E$10,12*($A18-1),4*(PlotControl!$C$6-1),12,1)),AVERAGE(OFFSET(RTH_Conc!$E$10,12*($A18-1),4*(PlotControl!$C$6-1),12,1))) -> 3424300 | Q18: =IF(PlotControl!$B$4 = "Annual Max",MAX(OFFSET(HR_Conc!$C$10,12*($A18-1),4*(PlotControl!$C$6-1),12,1)),AVERAGE(OFFSET(HR_Conc!$C$10,12*($A18-1),4*(PlotControl!$C$6-1),12,1))) -> 298620 | R18: =IF(PlotControl!$B$4 = "Annual Max",MAX(OFFSET(HR_Conc!$D$10,12*($A18-1),4*(PlotControl!$C$6-1),12,1)),AVERAGE(OFFSET(HR_Conc!$D$10,12*($A18-1),4*(PlotControl!$C$6-1),12,1))) -> 382480 | S18: =IF(PlotControl!$B$4 = "Annual Max",MAX(OFFSET(HR_Conc!$E$10,12*($A18-1),4*(PlotControl!$C$6-1),12,1)),AVERAGE(OFFSET(HR_Conc!$E$10,12*($A18-1),4*(PlotControl!$C$6-1),12,1))) -> 494600 | T18: =IF(PlotControl!$B$4 = "Annual Max",MAX(OFFSET(EP_Sump_Conc!$C$10,12*($A18-1),4*(PlotControl!$C$6-1),12,1)),AVERAGE(OFFSET(EP_Sump_Conc!$C$10,12*($A18-1),4*(PlotControl!$C$6-1),12,1))) -> 251080 | U18: =IF(PlotControl!$B$4 = "Annual Max",MAX(OFFSET(EP_Sump_Conc!$D$10,12*($A18-1),4*(PlotControl!$C$6-1),12,1)),AVERAGE(OFFSET(EP_Sump_Conc!$D$10,12*($A18-1),4*(PlotControl!$C$6-1),12,1))) -> 497330 | V18: =IF(PlotControl!$B$4 = "Annual Max",MAX(OFFSET(EP_Sump_Conc!$E$10,12*($A18-1),4*(PlotControl!$C$6-1),12,1)),AVERAGE(OFFSET(EP_Sump_Conc!$E$10,12*($A18-1),4*(PlotControl!$C$6-1),12,1))) -> 770280 | W18: =IF(PlotControl!$B$4 = "Annual Max",MAX(OFFSET(CPS_Pond_Conc!$C$10,12*($A18-1),4*(PlotControl!$C$6-1),12,1)),AVERAGE(OFFSET(CPS_Pond_Conc!$C$10,12*($A18-1),4*(PlotControl!$C$6-1),12,1))) -> 250000 | X18: =IF(PlotControl!$B$4 = "Annual Max",MAX(OFFSET(CPS_Pond_Conc!$D$10,12*($A18-1),4*(PlotControl!$C$6-1),12,1)),AVERAGE(OFFSET(CPS_Pond_Conc!$D$10,12*($A18-1),4*(PlotControl!$C$6-1),12,1))) -> 250000 | Y18: =IF(PlotControl!$B$4 = "Annual Max",MAX(OFFSET(CPS_Pond_Conc!$E$10,12*($A18-1),4*(PlotControl!$C$6-1),12,1)),AVERAGE(OFFSET(CPS_Pond_Conc!$E$10,12*($A18-1),4*(PlotControl!$C$6-1),12,1))) -> 250000 | AA18: 1.083333333 | AB18: =OFFSET(Cat23SP_Conc!$C$10,ROUND(12*$AA18,0),4*(PlotControl!$C$6-1),1,1) -> 1135800 | AC18: =OFFSET(Cat23SP_Conc!$D$10,ROUND(12*$AA18,0),4*(PlotControl!$C$6-1),1,1) -> 2085800 | AD18: =OFFSET(Cat23SP_Conc!$E$10,ROUND(12*$AA18,0),4*(PlotControl!$C$6-1),1,1) -> 2872000 | AE18: =OFFSET(Cat4SP_Conc!$C$10,ROUND(12*$AA18,0),4*(PlotControl!$C$6-1),1,1) -> 3787500 | AF18: =OFFSET(Cat4SP_Conc!$D$10,ROUND(12*$AA18,0),4*(PlotControl!$C$6-1),1,1) -> 11532000 | AG18: =OFFSET(Cat4SP_Conc!$E$10,ROUND(12*$AA18,0),4*(PlotControl!$C$6-1),1,1) -> 32520000 | AH18: =OFFSET(OSP_Conc!$C$10,ROUND(12*$AA18,0),4*(PlotControl!$C$6-1),1,1) -> 1230800 | AI18: =OFFSET(OSP_Conc!$D$10,ROUND(12*$AA18,0),4*(PlotControl!$C$6-1),1,1) -> 2141500 | AJ18: =OFFSET(OSP_Conc!$E$10,ROUND(12*$AA18,0),4*(PlotControl!$C$6-1),1,1) -> 3009600 | AK18: =OFFSET(OSLA_Conc!$C$10,ROUND(12*$AA18,0),4*(PlotControl!$C$6-1),1,1) -> 39610 | AL18: =OFFSET(OSLA_Conc!$D$10,ROUND(12*$AA18,0),4*(PlotControl!$C$6-1),1,1) -> 45002 | AM18: =OFFSET(OSLA_Conc!$E$10,ROUND(12*$AA18,0),4*(PlotControl!$C$6-1),1,1) -> 50687 | AN18: =OFFSET(RTH_Conc!$C$10,ROUND(12*$AA18,0),4*(PlotControl!$C$6-1),1,1) -> 2071300 | AO18: =OFFSET(RTH_Conc!$D$10,ROUND(12*$AA18,0),4*(PlotControl!$C$6-1),1,1) -> 2545000 | AP18: =OFFSET(RTH_Conc!$E$10,ROUND(12*$AA18,0),4*(PlotControl!$C$6-1),1,1) -> 3211100 | AQ18: =OFFSET(HR_Conc!$C$10,ROUND(12*$AA18,0),4*(PlotControl!$C$6-1),1,1) -> 263830 | AR18: =OFFSET(HR_Conc!$D$10,ROUND(12*$AA18,0),4*(PlotControl!$C$6-1),1,1) -> 320840 | AS18: =OFFSET(HR_Conc!$E$10,ROUND(12*$AA18,0),4*(PlotControl!$C$6-1),1,1) -> 410780 | AT18: =OFFSET(EP_Sump_Conc!$C$10,ROUND(12*$AA18,0),4*(PlotControl!$C$6-1),1,1) -> 112430 | AU18: =OFFSET(EP_Sump_Conc!$D$10,ROUND(12*$AA18,0),4*(PlotControl!$C$6-1),1,1) -> 188140 | AV18: =OFFSET(EP_Sump_Conc!$E$10,ROUND(12*$AA18,0),4*(PlotControl!$C$6-1),1,1) -> 326760 | AW18: =OFFSET(CPS_Pond_Conc!$C$10,ROUND(12*$AA18,0),4*(PlotControl!$C$6-1),1,1) -> 250000 | AX18: =OFFSET(CPS_Pond_Conc!$D$10,ROUND(12*$AA18,0),4*(PlotControl!$C$6-1),1,1) -> 250000 | AY18: =OFFSET(CPS_Pond_Conc!$E$10,ROUND(12*$AA18,0),4*(PlotControl!$C$6-1),1,1) -> 250000
A19: 15 | B19: =IF(PlotControl!$B$4 = "Annual Max",MAX(OFFSET(Cat23SP_Conc!$C$10,12*($A19-1),4*(PlotControl!$C$6-1),12,1)),AVERAGE(OFFSET(Cat23SP_Conc!$C$10,12*($A19-1),4*(PlotControl!$C$6-1),12,1))) -> 3521200 | C19: =IF(PlotControl!$B$4 = "Annual Max",MAX(OFFSET(Cat23SP_Conc!$D$10,12*($A19-1),4*(PlotControl!$C$6-1),12,1)),AVERAGE(OFFSET(Cat23SP_Conc!$D$10,12*($A19-1),4*(PlotControl!$C$6-1),12,1))) -> 6182800 | D19: =IF(PlotControl!$B$4 = "Annual Max",MAX(OFFSET(Cat23SP_Conc!$E$10,12*($A19-1),4*(PlotControl!$C$6-1),12,1)),AVERAGE(OFFSET(Cat23SP_Conc!$E$10,12*($A19-1),4*(PlotControl!$C$6-1),12,1))) -> 9865900 | E19: =IF(PlotControl!$B$4 = "Annual Max",MAX(OFFSET(Cat4SP_Conc!$C$10,12*($A19-1),4*(PlotControl!$C$6-1),12,1)),AVERAGE(OFFSET(Cat4SP_Conc!$C$10,12*($A19-1),4*(PlotControl!$C$6-1),12,1))) -> 0 | F19: =IF(PlotControl!$B$4 = "Annual Max",MAX(OFFSET(Cat4SP_Conc!$D$10,12*($A19-1),4*(PlotControl!$C$6-1),12,1)),AVERAGE(OFFSET(Cat4SP_Conc!$D$10,12*($A19-1),4*(PlotControl!$C$6-1),12,1))) -> 0 | G19: =IF(PlotControl!$B$4 = "Annual Max",MAX(OFFSET(Cat4SP_Conc!$E$10,12*($A19-1),4*(PlotControl!$C$6-1),12,1)),AVERAGE(OFFSET(Cat4SP_Conc!$E$10,12*($A19-1),4*(PlotControl!$C$6-1),12,1))) -> 0 | H19: =IF(PlotControl!$B$4 = "Annual Max",MAX(OFFSET(OSP_Conc!$C$10,12*($A19-1),4*(PlotControl!$C$6-1),12,1)),AVERAGE(OFFSET(OSP_Conc!$C$10,12*($A19-1),4*(PlotControl!$C$6-1),12,1))) -> 4263100 | I19: =IF(PlotControl!$B$4 = "Annual Max",MAX(OFFSET(OSP_Conc!$D$10,12*($A19-1),4*(PlotControl!$C$6-1),12,1)),AVERAGE(OFFSET(OSP_Conc!$D$10,12*($A19-1),4*(PlotControl!$C$6-1),12,1))) -> 8135600 | J19: =IF(PlotControl!$B$4 = "Annual Max",MAX(OFFSET(OSP_Conc!$E$10,12*($A19-1),4*(PlotControl!$C$6-1),12,1)),AVERAGE(OFFSET(OSP_Conc!$E$10,12*($A19-1),4*(PlotControl!$C$6-1),12,1))) -> 13375000 | K19: =IF(PlotControl!$B$4 = "Annual Max",MAX(OFFSET(OSLA_Conc!$C$10,12*($A19-1),4*(PlotControl!$C$6-1),12,1)),AVERAGE(OFFSET(OSLA_Conc!$C$10,12*($A19-1),4*(PlotControl!$C$6-1),12,1))) -> 39610 | L19: =IF(PlotControl!$B$4 = "Annual Max",MAX(OFFSET(OSLA_Conc!$D$10,12*($A19-1),4*(PlotControl!$C$6-1),12,1)),AVERAGE(OFFSET(OSLA_Conc!$D$10,12*($A19-1),4*(PlotControl!$C$6-1),12,1))) -> 45002 | M19: =IF(PlotControl!$B$4 = "Annual Max",MAX(OFFSET(OSLA_Conc!$E$10,12*($A19-1),4*(PlotControl!$C$6-1),12,1)),AVERAGE(OFFSET(OSLA_Conc!$E$10,12*($A19-1),4*(PlotControl!$C$6-1),12,1))) -> 50687 | N19: =IF(PlotControl!$B$4 = "Annual Max",MAX(OFFSET(RTH_Conc!$C$10,12*($A19-1),4*(PlotControl!$C$6-1),12,1)),AVERAGE(OFFSET(RTH_Conc!$C$10,12*($A19-1),4*(PlotControl!$C$6-1),12,1))) -> 2071400 | O19: =IF(PlotControl!$B$4 = "Annual Max",MAX(OFFSET(RTH_Conc!$D$10,12*($A19-1),4*(PlotControl!$C$6-1),12,1)),AVERAGE(OFFSET(RTH_Conc!$D$10,12*($A19-1),4*(PlotControl!$C$6-1),12,1))) -> 2594100 | P19: =IF(PlotControl!$B$4 = "Annual Max",MAX(OFFSET(RTH_Conc!$E$10,12*($A19-1),4*(PlotControl!$C$6-1),12,1)),AVERAGE(OFFSET(RTH_Conc!$E$10,12*($A19-1),4*(PlotControl!$C$6-1),12,1))) -> 3471500 | Q19: =IF(PlotControl!$B$4 = "Annual Max",MAX(OFFSET(HR_Conc!$C$10,12*($A19-1),4*(PlotControl!$C$6-1),12,1)),AVERAGE(OFFSET(HR_Conc!$C$10,12*($A19-1),4*(PlotControl!$C$6-1),12,1))) -> 296960 | R19: =IF(PlotControl!$B$4 = "Annual Max",MAX(OFFSET(HR_Conc!$D$10,12*($A19-1),4*(PlotControl!$C$6-1),12,1)),AVERAGE(OFFSET(HR_Conc!$D$10,12*($A19-1),4*(PlotControl!$C$6-1),12,1))) -> 377430 | S19: =IF(PlotControl!$B$4 = "Annual Max",MAX(OFFSET(HR_Conc!$E$10,12*($A19-1),4*(PlotControl!$C$6-1),12,1)),AVERAGE(OFFSET(HR_Conc!$E$10,12*($A19-1),4*(PlotControl!$C$6-1),12,1))) -> 480010 | T19: =IF(PlotControl!$B$4 = "Annual Max",MAX(OFFSET(EP_Sump_Conc!$C$10,12*($A19-1),4*(PlotControl!$C$6-1),12,1)),AVERAGE(OFFSET(EP_Sump_Conc!$C$10,12*($A19-1),4*(PlotControl!$C$6-1),12,1))) -> 229160 | U19: =IF(PlotControl!$B$4 = "Annual Max",MAX(OFFSET(EP_Sump_Conc!$D$10,12*($A19-1),4*(PlotControl!$C$6-1),12,1)),AVERAGE(OFFSET(EP_Sump_Conc!$D$10,12*($A19-1),4*(PlotControl!$C$6-1),12,1))) -> 421590 | V19: =IF(PlotControl!$B$4 = "Annual Max",MAX(OFFSET(EP_Sump_Conc!$E$10,12*($A19-1),4*(PlotControl!$C$6-1),12,1)),AVERAGE(OFFSET(EP_Sump_Conc!$E$10,12*($A19-1),4*(PlotControl!$C$6-1),12,1))) -> 639190 | W19: =IF(PlotControl!$B$4 = "Annual Max",MAX(OFFSET(CPS_Pond_Conc!$C$10,12*($A19-1),4*(PlotControl!$C$6-1),12,1)),AVERAGE(OFFSET(CPS_Pond_Conc!$C$10,12*($A19-1),4*(PlotControl!$C$6-1),12,1))) -> 250000 | X19: =IF(PlotControl!$B$4 = "Annual Max",MAX(OFFSET(CPS_Pond_Conc!$D$10,12*($A19-1),4*(PlotControl!$C$6-1),12,1)),AVERAGE(OFFSET(CPS_Pond_Conc!$D$10,12*($A19-1),4*(PlotControl!$C$6-1),12,1))) -> 250000 | Y19: =IF(PlotControl!$B$4 = "Annual Max",MAX(OFFSET(CPS_Pond_Conc!$E$10,12*($A19-1),4*(PlotControl!$C$6-1),12,1)),AVERAGE(OFFSET(CPS_Pond_Conc!$E$10,12*($A19-1),4*(PlotControl!$C$6-1),12,1))) -> 250000 | AA19: 1.166666667 | AB19: =OFFSET(Cat23SP_Conc!$C$10,ROUND(12*$AA19,0),4*(PlotControl!$C$6-1),1,1) -> 1413300 | AC19: =OFFSET(Cat23SP_Conc!$D$10,ROUND(12*$AA19,0),4*(PlotControl!$C$6-1),1,1) -> 2264100 | AD19: =OFFSET(Cat23SP_Conc!$E$10,ROUND(12*$AA19,0),4*(PlotControl!$C$6-1),1,1) -> 3222200 | AE19: =OFFSET(Cat4SP_Conc!$C$10,ROUND(12*$AA19,0),4*(PlotControl!$C$6-1),1,1) -> 3786900 | AF19: =OFFSET(Cat4SP_Conc!$D$10,ROUND(12*$AA19,0),4*(PlotControl!$C$6-1),1,1) -> 12210000 | AG19: =OFFSET(Cat4SP_Conc!$E$10,ROUND(12*$AA19,0),4*(PlotControl!$C$6-1),1,1) -> 35296000 | AH19: =OFFSET(OSP_Conc!$C$10,ROUND(12*$AA19,0),4*(PlotControl!$C$6-1),1,1) -> 1549200 | AI19: =OFFSET(OSP_Conc!$D$10,ROUND(12*$AA19,0),4*(PlotControl!$C$6-1),1,1) -> 2327700 | AJ19: =OFFSET(OSP_Conc!$E$10,ROUND(12*$AA19,0),4*(PlotControl!$C$6-1),1,1) -> 3406200 | AK19: =OFFSET(OSLA_Conc!$C$10,ROUND(12*$AA19,0),4*(PlotControl!$C$6-1),1,1) -> 39610 | AL19: =OFFSET(OSLA_Conc!$D$10,ROUND(12*$AA19,0),4*(PlotControl!$C$6-1),1,1) -> 45002 | AM19: =OFFSET(OSLA_Conc!$E$10,ROUND(12*$AA19,0),4*(PlotControl!$C$6-1),1,1) -> 50687 | AN19: =OFFSET(RTH_Conc!$C$10,ROUND(12*$AA19,0),4*(PlotControl!$C$6-1),1,1) -> 2071400 | AO19: =OFFSET(RTH_Conc!$D$10,ROUND(12*$AA19,0),4*(PlotControl!$C$6-1),1,1) -> 2602700 | AP19: =OFFSET(RTH_Conc!$E$10,ROUND(12*$AA19,0),4*(PlotControl!$C$6-1),1,1) -> 3539800 | AQ19: =OFFSET(HR_Conc!$C$10,ROUND(12*$AA19,0),4*(PlotControl!$C$6-1),1,1) -> 301310 | AR19: =OFFSET(HR_Conc!$D$10,ROUND(12*$AA19,0),4*(PlotControl!$C$6-1),1,1) -> 375780 | AS19: =OFFSET(HR_Conc!$E$10,ROUND(12*$AA19,0),4*(PlotControl!$C$6-1),1,1) -> 485910 | AT19: =OFFSET(EP_Sump_Conc!$C$10,ROUND(12*$AA19,0),4*(PlotControl!$C$6-1),1,1) -> 108760 | AU19: =OFFSET(EP_Sump_Conc!$D$10,ROUND(12*$AA19,0),4*(PlotControl!$C$6-1),1,1) -> 182840 | AV19: =OFFSET(EP_Sump_Conc!$E$10,ROUND(12*$AA19,0),4*(PlotControl!$C$6-1),1,1) -> 322270 | AW19: =OFFSET(CPS_Pond_Conc!$C$10,ROUND(12*$AA19,0),4*(PlotControl!$C$6-1),1,1) -> 250000 | AX19: =OFFSET(CPS_Pond_Conc!$D$10,ROUND(12*$AA19,0),4*(PlotControl!$C$6-1),1,1) -> 250000 | AY19: =OFFSET(CPS_Pond_Conc!$E$10,ROUND(12*$AA19,0),4*(PlotControl!$C$6-1),1,1) -> 250000
A20: 16 | B20: =IF(PlotControl!$B$4 = "Annual Max",MAX(OFFSET(Cat23SP_Conc!$C$10,12*($A20-1),4*(PlotControl!$C$6-1),12,1)),AVERAGE(OFFSET(Cat23SP_Conc!$C$10,12*($A20-1),4*(PlotControl!$C$6-1),12,1))) -> 3604400 | C20: =IF(PlotControl!$B$4 = "Annual Max",MAX(OFFSET(Cat23SP_Conc!$D$10,12*($A20-1),4*(PlotControl!$C$6-1),12,1)),AVERAGE(OFFSET(Cat23SP_Conc!$D$10,12*($A20-1),4*(PlotControl!$C$6-1),12,1))) -> 6632800 | D20: =IF(PlotControl!$B$4 = "Annual Max",MAX(OFFSET(Cat23SP_Conc!$E$10,12*($A20-1),4*(PlotControl!$C$6-1),12,1)),AVERAGE(OFFSET(Cat23SP_Conc!$E$10,12*($A20-1),4*(PlotControl!$C$6-1),12,1))) -> 10883000 | E20: =IF(PlotControl!$B$4 = "Annual Max",MAX(OFFSET(Cat4SP_Conc!$C$10,12*($A20-1),4*(PlotControl!$C$6-1),12,1)),AVERAGE(OFFSET(Cat4SP_Conc!$C$10,12*($A20-1),4*(PlotControl!$C$6-1),12,1))) -> 0 | F20: =IF(PlotControl!$B$4 = "Annual Max",MAX(OFFSET(Cat4SP_Conc!$D$10,12*($A20-1),4*(PlotControl!$C$6-1),12,1)),AVERAGE(OFFSET(Cat4SP_Conc!$D$10,12*($A20-1),4*(PlotControl!$C$6-1),12,1))) -> 0 | G20: =IF(PlotControl!$B$4 = "Annual Max",MAX(OFFSET(Cat4SP_Conc!$E$10,12*($A20-1),4*(PlotControl!$C$6-1),12,1)),AVERAGE(OFFSET(Cat4SP_Conc!$E$10,12*($A20-1),4*(PlotControl!$C$6-1),12,1))) -> 0 | H20: =IF(PlotControl!$B$4 = "Annual Max",MAX(OFFSET(OSP_Conc!$C$10,12*($A20-1),4*(PlotControl!$C$6-1),12,1)),AVERAGE(OFFSET(OSP_Conc!$C$10,12*($A20-1),4*(PlotControl!$C$6-1),12,1))) -> 4285800 | I20: =IF(PlotControl!$B$4 = "Annual Max",MAX(OFFSET(OSP_Conc!$D$10,12*($A20-1),4*(PlotControl!$C$6-1),12,1)),AVERAGE(OFFSET(OSP_Conc!$D$10,12*($A20-1),4*(PlotControl!$C$6-1),12,1))) -> 8121800 | J20: =IF(PlotControl!$B$4 = "Annual Max",MAX(OFFSET(OSP_Conc!$E$10,12*($A20-1),4*(PlotControl!$C$6-1),12,1)),AVERAGE(OFFSET(OSP_Conc!$E$10,12*($A20-1),4*(PlotControl!$C$6-1),12,1))) -> 13461000 | K20: =IF(PlotControl!$B$4 = "Annual Max",MAX(OFFSET(OSLA_Conc!$C$10,12*($A20-1),4*(PlotControl!$C$6-1),12,1)),AVERAGE(OFFSET(OSLA_Conc!$C$10,12*($A20-1),4*(PlotControl!$C$6-1),12,1))) -> 39610 | L20: =IF(PlotControl!$B$4 = "Annual Max",MAX(OFFSET(OSLA_Conc!$D$10,12*($A20-1),4*(PlotControl!$C$6-1),12,1)),AVERAGE(OFFSET(OSLA_Conc!$D$10,12*($A20-1),4*(PlotControl!$C$6-1),12,1))) -> 45002 | M20: =IF(PlotControl!$B$4 = "Annual Max",MAX(OFFSET(OSLA_Conc!$E$10,12*($A20-1),4*(PlotControl!$C$6-1),12,1)),AVERAGE(OFFSET(OSLA_Conc!$E$10,12*($A20-1),4*(PlotControl!$C$6-1),12,1))) -> 50687 | N20: =IF(PlotControl!$B$4 = "Annual Max",MAX(OFFSET(RTH_Conc!$C$10,12*($A20-1),4*(PlotControl!$C$6-1),12,1)),AVERAGE(OFFSET(RTH_Conc!$C$10,12*($A20-1),4*(PlotControl!$C$6-1),12,1))) -> 2071400 | O20: =IF(PlotControl!$B$4 = "Annual Max",MAX(OFFSET(RTH_Conc!$D$10,12*($A20-1),4*(PlotControl!$C$6-1),12,1)),AVERAGE(OFFSET(RTH_Conc!$D$10,12*($A20-1),4*(PlotControl!$C$6-1),12,1))) -> 2603400 | P20: =IF(PlotControl!$B$4 = "Annual Max",MAX(OFFSET(RTH_Conc!$E$10,12*($A20-1),4*(PlotControl!$C$6-1),12,1)),AVERAGE(OFFSET(RTH_Conc!$E$10,12*($A20-1),4*(PlotControl!$C$6-1),12,1))) -> 3533800 | Q20: =IF(PlotControl!$B$4 = "Annual Max",MAX(OFFSET(HR_Conc!$C$10,12*($A20-1),4*(PlotControl!$C$6-1),12,1)),AVERAGE(OFFSET(HR_Conc!$C$10,12*($A20-1),4*(PlotControl!$C$6-1),12,1))) -> 300040 | R20: =IF(PlotControl!$B$4 = "Annual Max",MAX(OFFSET(HR_Conc!$D$10,12*($A20-1),4*(PlotControl!$C$6-1),12,1)),AVERAGE(OFFSET(HR_Conc!$D$10,12*($A20-1),4*(PlotControl!$C$6-1),12,1))) -> 382450 | S20: =IF(PlotControl!$B$4 = "Annual Max",MAX(OFFSET(HR_Conc!$E$10,12*($A20-1),4*(PlotControl!$C$6-1),12,1)),AVERAGE(OFFSET(HR_Conc!$E$10,12*($A20-1),4*(PlotControl!$C$6-1),12,1))) -> 481510 | T20: =IF(PlotControl!$B$4 = "Annual Max",MAX(OFFSET(EP_Sump_Conc!$C$10,12*($A20-1),4*(PlotControl!$C$6-1),12,1)),AVERAGE(OFFSET(EP_Sump_Conc!$C$10,12*($A20-1),4*(PlotControl!$C$6-1),12,1))) -> 184480 | U20: =IF(PlotControl!$B$4 = "Annual Max",MAX(OFFSET(EP_Sump_Conc!$D$10,12*($A20-1),4*(PlotControl!$C$6-1),12,1)),AVERAGE(OFFSET(EP_Sump_Conc!$D$10,12*($A20-1),4*(PlotControl!$C$6-1),12,1))) -> 326790 | V20: =IF(PlotControl!$B$4 = "Annual Max",MAX(OFFSET(EP_Sump_Conc!$E$10,12*($A20-1),4*(PlotControl!$C$6-1),12,1)),AVERAGE(OFFSET(EP_Sump_Conc!$E$10,12*($A20-1),4*(PlotControl!$C$6-1),12,1))) -> 496990 | W20: =IF(PlotControl!$B$4 = "Annual Max",MAX(OFFSET(CPS_Pond_Conc!$C$10,12*($A20-1),4*(PlotControl!$C$6-1),12,1)),AVERAGE(OFFSET(CPS_Pond_Conc!$C$10,12*($A20-1),4*(PlotControl!$C$6-1),12,1))) -> 250000 | X20: =IF(PlotControl!$B$4 = "Annual Max",MAX(OFFSET(CPS_Pond_Conc!$D$10,12*($A20-1),4*(PlotControl!$C$6-1),12,1)),AVERAGE(OFFSET(CPS_Pond_Conc!$D$10,12*($A20-1),4*(PlotControl!$C$6-1),12,1))) -> 250000 | Y20: =IF(PlotControl!$B$4 = "Annual Max",MAX(OFFSET(CPS_Pond_Conc!$E$10,12*($A20-1),4*(PlotControl!$C$6-1),12,1)),AVERAGE(OFFSET(CPS_Pond_Conc!$E$10,12*($A20-1),4*(PlotControl!$C$6-1),12,1))) -> 250000 | AA20: 1.25 | AB20: =OFFSET(Cat23SP_Conc!$C$10,ROUND(12*$AA20,0),4*(PlotControl!$C$6-1),1,1) -> 1345100 | AC20: =OFFSET(Cat23SP_Conc!$D$10,ROUND(12*$AA20,0),4*(PlotControl!$C$6-1),1,1) -> 2256500 | AD20: =OFFSET(Cat23SP_Conc!$E$10,ROUND(12*$AA20,0),4*(PlotControl!$C$6-1),1,1) -> 3183000 | AE20: =OFFSET(Cat4SP_Conc!$C$10,ROUND(12*$AA20,0),4*(PlotControl!$C$6-1),1,1) -> 3781500 | AF20: =OFFSET(Cat4SP_Conc!$D$10,ROUND(12*$AA20,0),4*(PlotControl!$C$6-1),1,1) -> 11990000 | AG20: =OFFSET(Cat4SP_Conc!$E$10,ROUND(12*$AA20,0),4*(PlotControl!$C$6-1),1,1) -> 34825000 | AH20: =OFFSET(OSP_Conc!$C$10,ROUND(12*$AA20,0),4*(PlotControl!$C$6-1),1,1) -> 1490900 | AI20: =OFFSET(OSP_Conc!$D$10,ROUND(12*$AA20,0),4*(PlotControl!$C$6-1),1,1) -> 2305200 | AJ20: =OFFSET(OSP_Conc!$E$10,ROUND(12*$AA20,0),4*(PlotControl!$C$6-1),1,1) -> 3351100 | AK20: =OFFSET(OSLA_Conc!$C$10,ROUND(12*$AA20,0),4*(PlotControl!$C$6-1),1,1) -> 39610 | AL20: =OFFSET(OSLA_Conc!$D$10,ROUND(12*$AA20,0),4*(PlotControl!$C$6-1),1,1) -> 45002 | AM20: =OFFSET(OSLA_Conc!$E$10,ROUND(12*$AA20,0),4*(PlotControl!$C$6-1),1,1) -> 50687 | AN20: =OFFSET(RTH_Conc!$C$10,ROUND(12*$AA20,0),4*(PlotControl!$C$6-1),1,1) -> 2067400 | AO20: =OFFSET(RTH_Conc!$D$10,ROUND(12*$AA20,0),4*(PlotControl!$C$6-1),1,1) -> 2533600 | AP20: =OFFSET(RTH_Conc!$E$10,ROUND(12*$AA20,0),4*(PlotControl!$C$6-1),1,1) -> 3305700 | AQ20: =OFFSET(HR_Conc!$C$10,ROUND(12*$AA20,0),4*(PlotControl!$C$6-1),1,1) -> 250120 | AR20: =OFFSET(HR_Conc!$D$10,ROUND(12*$AA20,0),4*(PlotControl!$C$6-1),1,1) -> 316390 | AS20: =OFFSET(HR_Conc!$E$10,ROUND(12*$AA20,0),4*(PlotControl!$C$6-1),1,1) -> 420040 | AT20: =OFFSET(EP_Sump_Conc!$C$10,ROUND(12*$AA20,0),4*(PlotControl!$C$6-1),1,1) -> 118280 | AU20: =OFFSET(EP_Sump_Conc!$D$10,ROUND(12*$AA20,0),4*(PlotControl!$C$6-1),1,1) -> 197050 | AV20: =OFFSET(EP_Sump_Conc!$E$10,ROUND(12*$AA20,0),4*(PlotControl!$C$6-1),1,1) -> 339040 | AW20: =OFFSET(CPS_Pond_Conc!$C$10,ROUND(12*$AA20,0),4*(PlotControl!$C$6-1),1,1) -> 250000 | AX20: =OFFSET(CPS_Pond_Conc!$D$10,ROUND(12*$AA20,0),4*(PlotControl!$C$6-1),1,1) -> 250000 | AY20: =OFFSET(CPS_Pond_Conc!$E$10,ROUND(12*$AA20,0),4*(PlotControl!$C$6-1),1,1) -> 250000
A21: 17 | B21: =IF(PlotControl!$B$4 = "Annual Max",MAX(OFFSET(Cat23SP_Conc!$C$10,12*($A21-1),4*(PlotControl!$C$6-1),12,1)),AVERAGE(OFFSET(Cat23SP_Conc!$C$10,12*($A21-1),4*(PlotControl!$C$6-1),12,1))) -> 3565800 | C21: =IF(PlotControl!$B$4 = "Annual Max",MAX(OFFSET(Cat23SP_Conc!$D$10,12*($A21-1),4*(PlotControl!$C$6-1),12,1)),AVERAGE(OFFSET(Cat23SP_Conc!$D$10,12*($A21-1),4*(PlotControl!$C$6-1),12,1))) -> 6948500 | D21: =IF(PlotControl!$B$4 = "Annual Max",MAX(OFFSET(Cat23SP_Conc!$E$10,12*($A21-1),4*(PlotControl!$C$6-1),12,1)),AVERAGE(OFFSET(Cat23SP_Conc!$E$10,12*($A21-1),4*(PlotControl!$C$6-1),12,1))) -> 11756000 | E21: =IF(PlotControl!$B$4 = "Annual Max",MAX(OFFSET(Cat4SP_Conc!$C$10,12*($A21-1),4*(PlotControl!$C$6-1),12,1)),AVERAGE(OFFSET(Cat4SP_Conc!$C$10,12*($A21-1),4*(PlotControl!$C$6-1),12,1))) -> 0 | F21: =IF(PlotControl!$B$4 = "Annual Max",MAX(OFFSET(Cat4SP_Conc!$D$10,12*($A21-1),4*(PlotControl!$C$6-1),12,1)),AVERAGE(OFFSET(Cat4SP_Conc!$D$10,12*($A21-1),4*(PlotControl!$C$6-1),12,1))) -> 0 | G21: =IF(PlotControl!$B$4 = "Annual Max",MAX(OFFSET(Cat4SP_Conc!$E$10,12*($A21-1),4*(PlotControl!$C$6-1),12,1)),AVERAGE(OFFSET(Cat4SP_Conc!$E$10,12*($A21-1),4*(PlotControl!$C$6-1),12,1))) -> 0 | H21: =IF(PlotControl!$B$4 = "Annual Max",MAX(OFFSET(OSP_Conc!$C$10,12*($A21-1),4*(PlotControl!$C$6-1),12,1)),AVERAGE(OFFSET(OSP_Conc!$C$10,12*($A21-1),4*(PlotControl!$C$6-1),12,1))) -> 4275000 | I21: =IF(PlotControl!$B$4 = "Annual Max",MAX(OFFSET(OSP_Conc!$D$10,12*($A21-1),4*(PlotControl!$C$6-1),12,1)),AVERAGE(OFFSET(OSP_Conc!$D$10,12*($A21-1),4*(PlotControl!$C$6-1),12,1))) -> 8159200 | J21: =IF(PlotControl!$B$4 = "Annual Max",MAX(OFFSET(OSP_Conc!$E$10,12*($A21-1),4*(PlotControl!$C$6-1),12,1)),AVERAGE(OFFSET(OSP_Conc!$E$10,12*($A21-1),4*(PlotControl!$C$6-1),12,1))) -> 13482000 | K21: =IF(PlotControl!$B$4 = "Annual Max",MAX(OFFSET(OSLA_Conc!$C$10,12*($A21-1),4*(PlotControl!$C$6-1),12,1)),AVERAGE(OFFSET(OSLA_Conc!$C$10,12*($A21-1),4*(PlotControl!$C$6-1),12,1))) -> 39610 | L21: =IF(PlotControl!$B$4 = "Annual Max",MAX(OFFSET(OSLA_Conc!$D$10,12*($A21-1),4*(PlotControl!$C$6-1),12,1)),AVERAGE(OFFSET(OSLA_Conc!$D$10,12*($A21-1),4*(PlotControl!$C$6-1),12,1))) -> 45002 | M21: =IF(PlotControl!$B$4 = "Annual Max",MAX(OFFSET(OSLA_Conc!$E$10,12*($A21-1),4*(PlotControl!$C$6-1),12,1)),AVERAGE(OFFSET(OSLA_Conc!$E$10,12*($A21-1),4*(PlotControl!$C$6-1),12,1))) -> 50687 | N21: =IF(PlotControl!$B$4 = "Annual Max",MAX(OFFSET(RTH_Conc!$C$10,12*($A21-1),4*(PlotControl!$C$6-1),12,1)),AVERAGE(OFFSET(RTH_Conc!$C$10,12*($A21-1),4*(PlotControl!$C$6-1),12,1))) -> 2071400 | O21: =IF(PlotControl!$B$4 = "Annual Max",MAX(OFFSET(RTH_Conc!$D$10,12*($A21-1),4*(PlotControl!$C$6-1),12,1)),AVERAGE(OFFSET(RTH_Conc!$D$10,12*($A21-1),4*(PlotControl!$C$6-1),12,1))) -> 2611900 | P21: =IF(PlotControl!$B$4 = "Annual Max",MAX(OFFSET(RTH_Conc!$E$10,12*($A21-1),4*(PlotControl!$C$6-1),12,1)),AVERAGE(OFFSET(RTH_Conc!$E$10,12*($A21-1),4*(PlotControl!$C$6-1),12,1))) -> 3568800 | Q21: =IF(PlotControl!$B$4 = "Annual Max",MAX(OFFSET(HR_Conc!$C$10,12*($A21-1),4*(PlotControl!$C$6-1),12,1)),AVERAGE(OFFSET(HR_Conc!$C$10,12*($A21-1),4*(PlotControl!$C$6-1),12,1))) -> 300470 | R21: =IF(PlotControl!$B$4 = "Annual Max",MAX(OFFSET(HR_Conc!$D$10,12*($A21-1),4*(PlotControl!$C$6-1),12,1)),AVERAGE(OFFSET(HR_Conc!$D$10,12*($A21-1),4*(PlotControl!$C$6-1),12,1))) -> 382280 | S21: =IF(PlotControl!$B$4 = "Annual Max",MAX(OFFSET(HR_Conc!$E$10,12*($A21-1),4*(PlotControl!$C$6-1),12,1)),AVERAGE(OFFSET(HR_Conc!$E$10,12*($A21-1),4*(PlotControl!$C$6-1),12,1))) -> 487130 | T21: =IF(PlotControl!$B$4 = "Annual Max",MAX(OFFSET(EP_Sump_Conc!$C$10,12*($A21-1),4*(PlotControl!$C$6-1),12,1)),AVERAGE(OFFSET(EP_Sump_Conc!$C$10,12*($A21-1),4*(PlotControl!$C$6-1),12,1))) -> 15556 | U21: =IF(PlotControl!$B$4 = "Annual Max",MAX(OFFSET(EP_Sump_Conc!$D$10,12*($A21-1),4*(PlotControl!$C$6-1),12,1)),AVERAGE(OFFSET(EP_Sump_Conc!$D$10,12*($A21-1),4*(PlotControl!$C$6-1),12,1))) -> 47310 | V21: =IF(PlotControl!$B$4 = "Annual Max",MAX(OFFSET(EP_Sump_Conc!$E$10,12*($A21-1),4*(PlotControl!$C$6-1),12,1)),AVERAGE(OFFSET(EP_Sump_Conc!$E$10,12*($A21-1),4*(PlotControl!$C$6-1),12,1))) -> 123290 | W21: =IF(PlotControl!$B$4 = "Annual Max",MAX(OFFSET(CPS_Pond_Conc!$C$10,12*($A21-1),4*(PlotControl!$C$6-1),12,1)),AVERAGE(OFFSET(CPS_Pond_Conc!$C$10,12*($A21-1),4*(PlotControl!$C$6-1),12,1))) -> 250000 | X21: =IF(PlotControl!$B$4 = "Annual Max",MAX(OFFSET(CPS_Pond_Conc!$D$10,12*($A21-1),4*(PlotControl!$C$6-1),12,1)),AVERAGE(OFFSET(CPS_Pond_Conc!$D$10,12*($A21-1),4*(PlotControl!$C$6-1),12,1))) -> 250000 | Y21: =IF(PlotControl!$B$4 = "Annual Max",MAX(OFFSET(CPS_Pond_Conc!$E$10,12*($A21-1),4*(PlotControl!$C$6-1),12,1)),AVERAGE(OFFSET(CPS_Pond_Conc!$E$10,12*($A21-1),4*(PlotControl!$C$6-1),12,1))) -> 250000 | AA21: 1.333333333 | AB21: =OFFSET(Cat23SP_Conc!$C$10,ROUND(12*$AA21,0),4*(PlotControl!$C$6-1),1,1) -> 772380 | AC21: =OFFSET(Cat23SP_Conc!$D$10,ROUND(12*$AA21,0),4*(PlotControl!$C$6-1),1,1) -> 1737600 | AD21: =OFFSET(Cat23SP_Conc!$E$10,ROUND(12*$AA21,0),4*(PlotControl!$C$6-1),1,1) -> 2687900 | AE21: =OFFSET(Cat4SP_Conc!$C$10,ROUND(12*$AA21,0),4*(PlotControl!$C$6-1),1,1) -> 3775900 | AF21: =OFFSET(Cat4SP_Conc!$D$10,ROUND(12*$AA21,0),4*(PlotControl!$C$6-1),1,1) -> 9961000 | AG21: =OFFSET(Cat4SP_Conc!$E$10,ROUND(12*$AA21,0),4*(PlotControl!$C$6-1),1,1) -> 25509000 | AH21: =OFFSET(OSP_Conc!$C$10,ROUND(12*$AA21,0),4*(PlotControl!$C$6-1),1,1) -> 866520 | AI21: =OFFSET(OSP_Conc!$D$10,ROUND(12*$AA21,0),4*(PlotControl!$C$6-1),1,1) -> 1975100 | AJ21: =OFFSET(OSP_Conc!$E$10,ROUND(12*$AA21,0),4*(PlotControl!$C$6-1),1,1) -> 2816800 | AK21: =OFFSET(OSLA_Conc!$C$10,ROUND(12*$AA21,0),4*(PlotControl!$C$6-1),1,1) -> 39610 | AL21: =OFFSET(OSLA_Conc!$D$10,ROUND(12*$AA21,0),4*(PlotControl!$C$6-1),1,1) -> 45002 | AM21: =OFFSET(OSLA_Conc!$E$10,ROUND(12*$AA21,0),4*(PlotControl!$C$6-1),1,1) -> 50687 | AN21: =OFFSET(RTH_Conc!$C$10,ROUND(12*$AA21,0),4*(PlotControl!$C$6-1),1,1) -> 1212000 | AO21: =OFFSET(RTH_Conc!$D$10,ROUND(12*$AA21,0),4*(PlotControl!$C$6-1),1,1) -> 1538200 | AP21: =OFFSET(RTH_Conc!$E$10,ROUND(12*$AA21,0),4*(PlotControl!$C$6-1),1,1) -> 2315100 | AQ21: =OFFSET(HR_Conc!$C$10,ROUND(12*$AA21,0),4*(PlotControl!$C$6-1),1,1) -> 125450 | AR21: =OFFSET(HR_Conc!$D$10,ROUND(12*$AA21,0),4*(PlotControl!$C$6-1),1,1) -> 161090 | AS21: =OFFSET(HR_Conc!$E$10,ROUND(12*$AA21,0),4*(PlotControl!$C$6-1),1,1) -> 218640 | AT21: =OFFSET(EP_Sump_Conc!$C$10,ROUND(12*$AA21,0),4*(PlotControl!$C$6-1),1,1) -> 63896 | AU21: =OFFSET(EP_Sump_Conc!$D$10,ROUND(12*$AA21,0),4*(PlotControl!$C$6-1),1,1) -> 98682 | AV21: =OFFSET(EP_Sump_Conc!$E$10,ROUND(12*$AA21,0),4*(PlotControl!$C$6-1),1,1) -> 149740 | AW21: =OFFSET(CPS_Pond_Conc!$C$10,ROUND(12*$AA21,0),4*(PlotControl!$C$6-1),1,1) -> 250000 | AX21: =OFFSET(CPS_Pond_Conc!$D$10,ROUND(12*$AA21,0),4*(PlotControl!$C$6-1),1,1) -> 250000 | AY21: =OFFSET(CPS_Pond_Conc!$E$10,ROUND(12*$AA21,0),4*(PlotControl!$C$6-1),1,1) -> 250000
A22: 18 | B22: =IF(PlotControl!$B$4 = "Annual Max",MAX(OFFSET(Cat23SP_Conc!$C$10,12*($A22-1),4*(PlotControl!$C$6-1),12,1)),AVERAGE(OFFSET(Cat23SP_Conc!$C$10,12*($A22-1),4*(PlotControl!$C$6-1),12,1))) -> 3401700 | C22: =IF(PlotControl!$B$4 = "Annual Max",MAX(OFFSET(Cat23SP_Conc!$D$10,12*($A22-1),4*(PlotControl!$C$6-1),12,1)),AVERAGE(OFFSET(Cat23SP_Conc!$D$10,12*($A22-1),4*(PlotControl!$C$6-1),12,1))) -> 6916100 | D22: =IF(PlotControl!$B$4 = "Annual Max",MAX(OFFSET(Cat23SP_Conc!$E$10,12*($A22-1),4*(PlotControl!$C$6-1),12,1)),AVERAGE(OFFSET(Cat23SP_Conc!$E$10,12*($A22-1),4*(PlotControl!$C$6-1),12,1))) -> 12722000 | E22: =IF(PlotControl!$B$4 = "Annual Max",MAX(OFFSET(Cat4SP_Conc!$C$10,12*($A22-1),4*(PlotControl!$C$6-1),12,1)),AVERAGE(OFFSET(Cat4SP_Conc!$C$10,12*($A22-1),4*(PlotControl!$C$6-1),12,1))) -> 0 | F22: =IF(PlotControl!$B$4 = "Annual Max",MAX(OFFSET(Cat4SP_Conc!$D$10,12*($A22-1),4*(PlotControl!$C$6-1),12,1)),AVERAGE(OFFSET(Cat4SP_Conc!$D$10,12*($A22-1),4*(PlotControl!$C$6-1),12,1))) -> 0 | G22: =IF(PlotControl!$B$4 = "Annual Max",MAX(OFFSET(Cat4SP_Conc!$E$10,12*($A22-1),4*(PlotControl!$C$6-1),12,1)),AVERAGE(OFFSET(Cat4SP_Conc!$E$10,12*($A22-1),4*(PlotControl!$C$6-1),12,1))) -> 0 | H22: =IF(PlotControl!$B$4 = "Annual Max",MAX(OFFSET(OSP_Conc!$C$10,12*($A22-1),4*(PlotControl!$C$6-1),12,1)),AVERAGE(OFFSET(OSP_Conc!$C$10,12*($A22-1),4*(PlotControl!$C$6-1),12,1))) -> 4258800 | I22: =IF(PlotControl!$B$4 = "Annual Max",MAX(OFFSET(OSP_Conc!$D$10,12*($A22-1),4*(PlotControl!$C$6-1),12,1)),AVERAGE(OFFSET(OSP_Conc!$D$10,12*($A22-1),4*(PlotControl!$C$6-1),12,1))) -> 8111800 | J22: =IF(PlotControl!$B$4 = "Annual Max",MAX(OFFSET(OSP_Conc!$E$10,12*($A22-1),4*(PlotControl!$C$6-1),12,1)),AVERAGE(OFFSET(OSP_Conc!$E$10,12*($A22-1),4*(PlotControl!$C$6-1),12,1))) -> 13375000 | K22: =IF(PlotControl!$B$4 = "Annual Max",MAX(OFFSET(OSLA_Conc!$C$10,12*($A22-1),4*(PlotControl!$C$6-1),12,1)),AVERAGE(OFFSET(OSLA_Conc!$C$10,12*($A22-1),4*(PlotControl!$C$6-1),12,1))) -> 39610 | L22: =IF(PlotControl!$B$4 = "Annual Max",MAX(OFFSET(OSLA_Conc!$D$10,12*($A22-1),4*(PlotControl!$C$6-1),12,1)),AVERAGE(OFFSET(OSLA_Conc!$D$10,12*($A22-1),4*(PlotControl!$C$6-1),12,1))) -> 45002 | M22: =IF(PlotControl!$B$4 = "Annual Max",MAX(OFFSET(OSLA_Conc!$E$10,12*($A22-1),4*(PlotControl!$C$6-1),12,1)),AVERAGE(OFFSET(OSLA_Conc!$E$10,12*($A22-1),4*(PlotControl!$C$6-1),12,1))) -> 50687 | N22: =IF(PlotControl!$B$4 = "Annual Max",MAX(OFFSET(RTH_Conc!$C$10,12*($A22-1),4*(PlotControl!$C$6-1),12,1)),AVERAGE(OFFSET(RTH_Conc!$C$10,12*($A22-1),4*(PlotControl!$C$6-1),12,1))) -> 2071400 | O22: =IF(PlotControl!$B$4 = "Annual Max",MAX(OFFSET(RTH_Conc!$D$10,12*($A22-1),4*(PlotControl!$C$6-1),12,1)),AVERAGE(OFFSET(RTH_Conc!$D$10,12*($A22-1),4*(PlotControl!$C$6-1),12,1))) -> 2597800 | P22: =IF(PlotControl!$B$4 = "Annual Max",MAX(OFFSET(RTH_Conc!$E$10,12*($A22-1),4*(PlotControl!$C$6-1),12,1)),AVERAGE(OFFSET(RTH_Conc!$E$10,12*($A22-1),4*(PlotControl!$C$6-1),12,1))) -> 3483800 | Q22: =IF(PlotControl!$B$4 = "Annual Max",MAX(OFFSET(HR_Conc!$C$10,12*($A22-1),4*(PlotControl!$C$6-1),12,1)),AVERAGE(OFFSET(HR_Conc!$C$10,12*($A22-1),4*(PlotControl!$C$6-1),12,1))) -> 298960 | R22: =IF(PlotControl!$B$4 = "Annual Max",MAX(OFFSET(HR_Conc!$D$10,12*($A22-1),4*(PlotControl!$C$6-1),12,1)),AVERAGE(OFFSET(HR_Conc!$D$10,12*($A22-1),4*(PlotControl!$C$6-1),12,1))) -> 380920 | S22: =IF(PlotControl!$B$4 = "Annual Max",MAX(OFFSET(HR_Conc!$E$10,12*($A22-1),4*(PlotControl!$C$6-1),12,1)),AVERAGE(OFFSET(HR_Conc!$E$10,12*($A22-1),4*(PlotControl!$C$6-1),12,1))) -> 491190 | T22: =IF(PlotControl!$B$4 = "Annual Max",MAX(OFFSET(EP_Sump_Conc!$C$10,12*($A22-1),4*(PlotControl!$C$6-1),12,1)),AVERAGE(OFFSET(EP_Sump_Conc!$C$10,12*($A22-1),4*(PlotControl!$C$6-1),12,1))) -> 11161 | U22: =IF(PlotControl!$B$4 = "Annual Max",MAX(OFFSET(EP_Sump_Conc!$D$10,12*($A22-1),4*(PlotControl!$C$6-1),12,1)),AVERAGE(OFFSET(EP_Sump_Conc!$D$10,12*($A22-1),4*(PlotControl!$C$6-1),12,1))) -> 32555 | V22: =IF(PlotControl!$B$4 = "Annual Max",MAX(OFFSET(EP_Sump_Conc!$E$10,12*($A22-1),4*(PlotControl!$C$6-1),12,1)),AVERAGE(OFFSET(EP_Sump_Conc!$E$10,12*($A22-1),4*(PlotControl!$C$6-1),12,1))) -> 80318 | W22: =IF(PlotControl!$B$4 = "Annual Max",MAX(OFFSET(CPS_Pond_Conc!$C$10,12*($A22-1),4*(PlotControl!$C$6-1),12,1)),AVERAGE(OFFSET(CPS_Pond_Conc!$C$10,12*($A22-1),4*(PlotControl!$C$6-1),12,1))) -> 250000 | X22: =IF(PlotControl!$B$4 = "Annual Max",MAX(OFFSET(CPS_Pond_Conc!$D$10,12*($A22-1),4*(PlotControl!$C$6-1),12,1)),AVERAGE(OFFSET(CPS_Pond_Conc!$D$10,12*($A22-1),4*(PlotControl!$C$6-1),12,1))) -> 250000 | Y22: =IF(PlotControl!$B$4 = "Annual Max",MAX(OFFSET(CPS_Pond_Conc!$E$10,12*($A22-1),4*(PlotControl!$C$6-1),12,1)),AVERAGE(OFFSET(CPS_Pond_Conc!$E$10,12*($A22-1),4*(PlotControl!$C$6-1),12,1))) -> 250000 | AA22: 1.416666667 | AB22: =OFFSET(Cat23SP_Conc!$C$10,ROUND(12*$AA22,0),4*(PlotControl!$C$6-1),1,1) -> 423960 | AC22: =OFFSET(Cat23SP_Conc!$D$10,ROUND(12*$AA22,0),4*(PlotControl!$C$6-1),1,1) -> 870240 | AD22: =OFFSET(Cat23SP_Conc!$E$10,ROUND(12*$AA22,0),4*(PlotControl!$C$6-1),1,1) -> 2268400 | AE22: =OFFSET(Cat4SP_Conc!$C$10,ROUND(12*$AA22,0),4*(PlotControl!$C$6-1),1,1) -> 3700400 | AF22: =OFFSET(Cat4SP_Conc!$D$10,ROUND(12*$AA22,0),4*(PlotControl!$C$6-1),1,1) -> 7429900 | AG22: =OFFSET(Cat4SP_Conc!$E$10,ROUND(12*$AA22,0),4*(PlotControl!$C$6-1),1,1) -> 17628000 | AH22: =OFFSET(OSP_Conc!$C$10,ROUND(12*$AA22,0),4*(PlotControl!$C$6-1),1,1) -> 480830 | AI22: =OFFSET(OSP_Conc!$D$10,ROUND(12*$AA22,0),4*(PlotControl!$C$6-1),1,1) -> 1023700 | AJ22: =OFFSET(OSP_Conc!$E$10,ROUND(12*$AA22,0),4*(PlotControl!$C$6-1),1,1) -> 2410200 | AK22: =OFFSET(OSLA_Conc!$C$10,ROUND(12*$AA22,0),4*(PlotControl!$C$6-1),1,1) -> 39610 | AL22: =OFFSET(OSLA_Conc!$D$10,ROUND(12*$AA22,0),4*(PlotControl!$C$6-1),1,1) -> 45002 | AM22: =OFFSET(OSLA_Conc!$E$10,ROUND(12*$AA22,0),4*(PlotControl!$C$6-1),1,1) -> 50687 | AN22: =OFFSET(RTH_Conc!$C$10,ROUND(12*$AA22,0),4*(PlotControl!$C$6-1),1,1) -> 648450 | AO22: =OFFSET(RTH_Conc!$D$10,ROUND(12*$AA22,0),4*(PlotControl!$C$6-1),1,1) -> 827240 | AP22: =OFFSET(RTH_Conc!$E$10,ROUND(12*$AA22,0),4*(PlotControl!$C$6-1),1,1) -> 1113900 | AQ22: =OFFSET(HR_Conc!$C$10,ROUND(12*$AA22,0),4*(PlotControl!$C$6-1),1,1) -> 67160 | AR22: =OFFSET(HR_Conc!$D$10,ROUND(12*$AA22,0),4*(PlotControl!$C$6-1),1,1) -> 85571 | AS22: =OFFSET(HR_Conc!$E$10,ROUND(12*$AA22,0),4*(PlotControl!$C$6-1),1,1) -> 114920 | AT22: =OFFSET(EP_Sump_Conc!$C$10,ROUND(12*$AA22,0),4*(PlotControl!$C$6-1),1,1) -> 102090 | AU22: =OFFSET(EP_Sump_Conc!$D$10,ROUND(12*$AA22,0),4*(PlotControl!$C$6-1),1,1) -> 181170 | AV22: =OFFSET(EP_Sump_Conc!$E$10,ROUND(12*$AA22,0),4*(PlotControl!$C$6-1),1,1) -> 272360 | AW22: =OFFSET(CPS_Pond_Conc!$C$10,ROUND(12*$AA22,0),4*(PlotControl!$C$6-1),1,1) -> 250000 | AX22: =OFFSET(CPS_Pond_Conc!$D$10,ROUND(12*$AA22,0),4*(PlotControl!$C$6-1),1,1) -> 250000 | AY22: =OFFSET(CPS_Pond_Conc!$E$10,ROUND(12*$AA22,0),4*(PlotControl!$C$6-1),1,1) -> 250000
